Workbook

Sheet C10 Entry Sheet
A1: AAAAAABABABW
A2: THE NATIONAL INSURANCE BOARD
A3: Non-Hospitality Form C-10 Entry Sheet
B5: Employer No. : | C5: 12345 | F5: From : | G5: My Company Name Here
B6: For Month of : | C6: July | D6: 2024 | F6: Address : | G6: My Company Address Here
F7: P.O.Box : | G7: My PO Box Here | AG7: Employer Number | AH7: =TEXT(C5,"000000000") -> 000012345 | AJ7: Retirement Age | AL7: 60
F8: Island : | G8: New Providence | AG8: Contribution Month | AH8: =AH11*100+MONTH(AH10) -> 202407
F9: Contact : | G9: Contact Person Name Here | AJ9: Summer Employment
B10: Number of Mondays in Month : | C10: =IF(MONTH(AH10)=MONTH(IF(WEEKDAY(AH10,2)=1,AH10+28,AH10+8-WEEKDAY(AH10,2)+28)),5,4) -> 5 | F10: Phone : | G10: 333-3333 | AG10: Contribution Date | AH10: =DATE(D6,VLOOKUP(C6,$R$16:$S$27,2,FALSE),1) -> 2024-07-01 | AK10: Start period | AL10: =DATE(YEAR(AH10),6,1) -> 2024-06-01
B11: Max. Weekly Insurage Wage : | C11: =HLOOKUP($AH$10,MaxIWCeiling,2) -> 810 | F11: Cellular : | G11: 433-3333 | W11: =IF(W17=Z17,0,1) -> 0 | AG11: Contribution Year | AH11: =+D6 -> 2024 | AK11: End period | AL11: =DATE(YEAR(AH10),8,31) -> 2024-08-31
B12: Max. Monthly Insurage Wage : | C12: =HLOOKUP($AH$10,MaxIWCeiling,3) -> 3510 | F12: Fax : | G12: 322-2222 | W12: 0 | AG12: Contribution Quarter | AH12: =VLOOKUP(C6,$R$16:$T$27,3,FALSE) -> 3 | AK12: Lower Age Limit | AL12: 15
B13: # of Employees : | C13: =COUNTA(A16:A1015) -> 1 | F13: Email : | G13: myemailaddress@coralwave.com | W13: =IF(W19=Z19,0,1) -> 0 | AK13: Upper Age Limit | AL13: 25
R14: Data validation - Lists for drop down menus | AC14: Remove Fields | BD14: Final Amounts | BO14: Final Amounts Displayed
A15: Employee N.I.# | B15: Last Name | C15: First Name | D15: Contribution Type | E15: Weekly/Monthly | F15: Number of Weeks | G15: Retired Ind. | H15: Insurable Wage | I15: Employee Contribution | J15: Employer Contribution | K15: Total Contribution | O15: Weekly/Monthly | R15: Month | T15: Quarter | U15: Years | W15: EE NI# | X15: EE NI# Check #1 | Y15: EE NI# Check #2 | Z15: New NI# | AA15: Actual W/M | AB15: Actual Insurable Wage | AC15: Low IW max | AD15: Ret. IW max | AE15: Actual EE Contr. Rate | AF15: Actual ER Contr. Rate | AG15: (1) | AH15: (2) | AI15: Year of birth | AJ15: (3) | AK15: QYOB | AL15: Quarter of Birth | AM15: Age | AN15: Underage Regist. Indicator | AO15: Ineligible for Ret. Indicator | AP15: Employee Category | AQ15: Max Weekly IW | AR15: Max IW | AS15: Actual Weekly IW | AT15: IW Ind. | AU15: # of wks Ind. | AV15: Actual Weekly IW for Monthly Paid | AW15: < 60 Weekly Ind. | AX15: EE cont. rate | AY15: ER cont. rate | AZ15: Total cont. rate | BA15: EE | BB15: ER | BC15: Total | BD15: EE | BE15: ER | BF15: Total | BG15: Missing Data Ind. | BH15: Missing Data Msg | BI15: Check Data Ind. | BJ15: Check Data Msg | BK15: Summer Student Ind. | BL15: Summer Student Msg | BM15: Invalid NI# Ind. | BN15: Invalid NI# Msg | BO15: EE | BP15: ER | BQ15: Total | BR15: Error Msg Ind. | BS15: Write to C-10 file
A16: 11867485 | B16: PRATT | C16: JAMES | D16: P | E16: W | F16: 5 | H16: 4050 | I16: =IF(ISBLANK($H16)," ",BO16) -> 188.33 | J16: =IF(ISBLANK($H16)," ",BP16) -> 269.33 | K16: =IF((ISBLANK($H16))," ",BQ16) -> 457.66 | O16: M | P16: Monthly Paid | R16: January | S16: 1 | T16: 1 | U16: 1980 | W16: =IF(ISBLANK($A16)," ",A16) -> 11867485 | X16: =IF(ISBLANK(A16)," ",MOD(SUM((LEFT(A16,1)*8)+(MID(A16,2,1)*7)+(MID(A16,3,1)*6)+(MID(A16,4,1)*5)+(MID(A16,5,1)*4)+(MID(A16,6,1)*3)+(MID(A16,7,1)*2)),11)) -> 6 | Y16: =IF(ISBLANK(A16)," ",IF(A16<10000000+OR(A16>99999999),"X",IF(X16=0,0,IF(X16=1,"X",11-X16)))) -> 5 | Z16: =IF(ISBLANK(A16)," ",IF(ISERROR(VLOOKUP(A16,InvalidNINum,1,FALSE)),SUM(CONCATENATE(LEFT(A16,7),Y16)),VLOOKUP(A16,InvalidNINum,1,FALSE))) -> 11867485 | AA16: =IF(ISBLANK($F16)," ",IF(AND($E16="M",$F16=$C$10),"M","W")) -> W | AB16: =IF(ISBLANK($H16)," ",IF($E16="M",IF($F16=$C$10,IF($H16>$C$12,$C$12,ROUNDDOWN($H16,0)),IF($H16>($F16*$C$11),$F16*$C$11,ROUNDDOWN($H16,0))),IF($H16>($F16*$C$11),$F16*$C$11,ROUNDDOWN($H16,0)))) -> 4050 | AC16: =IF($AA16="M",(VLOOKUP($C$6,$V$16:$AF$20,14)*52)/12,VLOOKUP($C$6,$V$16:$AF$20,14)*$F16) ->  | AD16: =IF($AA16="M",(VLOOKUP($C$6,$V$16:$AF$20,15)*52)/12,VLOOKUP($C$6,$V$16:$AF$20,15)*$F16) ->  | AE16: =IF(ISBLANK($G16)," ",IF($D16="Z",#REF!,IF($G16=2,0,IF($G16=1,IF($AB16>$AD16,#REF!,0),IF($AB16<$AC16,#REF!,#REF!))))) ->  | AF16: =IF(ISBLANK($G16)," ",IF($D16="Z",#REF!+#REF!,IF($G16=2,#REF!+#REF!,IF($G16=1,IF($AB16>$AD16,#REF!+#REF!,#REF!+#REF!),IF($AB16<$AC16,#REF!+#REF!,#REF!+#REF!))))) ->  | AG16: =INT(A16/10) -> 1186748 | AH16: =INT(A16/1000) -> 11867 | AI16: =AG16-AH16*100 -> 48 | AJ16: =INT(AH16/10) -> 1186 | AK16: =AH16-10*AJ16 -> 7 | AL16: =IF(MOD(AH16-AJ16*10,4)=0,4,MOD(AH16-AJ16*10,4)) -> 3 | AM16: =IF(INT((($AH$11-(1900+AI16))*48 +($AH$12-AL16))/48)>90,INT((($AH$11-(2000+AI16))*48 +($AH$12-AL16))/48),INT((($AH$11-(1900+AI16))*48 +($AH$12-AL16))/48)) -> 76 | AN16: =IF(AM16>Lower_Age_Limit,0,1) -> 0 | AO16: =IF(NOT(G16="R"),0,IF(AM16>=RetirementAge,0,1)) -> 0 | AP16: =IF(AND($D16="Z",$AL$10<=$AH$10,$AH$10<$AL$11,$AL$12<AM16,AM16<=$AL$13),7,IF(AM16>=70,IF($G16="R",6,5),IF($G16="R",IF(AM16>=65,4,2),IF($AM16>=65,3,1)))) -> 5 | AQ16: =+HLOOKUP($AH$10,WeeklyIWCeiling,AP16+1) -> 810 | AR16: =IF(AA16="M",HLOOKUP($AH$10,MonthlyIWCeiling,AP16+1),HLOOKUP($AH$10,WeeklyIWCeiling,AP16+1)*F16) -> 4050 | AS16: =IF(AND(F16>0,H16>0),H16/F16,0) -> 810 | AT16: =IF(E16="M",IF(H16<=AR16,0,1),IF(AS16<=AQ16,0,1)) -> 0 | AU16: =IF(F16>$C$10,1,0) -> 0 | AV16: =+AR16*12/52 -> 934.6153846 | AW16: =+IF(OR(AND(E16="M",AV16<60),AND(E16="W",AS16<60)),1,0) -> 0 | AX16: =IF(OR(ISBLANK(A16),ISBLANK(B16),ISBLANK(C16),ISBLANK(D16),ISBLANK(E16)),0,IF(AND(F16>0,F16<6,H16>0),IF(AW16=1,HLOOKUP($AH$10,EeContRatesU60,AP16+1,TRUE),HLOOKUP($AH$10,EeContRatesO60,AP16+1,TRUE)))) -> 0.0465 | AY16: =+AZ16-AX16 -> 0.0665 | AZ16: =IF(OR(ISBLANK(A16),ISBLANK(B16),ISBLANK(C16),ISBLANK(D16),ISBLANK(E16)),0,IF(AND(F16>0,F16<6,H16>0),IF(AW16=1,HLOOKUP($AH$10,TotalContRatesU60,AP16+1,TRUE),HLOOKUP($AH$10,TotalContRatesO60,AP16+1,TRUE)))) -> 0.113 | BA16: =IF(OR(ISBLANK(A16),ISBLANK(B16),ISBLANK(C16),ISBLANK(D16),ISBLANK(E16)),0,IF(AND(F16>0,F16<6,H16>0),ROUND(H16*AX16,2))) -> 188.33 | BB16: =IF(OR(ISBLANK(A16),ISBLANK(B16),ISBLANK(C16),ISBLANK(D16),ISBLANK(E16)),0,IF(AND(F16>0,F16<6,H16>0),ROUND(H16*AY16,2))) -> 269.33 | BC16: =+BA16+BB16 -> 457.66 | BD16: =IF(AND(AND(F16>0,H16>0,ISTEXT(D16),ISTEXT(E16)),ISBLANK(A16)),"Input NI#",IF(AND(F16>0,H16>0,ISTEXT(D16),ISTEXT(E16),OR(ISBLANK(B16),ISBLANK(C16))),"Input name",IF(AND(A16>0,OR(AK16=0,AK16=9)),"Check NI#",IF(AT16=0,BA16,"Check wages")))) -> 188.33 | BE16: =IF(ISTEXT(BD16),BD16,BB16) -> 269.33 | BF16: =IF(ISTEXT(BD16),BD16,BC16) -> 457.66 | BG16: =IF(AND(OR(ISTEXT(B16),ISTEXT(C16),ISTEXT(D16),ISTEXT(E16),F16>0,H16>0),ISBLANK(A16)),1,IF(A16>0,IF(ISBLANK(B16),1,IF(ISBLANK(C16),1,IF(ISBLANK(D16),1,IF(ISBLANK(E16),1,IF(F16=0,1,IF(H16=0,1," ")))))))) ->  | BH16: =IF(AND(OR(ISTEXT(B16),ISTEXT(C16),ISTEXT(D16),ISTEXT(E16),F16>0,H16>0),ISBLANK(A16)),"Input "&A$15,IF(A16>0,IF(ISBLANK(B16),"Input "&B$15,IF(ISBLANK(C16),"Input "&C$15,IF(ISBLANK(D16),"Enter "&D$15,IF(ISBLANK(E16),"Select "&E$15,IF(F16=0,"Input "&F$15,IF(H16=0,"Input "&H$15," ")))))))) ->  | BI16: =IF(OR(AT16=1,AU16=1,AN16=1,AO16=1),1,"") ->  | BJ16: =IF(AT16=1,"Check wages",IF(AU16=1,"Check number of weeks",IF(AN16=1,"Registrant under age 16",IF(AO16=1,"Ineligible for Retirement","")))) ->  | BK16: =IF(AND($D16="Z",OR($AL$10>$AH$10,$AH$10>$AL$11,$AL$12>AM16,AM16>$AL$13)),1,0) -> 0 | BL16: =IF(BK16=1,"Change Cont. type to 'P'","") ->  | BM16: =IF(ISERROR(Z16),1,IF(NOT(W16=Z16),1,"")) ->  | BN16: =IF(BM16=1,"Check Employee NI#","") ->  | BO16: =IF($BG16=1,$BH16,IF($BI16=1,$BJ16,IF($BK16=1,$BL16,IF($BM16=1,$BN16,BA16)))) -> 188.33 | BP16: 269.33 | BQ16: 457.66 | BR16: =IF(OR(BG16=1,BI16=1,BK16=1,BM16=1),1,0) -> 0 | BS16: =IF(OR(ISBLANK(A16),BR16=1),"N","Y") -> Y
I17: =IF(ISBLANK($H17)," ",BO17) ->  | J17: =IF(ISBLANK($H17)," ",BP17) ->  | K17: =IF((ISBLANK($H17))," ",BQ17) ->  | O17: W | P17: Weekly Paid | R17: February | S17: 2 | T17: 1 | U17: =U16+1 -> 1981 | W17: =IF(ISBLANK($A17)," ",A17) ->  | Y17: =IF(ISBLANK(A17)," ",IF(A17<10000000+OR(A17>99999999),"X",IF(X17=0,0,IF(X17=1,"X",11-X17)))) ->  | AE17: =IF(ISBLANK($G17)," ",IF($D17="Z",#REF!,IF($G17=2,0,IF($G17=1,IF($AB17>$AD17,#REF!,0),IF($AB17<$AC17,#REF!,#REF!))))) ->  | AF17: =IF(ISBLANK($G17)," ",IF($D17="Z",#REF!+#REF!,IF($G17=2,#REF!+#REF!,IF($G17=1,IF($AB17>$AD17,#REF!+#REF!,#REF!+#REF!),IF($AB17<$AC17,#REF!+#REF!,#REF!+#REF!))))) ->  | AG17: =INT(A17/10) -> 0 | AH17: =INT(A17/1000) -> 0 | AI17: =AG17-AH17*100 -> 0 | AJ17: =INT(AH17/10) -> 0 | AK17: =AH17-10*AJ17 -> 0 | AL17: =IF(MOD(AH17-AJ17*10,4)=0,4,MOD(AH17-AJ17*10,4)) -> 4 | AM17: =IF(INT((($AH$11-(1900+AI17))*48 +($AH$12-AL17))/48)>90,INT((($AH$11-(2000+AI17))*48 +($AH$12-AL17))/48),INT((($AH$11-(1900+AI17))*48 +($AH$12-AL17))/48)) -> 23 | AN17: 0 | AO17: 0 | AP17: 1 | AQ17: 810 | AR17: =IF(AA17="M",HLOOKUP($AH$10,MonthlyIWCeiling,AP17+1),HLOOKUP($AH$10,WeeklyIWCeiling,AP17+1)*F17) -> 0 | AS17: =IF(AND(F17>0,H17>0),H17/F17,0) -> 0 | AT17: 0 | AU17: 0 | AV17: =+AR17*12/52 -> 0 | AW17: 0 | AX17: 0 | AY17: =+AZ17-AX17 -> 0 | AZ17: 0 | BA17: =IF(OR(ISBLANK(A17),ISBLANK(B17),ISBLANK(C17),ISBLANK(D17),ISBLANK(E17)),0,IF(AND(F17>0,F17<6,H17>0),ROUND(H17*AX17,2))) -> 0 | BB17: =IF(OR(ISBLANK(A17),ISBLANK(B17),ISBLANK(C17),ISBLANK(D17),ISBLANK(E17)),0,IF(AND(F17>0,F17<6,H17>0),ROUND(H17*AY17,2))) -> 0 | BC17: =+BA17+BB17 -> 0 | BD17: =IF(AND(AND(F17>0,H17>0,ISTEXT(D17),ISTEXT(E17)),ISBLANK(A17)),"Input NI#",IF(AND(F17>0,H17>0,ISTEXT(D17),ISTEXT(E17),OR(ISBLANK(B17),ISBLANK(C17))),"Input name",IF(AND(A17>0,OR(AK17=0,AK17=9)),"Check NI#",IF(AT17=0,BA17,"Check wages")))) -> 0 | BE17: =IF(ISTEXT(BD17),BD17,BB17) -> 0 | BF17: =IF(ISTEXT(BD17),BD17,BC17) -> 0 | BG17: =IF(AND(OR(ISTEXT(B17),ISTEXT(C17),ISTEXT(D17),ISTEXT(E17),F17>0,H17>0),ISBLANK(A17)),1,IF(A17>0,IF(ISBLANK(B17),1,IF(ISBLANK(C17),1,IF(ISBLANK(D17),1,IF(ISBLANK(E17),1,IF(F17=0,1,IF(H17=0,1," ")))))))) -> FALSE | BH17: =IF(AND(OR(ISTEXT(B17),ISTEXT(C17),ISTEXT(D17),ISTEXT(E17),F17>0,H17>0),ISBLANK(A17)),"Input "&A$15,IF(A17>0,IF(ISBLANK(B17),"Input "&B$15,IF(ISBLANK(C17),"Input "&C$15,IF(ISBLANK(D17),"Enter "&D$15,IF(ISBLANK(E17),"Select "&E$15,IF(F17=0,"Input "&F$15,IF(H17=0,"Input "&H$15," ")))))))) -> FALSE | BI17: =IF(OR(AT17=1,AU17=1,AN17=1,AO17=1),1,"") ->  | BJ17: =IF(AT17=1,"Check wages",IF(AU17=1,"Check number of weeks",IF(AN17=1,"Registrant under age 16",IF(AO17=1,"Ineligible for Retirement","")))) ->  | BK17: =IF(AND($D17="Z",OR($AL$10>$AH$10,$AH$10>$AL$11,$AL$12>AM17,AM17>$AL$13)),1,0) -> 0 | BL17: =IF(BK17=1,"Change Cont. type to 'P'","") ->  | BM17: =IF(ISERROR(Z17),1,IF(NOT(W17=Z17),1,"")) ->  | BN17: =IF(BM17=1,"Check Employee NI#","") ->  | BO17: 0 | BP17: 0 | BQ17: 0 | BR17: =IF(OR(BG17=1,BI17=1,BK17=1,BM17=1),1,0) -> 0 | BS17: =IF(OR(ISBLANK(A17),BR17=1),"N","Y") -> N
R18: March | S18: 3 | T18: 1 | U18: 1982 | Y18: =IF(ISBLANK(A18)," ",IF(A18<10000000+OR(A18>99999999),"X",IF(X18=0,0,IF(X18=1,"X",11-X18)))) ->  | AE18: =IF(ISBLANK($G18)," ",IF($D18="Z",#REF!,IF($G18=2,0,IF($G18=1,IF($AB18>$AD18,#REF!,0),IF($AB18<$AC18,#REF!,#REF!))))) ->  | AF18: =IF(ISBLANK($G18)," ",IF($D18="Z",#REF!+#REF!,IF($G18=2,#REF!+#REF!,IF($G18=1,IF($AB18>$AD18,#REF!+#REF!,#REF!+#REF!),IF($AB18<$AC18,#REF!+#REF!,#REF!+#REF!))))) ->  | AG18: =INT(A18/10) -> 0 | AH18: =INT(A18/1000) -> 0 | AI18: =AG18-AH18*100 -> 0 | AJ18: =INT(AH18/10) -> 0 | AK18: =AH18-10*AJ18 -> 0 | AL18: =IF(MOD(AH18-AJ18*10,4)=0,4,MOD(AH18-AJ18*10,4)) -> 4 | AM18: 23 | AN18: 0 | AO18: 0 | AP18: 1 | AQ18: 810 | AR18: 0 | AS18: 0 | AT18: 0 | AU18: 0 | AV18: 0 | AW18: 0 | AX18: 0 | AY18: 0 | AZ18: 0 | BA18: 0 | BB18: 0 | BC18: 0 | BD18: 0 | BE18: 0 | BF18: 0 | BG18: FALSE | BH18: FALSE | BK18: 0 | BM18: =IF(ISERROR(Z18),1,IF(NOT(W18=Z18),1,"")) ->  | BN18: =IF(BM18=1,"Check Employee NI#","") ->  | BO18: =IF($BG18=1,$BH18,IF($BI18=1,$BJ18,IF($BK18=1,$BL18,IF($BM18=1,$BN18,BA18)))) -> 0 | BP18: =IF($BG18=1,$BH18,IF($BI18=1,$BJ18,IF($BK18=1,$BL18,IF($BM18=1,$BN18,BB18)))) -> 0 | BQ18: =IF($BG18=1,$BH18,IF($BI18=1,$BJ18,IF($BK18=1,$BL18,IF($BM18=1,$BN18,BC18)))) -> 0 | BR18: 0 | BS18: N
R19: April | S19: 4 | T19: 2 | U19: 1983 | AE19: =IF(ISBLANK($G19)," ",IF($D19="Z",#REF!,IF($G19=2,0,IF($G19=1,IF($AB19>$AD19,#REF!,0),IF($AB19<$AC19,#REF!,#REF!))))) ->  | AF19: =IF(ISBLANK($G19)," ",IF($D19="Z",#REF!+#REF!,IF($G19=2,#REF!+#REF!,IF($G19=1,IF($AB19>$AD19,#REF!+#REF!,#REF!+#REF!),IF($AB19<$AC19,#REF!+#REF!,#REF!+#REF!))))) ->  | AG19: 0 | AH19: 0 | AI19: 0 | AJ19: 0 | AK19: 0 | AL19: 4 | AM19: 23 | AN19: 0 | AO19: 0 | AP19: 1 | AQ19: 810 | AR19: 0 | AS19: 0 | AT19: 0 | AU19: 0 | AV19: 0 | AW19: 0 | AX19: 0 | AY19: 0 | AZ19: 0 | BA19: 0 | BB19: 0 | BC19: 0 | BD19: 0 | BE19: 0 | BF19: 0 | BG19: FALSE | BH19: FALSE | BK19: 0 | BM19: =IF(ISERROR(Z19),1,IF(NOT(W19=Z19),1,"")) ->  | BN19: =IF(BM19=1,"Check Employee NI#","") ->  | BO19: 0 | BP19: 0 | BQ19: 0 | BR19: 0 | BS19: N
O20: Contribution Type | R20: May | S20: 5 | T20: 2 | U20: 1984 | AE20: =IF(ISBLANK($G20)," ",IF($D20="Z",#REF!,IF($G20=2,0,IF($G20=1,IF($AB20>$AD20,#REF!,0),IF($AB20<$AC20,#REF!,#REF!))))) ->  | AF20: =IF(ISBLANK($G20)," ",IF($D20="Z",#REF!+#REF!,IF($G20=2,#REF!+#REF!,IF($G20=1,IF($AB20>$AD20,#REF!+#REF!,#REF!+#REF!),IF($AB20<$AC20,#REF!+#REF!,#REF!+#REF!))))) ->  | AG20: 0 | AH20: 0 | AI20: 0 | AJ20: 0 | AK20: 0 | AL20: 4 | AM20: 23 | AN20: 0 | AO20: 0 | AP20: 1 | AQ20: 810 | AR20: 0 | AS20: 0 | AT20: 0 | AU20: 0 | AV20: 0 | AW20: 0 | AX20: 0 | AY20: 0 | AZ20: 0 | BA20: 0 | BB20: 0 | BC20: 0 | BD20: 0 | BE20: 0 | BF20: 0 | BG20: FALSE | BH20: FALSE | BK20: 0 | BO20: 0 | BP20: 0 | BQ20: 0 | BR20: 0 | BS20: N
O21: P | P21: Private Employee | R21: June | S21: 6 | T21: 2 | U21: 1985 | AE21: =IF(ISBLANK($G21)," ",IF($D21="Z",#REF!,IF($G21=2,0,IF($G21=1,IF($AB21>$AD21,#REF!,0),IF($AB21<$AC21,#REF!,#REF!))))) ->  | AF21: =IF(ISBLANK($G21)," ",IF($D21="Z",#REF!+#REF!,IF($G21=2,#REF!+#REF!,IF($G21=1,IF($AB21>$AD21,#REF!+#REF!,#REF!+#REF!),IF($AB21<$AC21,#REF!+#REF!,#REF!+#REF!))))) ->  | AG21: 0 | AH21: 0 | AI21: 0 | AJ21: 0 | AK21: 0 | AL21: 4 | AM21: 23 | AN21: 0 | AO21: 0 | AP21: 1 | AQ21: 810 | AR21: 0 | AS21: 0 | AT21: 0 | AU21: 0 | AV21: 0 | AW21: 0 | AX21: 0 | AY21: 0 | AZ21: 0 | BA21: 0 | BB21: 0 | BC21: 0 | BD21: 0 | BE21: 0 | BF21: 0 | BG21: FALSE | BH21: FALSE | BK21: 0 | BM21: =IF(ISERROR(Z21),1,IF(NOT(W21=Z21),1,"")) ->  | BO21: 0 | BP21: 0 | BQ21: 0 | BR21: 0 | BS21: N
O22: Z | P22: Summer Student | R22: July | S22: 7 | T22: 3 | U22: 1986 | AE22: =IF(ISBLANK($G22)," ",IF($D22="Z",#REF!,IF($G22=2,0,IF($G22=1,IF($AB22>$AD22,#REF!,0),IF($AB22<$AC22,#REF!,#REF!))))) ->  | AF22: =IF(ISBLANK($G22)," ",IF($D22="Z",#REF!+#REF!,IF($G22=2,#REF!+#REF!,IF($G22=1,IF($AB22>$AD22,#REF!+#REF!,#REF!+#REF!),IF($AB22<$AC22,#REF!+#REF!,#REF!+#REF!))))) ->  | AG22: 0 | AH22: 0 | AI22: 0 | AJ22: 0 | AK22: 0 | AL22: 4 | AM22: 23 | AN22: 0 | AO22: 0 | AP22: 1 | AQ22: 810 | AR22: 0 | AS22: 0 | AT22: 0 | AU22: 0 | AV22: 0 | AW22: 0 | AX22: 0 | AY22: 0 | AZ22: 0 | BA22: 0 | BB22: 0 | BC22: 0 | BD22: 0 | BE22: 0 | BF22: 0 | BG22: FALSE | BH22: FALSE | BK22: 0 | BO22: 0 | BP22: 0 | BQ22: 0 | BR22: 0 | BS22: N
R23: August | S23: 8 | T23: 3 | U23: 1987 | AE23: =IF(ISBLANK($G23)," ",IF($D23="Z",#REF!,IF($G23=2,0,IF($G23=1,IF($AB23>$AD23,#REF!,0),IF($AB23<$AC23,#REF!,#REF!))))) ->  | AF23: =IF(ISBLANK($G23)," ",IF($D23="Z",#REF!+#REF!,IF($G23=2,#REF!+#REF!,IF($G23=1,IF($AB23>$AD23,#REF!+#REF!,#REF!+#REF!),IF($AB23<$AC23,#REF!+#REF!,#REF!+#REF!))))) ->  | AG23: 0 | AH23: 0 | AI23: 0 | AJ23: 0 | AK23: 0 | AL23: 4 | AM23: 23 | AN23: 0 | AO23: 0 | AP23: 1 | AQ23: 810 | AR23: 0 | AS23: 0 | AT23: 0 | AU23: 0 | AV23: 0 | AW23: 0 | AX23: 0 | AY23: 0 | AZ23: 0 | BA23: 0 | BB23: 0 | BC23: 0 | BD23: 0 | BE23: 0 | BF23: 0 | BG23: FALSE | BH23: FALSE | BK23: 0 | BO23: 0 | BP23: 0 | BQ23: 0 | BR23: 0 | BS23: N
R24: September | S24: 9 | T24: 3 | U24: 1988 | AE24: =IF(ISBLANK($G24)," ",IF($D24="Z",#REF!,IF($G24=2,0,IF($G24=1,IF($AB24>$AD24,#REF!,0),IF($AB24<$AC24,#REF!,#REF!))))) ->  | AF24: =IF(ISBLANK($G24)," ",IF($D24="Z",#REF!+#REF!,IF($G24=2,#REF!+#REF!,IF($G24=1,IF($AB24>$AD24,#REF!+#REF!,#REF!+#REF!),IF($AB24<$AC24,#REF!+#REF!,#REF!+#REF!))))) ->  | AG24: 0 | AH24: 0 | AI24: 0 | AJ24: 0 | AK24: 0 | AL24: 4 | AM24: 23 | AN24: 0 | AO24: 0 | AP24: 1 | AQ24: 810 | AR24: 0 | AS24: 0 | AT24: 0 | AU24: 0 | AV24: 0 | AW24: 0 | AX24: 0 | AY24: 0 | AZ24: 0 | BA24: 0 | BB24: 0 | BC24: 0 | BD24: 0 | BE24: 0 | BF24: 0 | BG24: FALSE | BH24: FALSE | BK24: 0 | BO24: 0 | BP24: 0 | BQ24: 0 | BR24: 0 | BS24: N
O25: Retired Ind. | R25: October | S25: 10 | T25: 4 | U25: 1989 | AE25: =IF(ISBLANK($G25)," ",IF($D25="Z",#REF!,IF($G25=2,0,IF($G25=1,IF($AB25>$AD25,#REF!,0),IF($AB25<$AC25,#REF!,#REF!))))) ->  | AF25: =IF(ISBLANK($G25)," ",IF($D25="Z",#REF!+#REF!,IF($G25=2,#REF!+#REF!,IF($G25=1,IF($AB25>$AD25,#REF!+#REF!,#REF!+#REF!),IF($AB25<$AC25,#REF!+#REF!,#REF!+#REF!))))) ->  | AG25: 0 | AH25: 0 | AI25: 0 | AJ25: 0 | AK25: 0 | AL25: 4 | AM25: 23 | AN25: 0 | AO25: 0 | AP25: 1 | AQ25: 810 | AR25: 0 | AS25: 0 | AT25: 0 | AU25: 0 | AV25: 0 | AW25: 0 | AX25: 0 | AY25: 0 | AZ25: 0 | BA25: 0 | BB25: 0 | BC25: 0 | BD25: 0 | BE25: 0 | BF25: 0 | BG25: FALSE | BH25: FALSE | BK25: 0 | BO25: 0 | BP25: 0 | BQ25: 0 | BR25: 0 | BS25: N
P26: Not Retired | R26: November | S26: 11 | T26: 4 | U26: 1990 | AE26: =IF(ISBLANK($G26)," ",IF($D26="Z",#REF!,IF($G26=2,0,IF($G26=1,IF($AB26>$AD26,#REF!,0),IF($AB26<$AC26,#REF!,#REF!))))) ->  | AF26: =IF(ISBLANK($G26)," ",IF($D26="Z",#REF!+#REF!,IF($G26=2,#REF!+#REF!,IF($G26=1,IF($AB26>$AD26,#REF!+#REF!,#REF!+#REF!),IF($AB26<$AC26,#REF!+#REF!,#REF!+#REF!))))) ->  | AG26: 0 | AH26: 0 | AI26: 0 | AJ26: 0 | AK26: 0 | AL26: 4 | AM26: 23 | AN26: 0 | AO26: 0 | AP26: 1 | AQ26: 810 | AR26: 0 | AS26: 0 | AT26: 0 | AU26: 0 | AV26: 0 | AW26: 0 | AX26: 0 | AY26: 0 | AZ26: 0 | BA26: 0 | BB26: 0 | BC26: 0 | BD26: 0 | BE26: 0 | BF26: 0 | BG26: FALSE | BH26: FALSE | BK26: 0 | BO26: 0 | BP26: 0 | BQ26: 0 | BR26: 0 | BS26: N
O27: R | P27: Retired | R27: December | S27: 12 | T27: 4 | U27: 1991 | AE27: =IF(ISBLANK($G27)," ",IF($D27="Z",#REF!,IF($G27=2,0,IF($G27=1,IF($AB27>$AD27,#REF!,0),IF($AB27<$AC27,#REF!,#REF!))))) ->  | AF27: =IF(ISBLANK($G27)," ",IF($D27="Z",#REF!+#REF!,IF($G27=2,#REF!+#REF!,IF($G27=1,IF($AB27>$AD27,#REF!+#REF!,#REF!+#REF!),IF($AB27<$AC27,#REF!+#REF!,#REF!+#REF!))))) ->  | AG27: 0 | AH27: 0 | AI27: 0 | AJ27: 0 | AK27: 0 | AL27: 4 | AM27: 23 | AN27: 0 | AO27: 0 | AP27: 1 | AQ27: 810 | AR27: 0 | AS27: 0 | AT27: 0 | AU27: 0 | AV27: 0 | AW27: 0 | AX27: 0 | AY27: 0 | AZ27: 0 | BA27: 0 | BB27: 0 | BC27: 0 | BD27: 0 | BE27: 0 | BF27: 0 | BG27: FALSE | BH27: FALSE | BK27: 0 | BO27: 0 | BP27: 0 | BQ27: 0 | BR27: 0 | BS27: N
U28: 1992 | AE28: =IF(ISBLANK($G28)," ",IF($D28="Z",#REF!,IF($G28=2,0,IF($G28=1,IF($AB28>$AD28,#REF!,0),IF($AB28<$AC28,#REF!,#REF!))))) ->  | AF28: =IF(ISBLANK($G28)," ",IF($D28="Z",#REF!+#REF!,IF($G28=2,#REF!+#REF!,IF($G28=1,IF($AB28>$AD28,#REF!+#REF!,#REF!+#REF!),IF($AB28<$AC28,#REF!+#REF!,#REF!+#REF!))))) ->  | AG28: 0 | AH28: 0 | AI28: 0 | AJ28: 0 | AK28: 0 | AL28: 4 | AM28: 23 | AN28: 0 | AO28: 0 | AP28: 1 | AQ28: 810 | AR28: 0 | AS28: 0 | AT28: 0 | AU28: 0 | AV28: 0 | AW28: 0 | AX28: 0 | AY28: 0 | AZ28: 0 | BA28: 0 | BB28: 0 | BC28: 0 | BD28: 0 | BE28: 0 | BF28: 0 | BG28: FALSE | BH28: FALSE | BK28: 0 | BO28: 0 | BP28: 0 | BQ28: 0 | BR28: 0 | BS28: N
U29: 1993 | AE29: =IF(ISBLANK($G29)," ",IF($D29="Z",#REF!,IF($G29=2,0,IF($G29=1,IF($AB29>$AD29,#REF!,0),IF($AB29<$AC29,#REF!,#REF!))))) ->  | AF29: =IF(ISBLANK($G29)," ",IF($D29="Z",#REF!+#REF!,IF($G29=2,#REF!+#REF!,IF($G29=1,IF($AB29>$AD29,#REF!+#REF!,#REF!+#REF!),IF($AB29<$AC29,#REF!+#REF!,#REF!+#REF!))))) ->  | AG29: 0 | AH29: 0 | AI29: 0 | AJ29: 0 | AK29: 0 | AL29: 4 | AM29: 23 | AN29: 0 | AO29: 0 | AP29: 1 | AQ29: 810 | AR29: 0 | AS29: 0 | AT29: 0 | AU29: 0 | AV29: 0 | AW29: 0 | AX29: 0 | AY29: 0 | AZ29: 0 | BA29: 0 | BB29: 0 | BC29: 0 | BD29: 0 | BE29: 0 | BF29: 0 | BG29: FALSE | BH29: FALSE | BK29: 0 | BO29: 0 | BP29: 0 | BQ29: 0 | BR29: 0 | BS29: N
U30: 1994 | AE30: =IF(ISBLANK($G30)," ",IF($D30="Z",#REF!,IF($G30=2,0,IF($G30=1,IF($AB30>$AD30,#REF!,0),IF($AB30<$AC30,#REF!,#REF!))))) ->  | AF30: =IF(ISBLANK($G30)," ",IF($D30="Z",#REF!+#REF!,IF($G30=2,#REF!+#REF!,IF($G30=1,IF($AB30>$AD30,#REF!+#REF!,#REF!+#REF!),IF($AB30<$AC30,#REF!+#REF!,#REF!+#REF!))))) ->  | AG30: 0 | AH30: 0 | AI30: 0 | AJ30: 0 | AK30: 0 | AL30: 4 | AM30: 23 | AN30: 0 | AO30: 0 | AP30: 1 | AQ30: 810 | AR30: 0 | AS30: 0 | AT30: 0 | AU30: 0 | AV30: 0 | AW30: 0 | AX30: 0 | AY30: 0 | AZ30: 0 | BA30: 0 | BB30: 0 | BC30: 0 | BD30: 0 | BE30: 0 | BF30: 0 | BG30: FALSE | BH30: FALSE | BK30: 0 | BO30: 0 | BP30: 0 | BQ30: 0 | BR30: 0 | BS30: N
U31: 1995 | AE31: =IF(ISBLANK($G31)," ",IF($D31="Z",#REF!,IF($G31=2,0,IF($G31=1,IF($AB31>$AD31,#REF!,0),IF($AB31<$AC31,#REF!,#REF!))))) ->  | AF31: =IF(ISBLANK($G31)," ",IF($D31="Z",#REF!+#REF!,IF($G31=2,#REF!+#REF!,IF($G31=1,IF($AB31>$AD31,#REF!+#REF!,#REF!+#REF!),IF($AB31<$AC31,#REF!+#REF!,#REF!+#REF!))))) ->  | AG31: 0 | AH31: 0 | AI31: 0 | AJ31: 0 | AK31: 0 | AL31: 4 | AM31: 23 | AN31: 0 | AO31: 0 | AP31: 1 | AQ31: 810 | AR31: 0 | AS31: 0 | AT31: 0 | AU31: 0 | AV31: 0 | AW31: 0 | AX31: 0 | AY31: 0 | AZ31: 0 | BA31: 0 | BB31: 0 | BC31: 0 | BD31: 0 | BE31: 0 | BF31: 0 | BG31: FALSE | BH31: FALSE | BK31: 0 | BO31: 0 | BP31: 0 | BQ31: 0 | BR31: 0 | BS31: N
U32: 1996 | AE32: =IF(ISBLANK($G32)," ",IF($D32="Z",#REF!,IF($G32=2,0,IF($G32=1,IF($AB32>$AD32,#REF!,0),IF($AB32<$AC32,#REF!,#REF!))))) ->  | AF32: =IF(ISBLANK($G32)," ",IF($D32="Z",#REF!+#REF!,IF($G32=2,#REF!+#REF!,IF($G32=1,IF($AB32>$AD32,#REF!+#REF!,#REF!+#REF!),IF($AB32<$AC32,#REF!+#REF!,#REF!+#REF!))))) ->  | AG32: 0 | AH32: 0 | AI32: 0 | AJ32: 0 | AK32: 0 | AL32: 4 | AM32: 23 | AN32: 0 | AO32: 0 | AP32: 1 | AQ32: 810 | AR32: 0 | AS32: 0 | AT32: 0 | AU32: 0 | AV32: 0 | AW32: 0 | AX32: 0 | AY32: 0 | AZ32: 0 | BA32: 0 | BB32: 0 | BC32: 0 | BD32: 0 | BE32: 0 | BF32: 0 | BG32: FALSE | BH32: FALSE | BK32: 0 | BO32: 0 | BP32: 0 | BQ32: 0 | BR32: 0 | BS32: N
U33: 1997 | AE33: =IF(ISBLANK($G33)," ",IF($D33="Z",#REF!,IF($G33=2,0,IF($G33=1,IF($AB33>$AD33,#REF!,0),IF($AB33<$AC33,#REF!,#REF!))))) ->  | AF33: =IF(ISBLANK($G33)," ",IF($D33="Z",#REF!+#REF!,IF($G33=2,#REF!+#REF!,IF($G33=1,IF($AB33>$AD33,#REF!+#REF!,#REF!+#REF!),IF($AB33<$AC33,#REF!+#REF!,#REF!+#REF!))))) ->  | AG33: 0 | AH33: 0 | AI33: 0 | AJ33: 0 | AK33: 0 | AL33: 4 | AM33: 23 | AN33: 0 | AO33: 0 | AP33: 1 | AQ33: 810 | AR33: 0 | AS33: 0 | AT33: 0 | AU33: 0 | AV33: 0 | AW33: 0 | AX33: 0 | AY33: 0 | AZ33: 0 | BA33: 0 | BB33: 0 | BC33: 0 | BD33: 0 | BE33: 0 | BF33: 0 | BG33: FALSE | BH33: FALSE | BK33: 0 | BO33: 0 | BP33: 0 | BQ33: 0 | BR33: 0 | BS33: N
U34: 1998 | AE34: =IF(ISBLANK($G34)," ",IF($D34="Z",#REF!,IF($G34=2,0,IF($G34=1,IF($AB34>$AD34,#REF!,0),IF($AB34<$AC34,#REF!,#REF!))))) ->  | AF34: =IF(ISBLANK($G34)," ",IF($D34="Z",#REF!+#REF!,IF($G34=2,#REF!+#REF!,IF($G34=1,IF($AB34>$AD34,#REF!+#REF!,#REF!+#REF!),IF($AB34<$AC34,#REF!+#REF!,#REF!+#REF!))))) ->  | AG34: 0 | AH34: 0 | AI34: 0 | AJ34: 0 | AK34: 0 | AL34: 4 | AM34: 23 | AN34: 0 | AO34: 0 | AP34: 1 | AQ34: 810 | AR34: 0 | AS34: 0 | AT34: 0 | AU34: 0 | AV34: 0 | AW34: 0 | AX34: 0 | AY34: 0 | AZ34: 0 | BA34: 0 | BB34: 0 | BC34: 0 | BD34: 0 | BE34: 0 | BF34: 0 | BG34: FALSE | BH34: FALSE | BK34: 0 | BO34: 0 | BP34: 0 | BQ34: 0 | BR34: 0 | BS34: N
U35: 1999 | AE35: =IF(ISBLANK($G35)," ",IF($D35="Z",#REF!,IF($G35=2,0,IF($G35=1,IF($AB35>$AD35,#REF!,0),IF($AB35<$AC35,#REF!,#REF!))))) ->  | AF35: =IF(ISBLANK($G35)," ",IF($D35="Z",#REF!+#REF!,IF($G35=2,#REF!+#REF!,IF($G35=1,IF($AB35>$AD35,#REF!+#REF!,#REF!+#REF!),IF($AB35<$AC35,#REF!+#REF!,#REF!+#REF!))))) ->  | AG35: 0 | AH35: 0 | AI35: 0 | AJ35: 0 | AK35: 0 | AL35: 4 | AM35: 23 | AN35: 0 | AO35: 0 | AP35: 1 | AQ35: 810 | AR35: 0 | AS35: 0 | AT35: 0 | AU35: 0 | AV35: 0 | AW35: 0 | AX35: 0 | AY35: 0 | AZ35: 0 | BA35: 0 | BB35: 0 | BC35: 0 | BD35: 0 | BE35: 0 | BF35: 0 | BG35: FALSE | BH35: FALSE | BK35: 0 | BO35: 0 | BP35: 0 | BQ35: 0 | BR35: 0 | BS35: N
U36: 2000 | AE36: =IF(ISBLANK($G36)," ",IF($D36="Z",#REF!,IF($G36=2,0,IF($G36=1,IF($AB36>$AD36,#REF!,0),IF($AB36<$AC36,#REF!,#REF!))))) ->  | AF36: =IF(ISBLANK($G36)," ",IF($D36="Z",#REF!+#REF!,IF($G36=2,#REF!+#REF!,IF($G36=1,IF($AB36>$AD36,#REF!+#REF!,#REF!+#REF!),IF($AB36<$AC36,#REF!+#REF!,#REF!+#REF!))))) ->  | AG36: 0 | AH36: 0 | AI36: 0 | AJ36: 0 | AK36: 0 | AL36: 4 | AM36: 23 | AN36: 0 | AO36: 0 | AP36: 1 | AQ36: 810 | AR36: 0 | AS36: 0 | AT36: 0 | AU36: 0 | AV36: 0 | AW36: 0 | AX36: 0 | AY36: 0 | AZ36: 0 | BA36: 0 | BB36: 0 | BC36: 0 | BD36: 0 | BE36: 0 | BF36: 0 | BG36: FALSE | BH36: FALSE | BK36: 0 | BO36: 0 | BP36: 0 | BQ36: 0 | BR36: 0 | BS36: N
U37: 2001 | AE37: =IF(ISBLANK($G37)," ",IF($D37="Z",#REF!,IF($G37=2,0,IF($G37=1,IF($AB37>$AD37,#REF!,0),IF($AB37<$AC37,#REF!,#REF!))))) ->  | AF37: =IF(ISBLANK($G37)," ",IF($D37="Z",#REF!+#REF!,IF($G37=2,#REF!+#REF!,IF($G37=1,IF($AB37>$AD37,#REF!+#REF!,#REF!+#REF!),IF($AB37<$AC37,#REF!+#REF!,#REF!+#REF!))))) ->  | AG37: 0 | AH37: 0 | AI37: 0 | AJ37: 0 | AK37: 0 | AL37: 4 | AM37: 23 | AN37: 0 | AO37: 0 | AP37: 1 | AQ37: 810 | AR37: 0 | AS37: 0 | AT37: 0 | AU37: 0 | AV37: 0 | AW37: 0 | AX37: 0 | AY37: 0 | AZ37: 0 | BA37: 0 | BB37: 0 | BC37: 0 | BD37: 0 | BE37: 0 | BF37: 0 | BG37: FALSE | BH37: FALSE | BK37: 0 | BO37: 0 | BP37: 0 | BQ37: 0 | BR37: 0 | BS37: N
U38: 2002 | AE38: =IF(ISBLANK($G38)," ",IF($D38="Z",#REF!,IF($G38=2,0,IF($G38=1,IF($AB38>$AD38,#REF!,0),IF($AB38<$AC38,#REF!,#REF!))))) ->  | AF38: =IF(ISBLANK($G38)," ",IF($D38="Z",#REF!+#REF!,IF($G38=2,#REF!+#REF!,IF($G38=1,IF($AB38>$AD38,#REF!+#REF!,#REF!+#REF!),IF($AB38<$AC38,#REF!+#REF!,#REF!+#REF!))))) ->  | AG38: 0 | AH38: 0 | AI38: 0 | AJ38: 0 | AK38: 0 | AL38: 4 | AM38: 23 | AN38: 0 | AO38: 0 | AP38: 1 | AQ38: 810 | AR38: 0 | AS38: 0 | AT38: 0 | AU38: 0 | AV38: 0 | AW38: 0 | AX38: 0 | AY38: 0 | AZ38: 0 | BA38: 0 | BB38: 0 | BC38: 0 | BD38: 0 | BE38: 0 | BF38: 0 | BG38: FALSE | BH38: FALSE | BK38: 0 | BO38: 0 | BP38: 0 | BQ38: 0 | BR38: 0 | BS38: N
U39: 2003 | AE39: =IF(ISBLANK($G39)," ",IF($D39="Z",#REF!,IF($G39=2,0,IF($G39=1,IF($AB39>$AD39,#REF!,0),IF($AB39<$AC39,#REF!,#REF!))))) ->  | AF39: =IF(ISBLANK($G39)," ",IF($D39="Z",#REF!+#REF!,IF($G39=2,#REF!+#REF!,IF($G39=1,IF($AB39>$AD39,#REF!+#REF!,#REF!+#REF!),IF($AB39<$AC39,#REF!+#REF!,#REF!+#REF!))))) ->  | AG39: 0 | AH39: 0 | AI39: 0 | AJ39: 0 | AK39: 0 | AL39: 4 | AM39: 23 | AN39: 0 | AO39: 0 | AP39: 1 | AQ39: 810 | AR39: 0 | AS39: 0 | AT39: 0 | AU39: 0 | AV39: 0 | AW39: 0 | AX39: 0 | AY39: 0 | AZ39: 0 | BA39: 0 | BB39: 0 | BC39: 0 | BD39: 0 | BE39: 0 | BF39: 0 | BG39: FALSE | BH39: FALSE | BK39: 0 | BO39: 0 | BP39: 0 | BQ39: 0 | BR39: 0 | BS39: N
U40: 2004 | AE40: =IF(ISBLANK($G40)," ",IF($D40="Z",#REF!,IF($G40=2,0,IF($G40=1,IF($AB40>$AD40,#REF!,0),IF($AB40<$AC40,#REF!,#REF!))))) ->  | AF40: =IF(ISBLANK($G40)," ",IF($D40="Z",#REF!+#REF!,IF($G40=2,#REF!+#REF!,IF($G40=1,IF($AB40>$AD40,#REF!+#REF!,#REF!+#REF!),IF($AB40<$AC40,#REF!+#REF!,#REF!+#REF!))))) ->  | AG40: 0 | AH40: 0 | AI40: 0 | AJ40: 0 | AK40: 0 | AL40: 4 | AM40: 23 | AN40: 0 | AO40: 0 | AP40: 1 | AQ40: 810 | AR40: 0 | AS40: 0 | AT40: 0 | AU40: 0 | AV40: 0 | AW40: 0 | AX40: 0 | AY40: 0 | AZ40: 0 | BA40: 0 | BB40: 0 | BC40: 0 | BD40: 0 | BE40: 0 | BF40: 0 | BG40: FALSE | BH40: FALSE | BK40: 0 | BO40: 0 | BP40: 0 | BQ40: 0 | BR40: 0 | BS40: N
U41: 2005 | AE41: =IF(ISBLANK($G41)," ",IF($D41="Z",#REF!,IF($G41=2,0,IF($G41=1,IF($AB41>$AD41,#REF!,0),IF($AB41<$AC41,#REF!,#REF!))))) ->  | AF41: =IF(ISBLANK($G41)," ",IF($D41="Z",#REF!+#REF!,IF($G41=2,#REF!+#REF!,IF($G41=1,IF($AB41>$AD41,#REF!+#REF!,#REF!+#REF!),IF($AB41<$AC41,#REF!+#REF!,#REF!+#REF!))))) ->  | AG41: 0 | AH41: 0 | AI41: 0 | AJ41: 0 | AK41: 0 | AL41: 4 | AM41: 23 | AN41: 0 | AO41: 0 | AP41: 1 | AQ41: 810 | AR41: 0 | AS41: 0 | AT41: 0 | AU41: 0 | AV41: 0 | AW41: 0 | AX41: 0 | AY41: 0 | AZ41: 0 | BA41: 0 | BB41: 0 | BC41: 0 | BD41: 0 | BE41: 0 | BF41: 0 | BG41: FALSE | BH41: FALSE | BK41: 0 | BO41: 0 | BP41: 0 | BQ41: 0 | BR41: 0 | BS41: N
U42: 2006 | AE42: =IF(ISBLANK($G42)," ",IF($D42="Z",#REF!,IF($G42=2,0,IF($G42=1,IF($AB42>$AD42,#REF!,0),IF($AB42<$AC42,#REF!,#REF!))))) ->  | AF42: =IF(ISBLANK($G42)," ",IF($D42="Z",#REF!+#REF!,IF($G42=2,#REF!+#REF!,IF($G42=1,IF($AB42>$AD42,#REF!+#REF!,#REF!+#REF!),IF($AB42<$AC42,#REF!+#REF!,#REF!+#REF!))))) ->  | AG42: 0 | AH42: 0 | AI42: 0 | AJ42: 0 | AK42: 0 | AL42: 4 | AM42: 23 | AN42: 0 | AO42: 0 | AP42: 1 | AQ42: 810 | AR42: 0 | AS42: 0 | AT42: 0 | AU42: 0 | AV42: 0 | AW42: 0 | AX42: 0 | AY42: 0 | AZ42: 0 | BA42: 0 | BB42: 0 | BC42: 0 | BD42: 0 | BE42: 0 | BF42: 0 | BG42: FALSE | BH42: FALSE | BK42: 0 | BO42: 0 | BP42: 0 | BQ42: 0 | BR42: 0 | BS42: N
U43: 2007 | AE43: =IF(ISBLANK($G43)," ",IF($D43="Z",#REF!,IF($G43=2,0,IF($G43=1,IF($AB43>$AD43,#REF!,0),IF($AB43<$AC43,#REF!,#REF!))))) ->  | AF43: =IF(ISBLANK($G43)," ",IF($D43="Z",#REF!+#REF!,IF($G43=2,#REF!+#REF!,IF($G43=1,IF($AB43>$AD43,#REF!+#REF!,#REF!+#REF!),IF($AB43<$AC43,#REF!+#REF!,#REF!+#REF!))))) ->  | AG43: 0 | AH43: 0 | AI43: 0 | AJ43: 0 | AK43: 0 | AL43: 4 | AM43: 23 | AN43: 0 | AO43: 0 | AP43: 1 | AQ43: 810 | AR43: 0 | AS43: 0 | AT43: 0 | AU43: 0 | AV43: 0 | AW43: 0 | AX43: 0 | AY43: 0 | AZ43: 0 | BA43: 0 | BB43: 0 | BC43: 0 | BD43: 0 | BE43: 0 | BF43: 0 | BG43: FALSE | BH43: FALSE | BK43: 0 | BO43: 0 | BP43: 0 | BQ43: 0 | BR43: 0 | BS43: N
U44: 2008 | AE44: =IF(ISBLANK($G44)," ",IF($D44="Z",#REF!,IF($G44=2,0,IF($G44=1,IF($AB44>$AD44,#REF!,0),IF($AB44<$AC44,#REF!,#REF!))))) ->  | AF44: =IF(ISBLANK($G44)," ",IF($D44="Z",#REF!+#REF!,IF($G44=2,#REF!+#REF!,IF($G44=1,IF($AB44>$AD44,#REF!+#REF!,#REF!+#REF!),IF($AB44<$AC44,#REF!+#REF!,#REF!+#REF!))))) ->  | AG44: 0 | AH44: 0 | AI44: 0 | AJ44: 0 | AK44: 0 | AL44: 4 | AM44: 23 | AN44: 0 | AO44: 0 | AP44: 1 | AQ44: 810 | AR44: 0 | AS44: 0 | AT44: 0 | AU44: 0 | AV44: 0 | AW44: 0 | AX44: 0 | AY44: 0 | AZ44: 0 | BA44: 0 | BB44: 0 | BC44: 0 | BD44: 0 | BE44: 0 | BF44: 0 | BG44: FALSE | BH44: FALSE | BK44: 0 | BO44: 0 | BP44: 0 | BQ44: 0 | BR44: 0 | BS44: N
U45: 2009 | AE45: =IF(ISBLANK($G45)," ",IF($D45="Z",#REF!,IF($G45=2,0,IF($G45=1,IF($AB45>$AD45,#REF!,0),IF($AB45<$AC45,#REF!,#REF!))))) ->  | AF45: =IF(ISBLANK($G45)," ",IF($D45="Z",#REF!+#REF!,IF($G45=2,#REF!+#REF!,IF($G45=1,IF($AB45>$AD45,#REF!+#REF!,#REF!+#REF!),IF($AB45<$AC45,#REF!+#REF!,#REF!+#REF!))))) ->  | AG45: 0 | AH45: 0 | AI45: 0 | AJ45: 0 | AK45: 0 | AL45: 4 | AM45: 23 | AN45: 0 | AO45: 0 | AP45: 1 | AQ45: 810 | AR45: 0 | AS45: 0 | AT45: 0 | AU45: 0 | AV45: 0 | AW45: 0 | AX45: 0 | AY45: 0 | AZ45: 0 | BA45: 0 | BB45: 0 | BC45: 0 | BD45: 0 | BE45: 0 | BF45: 0 | BG45: FALSE | BH45: FALSE | BK45: 0 | BO45: 0 | BP45: 0 | BQ45: 0 | BR45: 0 | BS45: N
U46: 2010 | AE46: =IF(ISBLANK($G46)," ",IF($D46="Z",#REF!,IF($G46=2,0,IF($G46=1,IF($AB46>$AD46,#REF!,0),IF($AB46<$AC46,#REF!,#REF!))))) ->  | AF46: =IF(ISBLANK($G46)," ",IF($D46="Z",#REF!+#REF!,IF($G46=2,#REF!+#REF!,IF($G46=1,IF($AB46>$AD46,#REF!+#REF!,#REF!+#REF!),IF($AB46<$AC46,#REF!+#REF!,#REF!+#REF!))))) ->  | AG46: 0 | AH46: 0 | AI46: 0 | AJ46: 0 | AK46: 0 | AL46: 4 | AM46: 23 | AN46: 0 | AO46: 0 | AP46: 1 | AQ46: 810 | AR46: 0 | AS46: 0 | AT46: 0 | AU46: 0 | AV46: 0 | AW46: 0 | AX46: 0 | AY46: 0 | AZ46: 0 | BA46: 0 | BB46: 0 | BC46: 0 | BD46: 0 | BE46: 0 | BF46: 0 | BG46: FALSE | BH46: FALSE | BK46: 0 | BO46: 0 | BP46: 0 | BQ46: 0 | BR46: 0 | BS46: N
U47: 2011 | AE47: =IF(ISBLANK($G47)," ",IF($D47="Z",#REF!,IF($G47=2,0,IF($G47=1,IF($AB47>$AD47,#REF!,0),IF($AB47<$AC47,#REF!,#REF!))))) ->  | AF47: =IF(ISBLANK($G47)," ",IF($D47="Z",#REF!+#REF!,IF($G47=2,#REF!+#REF!,IF($G47=1,IF($AB47>$AD47,#REF!+#REF!,#REF!+#REF!),IF($AB47<$AC47,#REF!+#REF!,#REF!+#REF!))))) ->  | AG47: 0 | AH47: 0 | AI47: 0 | AJ47: 0 | AK47: 0 | AL47: 4 | AM47: 23 | AN47: 0 | AO47: 0 | AP47: 1 | AQ47: 810 | AR47: 0 | AS47: 0 | AT47: 0 | AU47: 0 | AV47: 0 | AW47: 0 | AX47: 0 | AY47: 0 | AZ47: 0 | BA47: 0 | BB47: 0 | BC47: 0 | BD47: 0 | BE47: 0 | BF47: 0 | BG47: FALSE | BH47: FALSE | BK47: 0 | BO47: 0 | BP47: 0 | BQ47: 0 | BR47: 0 | BS47: N
U48: 2012 | AE48: =IF(ISBLANK($G48)," ",IF($D48="Z",#REF!,IF($G48=2,0,IF($G48=1,IF($AB48>$AD48,#REF!,0),IF($AB48<$AC48,#REF!,#REF!))))) ->  | AF48: =IF(ISBLANK($G48)," ",IF($D48="Z",#REF!+#REF!,IF($G48=2,#REF!+#REF!,IF($G48=1,IF($AB48>$AD48,#REF!+#REF!,#REF!+#REF!),IF($AB48<$AC48,#REF!+#REF!,#REF!+#REF!))))) ->  | AG48: 0 | AH48: 0 | AI48: 0 | AJ48: 0 | AK48: 0 | AL48: 4 | AM48: 23 | AN48: 0 | AO48: 0 | AP48: =IF(AND($D48="Z",$AL$10<=$AH$10,$AH$10<$AL$11,$AL$12<AM48,AM48<=$AL$13),7,IF(AM48>=70,IF($G48="R",6,5),IF($G48="R",IF(AM48>=65,4,2),IF($AM48>=65,3,1)))) -> 1 | AQ48: 810 | AR48: 0 | AS48: 0 | AT48: 0 | AU48: 0 | AV48: 0 | AW48: 0 | AX48: =IF(OR(ISBLANK(A48),ISBLANK(B48),ISBLANK(C48),ISBLANK(D48),ISBLANK(E48)),0,IF(AND(F48>0,F48<6,H48>0),IF(AW48=1,HLOOKUP($AH$10,EeContRatesU60,AP48+1,TRUE),HLOOKUP($AH$10,EeContRatesO60,AP48+1,TRUE)))) -> 0 | AY48: 0 | AZ48: 0 | BA48: 0 | BB48: 0 | BC48: 0 | BD48: 0 | BE48: 0 | BF48: 0 | BG48: FALSE | BH48: FALSE | BK48: 0 | BO48: 0 | BP48: 0 | BQ48: 0 | BR48: 0 | BS48: N
U49: 2013 | AE49: =IF(ISBLANK($G49)," ",IF($D49="Z",#REF!,IF($G49=2,0,IF($G49=1,IF($AB49>$AD49,#REF!,0),IF($AB49<$AC49,#REF!,#REF!))))) ->  | AF49: =IF(ISBLANK($G49)," ",IF($D49="Z",#REF!+#REF!,IF($G49=2,#REF!+#REF!,IF($G49=1,IF($AB49>$AD49,#REF!+#REF!,#REF!+#REF!),IF($AB49<$AC49,#REF!+#REF!,#REF!+#REF!))))) ->  | AG49: 0 | AH49: 0 | AI49: 0 | AJ49: 0 | AK49: 0 | AL49: 4 | AM49: 23 | AN49: 0 | AO49: 0 | AP49: 1 | AQ49: 810 | AR49: 0 | AS49: 0 | AT49: 0 | AU49: 0 | AV49: 0 | AW49: 0 | AX49: 0 | AY49: 0 | AZ49: 0 | BA49: 0 | BB49: 0 | BC49: 0 | BD49: 0 | BE49: 0 | BF49: 0 | BG49: FALSE | BH49: FALSE | BK49: 0 | BO49: 0 | BP49: 0 | BQ49: 0 | BR49: 0 | BS49: N
U50: 2014 | AE50: =IF(ISBLANK($G50)," ",IF($D50="Z",#REF!,IF($G50=2,0,IF($G50=1,IF($AB50>$AD50,#REF!,0),IF($AB50<$AC50,#REF!,#REF!))))) ->  | AF50: =IF(ISBLANK($G50)," ",IF($D50="Z",#REF!+#REF!,IF($G50=2,#REF!+#REF!,IF($G50=1,IF($AB50>$AD50,#REF!+#REF!,#REF!+#REF!),IF($AB50<$AC50,#REF!+#REF!,#REF!+#REF!))))) ->  | AG50: 0 | AH50: 0 | AI50: 0 | AJ50: 0 | AK50: 0 | AL50: 4 | AM50: 23 | AN50: 0 | AO50: 0 | AP50: 1 | AQ50: 810 | AR50: 0 | AS50: 0 | AT50: 0 | AU50: 0 | AV50: 0 | AW50: 0 | AX50: 0 | AY50: 0 | AZ50: 0 | BA50: 0 | BB50: 0 | BC50: 0 | BD50: 0 | BE50: 0 | BF50: 0 | BG50: FALSE | BH50: FALSE | BK50: 0 | BO50: 0 | BP50: 0 | BQ50: 0 | BR50: 0 | BS50: N
U51: 2015 | AE51: =IF(ISBLANK($G51)," ",IF($D51="Z",#REF!,IF($G51=2,0,IF($G51=1,IF($AB51>$AD51,#REF!,0),IF($AB51<$AC51,#REF!,#REF!))))) ->  | AF51: =IF(ISBLANK($G51)," ",IF($D51="Z",#REF!+#REF!,IF($G51=2,#REF!+#REF!,IF($G51=1,IF($AB51>$AD51,#REF!+#REF!,#REF!+#REF!),IF($AB51<$AC51,#REF!+#REF!,#REF!+#REF!))))) ->  | AG51: 0 | AH51: 0 | AI51: 0 | AJ51: 0 | AK51: 0 | AL51: 4 | AM51: 23 | AN51: 0 | AO51: 0 | AP51: 1 | AQ51: 810 | AR51: 0 | AS51: 0 | AT51: 0 | AU51: 0 | AV51: 0 | AW51: 0 | AX51: 0 | AY51: 0 | AZ51: 0 | BA51: 0 | BB51: 0 | BC51: 0 | BD51: 0 | BE51: 0 | BF51: 0 | BG51: FALSE | BH51: FALSE | BK51: 0 | BO51: 0 | BP51: 0 | BQ51: 0 | BR51: 0 | BS51: N
U52: 2016 | AE52: =IF(ISBLANK($G52)," ",IF($D52="Z",#REF!,IF($G52=2,0,IF($G52=1,IF($AB52>$AD52,#REF!,0),IF($AB52<$AC52,#REF!,#REF!))))) ->  | AF52: =IF(ISBLANK($G52)," ",IF($D52="Z",#REF!+#REF!,IF($G52=2,#REF!+#REF!,IF($G52=1,IF($AB52>$AD52,#REF!+#REF!,#REF!+#REF!),IF($AB52<$AC52,#REF!+#REF!,#REF!+#REF!))))) ->  | AG52: 0 | AH52: 0 | AI52: 0 | AJ52: 0 | AK52: 0 | AL52: 4 | AM52: 23 | AN52: 0 | AO52: 0 | AP52: 1 | AQ52: 810 | AR52: 0 | AS52: 0 | AT52: 0 | AU52: 0 | AV52: 0 | AW52: 0 | AX52: 0 | AY52: 0 | AZ52: 0 | BA52: 0 | BB52: 0 | BC52: 0 | BD52: 0 | BE52: 0 | BF52: 0 | BG52: FALSE | BH52: FALSE | BK52: 0 | BO52: 0 | BP52: 0 | BQ52: 0 | BR52: 0 | BS52: N
U53: 2017 | AE53: =IF(ISBLANK($G53)," ",IF($D53="Z",#REF!,IF($G53=2,0,IF($G53=1,IF($AB53>$AD53,#REF!,0),IF($AB53<$AC53,#REF!,#REF!))))) ->  | AF53: =IF(ISBLANK($G53)," ",IF($D53="Z",#REF!+#REF!,IF($G53=2,#REF!+#REF!,IF($G53=1,IF($AB53>$AD53,#REF!+#REF!,#REF!+#REF!),IF($AB53<$AC53,#REF!+#REF!,#REF!+#REF!))))) ->  | AG53: 0 | AH53: 0 | AI53: 0 | AJ53: 0 | AK53: 0 | AL53: 4 | AM53: 23 | AN53: 0 | AO53: 0 | AP53: 1 | AQ53: 810 | AR53: 0 | AS53: 0 | AT53: 0 | AU53: 0 | AV53: 0 | AW53: 0 | AX53: 0 | AY53: 0 | AZ53: 0 | BA53: 0 | BB53: 0 | BC53: 0 | BD53: 0 | BE53: 0 | BF53: 0 | BG53: FALSE | BH53: FALSE | BK53: 0 | BO53: 0 | BP53: 0 | BQ53: 0 | BR53: 0 | BS53: N
U54: 2018 | AE54: =IF(ISBLANK($G54)," ",IF($D54="Z",#REF!,IF($G54=2,0,IF($G54=1,IF($AB54>$AD54,#REF!,0),IF($AB54<$AC54,#REF!,#REF!))))) ->  | AF54: =IF(ISBLANK($G54)," ",IF($D54="Z",#REF!+#REF!,IF($G54=2,#REF!+#REF!,IF($G54=1,IF($AB54>$AD54,#REF!+#REF!,#REF!+#REF!),IF($AB54<$AC54,#REF!+#REF!,#REF!+#REF!))))) ->  | AG54: 0 | AH54: 0 | AI54: 0 | AJ54: 0 | AK54: 0 | AL54: 4 | AM54: 23 | AN54: 0 | AO54: 0 | AP54: 1 | AQ54: 810 | AR54: 0 | AS54: 0 | AT54: 0 | AU54: 0 | AV54: 0 | AW54: 0 | AX54: 0 | AY54: 0 | AZ54: 0 | BA54: 0 | BB54: 0 | BC54: 0 | BD54: 0 | BE54: 0 | BF54: 0 | BG54: FALSE | BH54: FALSE | BK54: 0 | BO54: 0 | BP54: 0 | BQ54: 0 | BR54: 0 | BS54: N
U55: 2019 | AE55: =IF(ISBLANK($G55)," ",IF($D55="Z",#REF!,IF($G55=2,0,IF($G55=1,IF($AB55>$AD55,#REF!,0),IF($AB55<$AC55,#REF!,#REF!))))) ->  | AF55: =IF(ISBLANK($G55)," ",IF($D55="Z",#REF!+#REF!,IF($G55=2,#REF!+#REF!,IF($G55=1,IF($AB55>$AD55,#REF!+#REF!,#REF!+#REF!),IF($AB55<$AC55,#REF!+#REF!,#REF!+#REF!))))) ->  | AG55: 0 | AH55: 0 | AI55: 0 | AJ55: 0 | AK55: 0 | AL55: 4 | AM55: 23 | AN55: 0 | AO55: 0 | AP55: 1 | AQ55: 810 | AR55: 0 | AS55: 0 | AT55: 0 | AU55: 0 | AV55: 0 | AW55: 0 | AX55: 0 | AY55: 0 | AZ55: 0 | BA55: 0 | BB55: 0 | BC55: 0 | BD55: 0 | BE55: 0 | BF55: 0 | BG55: FALSE | BH55: FALSE | BK55: 0 | BO55: 0 | BP55: 0 | BQ55: 0 | BR55: 0 | BS55: N
U56: 2020 | AE56: =IF(ISBLANK($G56)," ",IF($D56="Z",#REF!,IF($G56=2,0,IF($G56=1,IF($AB56>$AD56,#REF!,0),IF($AB56<$AC56,#REF!,#REF!))))) ->  | AF56: =IF(ISBLANK($G56)," ",IF($D56="Z",#REF!+#REF!,IF($G56=2,#REF!+#REF!,IF($G56=1,IF($AB56>$AD56,#REF!+#REF!,#REF!+#REF!),IF($AB56<$AC56,#REF!+#REF!,#REF!+#REF!))))) ->  | AG56: 0 | AH56: 0 | AI56: 0 | AJ56: 0 | AK56: 0 | AL56: 4 | AM56: 23 | AN56: 0 | AO56: 0 | AP56: 1 | AQ56: 810 | AR56: 0 | AS56: 0 | AT56: 0 | AU56: 0 | AV56: 0 | AW56: 0 | AX56: 0 | AY56: 0 | AZ56: 0 | BA56: 0 | BB56: 0 | BC56: 0 | BD56: 0 | BE56: 0 | BF56: 0 | BG56: FALSE | BH56: FALSE | BK56: 0 | BO56: 0 | BP56: 0 | BQ56: 0 | BR56: 0 | BS56: N
U57: 2021 | AE57: =IF(ISBLANK($G57)," ",IF($D57="Z",#REF!,IF($G57=2,0,IF($G57=1,IF($AB57>$AD57,#REF!,0),IF($AB57<$AC57,#REF!,#REF!))))) ->  | AF57: =IF(ISBLANK($G57)," ",IF($D57="Z",#REF!+#REF!,IF($G57=2,#REF!+#REF!,IF($G57=1,IF($AB57>$AD57,#REF!+#REF!,#REF!+#REF!),IF($AB57<$AC57,#REF!+#REF!,#REF!+#REF!))))) ->  | AG57: 0 | AH57: 0 | AI57: 0 | AJ57: 0 | AK57: 0 | AL57: 4 | AM57: 23 | AN57: 0 | AO57: 0 | AP57: 1 | AQ57: 810 | AR57: 0 | AS57: 0 | AT57: 0 | AU57: 0 | AV57: 0 | AW57: 0 | AX57: 0 | AY57: 0 | AZ57: 0 | BA57: 0 | BB57: 0 | BC57: 0 | BD57: 0 | BE57: 0 | BF57: 0 | BG57: FALSE | BH57: FALSE | BK57: 0 | BO57: 0 | BP57: 0 | BQ57: 0 | BR57: 0 | BS57: N
U58: 2022 | AE58: =IF(ISBLANK($G58)," ",IF($D58="Z",#REF!,IF($G58=2,0,IF($G58=1,IF($AB58>$AD58,#REF!,0),IF($AB58<$AC58,#REF!,#REF!))))) ->  | AF58: =IF(ISBLANK($G58)," ",IF($D58="Z",#REF!+#REF!,IF($G58=2,#REF!+#REF!,IF($G58=1,IF($AB58>$AD58,#REF!+#REF!,#REF!+#REF!),IF($AB58<$AC58,#REF!+#REF!,#REF!+#REF!))))) ->  | AG58: 0 | AH58: 0 | AI58: 0 | AJ58: 0 | AK58: 0 | AL58: 4 | AM58: 23 | AN58: 0 | AO58: 0 | AP58: 1 | AQ58: 810 | AR58: 0 | AS58: 0 | AT58: 0 | AU58: 0 | AV58: 0 | AW58: 0 | AX58: 0 | AY58: 0 | AZ58: 0 | BA58: 0 | BB58: 0 | BC58: 0 | BD58: 0 | BE58: 0 | BF58: 0 | BG58: FALSE | BH58: FALSE | BK58: 0 | BO58: 0 | BP58: 0 | BQ58: 0 | BR58: 0 | BS58: N
U59: 2023 | AE59: =IF(ISBLANK($G59)," ",IF($D59="Z",#REF!,IF($G59=2,0,IF($G59=1,IF($AB59>$AD59,#REF!,0),IF($AB59<$AC59,#REF!,#REF!))))) ->  | AF59: =IF(ISBLANK($G59)," ",IF($D59="Z",#REF!+#REF!,IF($G59=2,#REF!+#REF!,IF($G59=1,IF($AB59>$AD59,#REF!+#REF!,#REF!+#REF!),IF($AB59<$AC59,#REF!+#REF!,#REF!+#REF!))))) ->  | AG59: 0 | AH59: 0 | AI59: 0 | AJ59: 0 | AK59: 0 | AL59: 4 | AM59: 23 | AN59: 0 | AO59: 0 | AP59: 1 | AQ59: 810 | AR59: 0 | AS59: 0 | AT59: 0 | AU59: 0 | AV59: 0 | AW59: 0 | AX59: 0 | AY59: 0 | AZ59: 0 | BA59: 0 | BB59: 0 | BC59: 0 | BD59: 0 | BE59: 0 | BF59: 0 | BG59: FALSE | BH59: FALSE | BK59: 0 | BO59: 0 | BP59: 0 | BQ59: 0 | BR59: 0 | BS59: N
U60: 2024 | AE60: =IF(ISBLANK($G60)," ",IF($D60="Z",#REF!,IF($G60=2,0,IF($G60=1,IF($AB60>$AD60,#REF!,0),IF($AB60<$AC60,#REF!,#REF!))))) ->  | AF60: =IF(ISBLANK($G60)," ",IF($D60="Z",#REF!+#REF!,IF($G60=2,#REF!+#REF!,IF($G60=1,IF($AB60>$AD60,#REF!+#REF!,#REF!+#REF!),IF($AB60<$AC60,#REF!+#REF!,#REF!+#REF!))))) ->  | AG60: 0 | AH60: 0 | AI60: 0 | AJ60: 0 | AK60: 0 | AL60: 4 | AM60: 23 | AN60: 0 | AO60: 0 | AP60: 1 | AQ60: 810 | AR60: 0 | AS60: 0 | AT60: 0 | AU60: 0 | AV60: 0 | AW60: 0 | AX60: 0 | AY60: 0 | AZ60: 0 | BA60: 0 | BB60: 0 | BC60: 0 | BD60: 0 | BE60: 0 | BF60: 0 | BG60: FALSE | BH60: FALSE | BK60: 0 | BO60: 0 | BP60: 0 | BQ60: 0 | BR60: 0 | BS60: N
U61: 2025 | AE61: =IF(ISBLANK($G61)," ",IF($D61="Z",#REF!,IF($G61=2,0,IF($G61=1,IF($AB61>$AD61,#REF!,0),IF($AB61<$AC61,#REF!,#REF!))))) ->  | AF61: =IF(ISBLANK($G61)," ",IF($D61="Z",#REF!+#REF!,IF($G61=2,#REF!+#REF!,IF($G61=1,IF($AB61>$AD61,#REF!+#REF!,#REF!+#REF!),IF($AB61<$AC61,#REF!+#REF!,#REF!+#REF!))))) ->  | AG61: 0 | AH61: 0 | AI61: 0 | AJ61: 0 | AK61: 0 | AL61: 4 | AM61: 23 | AN61: 0 | AO61: 0 | AP61: 1 | AQ61: 810 | AR61: 0 | AS61: 0 | AT61: 0 | AU61: 0 | AV61: 0 | AW61: 0 | AX61: 0 | AY61: 0 | AZ61: 0 | BA61: 0 | BB61: 0 | BC61: 0 | BD61: 0 | BE61: 0 | BF61: 0 | BG61: FALSE | BH61: FALSE | BK61: 0 | BO61: 0 | BP61: 0 | BQ61: 0 | BR61: 0 | BS61: N
U62: 2026 | AE62: =IF(ISBLANK($G62)," ",IF($D62="Z",#REF!,IF($G62=2,0,IF($G62=1,IF($AB62>$AD62,#REF!,0),IF($AB62<$AC62,#REF!,#REF!))))) ->  | AF62: =IF(ISBLANK($G62)," ",IF($D62="Z",#REF!+#REF!,IF($G62=2,#REF!+#REF!,IF($G62=1,IF($AB62>$AD62,#REF!+#REF!,#REF!+#REF!),IF($AB62<$AC62,#REF!+#REF!,#REF!+#REF!))))) ->  | AG62: 0 | AH62: 0 | AI62: 0 | AJ62: 0 | AK62: 0 | AL62: 4 | AM62: 23 | AN62: 0 | AO62: 0 | AP62: 1 | AQ62: 810 | AR62: 0 | AS62: 0 | AT62: 0 | AU62: 0 | AV62: 0 | AW62: 0 | AX62: 0 | AY62: 0 | AZ62: 0 | BA62: 0 | BB62: 0 | BC62: 0 | BD62: 0 | BE62: 0 | BF62: 0 | BG62: FALSE | BH62: FALSE | BK62: 0 | BO62: 0 | BP62: 0 | BQ62: 0 | BR62: 0 | BS62: N
AE63: =IF(ISBLANK($G63)," ",IF($D63="Z",#REF!,IF($G63=2,0,IF($G63=1,IF($AB63>$AD63,#REF!,0),IF($AB63<$AC63,#REF!,#REF!))))) ->  | AF63: =IF(ISBLANK($G63)," ",IF($D63="Z",#REF!+#REF!,IF($G63=2,#REF!+#REF!,IF($G63=1,IF($AB63>$AD63,#REF!+#REF!,#REF!+#REF!),IF($AB63<$AC63,#REF!+#REF!,#REF!+#REF!))))) ->  | AG63: 0 | AH63: 0 | AI63: 0 | AJ63: 0 | AK63: 0 | AL63: 4 | AM63: 23 | AN63: 0 | AO63: 0 | AP63: 1 | AQ63: 810 | AR63: 0 | AS63: 0 | AT63: 0 | AU63: 0 | AV63: 0 | AW63: 0 | AX63: 0 | AY63: 0 | AZ63: 0 | BA63: 0 | BB63: 0 | BC63: 0 | BD63: 0 | BE63: 0 | BF63: 0 | BG63: FALSE | BH63: FALSE | BK63: 0 | BO63: 0 | BP63: 0 | BQ63: 0 | BR63: 0 | BS63: N
AE64: =IF(ISBLANK($G64)," ",IF($D64="Z",#REF!,IF($G64=2,0,IF($G64=1,IF($AB64>$AD64,#REF!,0),IF($AB64<$AC64,#REF!,#REF!))))) ->  | AF64: =IF(ISBLANK($G64)," ",IF($D64="Z",#REF!+#REF!,IF($G64=2,#REF!+#REF!,IF($G64=1,IF($AB64>$AD64,#REF!+#REF!,#REF!+#REF!),IF($AB64<$AC64,#REF!+#REF!,#REF!+#REF!))))) ->  | AG64: 0 | AH64: 0 | AI64: 0 | AJ64: 0 | AK64: 0 | AL64: 4 | AM64: 23 | AN64: 0 | AO64: 0 | AP64: 1 | AQ64: 810 | AR64: 0 | AS64: 0 | AT64: 0 | AU64: 0 | AV64: 0 | AW64: 0 | AX64: 0 | AY64: 0 | AZ64: 0 | BA64: 0 | BB64: 0 | BC64: 0 | BD64: 0 | BE64: 0 | BF64: 0 | BG64: FALSE | BH64: FALSE | BK64: 0 | BO64: 0 | BP64: 0 | BQ64: 0 | BR64: 0 | BS64: N
AE65: =IF(ISBLANK($G65)," ",IF($D65="Z",#REF!,IF($G65=2,0,IF($G65=1,IF($AB65>$AD65,#REF!,0),IF($AB65<$AC65,#REF!,#REF!))))) ->  | AF65: =IF(ISBLANK($G65)," ",IF($D65="Z",#REF!+#REF!,IF($G65=2,#REF!+#REF!,IF($G65=1,IF($AB65>$AD65,#REF!+#REF!,#REF!+#REF!),IF($AB65<$AC65,#REF!+#REF!,#REF!+#REF!))))) ->  | AG65: 0 | AH65: 0 | AI65: 0 | AJ65: 0 | AK65: 0 | AL65: 4 | AM65: 23 | AN65: 0 | AO65: 0 | AP65: 1 | AQ65: 810 | AR65: 0 | AS65: 0 | AT65: 0 | AU65: 0 | AV65: 0 | AW65: 0 | AX65: 0 | AY65: 0 | AZ65: 0 | BA65: 0 | BB65: 0 | BC65: 0 | BD65: 0 | BE65: 0 | BF65: 0 | BG65: FALSE | BH65: FALSE | BK65: 0 | BO65: 0 | BP65: 0 | BQ65: 0 | BR65: 0 | BS65: N
AE66: =IF(ISBLANK($G66)," ",IF($D66="Z",#REF!,IF($G66=2,0,IF($G66=1,IF($AB66>$AD66,#REF!,0),IF($AB66<$AC66,#REF!,#REF!))))) ->  | AF66: =IF(ISBLANK($G66)," ",IF($D66="Z",#REF!+#REF!,IF($G66=2,#REF!+#REF!,IF($G66=1,IF($AB66>$AD66,#REF!+#REF!,#REF!+#REF!),IF($AB66<$AC66,#REF!+#REF!,#REF!+#REF!))))) ->  | AG66: 0 | AH66: 0 | AI66: 0 | AJ66: 0 | AK66: 0 | AL66: 4 | AM66: 23 | AN66: 0 | AO66: 0 | AP66: 1 | AQ66: 810 | AR66: 0 | AS66: 0 | AT66: 0 | AU66: 0 | AV66: 0 | AW66: 0 | AX66: 0 | AY66: 0 | AZ66: 0 | BA66: 0 | BB66: 0 | BC66: 0 | BD66: 0 | BE66: 0 | BF66: 0 | BG66: FALSE | BH66: FALSE | BK66: 0 | BO66: 0 | BP66: 0 | BQ66: 0 | BR66: 0 | BS66: N
AE67: =IF(ISBLANK($G67)," ",IF($D67="Z",#REF!,IF($G67=2,0,IF($G67=1,IF($AB67>$AD67,#REF!,0),IF($AB67<$AC67,#REF!,#REF!))))) ->  | AF67: =IF(ISBLANK($G67)," ",IF($D67="Z",#REF!+#REF!,IF($G67=2,#REF!+#REF!,IF($G67=1,IF($AB67>$AD67,#REF!+#REF!,#REF!+#REF!),IF($AB67<$AC67,#REF!+#REF!,#REF!+#REF!))))) ->  | AG67: 0 | AH67: 0 | AI67: 0 | AJ67: 0 | AK67: 0 | AL67: 4 | AM67: 23 | AN67: 0 | AO67: 0 | AP67: 1 | AQ67: 810 | AR67: 0 | AS67: 0 | AT67: 0 | AU67: 0 | AV67: 0 | AW67: 0 | AX67: 0 | AY67: 0 | AZ67: 0 | BA67: 0 | BB67: 0 | BC67: 0 | BD67: 0 | BE67: 0 | BF67: 0 | BG67: FALSE | BH67: FALSE | BK67: 0 | BO67: 0 | BP67: 0 | BQ67: 0 | BR67: 0 | BS67: N
AE68: =IF(ISBLANK($G68)," ",IF($D68="Z",#REF!,IF($G68=2,0,IF($G68=1,IF($AB68>$AD68,#REF!,0),IF($AB68<$AC68,#REF!,#REF!))))) ->  | AF68: =IF(ISBLANK($G68)," ",IF($D68="Z",#REF!+#REF!,IF($G68=2,#REF!+#REF!,IF($G68=1,IF($AB68>$AD68,#REF!+#REF!,#REF!+#REF!),IF($AB68<$AC68,#REF!+#REF!,#REF!+#REF!))))) ->  | AG68: 0 | AH68: 0 | AI68: 0 | AJ68: 0 | AK68: 0 | AL68: 4 | AM68: 23 | AN68: 0 | AO68: 0 | AP68: 1 | AQ68: 810 | AR68: 0 | AS68: 0 | AT68: 0 | AU68: 0 | AV68: 0 | AW68: 0 | AX68: 0 | AY68: 0 | AZ68: 0 | BA68: 0 | BB68: 0 | BC68: 0 | BD68: 0 | BE68: 0 | BF68: 0 | BG68: FALSE | BH68: FALSE | BK68: 0 | BO68: 0 | BP68: 0 | BQ68: 0 | BR68: 0 | BS68: N
AE69: =IF(ISBLANK($G69)," ",IF($D69="Z",#REF!,IF($G69=2,0,IF($G69=1,IF($AB69>$AD69,#REF!,0),IF($AB69<$AC69,#REF!,#REF!))))) ->  | AF69: =IF(ISBLANK($G69)," ",IF($D69="Z",#REF!+#REF!,IF($G69=2,#REF!+#REF!,IF($G69=1,IF($AB69>$AD69,#REF!+#REF!,#REF!+#REF!),IF($AB69<$AC69,#REF!+#REF!,#REF!+#REF!))))) ->  | AG69: 0 | AH69: 0 | AI69: 0 | AJ69: 0 | AK69: 0 | AL69: 4 | AM69: 23 | AN69: 0 | AO69: 0 | AP69: 1 | AQ69: 810 | AR69: 0 | AS69: 0 | AT69: 0 | AU69: 0 | AV69: 0 | AW69: 0 | AX69: 0 | AY69: 0 | AZ69: 0 | BA69: 0 | BB69: 0 | BC69: 0 | BD69: 0 | BE69: 0 | BF69: 0 | BG69: FALSE | BH69: FALSE | BK69: 0 | BO69: 0 | BP69: 0 | BQ69: 0 | BR69: 0 | BS69: N
AE70: =IF(ISBLANK($G70)," ",IF($D70="Z",#REF!,IF($G70=2,0,IF($G70=1,IF($AB70>$AD70,#REF!,0),IF($AB70<$AC70,#REF!,#REF!))))) ->  | AF70: =IF(ISBLANK($G70)," ",IF($D70="Z",#REF!+#REF!,IF($G70=2,#REF!+#REF!,IF($G70=1,IF($AB70>$AD70,#REF!+#REF!,#REF!+#REF!),IF($AB70<$AC70,#REF!+#REF!,#REF!+#REF!))))) ->  | AG70: 0 | AH70: 0 | AI70: 0 | AJ70: 0 | AK70: 0 | AL70: 4 | AM70: 23 | AN70: 0 | AO70: 0 | AP70: 1 | AQ70: 810 | AR70: 0 | AS70: 0 | AT70: 0 | AU70: 0 | AV70: 0 | AW70: 0 | AX70: 0 | AY70: 0 | AZ70: 0 | BA70: 0 | BB70: 0 | BC70: 0 | BD70: 0 | BE70: 0 | BF70: 0 | BG70: FALSE | BH70: FALSE | BK70: 0 | BO70: 0 | BP70: 0 | BQ70: 0 | BR70: 0 | BS70: N
AE71: =IF(ISBLANK($G71)," ",IF($D71="Z",#REF!,IF($G71=2,0,IF($G71=1,IF($AB71>$AD71,#REF!,0),IF($AB71<$AC71,#REF!,#REF!))))) ->  | AF71: =IF(ISBLANK($G71)," ",IF($D71="Z",#REF!+#REF!,IF($G71=2,#REF!+#REF!,IF($G71=1,IF($AB71>$AD71,#REF!+#REF!,#REF!+#REF!),IF($AB71<$AC71,#REF!+#REF!,#REF!+#REF!))))) ->  | AG71: 0 | AH71: 0 | AI71: 0 | AJ71: 0 | AK71: 0 | AL71: 4 | AM71: 23 | AN71: 0 | AO71: 0 | AP71: 1 | AQ71: 810 | AR71: 0 | AS71: 0 | AT71: 0 | AU71: 0 | AV71: 0 | AW71: 0 | AX71: 0 | AY71: 0 | AZ71: 0 | BA71: 0 | BB71: 0 | BC71: 0 | BD71: 0 | BE71: 0 | BF71: 0 | BG71: FALSE | BH71: FALSE | BK71: 0 | BO71: 0 | BP71: 0 | BQ71: 0 | BR71: 0 | BS71: N
AE72: =IF(ISBLANK($G72)," ",IF($D72="Z",#REF!,IF($G72=2,0,IF($G72=1,IF($AB72>$AD72,#REF!,0),IF($AB72<$AC72,#REF!,#REF!))))) ->  | AF72: =IF(ISBLANK($G72)," ",IF($D72="Z",#REF!+#REF!,IF($G72=2,#REF!+#REF!,IF($G72=1,IF($AB72>$AD72,#REF!+#REF!,#REF!+#REF!),IF($AB72<$AC72,#REF!+#REF!,#REF!+#REF!))))) ->  | AG72: 0 | AH72: 0 | AI72: 0 | AJ72: 0 | AK72: 0 | AL72: 4 | AM72: 23 | AN72: 0 | AO72: 0 | AP72: 1 | AQ72: 810 | AR72: 0 | AS72: 0 | AT72: 0 | AU72: 0 | AV72: 0 | AW72: 0 | AX72: 0 | AY72: 0 | AZ72: 0 | BA72: 0 | BB72: 0 | BC72: 0 | BD72: 0 | BE72: 0 | BF72: 0 | BG72: FALSE | BH72: FALSE | BK72: 0 | BO72: 0 | BP72: 0 | BQ72: 0 | BR72: 0 | BS72: N
AE73: =IF(ISBLANK($G73)," ",IF($D73="Z",#REF!,IF($G73=2,0,IF($G73=1,IF($AB73>$AD73,#REF!,0),IF($AB73<$AC73,#REF!,#REF!))))) ->  | AF73: =IF(ISBLANK($G73)," ",IF($D73="Z",#REF!+#REF!,IF($G73=2,#REF!+#REF!,IF($G73=1,IF($AB73>$AD73,#REF!+#REF!,#REF!+#REF!),IF($AB73<$AC73,#REF!+#REF!,#REF!+#REF!))))) ->  | AG73: 0 | AH73: 0 | AI73: 0 | AJ73: 0 | AK73: 0 | AL73: 4 | AM73: 23 | AN73: 0 | AO73: 0 | AP73: 1 | AQ73: 810 | AR73: 0 | AS73: 0 | AT73: 0 | AU73: 0 | AV73: 0 | AW73: 0 | AX73: 0 | AY73: 0 | AZ73: 0 | BA73: 0 | BB73: 0 | BC73: 0 | BD73: 0 | BE73: 0 | BF73: 0 | BG73: FALSE | BH73: FALSE | BK73: 0 | BO73: 0 | BP73: 0 | BQ73: 0 | BR73: 0 | BS73: N
AE74: =IF(ISBLANK($G74)," ",IF($D74="Z",#REF!,IF($G74=2,0,IF($G74=1,IF($AB74>$AD74,#REF!,0),IF($AB74<$AC74,#REF!,#REF!))))) ->  | AF74: =IF(ISBLANK($G74)," ",IF($D74="Z",#REF!+#REF!,IF($G74=2,#REF!+#REF!,IF($G74=1,IF($AB74>$AD74,#REF!+#REF!,#REF!+#REF!),IF($AB74<$AC74,#REF!+#REF!,#REF!+#REF!))))) ->  | AG74: 0 | AH74: 0 | AI74: 0 | AJ74: 0 | AK74: 0 | AL74: 4 | AM74: 23 | AN74: 0 | AO74: 0 | AP74: 1 | AQ74: 810 | AR74: 0 | AS74: 0 | AT74: 0 | AU74: 0 | AV74: 0 | AW74: 0 | AX74: 0 | AY74: 0 | AZ74: 0 | BA74: 0 | BB74: 0 | BC74: 0 | BD74: 0 | BE74: 0 | BF74: 0 | BG74: FALSE | BH74: FALSE | BK74: 0 | BO74: 0 | BP74: 0 | BQ74: 0 | BR74: 0 | BS74: N
AE75: =IF(ISBLANK($G75)," ",IF($D75="Z",#REF!,IF($G75=2,0,IF($G75=1,IF($AB75>$AD75,#REF!,0),IF($AB75<$AC75,#REF!,#REF!))))) ->  | AF75: =IF(ISBLANK($G75)," ",IF($D75="Z",#REF!+#REF!,IF($G75=2,#REF!+#REF!,IF($G75=1,IF($AB75>$AD75,#REF!+#REF!,#REF!+#REF!),IF($AB75<$AC75,#REF!+#REF!,#REF!+#REF!))))) ->  | AG75: 0 | AH75: 0 | AI75: 0 | AJ75: 0 | AK75: 0 | AL75: 4 | AM75: 23 | AN75: 0 | AO75: 0 | AP75: 1 | AQ75: 810 | AR75: 0 | AS75: 0 | AT75: 0 | AU75: 0 | AV75: 0 | AW75: 0 | AX75: 0 | AY75: 0 | AZ75: 0 | BA75: 0 | BB75: 0 | BC75: 0 | BD75: 0 | BE75: 0 | BF75: 0 | BG75: FALSE | BH75: FALSE | BK75: 0 | BO75: 0 | BP75: 0 | BQ75: 0 | BR75: 0 | BS75: N
AE76: =IF(ISBLANK($G76)," ",IF($D76="Z",#REF!,IF($G76=2,0,IF($G76=1,IF($AB76>$AD76,#REF!,0),IF($AB76<$AC76,#REF!,#REF!))))) ->  | AF76: =IF(ISBLANK($G76)," ",IF($D76="Z",#REF!+#REF!,IF($G76=2,#REF!+#REF!,IF($G76=1,IF($AB76>$AD76,#REF!+#REF!,#REF!+#REF!),IF($AB76<$AC76,#REF!+#REF!,#REF!+#REF!))))) ->  | AG76: 0 | AH76: 0 | AI76: 0 | AJ76: 0 | AK76: 0 | AL76: 4 | AM76: 23 | AN76: 0 | AO76: 0 | AP76: 1 | AQ76: 810 | AR76: 0 | AS76: 0 | AT76: 0 | AU76: 0 | AV76: 0 | AW76: 0 | AX76: 0 | AY76: 0 | AZ76: 0 | BA76: 0 | BB76: 0 | BC76: 0 | BD76: 0 | BE76: 0 | BF76: 0 | BG76: FALSE | BH76: FALSE | BK76: 0 | BO76: 0 | BP76: 0 | BQ76: 0 | BR76: 0 | BS76: N
AE77: =IF(ISBLANK($G77)," ",IF($D77="Z",#REF!,IF($G77=2,0,IF($G77=1,IF($AB77>$AD77,#REF!,0),IF($AB77<$AC77,#REF!,#REF!))))) ->  | AF77: =IF(ISBLANK($G77)," ",IF($D77="Z",#REF!+#REF!,IF($G77=2,#REF!+#REF!,IF($G77=1,IF($AB77>$AD77,#REF!+#REF!,#REF!+#REF!),IF($AB77<$AC77,#REF!+#REF!,#REF!+#REF!))))) ->  | AG77: 0 | AH77: 0 | AI77: 0 | AJ77: 0 | AK77: 0 | AL77: 4 | AM77: 23 | AN77: 0 | AO77: 0 | AP77: 1 | AQ77: 810 | AR77: 0 | AS77: 0 | AT77: 0 | AU77: 0 | AV77: 0 | AW77: 0 | AX77: 0 | AY77: 0 | AZ77: 0 | BA77: 0 | BB77: 0 | BC77: 0 | BD77: 0 | BE77: 0 | BF77: 0 | BG77: FALSE | BH77: FALSE | BK77: 0 | BO77: 0 | BP77: 0 | BQ77: 0 | BR77: 0 | BS77: N
AE78: =IF(ISBLANK($G78)," ",IF($D78="Z",#REF!,IF($G78=2,0,IF($G78=1,IF($AB78>$AD78,#REF!,0),IF($AB78<$AC78,#REF!,#REF!))))) ->  | AF78: =IF(ISBLANK($G78)," ",IF($D78="Z",#REF!+#REF!,IF($G78=2,#REF!+#REF!,IF($G78=1,IF($AB78>$AD78,#REF!+#REF!,#REF!+#REF!),IF($AB78<$AC78,#REF!+#REF!,#REF!+#REF!))))) ->  | AG78: 0 | AH78: 0 | AI78: 0 | AJ78: 0 | AK78: 0 | AL78: 4 | AM78: 23 | AN78: 0 | AO78: 0 | AP78: 1 | AQ78: 810 | AR78: 0 | AS78: 0 | AT78: 0 | AU78: 0 | AV78: 0 | AW78: 0 | AX78: 0 | AY78: 0 | AZ78: 0 | BA78: 0 | BB78: 0 | BC78: 0 | BD78: 0 | BE78: 0 | BF78: 0 | BG78: FALSE | BH78: FALSE | BK78: 0 | BO78: 0 | BP78: 0 | BQ78: 0 | BR78: 0 | BS78: N
AE79: =IF(ISBLANK($G79)," ",IF($D79="Z",#REF!,IF($G79=2,0,IF($G79=1,IF($AB79>$AD79,#REF!,0),IF($AB79<$AC79,#REF!,#REF!))))) ->  | AF79: =IF(ISBLANK($G79)," ",IF($D79="Z",#REF!+#REF!,IF($G79=2,#REF!+#REF!,IF($G79=1,IF($AB79>$AD79,#REF!+#REF!,#REF!+#REF!),IF($AB79<$AC79,#REF!+#REF!,#REF!+#REF!))))) ->  | AG79: 0 | AH79: 0 | AI79: 0 | AJ79: 0 | AK79: 0 | AL79: 4 | AM79: 23 | AN79: 0 | AO79: 0 | AP79: 1 | AQ79: 810 | AR79: 0 | AS79: 0 | AT79: 0 | AU79: 0 | AV79: 0 | AW79: 0 | AX79: 0 | AY79: 0 | AZ79: 0 | BA79: 0 | BB79: 0 | BC79: 0 | BD79: 0 | BE79: 0 | BF79: 0 | BG79: FALSE | BH79: FALSE | BK79: 0 | BO79: 0 | BP79: 0 | BQ79: 0 | BR79: 0 | BS79: N
X80: =IF(ISBLANK(A80)," ",MOD(SUM((LEFT(A80,1)*8)+(MID(A80,2,1)*7)+(MID(A80,3,1)*6)+(MID(A80,4,1)*5)+(MID(A80,5,1)*4)+(MID(A80,6,1)*3)+(MID(A80,7,1)*2)),11)) ->  | Y80: =IF(ISBLANK(A80)," ",IF(A80<10000000+OR(A80>99999999),"X",IF(X80=0,0,IF(X80=1,"X",11-X80)))) ->  | Z80: =IF(ISBLANK(A80)," ",IF(ISERROR(VLOOKUP(A80,InvalidNINum,1,FALSE)),SUM(CONCATENATE(LEFT(A80,7),Y80)),VLOOKUP(A80,InvalidNINum,1,FALSE))) ->  | AA80: =IF(ISBLANK($F80)," ",IF(AND($E80="M",$F80=$C$10),"M","W")) ->  | AB80: =IF(ISBLANK($H80)," ",IF($E80="M",IF($F80=$C$10,IF($H80>$C$12,$C$12,ROUNDDOWN($H80,0)),IF($H80>($F80*$C$11),$F80*$C$11,ROUNDDOWN($H80,0))),IF($H80>($F80*$C$11),$F80*$C$11,ROUNDDOWN($H80,0)))) ->  | AC80: =IF($AA80="M",(VLOOKUP($C$6,$V$16:$AF$20,14)*52)/12,VLOOKUP($C$6,$V$16:$AF$20,14)*$F80) ->  | AD80: =IF($AA80="M",(VLOOKUP($C$6,$V$16:$AF$20,15)*52)/12,VLOOKUP($C$6,$V$16:$AF$20,15)*$F80) ->  | AE80: =IF(ISBLANK($G80)," ",IF($D80="Z",#REF!,IF($G80=2,0,IF($G80=1,IF($AB80>$AD80,#REF!,0),IF($AB80<$AC80,#REF!,#REF!))))) ->  | AF80: =IF(ISBLANK($G80)," ",IF($D80="Z",#REF!+#REF!,IF($G80=2,#REF!+#REF!,IF($G80=1,IF($AB80>$AD80,#REF!+#REF!,#REF!+#REF!),IF($AB80<$AC80,#REF!+#REF!,#REF!+#REF!))))) ->  | AG80: 0 | AH80: 0 | AI80: 0 | AJ80: 0 | AK80: 0 | AL80: 4 | AM80: 23 | AN80: =IF(AM80>Lower_Age_Limit,0,1) -> 0 | AO80: =IF(NOT(G80="R"),0,IF(AM80>=RetirementAge,0,1)) -> 0 | AP80: 1 | AQ80: =+HLOOKUP($AH$10,WeeklyIWCeiling,AP80+1) -> 810 | AR80: =IF(AA80="M",HLOOKUP($AH$10,MonthlyIWCeiling,AP80+1),HLOOKUP($AH$10,WeeklyIWCeiling,AP80+1)*F80) -> 0 | AS80: 0 | AT80: =IF(E80="M",IF(H80<=AR80,0,1),IF(AS80<=AQ80,0,1)) -> 0 | AU80: =IF(F80>$C$10,1,0) -> 0 | AV80: 0 | AW80: =+IF(OR(AND(E80="M",AV80<60),AND(E80="W",AS80<60)),1,0) -> 0 | AX80: =IF(OR(ISBLANK(A80),ISBLANK(B80),ISBLANK(C80),ISBLANK(D80),ISBLANK(E80)),0,IF(AND(F80>0,F80<6,H80>0),IF(AW80=1,HLOOKUP($AH$10,EeContRatesU60,AP80+1,TRUE),HLOOKUP($AH$10,EeContRatesO60,AP80+1,TRUE)))) -> 0 | AY80: 0 | AZ80: =IF(OR(ISBLANK(A80),ISBLANK(B80),ISBLANK(C80),ISBLANK(D80),ISBLANK(E80)),0,IF(AND(F80>0,F80<6,H80>0),IF(AW80=1,HLOOKUP($AH$10,TotalContRatesU60,AP80+1,TRUE),HLOOKUP($AH$10,TotalContRatesO60,AP80+1,TRUE)))) -> 0 | BA80: 0 | BB80: 0 | BC80: 0 | BD80: 0 | BE80: 0 | BF80: 0 | BG80: FALSE | BH80: FALSE | BK80: 0 | BO80: 0 | BP80: 0 | BQ80: 0 | BR80: 0 | BS80: N
I81: =IF(ISBLANK($H81)," ",BO81) ->  | J81: =IF(ISBLANK($H81)," ",BP81) ->  | K81: =IF((ISBLANK($H81))," ",BQ81) ->  | W81: =IF(ISBLANK($A81)," ",A81) ->  | AE81: =IF(ISBLANK($G81)," ",IF($D81="Z",#REF!,IF($G81=2,0,IF($G81=1,IF($AB81>$AD81,#REF!,0),IF($AB81<$AC81,#REF!,#REF!))))) ->  | AF81: =IF(ISBLANK($G81)," ",IF($D81="Z",#REF!+#REF!,IF($G81=2,#REF!+#REF!,IF($G81=1,IF($AB81>$AD81,#REF!+#REF!,#REF!+#REF!),IF($AB81<$AC81,#REF!+#REF!,#REF!+#REF!))))) ->  | AG81: 0 | AH81: 0 | AI81: 0 | AJ81: 0 | AK81: 0 | AL81: 4 | AM81: =IF(INT((($AH$11-(1900+AI81))*48 +($AH$12-AL81))/48)>90,INT((($AH$11-(2000+AI81))*48 +($AH$12-AL81))/48),INT((($AH$11-(1900+AI81))*48 +($AH$12-AL81))/48)) -> 23 | AN81: 0 | AO81: 0 | AP81: =IF(AND($D81="Z",$AL$10<=$AH$10,$AH$10<$AL$11,$AL$12<AM81,AM81<=$AL$13),7,IF(AM81>=70,IF($G81="R",6,5),IF($G81="R",IF(AM81>=65,4,2),IF($AM81>=65,3,1)))) -> 1 | AQ81: 810 | AR81: 0 | AS81: =IF(AND(F81>0,H81>0),H81/F81,0) -> 0 | AT81: 0 | AU81: 0 | AV81: =+AR81*12/52 -> 0 | AW81: 0 | AX81: 0 | AY81: =+AZ81-AX81 -> 0 | AZ81: 0 | BA81: =IF(OR(ISBLANK(A81),ISBLANK(B81),ISBLANK(C81),ISBLANK(D81),ISBLANK(E81)),0,IF(AND(F81>0,F81<6,H81>0),ROUND(H81*AX81,2))) -> 0 | BB81: =IF(OR(ISBLANK(A81),ISBLANK(B81),ISBLANK(C81),ISBLANK(D81),ISBLANK(E81)),0,IF(AND(F81>0,F81<6,H81>0),ROUND(H81*AY81,2))) -> 0 | BC81: =+BA81+BB81 -> 0 | BD81: =IF(AND(AND(F81>0,H81>0,ISTEXT(D81),ISTEXT(E81)),ISBLANK(A81)),"Input NI#",IF(AND(F81>0,H81>0,ISTEXT(D81),ISTEXT(E81),OR(ISBLANK(B81),ISBLANK(C81))),"Input name",IF(AND(A81>0,OR(AK81=0,AK81=9)),"Check NI#",IF(AT81=0,BA81,"Check wages")))) -> 0 | BE81: =IF(ISTEXT(BD81),BD81,BB81) -> 0 | BF81: =IF(ISTEXT(BD81),BD81,BC81) -> 0 | BG81: =IF(AND(OR(ISTEXT(B81),ISTEXT(C81),ISTEXT(D81),ISTEXT(E81),F81>0,H81>0),ISBLANK(A81)),1,IF(A81>0,IF(ISBLANK(B81),1,IF(ISBLANK(C81),1,IF(ISBLANK(D81),1,IF(ISBLANK(E81),1,IF(F81=0,1,IF(H81=0,1," ")))))))) -> FALSE | BH81: =IF(AND(OR(ISTEXT(B81),ISTEXT(C81),ISTEXT(D81),ISTEXT(E81),F81>0,H81>0),ISBLANK(A81)),"Input "&A$15,IF(A81>0,IF(ISBLANK(B81),"Input "&B$15,IF(ISBLANK(C81),"Input "&C$15,IF(ISBLANK(D81),"Enter "&D$15,IF(ISBLANK(E81),"Select "&E$15,IF(F81=0,"Input "&F$15,IF(H81=0,"Input "&H$15," ")))))))) -> FALSE | BI81: =IF(OR(AT81=1,AU81=1,AN81=1,AO81=1),1,"") ->  | BJ81: =IF(AT81=1,"Check wages",IF(AU81=1,"Check number of weeks",IF(AN81=1,"Registrant under age 16",IF(AO81=1,"Ineligible for Retirement","")))) ->  | BK81: =IF(AND($D81="Z",OR($AL$10>$AH$10,$AH$10>$AL$11,$AL$12>AM81,AM81>$AL$13)),1,0) -> 0 | BL81: =IF(BK81=1,"Change Cont. type to 'P'","") ->  | BO81: 0 | BP81: 0 | BQ81: 0 | BR81: =IF(OR(BG81=1,BI81=1,BK81=1,BM81=1),1,0) -> 0 | BS81: =IF(OR(ISBLANK(A81),BR81=1),"N","Y") -> N
AE82: =IF(ISBLANK($G82)," ",IF($D82="Z",#REF!,IF($G82=2,0,IF($G82=1,IF($AB82>$AD82,#REF!,0),IF($AB82<$AC82,#REF!,#REF!))))) ->  | AF82: =IF(ISBLANK($G82)," ",IF($D82="Z",#REF!+#REF!,IF($G82=2,#REF!+#REF!,IF($G82=1,IF($AB82>$AD82,#REF!+#REF!,#REF!+#REF!),IF($AB82<$AC82,#REF!+#REF!,#REF!+#REF!))))) ->  | AG82: =INT(A82/10) -> 0 | AH82: =INT(A82/1000) -> 0 | AI82: =AG82-AH82*100 -> 0 | AJ82: =INT(AH82/10) -> 0 | AK82: =AH82-10*AJ82 -> 0 | AL82: =IF(MOD(AH82-AJ82*10,4)=0,4,MOD(AH82-AJ82*10,4)) -> 4 | AM82: 23 | AN82: 0 | AO82: 0 | AP82: 1 | AQ82: 810 | AR82: 0 | AS82: 0 | AT82: 0 | AU82: 0 | AV82: 0 | AW82: 0 | AX82: 0 | AY82: 0 | AZ82: 0 | BA82: 0 | BB82: 0 | BC82: 0 | BD82: 0 | BE82: 0 | BF82: 0 | BG82: FALSE | BH82: FALSE | BK82: 0 | BO82: =IF($BG82=1,$BH82,IF($BI82=1,$BJ82,IF($BK82=1,$BL82,IF($BM82=1,$BN82,BA82)))) -> 0 | BP82: =IF($BG82=1,$BH82,IF($BI82=1,$BJ82,IF($BK82=1,$BL82,IF($BM82=1,$BN82,BB82)))) -> 0 | BQ82: =IF($BG82=1,$BH82,IF($BI82=1,$BJ82,IF($BK82=1,$BL82,IF($BM82=1,$BN82,BC82)))) -> 0 | BR82: 0 | BS82: N
AE83: =IF(ISBLANK($G83)," ",IF($D83="Z",#REF!,IF($G83=2,0,IF($G83=1,IF($AB83>$AD83,#REF!,0),IF($AB83<$AC83,#REF!,#REF!))))) ->  | AF83: =IF(ISBLANK($G83)," ",IF($D83="Z",#REF!+#REF!,IF($G83=2,#REF!+#REF!,IF($G83=1,IF($AB83>$AD83,#REF!+#REF!,#REF!+#REF!),IF($AB83<$AC83,#REF!+#REF!,#REF!+#REF!))))) ->  | AG83: 0 | AH83: 0 | AI83: 0 | AJ83: 0 | AK83: 0 | AL83: 4 | AM83: 23 | AN83: 0 | AO83: 0 | AP83: 1 | AQ83: 810 | AR83: 0 | AS83: 0 | AT83: 0 | AU83: 0 | AV83: 0 | AW83: 0 | AX83: 0 | AY83: 0 | AZ83: 0 | BA83: 0 | BB83: 0 | BC83: 0 | BD83: 0 | BE83: 0 | BF83: 0 | BG83: FALSE | BH83: FALSE | BK83: 0 | BM83: =IF(ISERROR(Z83),1,IF(NOT(W83=Z83),1,"")) ->  | BN83: =IF(BM83=1,"Check Employee NI#","") ->  | BO83: 0 | BP83: 0 | BQ83: 0 | BR83: 0 | BS83: N
AE84: =IF(ISBLANK($G84)," ",IF($D84="Z",#REF!,IF($G84=2,0,IF($G84=1,IF($AB84>$AD84,#REF!,0),IF($AB84<$AC84,#REF!,#REF!))))) ->  | AF84: =IF(ISBLANK($G84)," ",IF($D84="Z",#REF!+#REF!,IF($G84=2,#REF!+#REF!,IF($G84=1,IF($AB84>$AD84,#REF!+#REF!,#REF!+#REF!),IF($AB84<$AC84,#REF!+#REF!,#REF!+#REF!))))) ->  | AG84: 0 | AH84: 0 | AI84: 0 | AJ84: 0 | AK84: 0 | AL84: 4 | AM84: 23 | AN84: 0 | AO84: 0 | AP84: 1 | AQ84: 810 | AR84: 0 | AS84: 0 | AT84: 0 | AU84: 0 | AV84: 0 | AW84: 0 | AX84: 0 | AY84: 0 | AZ84: 0 | BA84: 0 | BB84: 0 | BC84: 0 | BD84: 0 | BE84: 0 | BF84: 0 | BG84: FALSE | BH84: FALSE | BK84: 0 | BO84: 0 | BP84: 0 | BQ84: 0 | BR84: 0 | BS84: N
AE85: =IF(ISBLANK($G85)," ",IF($D85="Z",#REF!,IF($G85=2,0,IF($G85=1,IF($AB85>$AD85,#REF!,0),IF($AB85<$AC85,#REF!,#REF!))))) ->  | AF85: =IF(ISBLANK($G85)," ",IF($D85="Z",#REF!+#REF!,IF($G85=2,#REF!+#REF!,IF($G85=1,IF($AB85>$AD85,#REF!+#REF!,#REF!+#REF!),IF($AB85<$AC85,#REF!+#REF!,#REF!+#REF!))))) ->  | AG85: 0 | AH85: 0 | AI85: 0 | AJ85: 0 | AK85: 0 | AL85: 4 | AM85: 23 | AN85: 0 | AO85: 0 | AP85: 1 | AQ85: 810 | AR85: 0 | AS85: 0 | AT85: 0 | AU85: 0 | AV85: 0 | AW85: 0 | AX85: 0 | AY85: 0 | AZ85: 0 | BA85: 0 | BB85: 0 | BC85: 0 | BD85: 0 | BE85: 0 | BF85: 0 | BG85: FALSE | BH85: FALSE | BK85: 0 | BO85: 0 | BP85: 0 | BQ85: 0 | BR85: 0 | BS85: N
AE86: =IF(ISBLANK($G86)," ",IF($D86="Z",#REF!,IF($G86=2,0,IF($G86=1,IF($AB86>$AD86,#REF!,0),IF($AB86<$AC86,#REF!,#REF!))))) ->  | AF86: =IF(ISBLANK($G86)," ",IF($D86="Z",#REF!+#REF!,IF($G86=2,#REF!+#REF!,IF($G86=1,IF($AB86>$AD86,#REF!+#REF!,#REF!+#REF!),IF($AB86<$AC86,#REF!+#REF!,#REF!+#REF!))))) ->  | AG86: 0 | AH86: 0 | AI86: 0 | AJ86: 0 | AK86: 0 | AL86: 4 | AM86: 23 | AN86: 0 | AO86: 0 | AP86: 1 | AQ86: 810 | AR86: 0 | AS86: 0 | AT86: 0 | AU86: 0 | AV86: 0 | AW86: 0 | AX86: 0 | AY86: 0 | AZ86: 0 | BA86: 0 | BB86: 0 | BC86: 0 | BD86: 0 | BE86: 0 | BF86: 0 | BG86: FALSE | BH86: FALSE | BK86: 0 | BO86: 0 | BP86: 0 | BQ86: 0 | BR86: 0 | BS86: N
AE87: =IF(ISBLANK($G87)," ",IF($D87="Z",#REF!,IF($G87=2,0,IF($G87=1,IF($AB87>$AD87,#REF!,0),IF($AB87<$AC87,#REF!,#REF!))))) ->  | AF87: =IF(ISBLANK($G87)," ",IF($D87="Z",#REF!+#REF!,IF($G87=2,#REF!+#REF!,IF($G87=1,IF($AB87>$AD87,#REF!+#REF!,#REF!+#REF!),IF($AB87<$AC87,#REF!+#REF!,#REF!+#REF!))))) ->  | AG87: 0 | AH87: 0 | AI87: 0 | AJ87: 0 | AK87: 0 | AL87: 4 | AM87: 23 | AN87: 0 | AO87: 0 | AP87: 1 | AQ87: 810 | AR87: 0 | AS87: 0 | AT87: 0 | AU87: 0 | AV87: 0 | AW87: 0 | AX87: 0 | AY87: 0 | AZ87: 0 | BA87: 0 | BB87: 0 | BC87: 0 | BD87: 0 | BE87: 0 | BF87: 0 | BG87: FALSE | BH87: FALSE | BK87: 0 | BO87: 0 | BP87: 0 | BQ87: 0 | BR87: 0 | BS87: N
AE88: =IF(ISBLANK($G88)," ",IF($D88="Z",#REF!,IF($G88=2,0,IF($G88=1,IF($AB88>$AD88,#REF!,0),IF($AB88<$AC88,#REF!,#REF!))))) ->  | AF88: =IF(ISBLANK($G88)," ",IF($D88="Z",#REF!+#REF!,IF($G88=2,#REF!+#REF!,IF($G88=1,IF($AB88>$AD88,#REF!+#REF!,#REF!+#REF!),IF($AB88<$AC88,#REF!+#REF!,#REF!+#REF!))))) ->  | AG88: 0 | AH88: 0 | AI88: 0 | AJ88: 0 | AK88: 0 | AL88: 4 | AM88: 23 | AN88: 0 | AO88: 0 | AP88: 1 | AQ88: 810 | AR88: 0 | AS88: 0 | AT88: 0 | AU88: 0 | AV88: 0 | AW88: 0 | AX88: 0 | AY88: 0 | AZ88: 0 | BA88: 0 | BB88: 0 | BC88: 0 | BD88: 0 | BE88: 0 | BF88: 0 | BG88: FALSE | BH88: FALSE | BK88: 0 | BO88: 0 | BP88: 0 | BQ88: 0 | BR88: 0 | BS88: N
AE89: =IF(ISBLANK($G89)," ",IF($D89="Z",#REF!,IF($G89=2,0,IF($G89=1,IF($AB89>$AD89,#REF!,0),IF($AB89<$AC89,#REF!,#REF!))))) ->  | AF89: =IF(ISBLANK($G89)," ",IF($D89="Z",#REF!+#REF!,IF($G89=2,#REF!+#REF!,IF($G89=1,IF($AB89>$AD89,#REF!+#REF!,#REF!+#REF!),IF($AB89<$AC89,#REF!+#REF!,#REF!+#REF!))))) ->  | AG89: 0 | AH89: 0 | AI89: 0 | AJ89: 0 | AK89: 0 | AL89: 4 | AM89: 23 | AN89: 0 | AO89: 0 | AP89: 1 | AQ89: 810 | AR89: 0 | AS89: 0 | AT89: 0 | AU89: 0 | AV89: 0 | AW89: 0 | AX89: 0 | AY89: 0 | AZ89: 0 | BA89: 0 | BB89: 0 | BC89: 0 | BD89: 0 | BE89: 0 | BF89: 0 | BG89: FALSE | BH89: FALSE | BK89: 0 | BO89: 0 | BP89: 0 | BQ89: 0 | BR89: 0 | BS89: N
AE90: =IF(ISBLANK($G90)," ",IF($D90="Z",#REF!,IF($G90=2,0,IF($G90=1,IF($AB90>$AD90,#REF!,0),IF($AB90<$AC90,#REF!,#REF!))))) ->  | AF90: =IF(ISBLANK($G90)," ",IF($D90="Z",#REF!+#REF!,IF($G90=2,#REF!+#REF!,IF($G90=1,IF($AB90>$AD90,#REF!+#REF!,#REF!+#REF!),IF($AB90<$AC90,#REF!+#REF!,#REF!+#REF!))))) ->  | AG90: 0 | AH90: 0 | AI90: 0 | AJ90: 0 | AK90: 0 | AL90: 4 | AM90: 23 | AN90: 0 | AO90: 0 | AP90: 1 | AQ90: 810 | AR90: 0 | AS90: 0 | AT90: 0 | AU90: 0 | AV90: 0 | AW90: 0 | AX90: 0 | AY90: 0 | AZ90: 0 | BA90: 0 | BB90: 0 | BC90: 0 | BD90: 0 | BE90: 0 | BF90: 0 | BG90: FALSE | BH90: FALSE | BK90: 0 | BO90: 0 | BP90: 0 | BQ90: 0 | BR90: 0 | BS90: N
AE91: =IF(ISBLANK($G91)," ",IF($D91="Z",#REF!,IF($G91=2,0,IF($G91=1,IF($AB91>$AD91,#REF!,0),IF($AB91<$AC91,#REF!,#REF!))))) ->  | AF91: =IF(ISBLANK($G91)," ",IF($D91="Z",#REF!+#REF!,IF($G91=2,#REF!+#REF!,IF($G91=1,IF($AB91>$AD91,#REF!+#REF!,#REF!+#REF!),IF($AB91<$AC91,#REF!+#REF!,#REF!+#REF!))))) ->  | AG91: 0 | AH91: 0 | AI91: 0 | AJ91: 0 | AK91: 0 | AL91: 4 | AM91: 23 | AN91: 0 | AO91: 0 | AP91: 1 | AQ91: 810 | AR91: 0 | AS91: 0 | AT91: 0 | AU91: 0 | AV91: 0 | AW91: 0 | AX91: 0 | AY91: 0 | AZ91: 0 | BA91: 0 | BB91: 0 | BC91: 0 | BD91: 0 | BE91: 0 | BF91: 0 | BG91: FALSE | BH91: FALSE | BK91: 0 | BO91: 0 | BP91: 0 | BQ91: 0 | BR91: 0 | BS91: N
AE92: =IF(ISBLANK($G92)," ",IF($D92="Z",#REF!,IF($G92=2,0,IF($G92=1,IF($AB92>$AD92,#REF!,0),IF($AB92<$AC92,#REF!,#REF!))))) ->  | AF92: =IF(ISBLANK($G92)," ",IF($D92="Z",#REF!+#REF!,IF($G92=2,#REF!+#REF!,IF($G92=1,IF($AB92>$AD92,#REF!+#REF!,#REF!+#REF!),IF($AB92<$AC92,#REF!+#REF!,#REF!+#REF!))))) ->  | AG92: 0 | AH92: 0 | AI92: 0 | AJ92: 0 | AK92: 0 | AL92: 4 | AM92: 23 | AN92: 0 | AO92: 0 | AP92: 1 | AQ92: 810 | AR92: 0 | AS92: 0 | AT92: 0 | AU92: 0 | AV92: 0 | AW92: 0 | AX92: 0 | AY92: 0 | AZ92: 0 | BA92: 0 | BB92: 0 | BC92: 0 | BD92: 0 | BE92: 0 | BF92: 0 | BG92: FALSE | BH92: FALSE | BK92: 0 | BO92: 0 | BP92: 0 | BQ92: 0 | BR92: 0 | BS92: N
AE93: =IF(ISBLANK($G93)," ",IF($D93="Z",#REF!,IF($G93=2,0,IF($G93=1,IF($AB93>$AD93,#REF!,0),IF($AB93<$AC93,#REF!,#REF!))))) ->  | AF93: =IF(ISBLANK($G93)," ",IF($D93="Z",#REF!+#REF!,IF($G93=2,#REF!+#REF!,IF($G93=1,IF($AB93>$AD93,#REF!+#REF!,#REF!+#REF!),IF($AB93<$AC93,#REF!+#REF!,#REF!+#REF!))))) ->  | AG93: 0 | AH93: 0 | AI93: 0 | AJ93: 0 | AK93: 0 | AL93: 4 | AM93: 23 | AN93: 0 | AO93: 0 | AP93: 1 | AQ93: 810 | AR93: 0 | AS93: 0 | AT93: 0 | AU93: 0 | AV93: 0 | AW93: 0 | AX93: 0 | AY93: 0 | AZ93: 0 | BA93: 0 | BB93: 0 | BC93: 0 | BD93: 0 | BE93: 0 | BF93: 0 | BG93: FALSE | BH93: FALSE | BK93: 0 | BO93: 0 | BP93: 0 | BQ93: 0 | BR93: 0 | BS93: N
AE94: =IF(ISBLANK($G94)," ",IF($D94="Z",#REF!,IF($G94=2,0,IF($G94=1,IF($AB94>$AD94,#REF!,0),IF($AB94<$AC94,#REF!,#REF!))))) ->  | AF94: =IF(ISBLANK($G94)," ",IF($D94="Z",#REF!+#REF!,IF($G94=2,#REF!+#REF!,IF($G94=1,IF($AB94>$AD94,#REF!+#REF!,#REF!+#REF!),IF($AB94<$AC94,#REF!+#REF!,#REF!+#REF!))))) ->  | AG94: 0 | AH94: 0 | AI94: 0 | AJ94: 0 | AK94: 0 | AL94: 4 | AM94: 23 | AN94: 0 | AO94: 0 | AP94: 1 | AQ94: 810 | AR94: 0 | AS94: 0 | AT94: 0 | AU94: 0 | AV94: 0 | AW94: 0 | AX94: 0 | AY94: 0 | AZ94: 0 | BA94: 0 | BB94: 0 | BC94: 0 | BD94: 0 | BE94: 0 | BF94: 0 | BG94: FALSE | BH94: FALSE | BK94: 0 | BO94: 0 | BP94: 0 | BQ94: 0 | BR94: 0 | BS94: N
AE95: =IF(ISBLANK($G95)," ",IF($D95="Z",#REF!,IF($G95=2,0,IF($G95=1,IF($AB95>$AD95,#REF!,0),IF($AB95<$AC95,#REF!,#REF!))))) ->  | AF95: =IF(ISBLANK($G95)," ",IF($D95="Z",#REF!+#REF!,IF($G95=2,#REF!+#REF!,IF($G95=1,IF($AB95>$AD95,#REF!+#REF!,#REF!+#REF!),IF($AB95<$AC95,#REF!+#REF!,#REF!+#REF!))))) ->  | AG95: 0 | AH95: 0 | AI95: 0 | AJ95: 0 | AK95: 0 | AL95: 4 | AM95: 23 | AN95: 0 | AO95: 0 | AP95: 1 | AQ95: 810 | AR95: 0 | AS95: 0 | AT95: 0 | AU95: 0 | AV95: 0 | AW95: 0 | AX95: 0 | AY95: 0 | AZ95: 0 | BA95: 0 | BB95: 0 | BC95: 0 | BD95: 0 | BE95: 0 | BF95: 0 | BG95: FALSE | BH95: FALSE | BK95: 0 | BO95: 0 | BP95: 0 | BQ95: 0 | BR95: 0 | BS95: N
AE96: =IF(ISBLANK($G96)," ",IF($D96="Z",#REF!,IF($G96=2,0,IF($G96=1,IF($AB96>$AD96,#REF!,0),IF($AB96<$AC96,#REF!,#REF!))))) ->  | AF96: =IF(ISBLANK($G96)," ",IF($D96="Z",#REF!+#REF!,IF($G96=2,#REF!+#REF!,IF($G96=1,IF($AB96>$AD96,#REF!+#REF!,#REF!+#REF!),IF($AB96<$AC96,#REF!+#REF!,#REF!+#REF!))))) ->  | AG96: 0 | AH96: 0 | AI96: 0 | AJ96: 0 | AK96: 0 | AL96: 4 | AM96: 23 | AN96: 0 | AO96: 0 | AP96: 1 | AQ96: 810 | AR96: 0 | AS96: 0 | AT96: 0 | AU96: 0 | AV96: 0 | AW96: 0 | AX96: 0 | AY96: 0 | AZ96: 0 | BA96: 0 | BB96: 0 | BC96: 0 | BD96: 0 | BE96: 0 | BF96: 0 | BG96: FALSE | BH96: FALSE | BK96: 0 | BO96: 0 | BP96: 0 | BQ96: 0 | BR96: 0 | BS96: N
AE97: =IF(ISBLANK($G97)," ",IF($D97="Z",#REF!,IF($G97=2,0,IF($G97=1,IF($AB97>$AD97,#REF!,0),IF($AB97<$AC97,#REF!,#REF!))))) ->  | AF97: =IF(ISBLANK($G97)," ",IF($D97="Z",#REF!+#REF!,IF($G97=2,#REF!+#REF!,IF($G97=1,IF($AB97>$AD97,#REF!+#REF!,#REF!+#REF!),IF($AB97<$AC97,#REF!+#REF!,#REF!+#REF!))))) ->  | AG97: 0 | AH97: 0 | AI97: 0 | AJ97: 0 | AK97: 0 | AL97: 4 | AM97: 23 | AN97: 0 | AO97: 0 | AP97: 1 | AQ97: 810 | AR97: 0 | AS97: 0 | AT97: 0 | AU97: 0 | AV97: 0 | AW97: 0 | AX97: 0 | AY97: 0 | AZ97: 0 | BA97: 0 | BB97: 0 | BC97: 0 | BD97: 0 | BE97: 0 | BF97: 0 | BG97: FALSE | BH97: FALSE | BK97: 0 | BO97: 0 | BP97: 0 | BQ97: 0 | BR97: 0 | BS97: N
AE98: =IF(ISBLANK($G98)," ",IF($D98="Z",#REF!,IF($G98=2,0,IF($G98=1,IF($AB98>$AD98,#REF!,0),IF($AB98<$AC98,#REF!,#REF!))))) ->  | AF98: =IF(ISBLANK($G98)," ",IF($D98="Z",#REF!+#REF!,IF($G98=2,#REF!+#REF!,IF($G98=1,IF($AB98>$AD98,#REF!+#REF!,#REF!+#REF!),IF($AB98<$AC98,#REF!+#REF!,#REF!+#REF!))))) ->  | AG98: 0 | AH98: 0 | AI98: 0 | AJ98: 0 | AK98: 0 | AL98: 4 | AM98: 23 | AN98: 0 | AO98: 0 | AP98: 1 | AQ98: 810 | AR98: 0 | AS98: 0 | AT98: 0 | AU98: 0 | AV98: 0 | AW98: 0 | AX98: 0 | AY98: 0 | AZ98: 0 | BA98: 0 | BB98: 0 | BC98: 0 | BD98: 0 | BE98: 0 | BF98: 0 | BG98: FALSE | BH98: FALSE | BK98: 0 | BO98: 0 | BP98: 0 | BQ98: 0 | BR98: 0 | BS98: N
AE99: =IF(ISBLANK($G99)," ",IF($D99="Z",#REF!,IF($G99=2,0,IF($G99=1,IF($AB99>$AD99,#REF!,0),IF($AB99<$AC99,#REF!,#REF!))))) ->  | AF99: =IF(ISBLANK($G99)," ",IF($D99="Z",#REF!+#REF!,IF($G99=2,#REF!+#REF!,IF($G99=1,IF($AB99>$AD99,#REF!+#REF!,#REF!+#REF!),IF($AB99<$AC99,#REF!+#REF!,#REF!+#REF!))))) ->  | AG99: 0 | AH99: 0 | AI99: 0 | AJ99: 0 | AK99: 0 | AL99: 4 | AM99: 23 | AN99: 0 | AO99: 0 | AP99: 1 | AQ99: 810 | AR99: 0 | AS99: 0 | AT99: 0 | AU99: 0 | AV99: 0 | AW99: 0 | AX99: 0 | AY99: 0 | AZ99: 0 | BA99: 0 | BB99: 0 | BC99: 0 | BD99: 0 | BE99: 0 | BF99: 0 | BG99: FALSE | BH99: FALSE | BK99: 0 | BO99: 0 | BP99: 0 | BQ99: 0 | BR99: 0 | BS99: N
AE100: =IF(ISBLANK($G100)," ",IF($D100="Z",#REF!,IF($G100=2,0,IF($G100=1,IF($AB100>$AD100,#REF!,0),IF($AB100<$AC100,#REF!,#REF!))))) ->  | AF100: =IF(ISBLANK($G100)," ",IF($D100="Z",#REF!+#REF!,IF($G100=2,#REF!+#REF!,IF($G100=1,IF($AB100>$AD100,#REF!+#REF!,#REF!+#REF!),IF($AB100<$AC100,#REF!+#REF!,#REF!+#REF!))))) ->  | AG100: 0 | AH100: 0 | AI100: 0 | AJ100: 0 | AK100: 0 | AL100: 4 | AM100: 23 | AN100: 0 | AO100: 0 | AP100: 1 | AQ100: 810 | AR100: 0 | AS100: 0 | AT100: 0 | AU100: 0 | AV100: 0 | AW100: 0 | AX100: 0 | AY100: 0 | AZ100: 0 | BA100: 0 | BB100: 0 | BC100: 0 | BD100: 0 | BE100: 0 | BF100: 0 | BG100: FALSE | BH100: FALSE | BK100: 0 | BO100: 0 | BP100: 0 | BQ100: 0 | BR100: 0 | BS100: N
AE101: =IF(ISBLANK($G101)," ",IF($D101="Z",#REF!,IF($G101=2,0,IF($G101=1,IF($AB101>$AD101,#REF!,0),IF($AB101<$AC101,#REF!,#REF!))))) ->  | AF101: =IF(ISBLANK($G101)," ",IF($D101="Z",#REF!+#REF!,IF($G101=2,#REF!+#REF!,IF($G101=1,IF($AB101>$AD101,#REF!+#REF!,#REF!+#REF!),IF($AB101<$AC101,#REF!+#REF!,#REF!+#REF!))))) ->  | AG101: 0 | AH101: 0 | AI101: 0 | AJ101: 0 | AK101: 0 | AL101: 4 | AM101: 23 | AN101: 0 | AO101: 0 | AP101: 1 | AQ101: 810 | AR101: 0 | AS101: 0 | AT101: 0 | AU101: 0 | AV101: 0 | AW101: 0 | AX101: 0 | AY101: 0 | AZ101: 0 | BA101: 0 | BB101: 0 | BC101: 0 | BD101: 0 | BE101: 0 | BF101: 0 | BG101: FALSE | BH101: FALSE | BK101: 0 | BO101: 0 | BP101: 0 | BQ101: 0 | BR101: 0 | BS101: N
AE102: =IF(ISBLANK($G102)," ",IF($D102="Z",#REF!,IF($G102=2,0,IF($G102=1,IF($AB102>$AD102,#REF!,0),IF($AB102<$AC102,#REF!,#REF!))))) ->  | AF102: =IF(ISBLANK($G102)," ",IF($D102="Z",#REF!+#REF!,IF($G102=2,#REF!+#REF!,IF($G102=1,IF($AB102>$AD102,#REF!+#REF!,#REF!+#REF!),IF($AB102<$AC102,#REF!+#REF!,#REF!+#REF!))))) ->  | AG102: 0 | AH102: 0 | AI102: 0 | AJ102: 0 | AK102: 0 | AL102: 4 | AM102: 23 | AN102: 0 | AO102: 0 | AP102: 1 | AQ102: 810 | AR102: 0 | AS102: 0 | AT102: 0 | AU102: 0 | AV102: 0 | AW102: 0 | AX102: 0 | AY102: 0 | AZ102: 0 | BA102: 0 | BB102: 0 | BC102: 0 | BD102: 0 | BE102: 0 | BF102: 0 | BG102: FALSE | BH102: FALSE | BK102: 0 | BO102: 0 | BP102: 0 | BQ102: 0 | BR102: 0 | BS102: N
AE103: =IF(ISBLANK($G103)," ",IF($D103="Z",#REF!,IF($G103=2,0,IF($G103=1,IF($AB103>$AD103,#REF!,0),IF($AB103<$AC103,#REF!,#REF!))))) ->  | AF103: =IF(ISBLANK($G103)," ",IF($D103="Z",#REF!+#REF!,IF($G103=2,#REF!+#REF!,IF($G103=1,IF($AB103>$AD103,#REF!+#REF!,#REF!+#REF!),IF($AB103<$AC103,#REF!+#REF!,#REF!+#REF!))))) ->  | AG103: 0 | AH103: 0 | AI103: 0 | AJ103: 0 | AK103: 0 | AL103: 4 | AM103: 23 | AN103: 0 | AO103: 0 | AP103: 1 | AQ103: 810 | AR103: 0 | AS103: 0 | AT103: 0 | AU103: 0 | AV103: 0 | AW103: 0 | AX103: 0 | AY103: 0 | AZ103: 0 | BA103: 0 | BB103: 0 | BC103: 0 | BD103: 0 | BE103: 0 | BF103: 0 | BG103: FALSE | BH103: FALSE | BK103: 0 | BO103: 0 | BP103: 0 | BQ103: 0 | BR103: 0 | BS103: N
AE104: =IF(ISBLANK($G104)," ",IF($D104="Z",#REF!,IF($G104=2,0,IF($G104=1,IF($AB104>$AD104,#REF!,0),IF($AB104<$AC104,#REF!,#REF!))))) ->  | AF104: =IF(ISBLANK($G104)," ",IF($D104="Z",#REF!+#REF!,IF($G104=2,#REF!+#REF!,IF($G104=1,IF($AB104>$AD104,#REF!+#REF!,#REF!+#REF!),IF($AB104<$AC104,#REF!+#REF!,#REF!+#REF!))))) ->  | AG104: 0 | AH104: 0 | AI104: 0 | AJ104: 0 | AK104: 0 | AL104: 4 | AM104: 23 | AN104: 0 | AO104: 0 | AP104: 1 | AQ104: 810 | AR104: 0 | AS104: 0 | AT104: 0 | AU104: 0 | AV104: 0 | AW104: 0 | AX104: 0 | AY104: 0 | AZ104: 0 | BA104: 0 | BB104: 0 | BC104: 0 | BD104: 0 | BE104: 0 | BF104: 0 | BG104: FALSE | BH104: FALSE | BK104: 0 | BO104: 0 | BP104: 0 | BQ104: 0 | BR104: 0 | BS104: N
AE105: =IF(ISBLANK($G105)," ",IF($D105="Z",#REF!,IF($G105=2,0,IF($G105=1,IF($AB105>$AD105,#REF!,0),IF($AB105<$AC105,#REF!,#REF!))))) ->  | AF105: =IF(ISBLANK($G105)," ",IF($D105="Z",#REF!+#REF!,IF($G105=2,#REF!+#REF!,IF($G105=1,IF($AB105>$AD105,#REF!+#REF!,#REF!+#REF!),IF($AB105<$AC105,#REF!+#REF!,#REF!+#REF!))))) ->  | AG105: 0 | AH105: 0 | AI105: 0 | AJ105: 0 | AK105: 0 | AL105: 4 | AM105: 23 | AN105: 0 | AO105: 0 | AP105: 1 | AQ105: 810 | AR105: 0 | AS105: 0 | AT105: 0 | AU105: 0 | AV105: 0 | AW105: 0 | AX105: 0 | AY105: 0 | AZ105: 0 | BA105: 0 | BB105: 0 | BC105: 0 | BD105: 0 | BE105: 0 | BF105: 0 | BG105: FALSE | BH105: FALSE | BK105: 0 | BO105: 0 | BP105: 0 | BQ105: 0 | BR105: 0 | BS105: N
AE106: =IF(ISBLANK($G106)," ",IF($D106="Z",#REF!,IF($G106=2,0,IF($G106=1,IF($AB106>$AD106,#REF!,0),IF($AB106<$AC106,#REF!,#REF!))))) ->  | AF106: =IF(ISBLANK($G106)," ",IF($D106="Z",#REF!+#REF!,IF($G106=2,#REF!+#REF!,IF($G106=1,IF($AB106>$AD106,#REF!+#REF!,#REF!+#REF!),IF($AB106<$AC106,#REF!+#REF!,#REF!+#REF!))))) ->  | AG106: 0 | AH106: 0 | AI106: 0 | AJ106: 0 | AK106: 0 | AL106: 4 | AM106: 23 | AN106: 0 | AO106: 0 | AP106: 1 | AQ106: 810 | AR106: 0 | AS106: 0 | AT106: 0 | AU106: 0 | AV106: 0 | AW106: 0 | AX106: 0 | AY106: 0 | AZ106: 0 | BA106: 0 | BB106: 0 | BC106: 0 | BD106: 0 | BE106: 0 | BF106: 0 | BG106: FALSE | BH106: FALSE | BK106: 0 | BO106: 0 | BP106: 0 | BQ106: 0 | BR106: 0 | BS106: N
AE107: =IF(ISBLANK($G107)," ",IF($D107="Z",#REF!,IF($G107=2,0,IF($G107=1,IF($AB107>$AD107,#REF!,0),IF($AB107<$AC107,#REF!,#REF!))))) ->  | AF107: =IF(ISBLANK($G107)," ",IF($D107="Z",#REF!+#REF!,IF($G107=2,#REF!+#REF!,IF($G107=1,IF($AB107>$AD107,#REF!+#REF!,#REF!+#REF!),IF($AB107<$AC107,#REF!+#REF!,#REF!+#REF!))))) ->  | AG107: 0 | AH107: 0 | AI107: 0 | AJ107: 0 | AK107: 0 | AL107: 4 | AM107: 23 | AN107: 0 | AO107: 0 | AP107: 1 | AQ107: 810 | AR107: 0 | AS107: 0 | AT107: 0 | AU107: 0 | AV107: 0 | AW107: 0 | AX107: 0 | AY107: 0 | AZ107: 0 | BA107: 0 | BB107: 0 | BC107: 0 | BD107: 0 | BE107: 0 | BF107: 0 | BG107: FALSE | BH107: FALSE | BK107: 0 | BO107: 0 | BP107: 0 | BQ107: 0 | BR107: 0 | BS107: N
AE108: =IF(ISBLANK($G108)," ",IF($D108="Z",#REF!,IF($G108=2,0,IF($G108=1,IF($AB108>$AD108,#REF!,0),IF($AB108<$AC108,#REF!,#REF!))))) ->  | AF108: =IF(ISBLANK($G108)," ",IF($D108="Z",#REF!+#REF!,IF($G108=2,#REF!+#REF!,IF($G108=1,IF($AB108>$AD108,#REF!+#REF!,#REF!+#REF!),IF($AB108<$AC108,#REF!+#REF!,#REF!+#REF!))))) ->  | AG108: 0 | AH108: 0 | AI108: 0 | AJ108: 0 | AK108: 0 | AL108: 4 | AM108: 23 | AN108: 0 | AO108: 0 | AP108: 1 | AQ108: 810 | AR108: 0 | AS108: 0 | AT108: 0 | AU108: 0 | AV108: 0 | AW108: 0 | AX108: 0 | AY108: 0 | AZ108: 0 | BA108: 0 | BB108: 0 | BC108: 0 | BD108: 0 | BE108: 0 | BF108: 0 | BG108: FALSE | BH108: FALSE | BK108: 0 | BO108: 0 | BP108: 0 | BQ108: 0 | BR108: 0 | BS108: N
AE109: =IF(ISBLANK($G109)," ",IF($D109="Z",#REF!,IF($G109=2,0,IF($G109=1,IF($AB109>$AD109,#REF!,0),IF($AB109<$AC109,#REF!,#REF!))))) ->  | AF109: =IF(ISBLANK($G109)," ",IF($D109="Z",#REF!+#REF!,IF($G109=2,#REF!+#REF!,IF($G109=1,IF($AB109>$AD109,#REF!+#REF!,#REF!+#REF!),IF($AB109<$AC109,#REF!+#REF!,#REF!+#REF!))))) ->  | AG109: 0 | AH109: 0 | AI109: 0 | AJ109: 0 | AK109: 0 | AL109: 4 | AM109: 23 | AN109: 0 | AO109: 0 | AP109: 1 | AQ109: 810 | AR109: 0 | AS109: 0 | AT109: 0 | AU109: 0 | AV109: 0 | AW109: 0 | AX109: 0 | AY109: 0 | AZ109: 0 | BA109: 0 | BB109: 0 | BC109: 0 | BD109: 0 | BE109: 0 | BF109: 0 | BG109: FALSE | BH109: FALSE | BK109: 0 | BO109: 0 | BP109: 0 | BQ109: 0 | BR109: 0 | BS109: N
AE110: =IF(ISBLANK($G110)," ",IF($D110="Z",#REF!,IF($G110=2,0,IF($G110=1,IF($AB110>$AD110,#REF!,0),IF($AB110<$AC110,#REF!,#REF!))))) ->  | AF110: =IF(ISBLANK($G110)," ",IF($D110="Z",#REF!+#REF!,IF($G110=2,#REF!+#REF!,IF($G110=1,IF($AB110>$AD110,#REF!+#REF!,#REF!+#REF!),IF($AB110<$AC110,#REF!+#REF!,#REF!+#REF!))))) ->  | AG110: 0 | AH110: 0 | AI110: 0 | AJ110: 0 | AK110: 0 | AL110: 4 | AM110: 23 | AN110: 0 | AO110: 0 | AP110: 1 | AQ110: 810 | AR110: 0 | AS110: 0 | AT110: 0 | AU110: 0 | AV110: 0 | AW110: 0 | AX110: 0 | AY110: 0 | AZ110: 0 | BA110: 0 | BB110: 0 | BC110: 0 | BD110: 0 | BE110: 0 | BF110: 0 | BG110: FALSE | BH110: FALSE | BK110: 0 | BO110: 0 | BP110: 0 | BQ110: 0 | BR110: 0 | BS110: N
AE111: =IF(ISBLANK($G111)," ",IF($D111="Z",#REF!,IF($G111=2,0,IF($G111=1,IF($AB111>$AD111,#REF!,0),IF($AB111<$AC111,#REF!,#REF!))))) ->  | AF111: =IF(ISBLANK($G111)," ",IF($D111="Z",#REF!+#REF!,IF($G111=2,#REF!+#REF!,IF($G111=1,IF($AB111>$AD111,#REF!+#REF!,#REF!+#REF!),IF($AB111<$AC111,#REF!+#REF!,#REF!+#REF!))))) ->  | AG111: 0 | AH111: 0 | AI111: 0 | AJ111: 0 | AK111: 0 | AL111: 4 | AM111: 23 | AN111: 0 | AO111: 0 | AP111: 1 | AQ111: 810 | AR111: 0 | AS111: 0 | AT111: 0 | AU111: 0 | AV111: 0 | AW111: 0 | AX111: 0 | AY111: 0 | AZ111: 0 | BA111: 0 | BB111: 0 | BC111: 0 | BD111: 0 | BE111: 0 | BF111: 0 | BG111: FALSE | BH111: FALSE | BK111: 0 | BO111: 0 | BP111: 0 | BQ111: 0 | BR111: 0 | BS111: N
AE112: =IF(ISBLANK($G112)," ",IF($D112="Z",#REF!,IF($G112=2,0,IF($G112=1,IF($AB112>$AD112,#REF!,0),IF($AB112<$AC112,#REF!,#REF!))))) ->  | AF112: =IF(ISBLANK($G112)," ",IF($D112="Z",#REF!+#REF!,IF($G112=2,#REF!+#REF!,IF($G112=1,IF($AB112>$AD112,#REF!+#REF!,#REF!+#REF!),IF($AB112<$AC112,#REF!+#REF!,#REF!+#REF!))))) ->  | AG112: 0 | AH112: 0 | AI112: 0 | AJ112: 0 | AK112: 0 | AL112: 4 | AM112: 23 | AN112: 0 | AO112: 0 | AP112: 1 | AQ112: 810 | AR112: 0 | AS112: 0 | AT112: 0 | AU112: 0 | AV112: 0 | AW112: 0 | AX112: 0 | AY112: 0 | AZ112: 0 | BA112: 0 | BB112: 0 | BC112: 0 | BD112: 0 | BE112: 0 | BF112: 0 | BG112: FALSE | BH112: FALSE | BK112: 0 | BO112: 0 | BP112: 0 | BQ112: 0 | BR112: 0 | BS112: N
AE113: =IF(ISBLANK($G113)," ",IF($D113="Z",#REF!,IF($G113=2,0,IF($G113=1,IF($AB113>$AD113,#REF!,0),IF($AB113<$AC113,#REF!,#REF!))))) ->  | AF113: =IF(ISBLANK($G113)," ",IF($D113="Z",#REF!+#REF!,IF($G113=2,#REF!+#REF!,IF($G113=1,IF($AB113>$AD113,#REF!+#REF!,#REF!+#REF!),IF($AB113<$AC113,#REF!+#REF!,#REF!+#REF!))))) ->  | AG113: 0 | AH113: 0 | AI113: 0 | AJ113: 0 | AK113: 0 | AL113: 4 | AM113: 23 | AN113: 0 | AO113: 0 | AP113: 1 | AQ113: 810 | AR113: 0 | AS113: 0 | AT113: 0 | AU113: 0 | AV113: 0 | AW113: 0 | AX113: 0 | AY113: 0 | AZ113: 0 | BA113: 0 | BB113: 0 | BC113: 0 | BD113: 0 | BE113: 0 | BF113: 0 | BG113: FALSE | BH113: FALSE | BK113: 0 | BO113: 0 | BP113: 0 | BQ113: 0 | BR113: 0 | BS113: N
AE114: =IF(ISBLANK($G114)," ",IF($D114="Z",#REF!,IF($G114=2,0,IF($G114=1,IF($AB114>$AD114,#REF!,0),IF($AB114<$AC114,#REF!,#REF!))))) ->  | AF114: =IF(ISBLANK($G114)," ",IF($D114="Z",#REF!+#REF!,IF($G114=2,#REF!+#REF!,IF($G114=1,IF($AB114>$AD114,#REF!+#REF!,#REF!+#REF!),IF($AB114<$AC114,#REF!+#REF!,#REF!+#REF!))))) ->  | AG114: 0 | AH114: 0 | AI114: 0 | AJ114: 0 | AK114: 0 | AL114: 4 | AM114: 23 | AN114: 0 | AO114: 0 | AP114: 1 | AQ114: 810 | AR114: 0 | AS114: 0 | AT114: 0 | AU114: 0 | AV114: 0 | AW114: 0 | AX114: 0 | AY114: 0 | AZ114: 0 | BA114: 0 | BB114: 0 | BC114: 0 | BD114: 0 | BE114: 0 | BF114: 0 | BG114: FALSE | BH114: FALSE | BK114: 0 | BO114: 0 | BP114: 0 | BQ114: 0 | BR114: 0 | BS114: N
AE115: =IF(ISBLANK($G115)," ",IF($D115="Z",#REF!,IF($G115=2,0,IF($G115=1,IF($AB115>$AD115,#REF!,0),IF($AB115<$AC115,#REF!,#REF!))))) ->  | AF115: =IF(ISBLANK($G115)," ",IF($D115="Z",#REF!+#REF!,IF($G115=2,#REF!+#REF!,IF($G115=1,IF($AB115>$AD115,#REF!+#REF!,#REF!+#REF!),IF($AB115<$AC115,#REF!+#REF!,#REF!+#REF!))))) ->  | AG115: 0 | AH115: 0 | AI115: 0 | AJ115: 0 | AK115: 0 | AL115: 4 | AM115: 23 | AN115: 0 | AO115: 0 | AP115: 1 | AQ115: 810 | AR115: 0 | AS115: 0 | AT115: 0 | AU115: 0 | AV115: 0 | AW115: 0 | AX115: 0 | AY115: 0 | AZ115: 0 | BA115: 0 | BB115: 0 | BC115: 0 | BD115: 0 | BE115: 0 | BF115: 0 | BG115: FALSE | BH115: FALSE | BK115: 0 | BO115: 0 | BP115: 0 | BQ115: 0 | BR115: 0 | BS115: N
AE116: =IF(ISBLANK($G116)," ",IF($D116="Z",#REF!,IF($G116=2,0,IF($G116=1,IF($AB116>$AD116,#REF!,0),IF($AB116<$AC116,#REF!,#REF!))))) ->  | AF116: =IF(ISBLANK($G116)," ",IF($D116="Z",#REF!+#REF!,IF($G116=2,#REF!+#REF!,IF($G116=1,IF($AB116>$AD116,#REF!+#REF!,#REF!+#REF!),IF($AB116<$AC116,#REF!+#REF!,#REF!+#REF!))))) ->  | AG116: 0 | AH116: 0 | AI116: 0 | AJ116: 0 | AK116: 0 | AL116: 4 | AM116: 23 | AN116: 0 | AO116: 0 | AP116: 1 | AQ116: 810 | AR116: 0 | AS116: 0 | AT116: 0 | AU116: 0 | AV116: 0 | AW116: 0 | AX116: 0 | AY116: 0 | AZ116: 0 | BA116: 0 | BB116: 0 | BC116: 0 | BD116: 0 | BE116: 0 | BF116: 0 | BG116: FALSE | BH116: FALSE | BK116: 0 | BO116: 0 | BP116: 0 | BQ116: 0 | BR116: 0 | BS116: N
AE117: =IF(ISBLANK($G117)," ",IF($D117="Z",#REF!,IF($G117=2,0,IF($G117=1,IF($AB117>$AD117,#REF!,0),IF($AB117<$AC117,#REF!,#REF!))))) ->  | AF117: =IF(ISBLANK($G117)," ",IF($D117="Z",#REF!+#REF!,IF($G117=2,#REF!+#REF!,IF($G117=1,IF($AB117>$AD117,#REF!+#REF!,#REF!+#REF!),IF($AB117<$AC117,#REF!+#REF!,#REF!+#REF!))))) ->  | AG117: 0 | AH117: 0 | AI117: 0 | AJ117: 0 | AK117: 0 | AL117: 4 | AM117: 23 | AN117: 0 | AO117: 0 | AP117: 1 | AQ117: 810 | AR117: 0 | AS117: 0 | AT117: 0 | AU117: 0 | AV117: 0 | AW117: 0 | AX117: 0 | AY117: 0 | AZ117: 0 | BA117: 0 | BB117: 0 | BC117: 0 | BD117: 0 | BE117: 0 | BF117: 0 | BG117: FALSE | BH117: FALSE | BK117: 0 | BO117: 0 | BP117: 0 | BQ117: 0 | BR117: 0 | BS117: N
AE118: =IF(ISBLANK($G118)," ",IF($D118="Z",#REF!,IF($G118=2,0,IF($G118=1,IF($AB118>$AD118,#REF!,0),IF($AB118<$AC118,#REF!,#REF!))))) ->  | AF118: =IF(ISBLANK($G118)," ",IF($D118="Z",#REF!+#REF!,IF($G118=2,#REF!+#REF!,IF($G118=1,IF($AB118>$AD118,#REF!+#REF!,#REF!+#REF!),IF($AB118<$AC118,#REF!+#REF!,#REF!+#REF!))))) ->  | AG118: 0 | AH118: 0 | AI118: 0 | AJ118: 0 | AK118: 0 | AL118: 4 | AM118: 23 | AN118: 0 | AO118: 0 | AP118: 1 | AQ118: 810 | AR118: 0 | AS118: 0 | AT118: 0 | AU118: 0 | AV118: 0 | AW118: 0 | AX118: 0 | AY118: 0 | AZ118: 0 | BA118: 0 | BB118: 0 | BC118: 0 | BD118: 0 | BE118: 0 | BF118: 0 | BG118: FALSE | BH118: FALSE | BK118: 0 | BO118: 0 | BP118: 0 | BQ118: 0 | BR118: 0 | BS118: N
AE119: =IF(ISBLANK($G119)," ",IF($D119="Z",#REF!,IF($G119=2,0,IF($G119=1,IF($AB119>$AD119,#REF!,0),IF($AB119<$AC119,#REF!,#REF!))))) ->  | AF119: =IF(ISBLANK($G119)," ",IF($D119="Z",#REF!+#REF!,IF($G119=2,#REF!+#REF!,IF($G119=1,IF($AB119>$AD119,#REF!+#REF!,#REF!+#REF!),IF($AB119<$AC119,#REF!+#REF!,#REF!+#REF!))))) ->  | AG119: 0 | AH119: 0 | AI119: 0 | AJ119: 0 | AK119: 0 | AL119: 4 | AM119: 23 | AN119: 0 | AO119: 0 | AP119: 1 | AQ119: 810 | AR119: 0 | AS119: 0 | AT119: 0 | AU119: 0 | AV119: 0 | AW119: 0 | AX119: 0 | AY119: 0 | AZ119: 0 | BA119: 0 | BB119: 0 | BC119: 0 | BD119: 0 | BE119: 0 | BF119: 0 | BG119: FALSE | BH119: FALSE | BK119: 0 | BO119: 0 | BP119: 0 | BQ119: 0 | BR119: 0 | BS119: N
AE120: =IF(ISBLANK($G120)," ",IF($D120="Z",#REF!,IF($G120=2,0,IF($G120=1,IF($AB120>$AD120,#REF!,0),IF($AB120<$AC120,#REF!,#REF!))))) ->  | AF120: =IF(ISBLANK($G120)," ",IF($D120="Z",#REF!+#REF!,IF($G120=2,#REF!+#REF!,IF($G120=1,IF($AB120>$AD120,#REF!+#REF!,#REF!+#REF!),IF($AB120<$AC120,#REF!+#REF!,#REF!+#REF!))))) ->  | AG120: 0 | AH120: 0 | AI120: 0 | AJ120: 0 | AK120: 0 | AL120: 4 | AM120: 23 | AN120: 0 | AO120: 0 | AP120: 1 | AQ120: 810 | AR120: 0 | AS120: 0 | AT120: 0 | AU120: 0 | AV120: 0 | AW120: 0 | AX120: 0 | AY120: 0 | AZ120: 0 | BA120: 0 | BB120: 0 | BC120: 0 | BD120: 0 | BE120: 0 | BF120: 0 | BG120: FALSE | BH120: FALSE | BK120: 0 | BO120: 0 | BP120: 0 | BQ120: 0 | BR120: 0 | BS120: N
AE121: =IF(ISBLANK($G121)," ",IF($D121="Z",#REF!,IF($G121=2,0,IF($G121=1,IF($AB121>$AD121,#REF!,0),IF($AB121<$AC121,#REF!,#REF!))))) ->  | AF121: =IF(ISBLANK($G121)," ",IF($D121="Z",#REF!+#REF!,IF($G121=2,#REF!+#REF!,IF($G121=1,IF($AB121>$AD121,#REF!+#REF!,#REF!+#REF!),IF($AB121<$AC121,#REF!+#REF!,#REF!+#REF!))))) ->  | AG121: 0 | AH121: 0 | AI121: 0 | AJ121: 0 | AK121: 0 | AL121: 4 | AM121: 23 | AN121: 0 | AO121: 0 | AP121: 1 | AQ121: 810 | AR121: 0 | AS121: 0 | AT121: 0 | AU121: 0 | AV121: 0 | AW121: 0 | AX121: 0 | AY121: 0 | AZ121: 0 | BA121: 0 | BB121: 0 | BC121: 0 | BD121: 0 | BE121: 0 | BF121: 0 | BG121: FALSE | BH121: FALSE | BK121: 0 | BO121: 0 | BP121: 0 | BQ121: 0 | BR121: 0 | BS121: N
AE122: =IF(ISBLANK($G122)," ",IF($D122="Z",#REF!,IF($G122=2,0,IF($G122=1,IF($AB122>$AD122,#REF!,0),IF($AB122<$AC122,#REF!,#REF!))))) ->  | AF122: =IF(ISBLANK($G122)," ",IF($D122="Z",#REF!+#REF!,IF($G122=2,#REF!+#REF!,IF($G122=1,IF($AB122>$AD122,#REF!+#REF!,#REF!+#REF!),IF($AB122<$AC122,#REF!+#REF!,#REF!+#REF!))))) ->  | AG122: 0 | AH122: 0 | AI122: 0 | AJ122: 0 | AK122: 0 | AL122: 4 | AM122: 23 | AN122: 0 | AO122: 0 | AP122: 1 | AQ122: 810 | AR122: 0 | AS122: 0 | AT122: 0 | AU122: 0 | AV122: 0 | AW122: 0 | AX122: 0 | AY122: 0 | AZ122: 0 | BA122: 0 | BB122: 0 | BC122: 0 | BD122: 0 | BE122: 0 | BF122: 0 | BG122: FALSE | BH122: FALSE | BK122: 0 | BO122: 0 | BP122: 0 | BQ122: 0 | BR122: 0 | BS122: N
AE123: =IF(ISBLANK($G123)," ",IF($D123="Z",#REF!,IF($G123=2,0,IF($G123=1,IF($AB123>$AD123,#REF!,0),IF($AB123<$AC123,#REF!,#REF!))))) ->  | AF123: =IF(ISBLANK($G123)," ",IF($D123="Z",#REF!+#REF!,IF($G123=2,#REF!+#REF!,IF($G123=1,IF($AB123>$AD123,#REF!+#REF!,#REF!+#REF!),IF($AB123<$AC123,#REF!+#REF!,#REF!+#REF!))))) ->  | AG123: 0 | AH123: 0 | AI123: 0 | AJ123: 0 | AK123: 0 | AL123: 4 | AM123: 23 | AN123: 0 | AO123: 0 | AP123: 1 | AQ123: 810 | AR123: 0 | AS123: 0 | AT123: 0 | AU123: 0 | AV123: 0 | AW123: 0 | AX123: 0 | AY123: 0 | AZ123: 0 | BA123: 0 | BB123: 0 | BC123: 0 | BD123: 0 | BE123: 0 | BF123: 0 | BG123: FALSE | BH123: FALSE | BK123: 0 | BO123: 0 | BP123: 0 | BQ123: 0 | BR123: 0 | BS123: N
AE124: =IF(ISBLANK($G124)," ",IF($D124="Z",#REF!,IF($G124=2,0,IF($G124=1,IF($AB124>$AD124,#REF!,0),IF($AB124<$AC124,#REF!,#REF!))))) ->  | AF124: =IF(ISBLANK($G124)," ",IF($D124="Z",#REF!+#REF!,IF($G124=2,#REF!+#REF!,IF($G124=1,IF($AB124>$AD124,#REF!+#REF!,#REF!+#REF!),IF($AB124<$AC124,#REF!+#REF!,#REF!+#REF!))))) ->  | AG124: 0 | AH124: 0 | AI124: 0 | AJ124: 0 | AK124: 0 | AL124: 4 | AM124: 23 | AN124: 0 | AO124: 0 | AP124: 1 | AQ124: 810 | AR124: 0 | AS124: 0 | AT124: 0 | AU124: 0 | AV124: 0 | AW124: 0 | AX124: 0 | AY124: 0 | AZ124: 0 | BA124: 0 | BB124: 0 | BC124: 0 | BD124: 0 | BE124: 0 | BF124: 0 | BG124: FALSE | BH124: FALSE | BK124: 0 | BO124: 0 | BP124: 0 | BQ124: 0 | BR124: 0 | BS124: N
AE125: =IF(ISBLANK($G125)," ",IF($D125="Z",#REF!,IF($G125=2,0,IF($G125=1,IF($AB125>$AD125,#REF!,0),IF($AB125<$AC125,#REF!,#REF!))))) ->  | AF125: =IF(ISBLANK($G125)," ",IF($D125="Z",#REF!+#REF!,IF($G125=2,#REF!+#REF!,IF($G125=1,IF($AB125>$AD125,#REF!+#REF!,#REF!+#REF!),IF($AB125<$AC125,#REF!+#REF!,#REF!+#REF!))))) ->  | AG125: 0 | AH125: 0 | AI125: 0 | AJ125: 0 | AK125: 0 | AL125: 4 | AM125: 23 | AN125: 0 | AO125: 0 | AP125: 1 | AQ125: 810 | AR125: 0 | AS125: 0 | AT125: 0 | AU125: 0 | AV125: 0 | AW125: 0 | AX125: 0 | AY125: 0 | AZ125: 0 | BA125: 0 | BB125: 0 | BC125: 0 | BD125: 0 | BE125: 0 | BF125: 0 | BG125: FALSE | BH125: FALSE | BK125: 0 | BO125: 0 | BP125: 0 | BQ125: 0 | BR125: 0 | BS125: N
AE126: =IF(ISBLANK($G126)," ",IF($D126="Z",#REF!,IF($G126=2,0,IF($G126=1,IF($AB126>$AD126,#REF!,0),IF($AB126<$AC126,#REF!,#REF!))))) ->  | AF126: =IF(ISBLANK($G126)," ",IF($D126="Z",#REF!+#REF!,IF($G126=2,#REF!+#REF!,IF($G126=1,IF($AB126>$AD126,#REF!+#REF!,#REF!+#REF!),IF($AB126<$AC126,#REF!+#REF!,#REF!+#REF!))))) ->  | AG126: 0 | AH126: 0 | AI126: 0 | AJ126: 0 | AK126: 0 | AL126: 4 | AM126: 23 | AN126: 0 | AO126: 0 | AP126: 1 | AQ126: 810 | AR126: 0 | AS126: 0 | AT126: 0 | AU126: 0 | AV126: 0 | AW126: 0 | AX126: 0 | AY126: 0 | AZ126: 0 | BA126: 0 | BB126: 0 | BC126: 0 | BD126: 0 | BE126: 0 | BF126: 0 | BG126: FALSE | BH126: FALSE | BK126: 0 | BO126: 0 | BP126: 0 | BQ126: 0 | BR126: 0 | BS126: N
AE127: =IF(ISBLANK($G127)," ",IF($D127="Z",#REF!,IF($G127=2,0,IF($G127=1,IF($AB127>$AD127,#REF!,0),IF($AB127<$AC127,#REF!,#REF!))))) ->  | AF127: =IF(ISBLANK($G127)," ",IF($D127="Z",#REF!+#REF!,IF($G127=2,#REF!+#REF!,IF($G127=1,IF($AB127>$AD127,#REF!+#REF!,#REF!+#REF!),IF($AB127<$AC127,#REF!+#REF!,#REF!+#REF!))))) ->  | AG127: 0 | AH127: 0 | AI127: 0 | AJ127: 0 | AK127: 0 | AL127: 4 | AM127: 23 | AN127: 0 | AO127: 0 | AP127: 1 | AQ127: 810 | AR127: 0 | AS127: 0 | AT127: 0 | AU127: 0 | AV127: 0 | AW127: 0 | AX127: 0 | AY127: 0 | AZ127: 0 | BA127: 0 | BB127: 0 | BC127: 0 | BD127: 0 | BE127: 0 | BF127: 0 | BG127: FALSE | BH127: FALSE | BK127: 0 | BO127: 0 | BP127: 0 | BQ127: 0 | BR127: 0 | BS127: N
AE128: =IF(ISBLANK($G128)," ",IF($D128="Z",#REF!,IF($G128=2,0,IF($G128=1,IF($AB128>$AD128,#REF!,0),IF($AB128<$AC128,#REF!,#REF!))))) ->  | AF128: =IF(ISBLANK($G128)," ",IF($D128="Z",#REF!+#REF!,IF($G128=2,#REF!+#REF!,IF($G128=1,IF($AB128>$AD128,#REF!+#REF!,#REF!+#REF!),IF($AB128<$AC128,#REF!+#REF!,#REF!+#REF!))))) ->  | AG128: 0 | AH128: 0 | AI128: 0 | AJ128: 0 | AK128: 0 | AL128: 4 | AM128: 23 | AN128: 0 | AO128: 0 | AP128: 1 | AQ128: 810 | AR128: 0 | AS128: 0 | AT128: 0 | AU128: 0 | AV128: 0 | AW128: 0 | AX128: 0 | AY128: 0 | AZ128: 0 | BA128: 0 | BB128: 0 | BC128: 0 | BD128: 0 | BE128: 0 | BF128: 0 | BG128: FALSE | BH128: FALSE | BK128: 0 | BO128: 0 | BP128: 0 | BQ128: 0 | BR128: 0 | BS128: N
AE129: =IF(ISBLANK($G129)," ",IF($D129="Z",#REF!,IF($G129=2,0,IF($G129=1,IF($AB129>$AD129,#REF!,0),IF($AB129<$AC129,#REF!,#REF!))))) ->  | AF129: =IF(ISBLANK($G129)," ",IF($D129="Z",#REF!+#REF!,IF($G129=2,#REF!+#REF!,IF($G129=1,IF($AB129>$AD129,#REF!+#REF!,#REF!+#REF!),IF($AB129<$AC129,#REF!+#REF!,#REF!+#REF!))))) ->  | AG129: 0 | AH129: 0 | AI129: 0 | AJ129: 0 | AK129: 0 | AL129: 4 | AM129: 23 | AN129: 0 | AO129: 0 | AP129: 1 | AQ129: 810 | AR129: 0 | AS129: 0 | AT129: 0 | AU129: 0 | AV129: 0 | AW129: 0 | AX129: 0 | AY129: 0 | AZ129: 0 | BA129: 0 | BB129: 0 | BC129: 0 | BD129: 0 | BE129: 0 | BF129: 0 | BG129: FALSE | BH129: FALSE | BK129: 0 | BO129: 0 | BP129: 0 | BQ129: 0 | BR129: 0 | BS129: N
AE130: =IF(ISBLANK($G130)," ",IF($D130="Z",#REF!,IF($G130=2,0,IF($G130=1,IF($AB130>$AD130,#REF!,0),IF($AB130<$AC130,#REF!,#REF!))))) ->  | AF130: =IF(ISBLANK($G130)," ",IF($D130="Z",#REF!+#REF!,IF($G130=2,#REF!+#REF!,IF($G130=1,IF($AB130>$AD130,#REF!+#REF!,#REF!+#REF!),IF($AB130<$AC130,#REF!+#REF!,#REF!+#REF!))))) ->  | AG130: 0 | AH130: 0 | AI130: 0 | AJ130: 0 | AK130: 0 | AL130: 4 | AM130: 23 | AN130: 0 | AO130: 0 | AP130: 1 | AQ130: 810 | AR130: 0 | AS130: 0 | AT130: 0 | AU130: 0 | AV130: 0 | AW130: 0 | AX130: 0 | AY130: 0 | AZ130: 0 | BA130: 0 | BB130: 0 | BC130: 0 | BD130: 0 | BE130: 0 | BF130: 0 | BG130: FALSE | BH130: FALSE | BK130: 0 | BO130: 0 | BP130: 0 | BQ130: 0 | BR130: 0 | BS130: N
AE131: =IF(ISBLANK($G131)," ",IF($D131="Z",#REF!,IF($G131=2,0,IF($G131=1,IF($AB131>$AD131,#REF!,0),IF($AB131<$AC131,#REF!,#REF!))))) ->  | AF131: =IF(ISBLANK($G131)," ",IF($D131="Z",#REF!+#REF!,IF($G131=2,#REF!+#REF!,IF($G131=1,IF($AB131>$AD131,#REF!+#REF!,#REF!+#REF!),IF($AB131<$AC131,#REF!+#REF!,#REF!+#REF!))))) ->  | AG131: 0 | AH131: 0 | AI131: 0 | AJ131: 0 | AK131: 0 | AL131: 4 | AM131: 23 | AN131: 0 | AO131: 0 | AP131: 1 | AQ131: 810 | AR131: 0 | AS131: 0 | AT131: 0 | AU131: 0 | AV131: 0 | AW131: 0 | AX131: 0 | AY131: 0 | AZ131: 0 | BA131: 0 | BB131: 0 | BC131: 0 | BD131: 0 | BE131: 0 | BF131: 0 | BG131: FALSE | BH131: FALSE | BK131: 0 | BO131: 0 | BP131: 0 | BQ131: 0 | BR131: 0 | BS131: N
AE132: =IF(ISBLANK($G132)," ",IF($D132="Z",#REF!,IF($G132=2,0,IF($G132=1,IF($AB132>$AD132,#REF!,0),IF($AB132<$AC132,#REF!,#REF!))))) ->  | AF132: =IF(ISBLANK($G132)," ",IF($D132="Z",#REF!+#REF!,IF($G132=2,#REF!+#REF!,IF($G132=1,IF($AB132>$AD132,#REF!+#REF!,#REF!+#REF!),IF($AB132<$AC132,#REF!+#REF!,#REF!+#REF!))))) ->  | AG132: 0 | AH132: 0 | AI132: 0 | AJ132: 0 | AK132: 0 | AL132: 4 | AM132: 23 | AN132: 0 | AO132: 0 | AP132: 1 | AQ132: 810 | AR132: 0 | AS132: 0 | AT132: 0 | AU132: 0 | AV132: 0 | AW132: 0 | AX132: 0 | AY132: 0 | AZ132: 0 | BA132: 0 | BB132: 0 | BC132: 0 | BD132: 0 | BE132: 0 | BF132: 0 | BG132: FALSE | BH132: FALSE | BK132: 0 | BO132: 0 | BP132: 0 | BQ132: 0 | BR132: 0 | BS132: N
AE133: =IF(ISBLANK($G133)," ",IF($D133="Z",#REF!,IF($G133=2,0,IF($G133=1,IF($AB133>$AD133,#REF!,0),IF($AB133<$AC133,#REF!,#REF!))))) ->  | AF133: =IF(ISBLANK($G133)," ",IF($D133="Z",#REF!+#REF!,IF($G133=2,#REF!+#REF!,IF($G133=1,IF($AB133>$AD133,#REF!+#REF!,#REF!+#REF!),IF($AB133<$AC133,#REF!+#REF!,#REF!+#REF!))))) ->  | AG133: 0 | AH133: 0 | AI133: 0 | AJ133: 0 | AK133: 0 | AL133: 4 | AM133: 23 | AN133: 0 | AO133: 0 | AP133: 1 | AQ133: 810 | AR133: 0 | AS133: 0 | AT133: 0 | AU133: 0 | AV133: 0 | AW133: 0 | AX133: 0 | AY133: 0 | AZ133: 0 | BA133: 0 | BB133: 0 | BC133: 0 | BD133: 0 | BE133: 0 | BF133: 0 | BG133: FALSE | BH133: FALSE | BK133: 0 | BO133: 0 | BP133: 0 | BQ133: 0 | BR133: 0 | BS133: N
AE134: =IF(ISBLANK($G134)," ",IF($D134="Z",#REF!,IF($G134=2,0,IF($G134=1,IF($AB134>$AD134,#REF!,0),IF($AB134<$AC134,#REF!,#REF!))))) ->  | AF134: =IF(ISBLANK($G134)," ",IF($D134="Z",#REF!+#REF!,IF($G134=2,#REF!+#REF!,IF($G134=1,IF($AB134>$AD134,#REF!+#REF!,#REF!+#REF!),IF($AB134<$AC134,#REF!+#REF!,#REF!+#REF!))))) ->  | AG134: 0 | AH134: 0 | AI134: 0 | AJ134: 0 | AK134: 0 | AL134: 4 | AM134: 23 | AN134: 0 | AO134: 0 | AP134: 1 | AQ134: 810 | AR134: 0 | AS134: 0 | AT134: 0 | AU134: 0 | AV134: 0 | AW134: 0 | AX134: 0 | AY134: 0 | AZ134: 0 | BA134: 0 | BB134: 0 | BC134: 0 | BD134: 0 | BE134: 0 | BF134: 0 | BG134: FALSE | BH134: FALSE | BK134: 0 | BO134: 0 | BP134: 0 | BQ134: 0 | BR134: 0 | BS134: N
AE135: =IF(ISBLANK($G135)," ",IF($D135="Z",#REF!,IF($G135=2,0,IF($G135=1,IF($AB135>$AD135,#REF!,0),IF($AB135<$AC135,#REF!,#REF!))))) ->  | AF135: =IF(ISBLANK($G135)," ",IF($D135="Z",#REF!+#REF!,IF($G135=2,#REF!+#REF!,IF($G135=1,IF($AB135>$AD135,#REF!+#REF!,#REF!+#REF!),IF($AB135<$AC135,#REF!+#REF!,#REF!+#REF!))))) ->  | AG135: 0 | AH135: 0 | AI135: 0 | AJ135: 0 | AK135: 0 | AL135: 4 | AM135: 23 | AN135: 0 | AO135: 0 | AP135: 1 | AQ135: 810 | AR135: 0 | AS135: 0 | AT135: 0 | AU135: 0 | AV135: 0 | AW135: 0 | AX135: 0 | AY135: 0 | AZ135: 0 | BA135: 0 | BB135: 0 | BC135: 0 | BD135: 0 | BE135: 0 | BF135: 0 | BG135: FALSE | BH135: FALSE | BK135: 0 | BO135: 0 | BP135: 0 | BQ135: 0 | BR135: 0 | BS135: N
AE136: =IF(ISBLANK($G136)," ",IF($D136="Z",#REF!,IF($G136=2,0,IF($G136=1,IF($AB136>$AD136,#REF!,0),IF($AB136<$AC136,#REF!,#REF!))))) ->  | AF136: =IF(ISBLANK($G136)," ",IF($D136="Z",#REF!+#REF!,IF($G136=2,#REF!+#REF!,IF($G136=1,IF($AB136>$AD136,#REF!+#REF!,#REF!+#REF!),IF($AB136<$AC136,#REF!+#REF!,#REF!+#REF!))))) ->  | AG136: 0 | AH136: 0 | AI136: 0 | AJ136: 0 | AK136: 0 | AL136: 4 | AM136: 23 | AN136: 0 | AO136: 0 | AP136: 1 | AQ136: 810 | AR136: 0 | AS136: 0 | AT136: 0 | AU136: 0 | AV136: 0 | AW136: 0 | AX136: 0 | AY136: 0 | AZ136: 0 | BA136: 0 | BB136: 0 | BC136: 0 | BD136: 0 | BE136: 0 | BF136: 0 | BG136: FALSE | BH136: FALSE | BK136: 0 | BO136: 0 | BP136: 0 | BQ136: 0 | BR136: 0 | BS136: N
AE137: =IF(ISBLANK($G137)," ",IF($D137="Z",#REF!,IF($G137=2,0,IF($G137=1,IF($AB137>$AD137,#REF!,0),IF($AB137<$AC137,#REF!,#REF!))))) ->  | AF137: =IF(ISBLANK($G137)," ",IF($D137="Z",#REF!+#REF!,IF($G137=2,#REF!+#REF!,IF($G137=1,IF($AB137>$AD137,#REF!+#REF!,#REF!+#REF!),IF($AB137<$AC137,#REF!+#REF!,#REF!+#REF!))))) ->  | AG137: 0 | AH137: 0 | AI137: 0 | AJ137: 0 | AK137: 0 | AL137: 4 | AM137: 23 | AN137: 0 | AO137: 0 | AP137: 1 | AQ137: 810 | AR137: 0 | AS137: 0 | AT137: 0 | AU137: 0 | AV137: 0 | AW137: 0 | AX137: 0 | AY137: 0 | AZ137: 0 | BA137: 0 | BB137: 0 | BC137: 0 | BD137: 0 | BE137: 0 | BF137: 0 | BG137: FALSE | BH137: FALSE | BK137: 0 | BO137: 0 | BP137: 0 | BQ137: 0 | BR137: 0 | BS137: N
AE138: =IF(ISBLANK($G138)," ",IF($D138="Z",#REF!,IF($G138=2,0,IF($G138=1,IF($AB138>$AD138,#REF!,0),IF($AB138<$AC138,#REF!,#REF!))))) ->  | AF138: =IF(ISBLANK($G138)," ",IF($D138="Z",#REF!+#REF!,IF($G138=2,#REF!+#REF!,IF($G138=1,IF($AB138>$AD138,#REF!+#REF!,#REF!+#REF!),IF($AB138<$AC138,#REF!+#REF!,#REF!+#REF!))))) ->  | AG138: 0 | AH138: 0 | AI138: 0 | AJ138: 0 | AK138: 0 | AL138: 4 | AM138: 23 | AN138: 0 | AO138: 0 | AP138: 1 | AQ138: 810 | AR138: 0 | AS138: 0 | AT138: 0 | AU138: 0 | AV138: 0 | AW138: 0 | AX138: 0 | AY138: 0 | AZ138: 0 | BA138: 0 | BB138: 0 | BC138: 0 | BD138: 0 | BE138: 0 | BF138: 0 | BG138: FALSE | BH138: FALSE | BK138: 0 | BO138: 0 | BP138: 0 | BQ138: 0 | BR138: 0 | BS138: N
AE139: =IF(ISBLANK($G139)," ",IF($D139="Z",#REF!,IF($G139=2,0,IF($G139=1,IF($AB139>$AD139,#REF!,0),IF($AB139<$AC139,#REF!,#REF!))))) ->  | AF139: =IF(ISBLANK($G139)," ",IF($D139="Z",#REF!+#REF!,IF($G139=2,#REF!+#REF!,IF($G139=1,IF($AB139>$AD139,#REF!+#REF!,#REF!+#REF!),IF($AB139<$AC139,#REF!+#REF!,#REF!+#REF!))))) ->  | AG139: 0 | AH139: 0 | AI139: 0 | AJ139: 0 | AK139: 0 | AL139: 4 | AM139: 23 | AN139: 0 | AO139: 0 | AP139: 1 | AQ139: 810 | AR139: 0 | AS139: 0 | AT139: 0 | AU139: 0 | AV139: 0 | AW139: 0 | AX139: 0 | AY139: 0 | AZ139: 0 | BA139: 0 | BB139: 0 | BC139: 0 | BD139: 0 | BE139: 0 | BF139: 0 | BG139: FALSE | BH139: FALSE | BK139: 0 | BO139: 0 | BP139: 0 | BQ139: 0 | BR139: 0 | BS139: N
AE140: =IF(ISBLANK($G140)," ",IF($D140="Z",#REF!,IF($G140=2,0,IF($G140=1,IF($AB140>$AD140,#REF!,0),IF($AB140<$AC140,#REF!,#REF!))))) ->  | AF140: =IF(ISBLANK($G140)," ",IF($D140="Z",#REF!+#REF!,IF($G140=2,#REF!+#REF!,IF($G140=1,IF($AB140>$AD140,#REF!+#REF!,#REF!+#REF!),IF($AB140<$AC140,#REF!+#REF!,#REF!+#REF!))))) ->  | AG140: 0 | AH140: 0 | AI140: 0 | AJ140: 0 | AK140: 0 | AL140: 4 | AM140: 23 | AN140: 0 | AO140: 0 | AP140: 1 | AQ140: 810 | AR140: 0 | AS140: 0 | AT140: 0 | AU140: 0 | AV140: 0 | AW140: 0 | AX140: 0 | AY140: 0 | AZ140: 0 | BA140: 0 | BB140: 0 | BC140: 0 | BD140: 0 | BE140: 0 | BF140: 0 | BG140: FALSE | BH140: FALSE | BK140: 0 | BO140: 0 | BP140: 0 | BQ140: 0 | BR140: 0 | BS140: N
AE141: =IF(ISBLANK($G141)," ",IF($D141="Z",#REF!,IF($G141=2,0,IF($G141=1,IF($AB141>$AD141,#REF!,0),IF($AB141<$AC141,#REF!,#REF!))))) ->  | AF141: =IF(ISBLANK($G141)," ",IF($D141="Z",#REF!+#REF!,IF($G141=2,#REF!+#REF!,IF($G141=1,IF($AB141>$AD141,#REF!+#REF!,#REF!+#REF!),IF($AB141<$AC141,#REF!+#REF!,#REF!+#REF!))))) ->  | AG141: 0 | AH141: 0 | AI141: 0 | AJ141: 0 | AK141: 0 | AL141: 4 | AM141: 23 | AN141: 0 | AO141: 0 | AP141: 1 | AQ141: 810 | AR141: 0 | AS141: 0 | AT141: 0 | AU141: 0 | AV141: 0 | AW141: 0 | AX141: 0 | AY141: 0 | AZ141: 0 | BA141: 0 | BB141: 0 | BC141: 0 | BD141: 0 | BE141: 0 | BF141: 0 | BG141: FALSE | BH141: FALSE | BK141: 0 | BO141: 0 | BP141: 0 | BQ141: 0 | BR141: 0 | BS141: N
AE142: =IF(ISBLANK($G142)," ",IF($D142="Z",#REF!,IF($G142=2,0,IF($G142=1,IF($AB142>$AD142,#REF!,0),IF($AB142<$AC142,#REF!,#REF!))))) ->  | AF142: =IF(ISBLANK($G142)," ",IF($D142="Z",#REF!+#REF!,IF($G142=2,#REF!+#REF!,IF($G142=1,IF($AB142>$AD142,#REF!+#REF!,#REF!+#REF!),IF($AB142<$AC142,#REF!+#REF!,#REF!+#REF!))))) ->  | AG142: 0 | AH142: 0 | AI142: 0 | AJ142: 0 | AK142: 0 | AL142: 4 | AM142: 23 | AN142: 0 | AO142: 0 | AP142: 1 | AQ142: 810 | AR142: 0 | AS142: 0 | AT142: 0 | AU142: 0 | AV142: 0 | AW142: 0 | AX142: 0 | AY142: 0 | AZ142: 0 | BA142: 0 | BB142: 0 | BC142: 0 | BD142: 0 | BE142: 0 | BF142: 0 | BG142: FALSE | BH142: FALSE | BK142: 0 | BO142: 0 | BP142: 0 | BQ142: 0 | BR142: 0 | BS142: N
AE143: =IF(ISBLANK($G143)," ",IF($D143="Z",#REF!,IF($G143=2,0,IF($G143=1,IF($AB143>$AD143,#REF!,0),IF($AB143<$AC143,#REF!,#REF!))))) ->  | AF143: =IF(ISBLANK($G143)," ",IF($D143="Z",#REF!+#REF!,IF($G143=2,#REF!+#REF!,IF($G143=1,IF($AB143>$AD143,#REF!+#REF!,#REF!+#REF!),IF($AB143<$AC143,#REF!+#REF!,#REF!+#REF!))))) ->  | AG143: 0 | AH143: 0 | AI143: 0 | AJ143: 0 | AK143: 0 | AL143: 4 | AM143: 23 | AN143: 0 | AO143: 0 | AP143: 1 | AQ143: 810 | AR143: 0 | AS143: 0 | AT143: 0 | AU143: 0 | AV143: 0 | AW143: 0 | AX143: 0 | AY143: 0 | AZ143: 0 | BA143: 0 | BB143: 0 | BC143: 0 | BD143: 0 | BE143: 0 | BF143: 0 | BG143: FALSE | BH143: FALSE | BK143: 0 | BO143: 0 | BP143: 0 | BQ143: 0 | BR143: 0 | BS143: N
X144: =IF(ISBLANK(A144)," ",MOD(SUM((LEFT(A144,1)*8)+(MID(A144,2,1)*7)+(MID(A144,3,1)*6)+(MID(A144,4,1)*5)+(MID(A144,5,1)*4)+(MID(A144,6,1)*3)+(MID(A144,7,1)*2)),11)) ->  | Y144: =IF(ISBLANK(A144)," ",IF(A144<10000000+OR(A144>99999999),"X",IF(X144=0,0,IF(X144=1,"X",11-X144)))) ->  | Z144: =IF(ISBLANK(A144)," ",IF(ISERROR(VLOOKUP(A144,InvalidNINum,1,FALSE)),SUM(CONCATENATE(LEFT(A144,7),Y144)),VLOOKUP(A144,InvalidNINum,1,FALSE))) ->  | AA144: =IF(ISBLANK($F144)," ",IF(AND($E144="M",$F144=$C$10),"M","W")) ->  | AB144: =IF(ISBLANK($H144)," ",IF($E144="M",IF($F144=$C$10,IF($H144>$C$12,$C$12,ROUNDDOWN($H144,0)),IF($H144>($F144*$C$11),$F144*$C$11,ROUNDDOWN($H144,0))),IF($H144>($F144*$C$11),$F144*$C$11,ROUNDDOWN($H144,0)))) ->  | AC144: =IF($AA144="M",(VLOOKUP($C$6,$V$16:$AF$20,14)*52)/12,VLOOKUP($C$6,$V$16:$AF$20,14)*$F144) ->  | AD144: =IF($AA144="M",(VLOOKUP($C$6,$V$16:$AF$20,15)*52)/12,VLOOKUP($C$6,$V$16:$AF$20,15)*$F144) ->  | AE144: =IF(ISBLANK($G144)," ",IF($D144="Z",#REF!,IF($G144=2,0,IF($G144=1,IF($AB144>$AD144,#REF!,0),IF($AB144<$AC144,#REF!,#REF!))))) ->  | AF144: =IF(ISBLANK($G144)," ",IF($D144="Z",#REF!+#REF!,IF($G144=2,#REF!+#REF!,IF($G144=1,IF($AB144>$AD144,#REF!+#REF!,#REF!+#REF!),IF($AB144<$AC144,#REF!+#REF!,#REF!+#REF!))))) ->  | AG144: 0 | AH144: 0 | AI144: 0 | AJ144: 0 | AK144: 0 | AL144: 4 | AM144: 23 | AN144: =IF(AM144>Lower_Age_Limit,0,1) -> 0 | AO144: =IF(NOT(G144="R"),0,IF(AM144>=RetirementAge,0,1)) -> 0 | AP144: 1 | AQ144: =+HLOOKUP($AH$10,WeeklyIWCeiling,AP144+1) -> 810 | AR144: =IF(AA144="M",HLOOKUP($AH$10,MonthlyIWCeiling,AP144+1),HLOOKUP($AH$10,WeeklyIWCeiling,AP144+1)*F144) -> 0 | AS144: 0 | AT144: =IF(E144="M",IF(H144<=AR144,0,1),IF(AS144<=AQ144,0,1)) -> 0 | AU144: =IF(F144>$C$10,1,0) -> 0 | AV144: 0 | AW144: =+IF(OR(AND(E144="M",AV144<60),AND(E144="W",AS144<60)),1,0) -> 0 | AX144: =IF(OR(ISBLANK(A144),ISBLANK(B144),ISBLANK(C144),ISBLANK(D144),ISBLANK(E144)),0,IF(AND(F144>0,F144<6,H144>0),IF(AW144=1,HLOOKUP($AH$10,EeContRatesU60,AP144+1,TRUE),HLOOKUP($AH$10,EeContRatesO60,AP144+1,TRUE)))) -> 0 | AY144: 0 | AZ144: =IF(OR(ISBLANK(A144),ISBLANK(B144),ISBLANK(C144),ISBLANK(D144),ISBLANK(E144)),0,IF(AND(F144>0,F144<6,H144>0),IF(AW144=1,HLOOKUP($AH$10,TotalContRatesU60,AP144+1,TRUE),HLOOKUP($AH$10,TotalContRatesO60,AP144+1,TRUE)))) -> 0 | BA144: 0 | BB144: 0 | BC144: 0 | BD144: 0 | BE144: 0 | BF144: 0 | BG144: FALSE | BH144: FALSE | BK144: 0 | BO144: 0 | BP144: 0 | BQ144: 0 | BR144: 0 | BS144: N
I145: =IF(ISBLANK($H145)," ",BO145) ->  | J145: =IF(ISBLANK($H145)," ",BP145) ->  | K145: =IF((ISBLANK($H145))," ",BQ145) ->  | W145: =IF(ISBLANK($A145)," ",A145) ->  | AE145: =IF(ISBLANK($G145)," ",IF($D145="Z",#REF!,IF($G145=2,0,IF($G145=1,IF($AB145>$AD145,#REF!,0),IF($AB145<$AC145,#REF!,#REF!))))) ->  | AF145: =IF(ISBLANK($G145)," ",IF($D145="Z",#REF!+#REF!,IF($G145=2,#REF!+#REF!,IF($G145=1,IF($AB145>$AD145,#REF!+#REF!,#REF!+#REF!),IF($AB145<$AC145,#REF!+#REF!,#REF!+#REF!))))) ->  | AG145: 0 | AH145: 0 | AI145: 0 | AJ145: 0 | AK145: 0 | AL145: 4 | AM145: =IF(INT((($AH$11-(1900+AI145))*48 +($AH$12-AL145))/48)>90,INT((($AH$11-(2000+AI145))*48 +($AH$12-AL145))/48),INT((($AH$11-(1900+AI145))*48 +($AH$12-AL145))/48)) -> 23 | AN145: 0 | AO145: 0 | AP145: =IF(AND($D145="Z",$AL$10<=$AH$10,$AH$10<$AL$11,$AL$12<AM145,AM145<=$AL$13),7,IF(AM145>=70,IF($G145="R",6,5),IF($G145="R",IF(AM145>=65,4,2),IF($AM145>=65,3,1)))) -> 1 | AQ145: 810 | AR145: 0 | AS145: =IF(AND(F145>0,H145>0),H145/F145,0) -> 0 | AT145: 0 | AU145: 0 | AV145: =+AR145*12/52 -> 0 | AW145: 0 | AX145: 0 | AY145: =+AZ145-AX145 -> 0 | AZ145: 0 | BA145: =IF(OR(ISBLANK(A145),ISBLANK(B145),ISBLANK(C145),ISBLANK(D145),ISBLANK(E145)),0,IF(AND(F145>0,F145<6,H145>0),ROUND(H145*AX145,2))) -> 0 | BB145: =IF(OR(ISBLANK(A145),ISBLANK(B145),ISBLANK(C145),ISBLANK(D145),ISBLANK(E145)),0,IF(AND(F145>0,F145<6,H145>0),ROUND(H145*AY145,2))) -> 0 | BC145: =+BA145+BB145 -> 0 | BD145: =IF(AND(AND(F145>0,H145>0,ISTEXT(D145),ISTEXT(E145)),ISBLANK(A145)),"Input NI#",IF(AND(F145>0,H145>0,ISTEXT(D145),ISTEXT(E145),OR(ISBLANK(B145),ISBLANK(C145))),"Input name",IF(AND(A145>0,OR(AK145=0,AK145=9)),"Check NI#",IF(AT145=0,BA145,"Check wages")))) -> 0 | BE145: =IF(ISTEXT(BD145),BD145,BB145) -> 0 | BF145: =IF(ISTEXT(BD145),BD145,BC145) -> 0 | BG145: =IF(AND(OR(ISTEXT(B145),ISTEXT(C145),ISTEXT(D145),ISTEXT(E145),F145>0,H145>0),ISBLANK(A145)),1,IF(A145>0,IF(ISBLANK(B145),1,IF(ISBLANK(C145),1,IF(ISBLANK(D145),1,IF(ISBLANK(E145),1,IF(F145=0,1,IF(H145=0,1," ")))))))) -> FALSE | BH145: =IF(AND(OR(ISTEXT(B145),ISTEXT(C145),ISTEXT(D145),ISTEXT(E145),F145>0,H145>0),ISBLANK(A145)),"Input "&A$15,IF(A145>0,IF(ISBLANK(B145),"Input "&B$15,IF(ISBLANK(C145),"Input "&C$15,IF(ISBLANK(D145),"Enter "&D$15,IF(ISBLANK(E145),"Select "&E$15,IF(F145=0,"Input "&F$15,IF(H145=0,"Input "&H$15," ")))))))) -> FALSE | BI145: =IF(OR(AT145=1,AU145=1,AN145=1,AO145=1),1,"") ->  | BJ145: =IF(AT145=1,"Check wages",IF(AU145=1,"Check number of weeks",IF(AN145=1,"Registrant under age 16",IF(AO145=1,"Ineligible for Retirement","")))) ->  | BK145: =IF(AND($D145="Z",OR($AL$10>$AH$10,$AH$10>$AL$11,$AL$12>AM145,AM145>$AL$13)),1,0) -> 0 | BL145: =IF(BK145=1,"Change Cont. type to 'P'","") ->  | BO145: 0 | BP145: 0 | BQ145: 0 | BR145: =IF(OR(BG145=1,BI145=1,BK145=1,BM145=1),1,0) -> 0 | BS145: =IF(OR(ISBLANK(A145),BR145=1),"N","Y") -> N
AE146: =IF(ISBLANK($G146)," ",IF($D146="Z",#REF!,IF($G146=2,0,IF($G146=1,IF($AB146>$AD146,#REF!,0),IF($AB146<$AC146,#REF!,#REF!))))) ->  | AF146: =IF(ISBLANK($G146)," ",IF($D146="Z",#REF!+#REF!,IF($G146=2,#REF!+#REF!,IF($G146=1,IF($AB146>$AD146,#REF!+#REF!,#REF!+#REF!),IF($AB146<$AC146,#REF!+#REF!,#REF!+#REF!))))) ->  | AG146: =INT(A146/10) -> 0 | AH146: =INT(A146/1000) -> 0 | AI146: =AG146-AH146*100 -> 0 | AJ146: =INT(AH146/10) -> 0 | AK146: =AH146-10*AJ146 -> 0 | AL146: =IF(MOD(AH146-AJ146*10,4)=0,4,MOD(AH146-AJ146*10,4)) -> 4 | AM146: 23 | AN146: 0 | AO146: 0 | AP146: 1 | AQ146: 810 | AR146: 0 | AS146: 0 | AT146: 0 | AU146: 0 | AV146: 0 | AW146: 0 | AX146: 0 | AY146: 0 | AZ146: 0 | BA146: 0 | BB146: 0 | BC146: 0 | BD146: 0 | BE146: 0 | BF146: 0 | BG146: FALSE | BH146: FALSE | BK146: 0 | BO146: =IF($BG146=1,$BH146,IF($BI146=1,$BJ146,IF($BK146=1,$BL146,IF($BM146=1,$BN146,BA146)))) -> 0 | BP146: =IF($BG146=1,$BH146,IF($BI146=1,$BJ146,IF($BK146=1,$BL146,IF($BM146=1,$BN146,BB146)))) -> 0 | BQ146: =IF($BG146=1,$BH146,IF($BI146=1,$BJ146,IF($BK146=1,$BL146,IF($BM146=1,$BN146,BC146)))) -> 0 | BR146: 0 | BS146: N
AE147: =IF(ISBLANK($G147)," ",IF($D147="Z",#REF!,IF($G147=2,0,IF($G147=1,IF($AB147>$AD147,#REF!,0),IF($AB147<$AC147,#REF!,#REF!))))) ->  | AF147: =IF(ISBLANK($G147)," ",IF($D147="Z",#REF!+#REF!,IF($G147=2,#REF!+#REF!,IF($G147=1,IF($AB147>$AD147,#REF!+#REF!,#REF!+#REF!),IF($AB147<$AC147,#REF!+#REF!,#REF!+#REF!))))) ->  | AG147: 0 | AH147: 0 | AI147: 0 | AJ147: 0 | AK147: 0 | AL147: 4 | AM147: 23 | AN147: 0 | AO147: 0 | AP147: 1 | AQ147: 810 | AR147: 0 | AS147: 0 | AT147: 0 | AU147: 0 | AV147: 0 | AW147: 0 | AX147: 0 | AY147: 0 | AZ147: 0 | BA147: 0 | BB147: 0 | BC147: 0 | BD147: 0 | BE147: 0 | BF147: 0 | BG147: FALSE | BH147: FALSE | BK147: 0 | BM147: =IF(ISERROR(Z147),1,IF(NOT(W147=Z147),1,"")) ->  | BN147: =IF(BM147=1,"Check Employee NI#","") ->  | BO147: 0 | BP147: 0 | BQ147: 0 | BR147: 0 | BS147: N
AE148: =IF(ISBLANK($G148)," ",IF($D148="Z",#REF!,IF($G148=2,0,IF($G148=1,IF($AB148>$AD148,#REF!,0),IF($AB148<$AC148,#REF!,#REF!))))) ->  | AF148: =IF(ISBLANK($G148)," ",IF($D148="Z",#REF!+#REF!,IF($G148=2,#REF!+#REF!,IF($G148=1,IF($AB148>$AD148,#REF!+#REF!,#REF!+#REF!),IF($AB148<$AC148,#REF!+#REF!,#REF!+#REF!))))) ->  | AG148: 0 | AH148: 0 | AI148: 0 | AJ148: 0 | AK148: 0 | AL148: 4 | AM148: 23 | AN148: 0 | AO148: 0 | AP148: 1 | AQ148: 810 | AR148: 0 | AS148: 0 | AT148: 0 | AU148: 0 | AV148: 0 | AW148: 0 | AX148: 0 | AY148: 0 | AZ148: 0 | BA148: 0 | BB148: 0 | BC148: 0 | BD148: 0 | BE148: 0 | BF148: 0 | BG148: FALSE | BH148: FALSE | BK148: 0 | BO148: 0 | BP148: 0 | BQ148: 0 | BR148: 0 | BS148: N
AE149: =IF(ISBLANK($G149)," ",IF($D149="Z",#REF!,IF($G149=2,0,IF($G149=1,IF($AB149>$AD149,#REF!,0),IF($AB149<$AC149,#REF!,#REF!))))) ->  | AF149: =IF(ISBLANK($G149)," ",IF($D149="Z",#REF!+#REF!,IF($G149=2,#REF!+#REF!,IF($G149=1,IF($AB149>$AD149,#REF!+#REF!,#REF!+#REF!),IF($AB149<$AC149,#REF!+#REF!,#REF!+#REF!))))) ->  | AG149: 0 | AH149: 0 | AI149: 0 | AJ149: 0 | AK149: 0 | AL149: 4 | AM149: 23 | AN149: 0 | AO149: 0 | AP149: 1 | AQ149: 810 | AR149: 0 | AS149: 0 | AT149: 0 | AU149: 0 | AV149: 0 | AW149: 0 | AX149: 0 | AY149: 0 | AZ149: 0 | BA149: 0 | BB149: 0 | BC149: 0 | BD149: 0 | BE149: 0 | BF149: 0 | BG149: FALSE | BH149: FALSE | BK149: 0 | BO149: 0 | BP149: 0 | BQ149: 0 | BR149: 0 | BS149: N
AE150: =IF(ISBLANK($G150)," ",IF($D150="Z",#REF!,IF($G150=2,0,IF($G150=1,IF($AB150>$AD150,#REF!,0),IF($AB150<$AC150,#REF!,#REF!))))) ->  | AF150: =IF(ISBLANK($G150)," ",IF($D150="Z",#REF!+#REF!,IF($G150=2,#REF!+#REF!,IF($G150=1,IF($AB150>$AD150,#REF!+#REF!,#REF!+#REF!),IF($AB150<$AC150,#REF!+#REF!,#REF!+#REF!))))) ->  | AG150: 0 | AH150: 0 | AI150: 0 | AJ150: 0 | AK150: 0 | AL150: 4 | AM150: 23 | AN150: 0 | AO150: 0 | AP150: 1 | AQ150: 810 | AR150: 0 | AS150: 0 | AT150: 0 | AU150: 0 | AV150: 0 | AW150: 0 | AX150: 0 | AY150: 0 | AZ150: 0 | BA150: 0 | BB150: 0 | BC150: 0 | BD150: 0 | BE150: 0 | BF150: 0 | BG150: FALSE | BH150: FALSE | BK150: 0 | BO150: 0 | BP150: 0 | BQ150: 0 | BR150: 0 | BS150: N
AE151: =IF(ISBLANK($G151)," ",IF($D151="Z",#REF!,IF($G151=2,0,IF($G151=1,IF($AB151>$AD151,#REF!,0),IF($AB151<$AC151,#REF!,#REF!))))) ->  | AF151: =IF(ISBLANK($G151)," ",IF($D151="Z",#REF!+#REF!,IF($G151=2,#REF!+#REF!,IF($G151=1,IF($AB151>$AD151,#REF!+#REF!,#REF!+#REF!),IF($AB151<$AC151,#REF!+#REF!,#REF!+#REF!))))) ->  | AG151: 0 | AH151: 0 | AI151: 0 | AJ151: 0 | AK151: 0 | AL151: 4 | AM151: 23 | AN151: 0 | AO151: 0 | AP151: 1 | AQ151: 810 | AR151: 0 | AS151: 0 | AT151: 0 | AU151: 0 | AV151: 0 | AW151: 0 | AX151: 0 | AY151: 0 | AZ151: 0 | BA151: 0 | BB151: 0 | BC151: 0 | BD151: 0 | BE151: 0 | BF151: 0 | BG151: FALSE | BH151: FALSE | BK151: 0 | BO151: 0 | BP151: 0 | BQ151: 0 | BR151: 0 | BS151: N
AE152: =IF(ISBLANK($G152)," ",IF($D152="Z",#REF!,IF($G152=2,0,IF($G152=1,IF($AB152>$AD152,#REF!,0),IF($AB152<$AC152,#REF!,#REF!))))) ->  | AF152: =IF(ISBLANK($G152)," ",IF($D152="Z",#REF!+#REF!,IF($G152=2,#REF!+#REF!,IF($G152=1,IF($AB152>$AD152,#REF!+#REF!,#REF!+#REF!),IF($AB152<$AC152,#REF!+#REF!,#REF!+#REF!))))) ->  | AG152: 0 | AH152: 0 | AI152: 0 | AJ152: 0 | AK152: 0 | AL152: 4 | AM152: 23 | AN152: 0 | AO152: 0 | AP152: 1 | AQ152: 810 | AR152: 0 | AS152: 0 | AT152: 0 | AU152: 0 | AV152: 0 | AW152: 0 | AX152: 0 | AY152: 0 | AZ152: 0 | BA152: 0 | BB152: 0 | BC152: 0 | BD152: 0 | BE152: 0 | BF152: 0 | BG152: FALSE | BH152: FALSE | BK152: 0 | BO152: 0 | BP152: 0 | BQ152: 0 | BR152: 0 | BS152: N
AE153: =IF(ISBLANK($G153)," ",IF($D153="Z",#REF!,IF($G153=2,0,IF($G153=1,IF($AB153>$AD153,#REF!,0),IF($AB153<$AC153,#REF!,#REF!))))) ->  | AF153: =IF(ISBLANK($G153)," ",IF($D153="Z",#REF!+#REF!,IF($G153=2,#REF!+#REF!,IF($G153=1,IF($AB153>$AD153,#REF!+#REF!,#REF!+#REF!),IF($AB153<$AC153,#REF!+#REF!,#REF!+#REF!))))) ->  | AG153: 0 | AH153: 0 | AI153: 0 | AJ153: 0 | AK153: 0 | AL153: 4 | AM153: 23 | AN153: 0 | AO153: 0 | AP153: 1 | AQ153: 810 | AR153: 0 | AS153: 0 | AT153: 0 | AU153: 0 | AV153: 0 | AW153: 0 | AX153: 0 | AY153: 0 | AZ153: 0 | BA153: 0 | BB153: 0 | BC153: 0 | BD153: 0 | BE153: 0 | BF153: 0 | BG153: FALSE | BH153: FALSE | BK153: 0 | BO153: 0 | BP153: 0 | BQ153: 0 | BR153: 0 | BS153: N
AE154: =IF(ISBLANK($G154)," ",IF($D154="Z",#REF!,IF($G154=2,0,IF($G154=1,IF($AB154>$AD154,#REF!,0),IF($AB154<$AC154,#REF!,#REF!))))) ->  | AF154: =IF(ISBLANK($G154)," ",IF($D154="Z",#REF!+#REF!,IF($G154=2,#REF!+#REF!,IF($G154=1,IF($AB154>$AD154,#REF!+#REF!,#REF!+#REF!),IF($AB154<$AC154,#REF!+#REF!,#REF!+#REF!))))) ->  | AG154: 0 | AH154: 0 | AI154: 0 | AJ154: 0 | AK154: 0 | AL154: 4 | AM154: 23 | AN154: 0 | AO154: 0 | AP154: 1 | AQ154: 810 | AR154: 0 | AS154: 0 | AT154: 0 | AU154: 0 | AV154: 0 | AW154: 0 | AX154: 0 | AY154: 0 | AZ154: 0 | BA154: 0 | BB154: 0 | BC154: 0 | BD154: 0 | BE154: 0 | BF154: 0 | BG154: FALSE | BH154: FALSE | BK154: 0 | BO154: 0 | BP154: 0 | BQ154: 0 | BR154: 0 | BS154: N
AE155: =IF(ISBLANK($G155)," ",IF($D155="Z",#REF!,IF($G155=2,0,IF($G155=1,IF($AB155>$AD155,#REF!,0),IF($AB155<$AC155,#REF!,#REF!))))) ->  | AF155: =IF(ISBLANK($G155)," ",IF($D155="Z",#REF!+#REF!,IF($G155=2,#REF!+#REF!,IF($G155=1,IF($AB155>$AD155,#REF!+#REF!,#REF!+#REF!),IF($AB155<$AC155,#REF!+#REF!,#REF!+#REF!))))) ->  | AG155: 0 | AH155: 0 | AI155: 0 | AJ155: 0 | AK155: 0 | AL155: 4 | AM155: 23 | AN155: 0 | AO155: 0 | AP155: 1 | AQ155: 810 | AR155: 0 | AS155: 0 | AT155: 0 | AU155: 0 | AV155: 0 | AW155: 0 | AX155: 0 | AY155: 0 | AZ155: 0 | BA155: 0 | BB155: 0 | BC155: 0 | BD155: 0 | BE155: 0 | BF155: 0 | BG155: FALSE | BH155: FALSE | BK155: 0 | BO155: 0 | BP155: 0 | BQ155: 0 | BR155: 0 | BS155: N
AE156: =IF(ISBLANK($G156)," ",IF($D156="Z",#REF!,IF($G156=2,0,IF($G156=1,IF($AB156>$AD156,#REF!,0),IF($AB156<$AC156,#REF!,#REF!))))) ->  | AF156: =IF(ISBLANK($G156)," ",IF($D156="Z",#REF!+#REF!,IF($G156=2,#REF!+#REF!,IF($G156=1,IF($AB156>$AD156,#REF!+#REF!,#REF!+#REF!),IF($AB156<$AC156,#REF!+#REF!,#REF!+#REF!))))) ->  | AG156: 0 | AH156: 0 | AI156: 0 | AJ156: 0 | AK156: 0 | AL156: 4 | AM156: 23 | AN156: 0 | AO156: 0 | AP156: 1 | AQ156: 810 | AR156: 0 | AS156: 0 | AT156: 0 | AU156: 0 | AV156: 0 | AW156: 0 | AX156: 0 | AY156: 0 | AZ156: 0 | BA156: 0 | BB156: 0 | BC156: 0 | BD156: 0 | BE156: 0 | BF156: 0 | BG156: FALSE | BH156: FALSE | BK156: 0 | BO156: 0 | BP156: 0 | BQ156: 0 | BR156: 0 | BS156: N
AE157: =IF(ISBLANK($G157)," ",IF($D157="Z",#REF!,IF($G157=2,0,IF($G157=1,IF($AB157>$AD157,#REF!,0),IF($AB157<$AC157,#REF!,#REF!))))) ->  | AF157: =IF(ISBLANK($G157)," ",IF($D157="Z",#REF!+#REF!,IF($G157=2,#REF!+#REF!,IF($G157=1,IF($AB157>$AD157,#REF!+#REF!,#REF!+#REF!),IF($AB157<$AC157,#REF!+#REF!,#REF!+#REF!))))) ->  | AG157: 0 | AH157: 0 | AI157: 0 | AJ157: 0 | AK157: 0 | AL157: 4 | AM157: 23 | AN157: 0 | AO157: 0 | AP157: 1 | AQ157: 810 | AR157: 0 | AS157: 0 | AT157: 0 | AU157: 0 | AV157: 0 | AW157: 0 | AX157: 0 | AY157: 0 | AZ157: 0 | BA157: 0 | BB157: 0 | BC157: 0 | BD157: 0 | BE157: 0 | BF157: 0 | BG157: FALSE | BH157: FALSE | BK157: 0 | BO157: 0 | BP157: 0 | BQ157: 0 | BR157: 0 | BS157: N
AE158: =IF(ISBLANK($G158)," ",IF($D158="Z",#REF!,IF($G158=2,0,IF($G158=1,IF($AB158>$AD158,#REF!,0),IF($AB158<$AC158,#REF!,#REF!))))) ->  | AF158: =IF(ISBLANK($G158)," ",IF($D158="Z",#REF!+#REF!,IF($G158=2,#REF!+#REF!,IF($G158=1,IF($AB158>$AD158,#REF!+#REF!,#REF!+#REF!),IF($AB158<$AC158,#REF!+#REF!,#REF!+#REF!))))) ->  | AG158: 0 | AH158: 0 | AI158: 0 | AJ158: 0 | AK158: 0 | AL158: 4 | AM158: 23 | AN158: 0 | AO158: 0 | AP158: 1 | AQ158: 810 | AR158: 0 | AS158: 0 | AT158: 0 | AU158: 0 | AV158: 0 | AW158: 0 | AX158: 0 | AY158: 0 | AZ158: 0 | BA158: 0 | BB158: 0 | BC158: 0 | BD158: 0 | BE158: 0 | BF158: 0 | BG158: FALSE | BH158: FALSE | BK158: 0 | BO158: 0 | BP158: 0 | BQ158: 0 | BR158: 0 | BS158: N
AE159: =IF(ISBLANK($G159)," ",IF($D159="Z",#REF!,IF($G159=2,0,IF($G159=1,IF($AB159>$AD159,#REF!,0),IF($AB159<$AC159,#REF!,#REF!))))) ->  | AF159: =IF(ISBLANK($G159)," ",IF($D159="Z",#REF!+#REF!,IF($G159=2,#REF!+#REF!,IF($G159=1,IF($AB159>$AD159,#REF!+#REF!,#REF!+#REF!),IF($AB159<$AC159,#REF!+#REF!,#REF!+#REF!))))) ->  | AG159: 0 | AH159: 0 | AI159: 0 | AJ159: 0 | AK159: 0 | AL159: 4 | AM159: 23 | AN159: 0 | AO159: 0 | AP159: 1 | AQ159: 810 | AR159: 0 | AS159: 0 | AT159: 0 | AU159: 0 | AV159: 0 | AW159: 0 | AX159: 0 | AY159: 0 | AZ159: 0 | BA159: 0 | BB159: 0 | BC159: 0 | BD159: 0 | BE159: 0 | BF159: 0 | BG159: FALSE | BH159: FALSE | BK159: 0 | BO159: 0 | BP159: 0 | BQ159: 0 | BR159: 0 | BS159: N
AE160: =IF(ISBLANK($G160)," ",IF($D160="Z",#REF!,IF($G160=2,0,IF($G160=1,IF($AB160>$AD160,#REF!,0),IF($AB160<$AC160,#REF!,#REF!))))) ->  | AF160: =IF(ISBLANK($G160)," ",IF($D160="Z",#REF!+#REF!,IF($G160=2,#REF!+#REF!,IF($G160=1,IF($AB160>$AD160,#REF!+#REF!,#REF!+#REF!),IF($AB160<$AC160,#REF!+#REF!,#REF!+#REF!))))) ->  | AG160: 0 | AH160: 0 | AI160: 0 | AJ160: 0 | AK160: 0 | AL160: 4 | AM160: 23 | AN160: 0 | AO160: 0 | AP160: 1 | AQ160: 810 | AR160: 0 | AS160: 0 | AT160: 0 | AU160: 0 | AV160: 0 | AW160: 0 | AX160: 0 | AY160: 0 | AZ160: 0 | BA160: 0 | BB160: 0 | BC160: 0 | BD160: 0 | BE160: 0 | BF160: 0 | BG160: FALSE | BH160: FALSE | BK160: 0 | BO160: 0 | BP160: 0 | BQ160: 0 | BR160: 0 | BS160: N
AE161: =IF(ISBLANK($G161)," ",IF($D161="Z",#REF!,IF($G161=2,0,IF($G161=1,IF($AB161>$AD161,#REF!,0),IF($AB161<$AC161,#REF!,#REF!))))) ->  | AF161: =IF(ISBLANK($G161)," ",IF($D161="Z",#REF!+#REF!,IF($G161=2,#REF!+#REF!,IF($G161=1,IF($AB161>$AD161,#REF!+#REF!,#REF!+#REF!),IF($AB161<$AC161,#REF!+#REF!,#REF!+#REF!))))) ->  | AG161: 0 | AH161: 0 | AI161: 0 | AJ161: 0 | AK161: 0 | AL161: 4 | AM161: 23 | AN161: 0 | AO161: 0 | AP161: 1 | AQ161: 810 | AR161: 0 | AS161: 0 | AT161: 0 | AU161: 0 | AV161: 0 | AW161: 0 | AX161: 0 | AY161: 0 | AZ161: 0 | BA161: 0 | BB161: 0 | BC161: 0 | BD161: 0 | BE161: 0 | BF161: 0 | BG161: FALSE | BH161: FALSE | BK161: 0 | BO161: 0 | BP161: 0 | BQ161: 0 | BR161: 0 | BS161: N
AE162: =IF(ISBLANK($G162)," ",IF($D162="Z",#REF!,IF($G162=2,0,IF($G162=1,IF($AB162>$AD162,#REF!,0),IF($AB162<$AC162,#REF!,#REF!))))) ->  | AF162: =IF(ISBLANK($G162)," ",IF($D162="Z",#REF!+#REF!,IF($G162=2,#REF!+#REF!,IF($G162=1,IF($AB162>$AD162,#REF!+#REF!,#REF!+#REF!),IF($AB162<$AC162,#REF!+#REF!,#REF!+#REF!))))) ->  | AG162: 0 | AH162: 0 | AI162: 0 | AJ162: 0 | AK162: 0 | AL162: 4 | AM162: 23 | AN162: 0 | AO162: 0 | AP162: 1 | AQ162: 810 | AR162: 0 | AS162: 0 | AT162: 0 | AU162: 0 | AV162: 0 | AW162: 0 | AX162: 0 | AY162: 0 | AZ162: 0 | BA162: 0 | BB162: 0 | BC162: 0 | BD162: 0 | BE162: 0 | BF162: 0 | BG162: FALSE | BH162: FALSE | BK162: 0 | BO162: 0 | BP162: 0 | BQ162: 0 | BR162: 0 | BS162: N
AE163: =IF(ISBLANK($G163)," ",IF($D163="Z",#REF!,IF($G163=2,0,IF($G163=1,IF($AB163>$AD163,#REF!,0),IF($AB163<$AC163,#REF!,#REF!))))) ->  | AF163: =IF(ISBLANK($G163)," ",IF($D163="Z",#REF!+#REF!,IF($G163=2,#REF!+#REF!,IF($G163=1,IF($AB163>$AD163,#REF!+#REF!,#REF!+#REF!),IF($AB163<$AC163,#REF!+#REF!,#REF!+#REF!))))) ->  | AG163: 0 | AH163: 0 | AI163: 0 | AJ163: 0 | AK163: 0 | AL163: 4 | AM163: 23 | AN163: 0 | AO163: 0 | AP163: 1 | AQ163: 810 | AR163: 0 | AS163: 0 | AT163: 0 | AU163: 0 | AV163: 0 | AW163: 0 | AX163: 0 | AY163: 0 | AZ163: 0 | BA163: 0 | BB163: 0 | BC163: 0 | BD163: 0 | BE163: 0 | BF163: 0 | BG163: FALSE | BH163: FALSE | BK163: 0 | BO163: 0 | BP163: 0 | BQ163: 0 | BR163: 0 | BS163: N
AE164: =IF(ISBLANK($G164)," ",IF($D164="Z",#REF!,IF($G164=2,0,IF($G164=1,IF($AB164>$AD164,#REF!,0),IF($AB164<$AC164,#REF!,#REF!))))) ->  | AF164: =IF(ISBLANK($G164)," ",IF($D164="Z",#REF!+#REF!,IF($G164=2,#REF!+#REF!,IF($G164=1,IF($AB164>$AD164,#REF!+#REF!,#REF!+#REF!),IF($AB164<$AC164,#REF!+#REF!,#REF!+#REF!))))) ->  | AG164: 0 | AH164: 0 | AI164: 0 | AJ164: 0 | AK164: 0 | AL164: 4 | AM164: 23 | AN164: 0 | AO164: 0 | AP164: 1 | AQ164: 810 | AR164: 0 | AS164: 0 | AT164: 0 | AU164: 0 | AV164: 0 | AW164: 0 | AX164: 0 | AY164: 0 | AZ164: 0 | BA164: 0 | BB164: 0 | BC164: 0 | BD164: 0 | BE164: 0 | BF164: 0 | BG164: FALSE | BH164: FALSE | BK164: 0 | BO164: 0 | BP164: 0 | BQ164: 0 | BR164: 0 | BS164: N
AE165: =IF(ISBLANK($G165)," ",IF($D165="Z",#REF!,IF($G165=2,0,IF($G165=1,IF($AB165>$AD165,#REF!,0),IF($AB165<$AC165,#REF!,#REF!))))) ->  | AF165: =IF(ISBLANK($G165)," ",IF($D165="Z",#REF!+#REF!,IF($G165=2,#REF!+#REF!,IF($G165=1,IF($AB165>$AD165,#REF!+#REF!,#REF!+#REF!),IF($AB165<$AC165,#REF!+#REF!,#REF!+#REF!))))) ->  | AG165: 0 | AH165: 0 | AI165: 0 | AJ165: 0 | AK165: 0 | AL165: 4 | AM165: 23 | AN165: 0 | AO165: 0 | AP165: 1 | AQ165: 810 | AR165: 0 | AS165: 0 | AT165: 0 | AU165: 0 | AV165: 0 | AW165: 0 | AX165: 0 | AY165: 0 | AZ165: 0 | BA165: 0 | BB165: 0 | BC165: 0 | BD165: 0 | BE165: 0 | BF165: 0 | BG165: FALSE | BH165: FALSE | BK165: 0 | BO165: 0 | BP165: 0 | BQ165: 0 | BR165: 0 | BS165: N
AE166: =IF(ISBLANK($G166)," ",IF($D166="Z",#REF!,IF($G166=2,0,IF($G166=1,IF($AB166>$AD166,#REF!,0),IF($AB166<$AC166,#REF!,#REF!))))) ->  | AF166: =IF(ISBLANK($G166)," ",IF($D166="Z",#REF!+#REF!,IF($G166=2,#REF!+#REF!,IF($G166=1,IF($AB166>$AD166,#REF!+#REF!,#REF!+#REF!),IF($AB166<$AC166,#REF!+#REF!,#REF!+#REF!))))) ->  | AG166: 0 | AH166: 0 | AI166: 0 | AJ166: 0 | AK166: 0 | AL166: 4 | AM166: 23 | AN166: 0 | AO166: 0 | AP166: 1 | AQ166: 810 | AR166: 0 | AS166: 0 | AT166: 0 | AU166: 0 | AV166: 0 | AW166: 0 | AX166: 0 | AY166: 0 | AZ166: 0 | BA166: 0 | BB166: 0 | BC166: 0 | BD166: 0 | BE166: 0 | BF166: 0 | BG166: FALSE | BH166: FALSE | BK166: 0 | BO166: 0 | BP166: 0 | BQ166: 0 | BR166: 0 | BS166: N
AE167: =IF(ISBLANK($G167)," ",IF($D167="Z",#REF!,IF($G167=2,0,IF($G167=1,IF($AB167>$AD167,#REF!,0),IF($AB167<$AC167,#REF!,#REF!))))) ->  | AF167: =IF(ISBLANK($G167)," ",IF($D167="Z",#REF!+#REF!,IF($G167=2,#REF!+#REF!,IF($G167=1,IF($AB167>$AD167,#REF!+#REF!,#REF!+#REF!),IF($AB167<$AC167,#REF!+#REF!,#REF!+#REF!))))) ->  | AG167: 0 | AH167: 0 | AI167: 0 | AJ167: 0 | AK167: 0 | AL167: 4 | AM167: 23 | AN167: 0 | AO167: 0 | AP167: 1 | AQ167: 810 | AR167: 0 | AS167: 0 | AT167: 0 | AU167: 0 | AV167: 0 | AW167: 0 | AX167: 0 | AY167: 0 | AZ167: 0 | BA167: 0 | BB167: 0 | BC167: 0 | BD167: 0 | BE167: 0 | BF167: 0 | BG167: FALSE | BH167: FALSE | BK167: 0 | BO167: 0 | BP167: 0 | BQ167: 0 | BR167: 0 | BS167: N
AE168: =IF(ISBLANK($G168)," ",IF($D168="Z",#REF!,IF($G168=2,0,IF($G168=1,IF($AB168>$AD168,#REF!,0),IF($AB168<$AC168,#REF!,#REF!))))) ->  | AF168: =IF(ISBLANK($G168)," ",IF($D168="Z",#REF!+#REF!,IF($G168=2,#REF!+#REF!,IF($G168=1,IF($AB168>$AD168,#REF!+#REF!,#REF!+#REF!),IF($AB168<$AC168,#REF!+#REF!,#REF!+#REF!))))) ->  | AG168: 0 | AH168: 0 | AI168: 0 | AJ168: 0 | AK168: 0 | AL168: 4 | AM168: 23 | AN168: 0 | AO168: 0 | AP168: 1 | AQ168: 810 | AR168: 0 | AS168: 0 | AT168: 0 | AU168: 0 | AV168: 0 | AW168: 0 | AX168: 0 | AY168: 0 | AZ168: 0 | BA168: 0 | BB168: 0 | BC168: 0 | BD168: 0 | BE168: 0 | BF168: 0 | BG168: FALSE | BH168: FALSE | BK168: 0 | BO168: 0 | BP168: 0 | BQ168: 0 | BR168: 0 | BS168: N
AE169: =IF(ISBLANK($G169)," ",IF($D169="Z",#REF!,IF($G169=2,0,IF($G169=1,IF($AB169>$AD169,#REF!,0),IF($AB169<$AC169,#REF!,#REF!))))) ->  | AF169: =IF(ISBLANK($G169)," ",IF($D169="Z",#REF!+#REF!,IF($G169=2,#REF!+#REF!,IF($G169=1,IF($AB169>$AD169,#REF!+#REF!,#REF!+#REF!),IF($AB169<$AC169,#REF!+#REF!,#REF!+#REF!))))) ->  | AG169: 0 | AH169: 0 | AI169: 0 | AJ169: 0 | AK169: 0 | AL169: 4 | AM169: 23 | AN169: 0 | AO169: 0 | AP169: 1 | AQ169: 810 | AR169: 0 | AS169: 0 | AT169: 0 | AU169: 0 | AV169: 0 | AW169: 0 | AX169: 0 | AY169: 0 | AZ169: 0 | BA169: 0 | BB169: 0 | BC169: 0 | BD169: 0 | BE169: 0 | BF169: 0 | BG169: FALSE | BH169: FALSE | BK169: 0 | BO169: 0 | BP169: 0 | BQ169: 0 | BR169: 0 | BS169: N
AE170: =IF(ISBLANK($G170)," ",IF($D170="Z",#REF!,IF($G170=2,0,IF($G170=1,IF($AB170>$AD170,#REF!,0),IF($AB170<$AC170,#REF!,#REF!))))) ->  | AF170: =IF(ISBLANK($G170)," ",IF($D170="Z",#REF!+#REF!,IF($G170=2,#REF!+#REF!,IF($G170=1,IF($AB170>$AD170,#REF!+#REF!,#REF!+#REF!),IF($AB170<$AC170,#REF!+#REF!,#REF!+#REF!))))) ->  | AG170: 0 | AH170: 0 | AI170: 0 | AJ170: 0 | AK170: 0 | AL170: 4 | AM170: 23 | AN170: 0 | AO170: 0 | AP170: 1 | AQ170: 810 | AR170: 0 | AS170: 0 | AT170: 0 | AU170: 0 | AV170: 0 | AW170: 0 | AX170: 0 | AY170: 0 | AZ170: 0 | BA170: 0 | BB170: 0 | BC170: 0 | BD170: 0 | BE170: 0 | BF170: 0 | BG170: FALSE | BH170: FALSE | BK170: 0 | BO170: 0 | BP170: 0 | BQ170: 0 | BR170: 0 | BS170: N
AE171: =IF(ISBLANK($G171)," ",IF($D171="Z",#REF!,IF($G171=2,0,IF($G171=1,IF($AB171>$AD171,#REF!,0),IF($AB171<$AC171,#REF!,#REF!))))) ->  | AF171: =IF(ISBLANK($G171)," ",IF($D171="Z",#REF!+#REF!,IF($G171=2,#REF!+#REF!,IF($G171=1,IF($AB171>$AD171,#REF!+#REF!,#REF!+#REF!),IF($AB171<$AC171,#REF!+#REF!,#REF!+#REF!))))) ->  | AG171: 0 | AH171: 0 | AI171: 0 | AJ171: 0 | AK171: 0 | AL171: 4 | AM171: 23 | AN171: 0 | AO171: 0 | AP171: 1 | AQ171: 810 | AR171: 0 | AS171: 0 | AT171: 0 | AU171: 0 | AV171: 0 | AW171: 0 | AX171: 0 | AY171: 0 | AZ171: 0 | BA171: 0 | BB171: 0 | BC171: 0 | BD171: 0 | BE171: 0 | BF171: 0 | BG171: FALSE | BH171: FALSE | BK171: 0 | BO171: 0 | BP171: 0 | BQ171: 0 | BR171: 0 | BS171: N
AE172: =IF(ISBLANK($G172)," ",IF($D172="Z",#REF!,IF($G172=2,0,IF($G172=1,IF($AB172>$AD172,#REF!,0),IF($AB172<$AC172,#REF!,#REF!))))) ->  | AF172: =IF(ISBLANK($G172)," ",IF($D172="Z",#REF!+#REF!,IF($G172=2,#REF!+#REF!,IF($G172=1,IF($AB172>$AD172,#REF!+#REF!,#REF!+#REF!),IF($AB172<$AC172,#REF!+#REF!,#REF!+#REF!))))) ->  | AG172: 0 | AH172: 0 | AI172: 0 | AJ172: 0 | AK172: 0 | AL172: 4 | AM172: 23 | AN172: 0 | AO172: 0 | AP172: 1 | AQ172: 810 | AR172: 0 | AS172: 0 | AT172: 0 | AU172: 0 | AV172: 0 | AW172: 0 | AX172: 0 | AY172: 0 | AZ172: 0 | BA172: 0 | BB172: 0 | BC172: 0 | BD172: 0 | BE172: 0 | BF172: 0 | BG172: FALSE | BH172: FALSE | BK172: 0 | BO172: 0 | BP172: 0 | BQ172: 0 | BR172: 0 | BS172: N
AE173: =IF(ISBLANK($G173)," ",IF($D173="Z",#REF!,IF($G173=2,0,IF($G173=1,IF($AB173>$AD173,#REF!,0),IF($AB173<$AC173,#REF!,#REF!))))) ->  | AF173: =IF(ISBLANK($G173)," ",IF($D173="Z",#REF!+#REF!,IF($G173=2,#REF!+#REF!,IF($G173=1,IF($AB173>$AD173,#REF!+#REF!,#REF!+#REF!),IF($AB173<$AC173,#REF!+#REF!,#REF!+#REF!))))) ->  | AG173: 0 | AH173: 0 | AI173: 0 | AJ173: 0 | AK173: 0 | AL173: 4 | AM173: 23 | AN173: 0 | AO173: 0 | AP173: 1 | AQ173: 810 | AR173: 0 | AS173: 0 | AT173: 0 | AU173: 0 | AV173: 0 | AW173: 0 | AX173: 0 | AY173: 0 | AZ173: 0 | BA173: 0 | BB173: 0 | BC173: 0 | BD173: 0 | BE173: 0 | BF173: 0 | BG173: FALSE | BH173: FALSE | BK173: 0 | BO173: 0 | BP173: 0 | BQ173: 0 | BR173: 0 | BS173: N
AE174: =IF(ISBLANK($G174)," ",IF($D174="Z",#REF!,IF($G174=2,0,IF($G174=1,IF($AB174>$AD174,#REF!,0),IF($AB174<$AC174,#REF!,#REF!))))) ->  | AF174: =IF(ISBLANK($G174)," ",IF($D174="Z",#REF!+#REF!,IF($G174=2,#REF!+#REF!,IF($G174=1,IF($AB174>$AD174,#REF!+#REF!,#REF!+#REF!),IF($AB174<$AC174,#REF!+#REF!,#REF!+#REF!))))) ->  | AG174: 0 | AH174: 0 | AI174: 0 | AJ174: 0 | AK174: 0 | AL174: 4 | AM174: 23 | AN174: 0 | AO174: 0 | AP174: 1 | AQ174: 810 | AR174: 0 | AS174: 0 | AT174: 0 | AU174: 0 | AV174: 0 | AW174: 0 | AX174: 0 | AY174: 0 | AZ174: 0 | BA174: 0 | BB174: 0 | BC174: 0 | BD174: 0 | BE174: 0 | BF174: 0 | BG174: FALSE | BH174: FALSE | BK174: 0 | BO174: 0 | BP174: 0 | BQ174: 0 | BR174: 0 | BS174: N
AE175: =IF(ISBLANK($G175)," ",IF($D175="Z",#REF!,IF($G175=2,0,IF($G175=1,IF($AB175>$AD175,#REF!,0),IF($AB175<$AC175,#REF!,#REF!))))) ->  | AF175: =IF(ISBLANK($G175)," ",IF($D175="Z",#REF!+#REF!,IF($G175=2,#REF!+#REF!,IF($G175=1,IF($AB175>$AD175,#REF!+#REF!,#REF!+#REF!),IF($AB175<$AC175,#REF!+#REF!,#REF!+#REF!))))) ->  | AG175: 0 | AH175: 0 | AI175: 0 | AJ175: 0 | AK175: 0 | AL175: 4 | AM175: 23 | AN175: 0 | AO175: 0 | AP175: 1 | AQ175: 810 | AR175: 0 | AS175: 0 | AT175: 0 | AU175: 0 | AV175: 0 | AW175: 0 | AX175: 0 | AY175: 0 | AZ175: 0 | BA175: 0 | BB175: 0 | BC175: 0 | BD175: 0 | BE175: 0 | BF175: 0 | BG175: FALSE | BH175: FALSE | BK175: 0 | BO175: 0 | BP175: 0 | BQ175: 0 | BR175: 0 | BS175: N
AE176: =IF(ISBLANK($G176)," ",IF($D176="Z",#REF!,IF($G176=2,0,IF($G176=1,IF($AB176>$AD176,#REF!,0),IF($AB176<$AC176,#REF!,#REF!))))) ->  | AF176: =IF(ISBLANK($G176)," ",IF($D176="Z",#REF!+#REF!,IF($G176=2,#REF!+#REF!,IF($G176=1,IF($AB176>$AD176,#REF!+#REF!,#REF!+#REF!),IF($AB176<$AC176,#REF!+#REF!,#REF!+#REF!))))) ->  | AG176: 0 | AH176: 0 | AI176: 0 | AJ176: 0 | AK176: 0 | AL176: 4 | AM176: 23 | AN176: 0 | AO176: 0 | AP176: 1 | AQ176: 810 | AR176: 0 | AS176: 0 | AT176: 0 | AU176: 0 | AV176: 0 | AW176: 0 | AX176: 0 | AY176: 0 | AZ176: 0 | BA176: 0 | BB176: 0 | BC176: 0 | BD176: 0 | BE176: 0 | BF176: 0 | BG176: FALSE | BH176: FALSE | BK176: 0 | BO176: 0 | BP176: 0 | BQ176: 0 | BR176: 0 | BS176: N
AE177: =IF(ISBLANK($G177)," ",IF($D177="Z",#REF!,IF($G177=2,0,IF($G177=1,IF($AB177>$AD177,#REF!,0),IF($AB177<$AC177,#REF!,#REF!))))) ->  | AF177: =IF(ISBLANK($G177)," ",IF($D177="Z",#REF!+#REF!,IF($G177=2,#REF!+#REF!,IF($G177=1,IF($AB177>$AD177,#REF!+#REF!,#REF!+#REF!),IF($AB177<$AC177,#REF!+#REF!,#REF!+#REF!))))) ->  | AG177: 0 | AH177: 0 | AI177: 0 | AJ177: 0 | AK177: 0 | AL177: 4 | AM177: 23 | AN177: 0 | AO177: 0 | AP177: 1 | AQ177: 810 | AR177: 0 | AS177: 0 | AT177: 0 | AU177: 0 | AV177: 0 | AW177: 0 | AX177: 0 | AY177: 0 | AZ177: 0 | BA177: 0 | BB177: 0 | BC177: 0 | BD177: 0 | BE177: 0 | BF177: 0 | BG177: FALSE | BH177: FALSE | BK177: 0 | BO177: 0 | BP177: 0 | BQ177: 0 | BR177: 0 | BS177: N
AE178: =IF(ISBLANK($G178)," ",IF($D178="Z",#REF!,IF($G178=2,0,IF($G178=1,IF($AB178>$AD178,#REF!,0),IF($AB178<$AC178,#REF!,#REF!))))) ->  | AF178: =IF(ISBLANK($G178)," ",IF($D178="Z",#REF!+#REF!,IF($G178=2,#REF!+#REF!,IF($G178=1,IF($AB178>$AD178,#REF!+#REF!,#REF!+#REF!),IF($AB178<$AC178,#REF!+#REF!,#REF!+#REF!))))) ->  | AG178: 0 | AH178: 0 | AI178: 0 | AJ178: 0 | AK178: 0 | AL178: 4 | AM178: 23 | AN178: 0 | AO178: 0 | AP178: 1 | AQ178: 810 | AR178: 0 | AS178: 0 | AT178: 0 | AU178: 0 | AV178: 0 | AW178: 0 | AX178: 0 | AY178: 0 | AZ178: 0 | BA178: 0 | BB178: 0 | BC178: 0 | BD178: 0 | BE178: 0 | BF178: 0 | BG178: FALSE | BH178: FALSE | BK178: 0 | BO178: 0 | BP178: 0 | BQ178: 0 | BR178: 0 | BS178: N
AE179: =IF(ISBLANK($G179)," ",IF($D179="Z",#REF!,IF($G179=2,0,IF($G179=1,IF($AB179>$AD179,#REF!,0),IF($AB179<$AC179,#REF!,#REF!))))) ->  | AF179: =IF(ISBLANK($G179)," ",IF($D179="Z",#REF!+#REF!,IF($G179=2,#REF!+#REF!,IF($G179=1,IF($AB179>$AD179,#REF!+#REF!,#REF!+#REF!),IF($AB179<$AC179,#REF!+#REF!,#REF!+#REF!))))) ->  | AG179: 0 | AH179: 0 | AI179: 0 | AJ179: 0 | AK179: 0 | AL179: 4 | AM179: 23 | AN179: 0 | AO179: 0 | AP179: 1 | AQ179: 810 | AR179: 0 | AS179: 0 | AT179: 0 | AU179: 0 | AV179: 0 | AW179: 0 | AX179: 0 | AY179: 0 | AZ179: 0 | BA179: 0 | BB179: 0 | BC179: 0 | BD179: 0 | BE179: 0 | BF179: 0 | BG179: FALSE | BH179: FALSE | BK179: 0 | BO179: 0 | BP179: 0 | BQ179: 0 | BR179: 0 | BS179: N
AE180: =IF(ISBLANK($G180)," ",IF($D180="Z",#REF!,IF($G180=2,0,IF($G180=1,IF($AB180>$AD180,#REF!,0),IF($AB180<$AC180,#REF!,#REF!))))) ->  | AF180: =IF(ISBLANK($G180)," ",IF($D180="Z",#REF!+#REF!,IF($G180=2,#REF!+#REF!,IF($G180=1,IF($AB180>$AD180,#REF!+#REF!,#REF!+#REF!),IF($AB180<$AC180,#REF!+#REF!,#REF!+#REF!))))) ->  | AG180: 0 | AH180: 0 | AI180: 0 | AJ180: 0 | AK180: 0 | AL180: 4 | AM180: 23 | AN180: 0 | AO180: 0 | AP180: 1 | AQ180: 810 | AR180: 0 | AS180: 0 | AT180: 0 | AU180: 0 | AV180: 0 | AW180: 0 | AX180: 0 | AY180: 0 | AZ180: 0 | BA180: 0 | BB180: 0 | BC180: 0 | BD180: 0 | BE180: 0 | BF180: 0 | BG180: FALSE | BH180: FALSE | BK180: 0 | BO180: 0 | BP180: 0 | BQ180: 0 | BR180: 0 | BS180: N
AE181: =IF(ISBLANK($G181)," ",IF($D181="Z",#REF!,IF($G181=2,0,IF($G181=1,IF($AB181>$AD181,#REF!,0),IF($AB181<$AC181,#REF!,#REF!))))) ->  | AF181: =IF(ISBLANK($G181)," ",IF($D181="Z",#REF!+#REF!,IF($G181=2,#REF!+#REF!,IF($G181=1,IF($AB181>$AD181,#REF!+#REF!,#REF!+#REF!),IF($AB181<$AC181,#REF!+#REF!,#REF!+#REF!))))) ->  | AG181: 0 | AH181: 0 | AI181: 0 | AJ181: 0 | AK181: 0 | AL181: 4 | AM181: 23 | AN181: 0 | AO181: 0 | AP181: 1 | AQ181: 810 | AR181: 0 | AS181: 0 | AT181: 0 | AU181: 0 | AV181: 0 | AW181: 0 | AX181: 0 | AY181: 0 | AZ181: 0 | BA181: 0 | BB181: 0 | BC181: 0 | BD181: 0 | BE181: 0 | BF181: 0 | BG181: FALSE | BH181: FALSE | BK181: 0 | BO181: 0 | BP181: 0 | BQ181: 0 | BR181: 0 | BS181: N
AE182: =IF(ISBLANK($G182)," ",IF($D182="Z",#REF!,IF($G182=2,0,IF($G182=1,IF($AB182>$AD182,#REF!,0),IF($AB182<$AC182,#REF!,#REF!))))) ->  | AF182: =IF(ISBLANK($G182)," ",IF($D182="Z",#REF!+#REF!,IF($G182=2,#REF!+#REF!,IF($G182=1,IF($AB182>$AD182,#REF!+#REF!,#REF!+#REF!),IF($AB182<$AC182,#REF!+#REF!,#REF!+#REF!))))) ->  | AG182: 0 | AH182: 0 | AI182: 0 | AJ182: 0 | AK182: 0 | AL182: 4 | AM182: 23 | AN182: 0 | AO182: 0 | AP182: 1 | AQ182: 810 | AR182: 0 | AS182: 0 | AT182: 0 | AU182: 0 | AV182: 0 | AW182: 0 | AX182: 0 | AY182: 0 | AZ182: 0 | BA182: 0 | BB182: 0 | BC182: 0 | BD182: 0 | BE182: 0 | BF182: 0 | BG182: FALSE | BH182: FALSE | BK182: 0 | BO182: 0 | BP182: 0 | BQ182: 0 | BR182: 0 | BS182: N
AE183: =IF(ISBLANK($G183)," ",IF($D183="Z",#REF!,IF($G183=2,0,IF($G183=1,IF($AB183>$AD183,#REF!,0),IF($AB183<$AC183,#REF!,#REF!))))) ->  | AF183: =IF(ISBLANK($G183)," ",IF($D183="Z",#REF!+#REF!,IF($G183=2,#REF!+#REF!,IF($G183=1,IF($AB183>$AD183,#REF!+#REF!,#REF!+#REF!),IF($AB183<$AC183,#REF!+#REF!,#REF!+#REF!))))) ->  | AG183: 0 | AH183: 0 | AI183: 0 | AJ183: 0 | AK183: 0 | AL183: 4 | AM183: 23 | AN183: 0 | AO183: 0 | AP183: 1 | AQ183: 810 | AR183: 0 | AS183: 0 | AT183: 0 | AU183: 0 | AV183: 0 | AW183: 0 | AX183: 0 | AY183: 0 | AZ183: 0 | BA183: 0 | BB183: 0 | BC183: 0 | BD183: 0 | BE183: 0 | BF183: 0 | BG183: FALSE | BH183: FALSE | BK183: 0 | BO183: 0 | BP183: 0 | BQ183: 0 | BR183: 0 | BS183: N
AE184: =IF(ISBLANK($G184)," ",IF($D184="Z",#REF!,IF($G184=2,0,IF($G184=1,IF($AB184>$AD184,#REF!,0),IF($AB184<$AC184,#REF!,#REF!))))) ->  | AF184: =IF(ISBLANK($G184)," ",IF($D184="Z",#REF!+#REF!,IF($G184=2,#REF!+#REF!,IF($G184=1,IF($AB184>$AD184,#REF!+#REF!,#REF!+#REF!),IF($AB184<$AC184,#REF!+#REF!,#REF!+#REF!))))) ->  | AG184: 0 | AH184: 0 | AI184: 0 | AJ184: 0 | AK184: 0 | AL184: 4 | AM184: 23 | AN184: 0 | AO184: 0 | AP184: 1 | AQ184: 810 | AR184: 0 | AS184: 0 | AT184: 0 | AU184: 0 | AV184: 0 | AW184: 0 | AX184: 0 | AY184: 0 | AZ184: 0 | BA184: 0 | BB184: 0 | BC184: 0 | BD184: 0 | BE184: 0 | BF184: 0 | BG184: FALSE | BH184: FALSE | BK184: 0 | BO184: 0 | BP184: 0 | BQ184: 0 | BR184: 0 | BS184: N
AE185: =IF(ISBLANK($G185)," ",IF($D185="Z",#REF!,IF($G185=2,0,IF($G185=1,IF($AB185>$AD185,#REF!,0),IF($AB185<$AC185,#REF!,#REF!))))) ->  | AF185: =IF(ISBLANK($G185)," ",IF($D185="Z",#REF!+#REF!,IF($G185=2,#REF!+#REF!,IF($G185=1,IF($AB185>$AD185,#REF!+#REF!,#REF!+#REF!),IF($AB185<$AC185,#REF!+#REF!,#REF!+#REF!))))) ->  | AG185: 0 | AH185: 0 | AI185: 0 | AJ185: 0 | AK185: 0 | AL185: 4 | AM185: 23 | AN185: 0 | AO185: 0 | AP185: 1 | AQ185: 810 | AR185: 0 | AS185: 0 | AT185: 0 | AU185: 0 | AV185: 0 | AW185: 0 | AX185: 0 | AY185: 0 | AZ185: 0 | BA185: 0 | BB185: 0 | BC185: 0 | BD185: 0 | BE185: 0 | BF185: 0 | BG185: FALSE | BH185: FALSE | BK185: 0 | BO185: 0 | BP185: 0 | BQ185: 0 | BR185: 0 | BS185: N
AE186: =IF(ISBLANK($G186)," ",IF($D186="Z",#REF!,IF($G186=2,0,IF($G186=1,IF($AB186>$AD186,#REF!,0),IF($AB186<$AC186,#REF!,#REF!))))) ->  | AF186: =IF(ISBLANK($G186)," ",IF($D186="Z",#REF!+#REF!,IF($G186=2,#REF!+#REF!,IF($G186=1,IF($AB186>$AD186,#REF!+#REF!,#REF!+#REF!),IF($AB186<$AC186,#REF!+#REF!,#REF!+#REF!))))) ->  | AG186: 0 | AH186: 0 | AI186: 0 | AJ186: 0 | AK186: 0 | AL186: 4 | AM186: 23 | AN186: 0 | AO186: 0 | AP186: 1 | AQ186: 810 | AR186: 0 | AS186: 0 | AT186: 0 | AU186: 0 | AV186: 0 | AW186: 0 | AX186: 0 | AY186: 0 | AZ186: 0 | BA186: 0 | BB186: 0 | BC186: 0 | BD186: 0 | BE186: 0 | BF186: 0 | BG186: FALSE | BH186: FALSE | BK186: 0 | BO186: 0 | BP186: 0 | BQ186: 0 | BR186: 0 | BS186: N
AE187: =IF(ISBLANK($G187)," ",IF($D187="Z",#REF!,IF($G187=2,0,IF($G187=1,IF($AB187>$AD187,#REF!,0),IF($AB187<$AC187,#REF!,#REF!))))) ->  | AF187: =IF(ISBLANK($G187)," ",IF($D187="Z",#REF!+#REF!,IF($G187=2,#REF!+#REF!,IF($G187=1,IF($AB187>$AD187,#REF!+#REF!,#REF!+#REF!),IF($AB187<$AC187,#REF!+#REF!,#REF!+#REF!))))) ->  | AG187: 0 | AH187: 0 | AI187: 0 | AJ187: 0 | AK187: 0 | AL187: 4 | AM187: 23 | AN187: 0 | AO187: 0 | AP187: 1 | AQ187: 810 | AR187: 0 | AS187: 0 | AT187: 0 | AU187: 0 | AV187: 0 | AW187: 0 | AX187: 0 | AY187: 0 | AZ187: 0 | BA187: 0 | BB187: 0 | BC187: 0 | BD187: 0 | BE187: 0 | BF187: 0 | BG187: FALSE | BH187: FALSE | BK187: 0 | BO187: 0 | BP187: 0 | BQ187: 0 | BR187: 0 | BS187: N
AE188: =IF(ISBLANK($G188)," ",IF($D188="Z",#REF!,IF($G188=2,0,IF($G188=1,IF($AB188>$AD188,#REF!,0),IF($AB188<$AC188,#REF!,#REF!))))) ->  | AF188: =IF(ISBLANK($G188)," ",IF($D188="Z",#REF!+#REF!,IF($G188=2,#REF!+#REF!,IF($G188=1,IF($AB188>$AD188,#REF!+#REF!,#REF!+#REF!),IF($AB188<$AC188,#REF!+#REF!,#REF!+#REF!))))) ->  | AG188: 0 | AH188: 0 | AI188: 0 | AJ188: 0 | AK188: 0 | AL188: 4 | AM188: 23 | AN188: 0 | AO188: 0 | AP188: 1 | AQ188: 810 | AR188: 0 | AS188: 0 | AT188: 0 | AU188: 0 | AV188: 0 | AW188: 0 | AX188: 0 | AY188: 0 | AZ188: 0 | BA188: 0 | BB188: 0 | BC188: 0 | BD188: 0 | BE188: 0 | BF188: 0 | BG188: FALSE | BH188: FALSE | BK188: 0 | BO188: 0 | BP188: 0 | BQ188: 0 | BR188: 0 | BS188: N
AE189: =IF(ISBLANK($G189)," ",IF($D189="Z",#REF!,IF($G189=2,0,IF($G189=1,IF($AB189>$AD189,#REF!,0),IF($AB189<$AC189,#REF!,#REF!))))) ->  | AF189: =IF(ISBLANK($G189)," ",IF($D189="Z",#REF!+#REF!,IF($G189=2,#REF!+#REF!,IF($G189=1,IF($AB189>$AD189,#REF!+#REF!,#REF!+#REF!),IF($AB189<$AC189,#REF!+#REF!,#REF!+#REF!))))) ->  | AG189: 0 | AH189: 0 | AI189: 0 | AJ189: 0 | AK189: 0 | AL189: 4 | AM189: 23 | AN189: 0 | AO189: 0 | AP189: 1 | AQ189: 810 | AR189: 0 | AS189: 0 | AT189: 0 | AU189: 0 | AV189: 0 | AW189: 0 | AX189: 0 | AY189: 0 | AZ189: 0 | BA189: 0 | BB189: 0 | BC189: 0 | BD189: 0 | BE189: 0 | BF189: 0 | BG189: FALSE | BH189: FALSE | BK189: 0 | BO189: 0 | BP189: 0 | BQ189: 0 | BR189: 0 | BS189: N
AE190: =IF(ISBLANK($G190)," ",IF($D190="Z",#REF!,IF($G190=2,0,IF($G190=1,IF($AB190>$AD190,#REF!,0),IF($AB190<$AC190,#REF!,#REF!))))) ->  | AF190: =IF(ISBLANK($G190)," ",IF($D190="Z",#REF!+#REF!,IF($G190=2,#REF!+#REF!,IF($G190=1,IF($AB190>$AD190,#REF!+#REF!,#REF!+#REF!),IF($AB190<$AC190,#REF!+#REF!,#REF!+#REF!))))) ->  | AG190: 0 | AH190: 0 | AI190: 0 | AJ190: 0 | AK190: 0 | AL190: 4 | AM190: 23 | AN190: 0 | AO190: 0 | AP190: 1 | AQ190: 810 | AR190: 0 | AS190: 0 | AT190: 0 | AU190: 0 | AV190: 0 | AW190: 0 | AX190: 0 | AY190: 0 | AZ190: 0 | BA190: 0 | BB190: 0 | BC190: 0 | BD190: 0 | BE190: 0 | BF190: 0 | BG190: FALSE | BH190: FALSE | BK190: 0 | BO190: 0 | BP190: 0 | BQ190: 0 | BR190: 0 | BS190: N
AE191: =IF(ISBLANK($G191)," ",IF($D191="Z",#REF!,IF($G191=2,0,IF($G191=1,IF($AB191>$AD191,#REF!,0),IF($AB191<$AC191,#REF!,#REF!))))) ->  | AF191: =IF(ISBLANK($G191)," ",IF($D191="Z",#REF!+#REF!,IF($G191=2,#REF!+#REF!,IF($G191=1,IF($AB191>$AD191,#REF!+#REF!,#REF!+#REF!),IF($AB191<$AC191,#REF!+#REF!,#REF!+#REF!))))) ->  | AG191: 0 | AH191: 0 | AI191: 0 | AJ191: 0 | AK191: 0 | AL191: 4 | AM191: 23 | AN191: 0 | AO191: 0 | AP191: 1 | AQ191: 810 | AR191: 0 | AS191: 0 | AT191: 0 | AU191: 0 | AV191: 0 | AW191: 0 | AX191: 0 | AY191: 0 | AZ191: 0 | BA191: 0 | BB191: 0 | BC191: 0 | BD191: 0 | BE191: 0 | BF191: 0 | BG191: FALSE | BH191: FALSE | BK191: 0 | BO191: 0 | BP191: 0 | BQ191: 0 | BR191: 0 | BS191: N
AE192: =IF(ISBLANK($G192)," ",IF($D192="Z",#REF!,IF($G192=2,0,IF($G192=1,IF($AB192>$AD192,#REF!,0),IF($AB192<$AC192,#REF!,#REF!))))) ->  | AF192: =IF(ISBLANK($G192)," ",IF($D192="Z",#REF!+#REF!,IF($G192=2,#REF!+#REF!,IF($G192=1,IF($AB192>$AD192,#REF!+#REF!,#REF!+#REF!),IF($AB192<$AC192,#REF!+#REF!,#REF!+#REF!))))) ->  | AG192: 0 | AH192: 0 | AI192: 0 | AJ192: 0 | AK192: 0 | AL192: 4 | AM192: 23 | AN192: 0 | AO192: 0 | AP192: 1 | AQ192: 810 | AR192: 0 | AS192: 0 | AT192: 0 | AU192: 0 | AV192: 0 | AW192: 0 | AX192: 0 | AY192: 0 | AZ192: 0 | BA192: 0 | BB192: 0 | BC192: 0 | BD192: 0 | BE192: 0 | BF192: 0 | BG192: FALSE | BH192: FALSE | BK192: 0 | BO192: 0 | BP192: 0 | BQ192: 0 | BR192: 0 | BS192: N
AE193: =IF(ISBLANK($G193)," ",IF($D193="Z",#REF!,IF($G193=2,0,IF($G193=1,IF($AB193>$AD193,#REF!,0),IF($AB193<$AC193,#REF!,#REF!))))) ->  | AF193: =IF(ISBLANK($G193)," ",IF($D193="Z",#REF!+#REF!,IF($G193=2,#REF!+#REF!,IF($G193=1,IF($AB193>$AD193,#REF!+#REF!,#REF!+#REF!),IF($AB193<$AC193,#REF!+#REF!,#REF!+#REF!))))) ->  | AG193: 0 | AH193: 0 | AI193: 0 | AJ193: 0 | AK193: 0 | AL193: 4 | AM193: 23 | AN193: 0 | AO193: 0 | AP193: 1 | AQ193: 810 | AR193: 0 | AS193: 0 | AT193: 0 | AU193: 0 | AV193: 0 | AW193: 0 | AX193: 0 | AY193: 0 | AZ193: 0 | BA193: 0 | BB193: 0 | BC193: 0 | BD193: 0 | BE193: 0 | BF193: 0 | BG193: FALSE | BH193: FALSE | BK193: 0 | BO193: 0 | BP193: 0 | BQ193: 0 | BR193: 0 | BS193: N
AE194: =IF(ISBLANK($G194)," ",IF($D194="Z",#REF!,IF($G194=2,0,IF($G194=1,IF($AB194>$AD194,#REF!,0),IF($AB194<$AC194,#REF!,#REF!))))) ->  | AF194: =IF(ISBLANK($G194)," ",IF($D194="Z",#REF!+#REF!,IF($G194=2,#REF!+#REF!,IF($G194=1,IF($AB194>$AD194,#REF!+#REF!,#REF!+#REF!),IF($AB194<$AC194,#REF!+#REF!,#REF!+#REF!))))) ->  | AG194: 0 | AH194: 0 | AI194: 0 | AJ194: 0 | AK194: 0 | AL194: 4 | AM194: 23 | AN194: 0 | AO194: 0 | AP194: 1 | AQ194: 810 | AR194: 0 | AS194: 0 | AT194: 0 | AU194: 0 | AV194: 0 | AW194: 0 | AX194: 0 | AY194: 0 | AZ194: 0 | BA194: 0 | BB194: 0 | BC194: 0 | BD194: 0 | BE194: 0 | BF194: 0 | BG194: FALSE | BH194: FALSE | BK194: 0 | BO194: 0 | BP194: 0 | BQ194: 0 | BR194: 0 | BS194: N
AE195: =IF(ISBLANK($G195)," ",IF($D195="Z",#REF!,IF($G195=2,0,IF($G195=1,IF($AB195>$AD195,#REF!,0),IF($AB195<$AC195,#REF!,#REF!))))) ->  | AF195: =IF(ISBLANK($G195)," ",IF($D195="Z",#REF!+#REF!,IF($G195=2,#REF!+#REF!,IF($G195=1,IF($AB195>$AD195,#REF!+#REF!,#REF!+#REF!),IF($AB195<$AC195,#REF!+#REF!,#REF!+#REF!))))) ->  | AG195: 0 | AH195: 0 | AI195: 0 | AJ195: 0 | AK195: 0 | AL195: 4 | AM195: 23 | AN195: 0 | AO195: 0 | AP195: 1 | AQ195: 810 | AR195: 0 | AS195: 0 | AT195: 0 | AU195: 0 | AV195: 0 | AW195: 0 | AX195: 0 | AY195: 0 | AZ195: 0 | BA195: 0 | BB195: 0 | BC195: 0 | BD195: 0 | BE195: 0 | BF195: 0 | BG195: FALSE | BH195: FALSE | BK195: 0 | BO195: 0 | BP195: 0 | BQ195: 0 | BR195: 0 | BS195: N
AE196: =IF(ISBLANK($G196)," ",IF($D196="Z",#REF!,IF($G196=2,0,IF($G196=1,IF($AB196>$AD196,#REF!,0),IF($AB196<$AC196,#REF!,#REF!))))) ->  | AF196: =IF(ISBLANK($G196)," ",IF($D196="Z",#REF!+#REF!,IF($G196=2,#REF!+#REF!,IF($G196=1,IF($AB196>$AD196,#REF!+#REF!,#REF!+#REF!),IF($AB196<$AC196,#REF!+#REF!,#REF!+#REF!))))) ->  | AG196: 0 | AH196: 0 | AI196: 0 | AJ196: 0 | AK196: 0 | AL196: 4 | AM196: 23 | AN196: 0 | AO196: 0 | AP196: 1 | AQ196: 810 | AR196: 0 | AS196: 0 | AT196: 0 | AU196: 0 | AV196: 0 | AW196: 0 | AX196: 0 | AY196: 0 | AZ196: 0 | BA196: 0 | BB196: 0 | BC196: 0 | BD196: 0 | BE196: 0 | BF196: 0 | BG196: FALSE | BH196: FALSE | BK196: 0 | BO196: 0 | BP196: 0 | BQ196: 0 | BR196: 0 | BS196: N
AE197: =IF(ISBLANK($G197)," ",IF($D197="Z",#REF!,IF($G197=2,0,IF($G197=1,IF($AB197>$AD197,#REF!,0),IF($AB197<$AC197,#REF!,#REF!))))) ->  | AF197: =IF(ISBLANK($G197)," ",IF($D197="Z",#REF!+#REF!,IF($G197=2,#REF!+#REF!,IF($G197=1,IF($AB197>$AD197,#REF!+#REF!,#REF!+#REF!),IF($AB197<$AC197,#REF!+#REF!,#REF!+#REF!))))) ->  | AG197: 0 | AH197: 0 | AI197: 0 | AJ197: 0 | AK197: 0 | AL197: 4 | AM197: 23 | AN197: 0 | AO197: 0 | AP197: 1 | AQ197: 810 | AR197: 0 | AS197: 0 | AT197: 0 | AU197: 0 | AV197: 0 | AW197: 0 | AX197: 0 | AY197: 0 | AZ197: 0 | BA197: 0 | BB197: 0 | BC197: 0 | BD197: 0 | BE197: 0 | BF197: 0 | BG197: FALSE | BH197: FALSE | BK197: 0 | BO197: 0 | BP197: 0 | BQ197: 0 | BR197: 0 | BS197: N
AE198: =IF(ISBLANK($G198)," ",IF($D198="Z",#REF!,IF($G198=2,0,IF($G198=1,IF($AB198>$AD198,#REF!,0),IF($AB198<$AC198,#REF!,#REF!))))) ->  | AF198: =IF(ISBLANK($G198)," ",IF($D198="Z",#REF!+#REF!,IF($G198=2,#REF!+#REF!,IF($G198=1,IF($AB198>$AD198,#REF!+#REF!,#REF!+#REF!),IF($AB198<$AC198,#REF!+#REF!,#REF!+#REF!))))) ->  | AG198: 0 | AH198: 0 | AI198: 0 | AJ198: 0 | AK198: 0 | AL198: 4 | AM198: 23 | AN198: 0 | AO198: 0 | AP198: 1 | AQ198: 810 | AR198: 0 | AS198: 0 | AT198: 0 | AU198: 0 | AV198: 0 | AW198: 0 | AX198: 0 | AY198: 0 | AZ198: 0 | BA198: 0 | BB198: 0 | BC198: 0 | BD198: 0 | BE198: 0 | BF198: 0 | BG198: FALSE | BH198: FALSE | BK198: 0 | BO198: 0 | BP198: 0 | BQ198: 0 | BR198: 0 | BS198: N
AE199: =IF(ISBLANK($G199)," ",IF($D199="Z",#REF!,IF($G199=2,0,IF($G199=1,IF($AB199>$AD199,#REF!,0),IF($AB199<$AC199,#REF!,#REF!))))) ->  | AF199: =IF(ISBLANK($G199)," ",IF($D199="Z",#REF!+#REF!,IF($G199=2,#REF!+#REF!,IF($G199=1,IF($AB199>$AD199,#REF!+#REF!,#REF!+#REF!),IF($AB199<$AC199,#REF!+#REF!,#REF!+#REF!))))) ->  | AG199: 0 | AH199: 0 | AI199: 0 | AJ199: 0 | AK199: 0 | AL199: 4 | AM199: 23 | AN199: 0 | AO199: 0 | AP199: 1 | AQ199: 810 | AR199: 0 | AS199: 0 | AT199: 0 | AU199: 0 | AV199: 0 | AW199: 0 | AX199: 0 | AY199: 0 | AZ199: 0 | BA199: 0 | BB199: 0 | BC199: 0 | BD199: 0 | BE199: 0 | BF199: 0 | BG199: FALSE | BH199: FALSE | BK199: 0 | BO199: 0 | BP199: 0 | BQ199: 0 | BR199: 0 | BS199: N
AE200: =IF(ISBLANK($G200)," ",IF($D200="Z",#REF!,IF($G200=2,0,IF($G200=1,IF($AB200>$AD200,#REF!,0),IF($AB200<$AC200,#REF!,#REF!))))) ->  | AF200: =IF(ISBLANK($G200)," ",IF($D200="Z",#REF!+#REF!,IF($G200=2,#REF!+#REF!,IF($G200=1,IF($AB200>$AD200,#REF!+#REF!,#REF!+#REF!),IF($AB200<$AC200,#REF!+#REF!,#REF!+#REF!))))) ->  | AG200: 0 | AH200: 0 | AI200: 0 | AJ200: 0 | AK200: 0 | AL200: 4 | AM200: 23 | AN200: 0 | AO200: 0 | AP200: 1 | AQ200: 810 | AR200: 0 | AS200: 0 | AT200: 0 | AU200: 0 | AV200: 0 | AW200: 0 | AX200: 0 | AY200: 0 | AZ200: 0 | BA200: 0 | BB200: 0 | BC200: 0 | BD200: 0 | BE200: 0 | BF200: 0 | BG200: FALSE | BH200: FALSE | BK200: 0 | BO200: 0 | BP200: 0 | BQ200: 0 | BR200: 0 | BS200: N
AE201: =IF(ISBLANK($G201)," ",IF($D201="Z",#REF!,IF($G201=2,0,IF($G201=1,IF($AB201>$AD201,#REF!,0),IF($AB201<$AC201,#REF!,#REF!))))) ->  | AF201: =IF(ISBLANK($G201)," ",IF($D201="Z",#REF!+#REF!,IF($G201=2,#REF!+#REF!,IF($G201=1,IF($AB201>$AD201,#REF!+#REF!,#REF!+#REF!),IF($AB201<$AC201,#REF!+#REF!,#REF!+#REF!))))) ->  | AG201: 0 | AH201: 0 | AI201: 0 | AJ201: 0 | AK201: 0 | AL201: 4 | AM201: 23 | AN201: 0 | AO201: 0 | AP201: 1 | AQ201: 810 | AR201: 0 | AS201: 0 | AT201: 0 | AU201: 0 | AV201: 0 | AW201: 0 | AX201: 0 | AY201: 0 | AZ201: 0 | BA201: 0 | BB201: 0 | BC201: 0 | BD201: 0 | BE201: 0 | BF201: 0 | BG201: FALSE | BH201: FALSE | BK201: 0 | BO201: 0 | BP201: 0 | BQ201: 0 | BR201: 0 | BS201: N
... 819 more rows

Sheet Invalid NI#s (hidden)
A1: Listing of invalid NI#s that V3 system generated
A2: Last updated | B2: 2018-06-27 | D2: Source: invalid_nib_num.csv file in Invalid NI# folder on Actuary shared folder
D3: If new numbers were added when the program is ran the last modifed date will change to the current date
A4: 10673131 | D4: Sort in ascending order
A5: 10748131 | D5: Extend the data range for Named Range 'InvalidNINum'
A6: 10754131
A7: 10777131
A8: 10783131
A9: 10793161
A10: 10817141
A11: 10858131
A12: 10863151
A13: 10864131
A14: 10881141
A15: 10887131
A16: 10893131
A17: 10898141
A18: 10903161
A19: 10927141
A20: 10932161
A21: 10933141
A22: 10943171
A23: 10956141
A24: 10967151
A25: 10968131
A26: 10973151
A27: 10974131
A28: 10985141
A29: 10991141
A30: 10996151
A31: 10997131
A32: 11007151
A33: 11013151
A34: 11014131
A35: 11025141
A36: 11031141
A37: 11036151
A38: 11037131
A39: 11041171
A40: 11042151
A41: 11043131
A42: 11047161
A43: 11048141
A44: 11053161
A45: 11066271
A46: 11072131
A47: 11075181
A48: 11076161
A49: 11077141
A50: 11082161
A51: 11083141
A52: 11093171
A53: 11106141
A54: 11117151
A55: 11118131
A56: 11122171
A57: 11123151
A58: 11124131
A59: 11134161
A60: 11135141
A61: 11141141
A62: 11146151
A63: 11147131
A64: 11147271
A65: 11151171
A66: 11152151
A67: 11153131
A68: 11157161
A69: 11158141
A70: 11163161
A71: 11174171
A72: 11182131
A73: 11185181
A74: 11186161
A75: 11187141
A76: 11191181
A77: 11192161
A78: 11193141
A79: 11197171
A80: 11203171
A81: 11216141
A82: 11222141
A83: 11226171
A84: 11227151
A85: 11228131
A86: 11232171
A87: 11233151
A88: 11234131
A89: 11244161
A90: 11245141
A91: 11251141
A92: 11255171
A93: 11256151
A94: 11257131
A95: 11261171
A96: 11262151
A97: 11263131
A98: 11266181
A99: 11267161
A100: 11268141
A101: 11272181
A102: 11273161
A103: 11274141
A104: 11284171
A105: 11292131
A106: 11292271
A107: 11295181
A108: 11296161
A109: 11297141
A110: 11301181
A111: 11302161
A112: 11303141
A113: 11307171
A114: 11313171
A115: 11326141
A116: 11332141
A117: 11336171
A118: 11337151
A119: 11338131
A120: 11342171
A121: 11343151
A122: 11344131
A123: 11354161
A124: 11355141
A125: 11361141
A126: 11365171
A127: 11366151
A128: 11367131
A129: 11371171
A130: 11372151
A131: 11373131
A132: 11376181
A133: 11377161
A134: 11378141
A135: 11382181
A136: 11383161
A137: 11384141
A138: 11394171
A139: 11396131
A140: 11402131
A141: 11405181
A142: 11406161
A143: 11407141
A144: 11411181
A145: 11412161
A146: 11413141
A147: 11417171
A148: 11423171
A149: 11436141
A150: 11442141
A151: 11446171
A152: 11447151
A153: 11448131
A154: 11452171
A155: 11453151
A156: 11454131
A157: 11464161
A158: 11465141
A159: 11471141
A160: 11475171
A161: 11476151
A162: 11477131
A163: 11481171
A164: 11482151
A165: 11483131
A166: 11486181
A167: 11487161
A168: 11488141
A169: 11492181
A170: 11493161
A171: 11494141
A172: 11504171
A173: 11506131
A174: 11512131
A175: 11515181
A176: 11516161
A177: 11517141
A178: 11521181
A179: 11522161
A180: 11523141
A181: 11527171
A182: 11533171
A183: 11546141
A184: 11552141
A185: 11556171
A186: 11557151
A187: 11558131
A188: 11562171
A189: 11563151
A190: 11564131
A191: 11574161
A192: 11575141
A193: 11581141
A194: 11585171
A195: 11586151
A196: 11587131
A197: 11591171
A198: 11592151
A199: 11593131
A200: 11596181
... 4278 more rows

Sheet 1-Page C10 Rpt (hidden)
C1: Commonwealth of The Bahamas, The National Insurance Act, 1972 | L1: FORM C.10
C2: Computerized Employer Monthly Contribution Statement
B4: Employer: | C4: =CELL("contents",'C10 Entry Sheet'!C5) -> 12345 | D4: =CELL("contents",'C10 Entry Sheet'!G5) -> My Company Name Here
D5: =CELL("contents",'C10 Entry Sheet'!F6) -> Address : | I5: =CONCATENATE("Phone:"," ",CELL("contents",'C10 Entry Sheet'!G10)) -> Phone: 333-3333
D6: =CELL("contents",'C10 Entry Sheet'!G6) -> My Company Address Here | I6: =CONCATENATE("Fax:"," ",CELL("contents",'C10 Entry Sheet'!G12)) -> Fax: 322-2222
D7: =CELL("contents",'C10 Entry Sheet'!G7) -> My PO Box Here | I7: =CONCATENATE("Email:"," ",CELL("contents",'C10 Entry Sheet'!G13)) -> Email: myemailaddress@coralwave.com
D8: =CONCATENATE("Attn:"," ",CELL("contents",'C10 Entry Sheet'!G9)) -> Attn: Contact Person Name Here
B9: Month: | C9: =CELL("contents",'C10 Entry Sheet'!C6) -> July
B11: CERTIFICATION: I/We ceritify that the information given below is true and correct.
B13: Sherelle Saunders | D13: Sr. Manager Human Resourses | H13: __________________________ | K13: ________________________
B14: Name | D14: Position | H14: Signature | K14: Date
A16: PART 'A' RETURN OF CONTRIBUTIONS DUE THIS MONTH
A17: No. | B17: Employee's N.I.# | C17: Employee's Last Name | D17: Employee's First Name | E17: No. of Weeks | F17: Cont. Type | G17: Insurable Earnings | H17: Weekly/ Monthly | I17: Ret. Ind. | J17: Employee's Contributions | K17: Employer's Contributions | L17: Total Contributions
A18: 1 | B18: =IF(ISBLANK('C10 Entry Sheet'!A16)," ",CELL("contents",'C10 Entry Sheet'!A16)) -> 11867485 | C18: =IF(($B18=" ")," ",VLOOKUP($B18,'C10 Entry Sheet'!$A$16:$K$194,5,FALSE)) -> W | D18: =IF(($B18=" ")," ",VLOOKUP($B18,'C10 Entry Sheet'!$A$16:$K$194,6,FALSE)) -> 5 | E18: =IF(($B18=" ")," ",VLOOKUP($B18,'C10 Entry Sheet'!$A$16:$K$194,9,FALSE)) -> 188.33 | F18: =IF(($B18=" ")," ",VLOOKUP($B18,'C10 Entry Sheet'!$A$16:$K$194,7,FALSE)) -> 0 | G18: =IF(($B18=" ")," ",VLOOKUP($B18,'C10 Entry Sheet'!$A$16:$K$194,14,FALSE)) ->  | H18: =IF(($B18=" ")," ",VLOOKUP($B18,'C10 Entry Sheet'!$A$16:$K$194,8,FALSE)) -> 4050 | I18: =IF(($B18=" ")," ",VLOOKUP($B18,'C10 Entry Sheet'!$A$16:$K$194,13,FALSE)) ->  | J18: =IF(($B18=" ")," ",VLOOKUP($B18,'C10 Entry Sheet'!$A$16:$K$194,17,FALSE)) ->  | K18: =IF(($B18=" ")," ",VLOOKUP($B18,'C10 Entry Sheet'!$A$16:$K$194,19,FALSE)) ->  | L18: =IF(($B18=" ")," ",VLOOKUP($B18,'C10 Entry Sheet'!$A$16:$K$194,20,FALSE)) -> 
A19: =SUM(A18+1) -> 2 | B19: =IF(ISBLANK('C10 Entry Sheet'!A17)," ",CELL("contents",'C10 Entry Sheet'!A17)) ->  | C19: =IF(($B19=" ")," ",VLOOKUP($B19,'C10 Entry Sheet'!$A$16:$K$194,5,FALSE)) ->  | D19: =IF(($B19=" ")," ",VLOOKUP($B19,'C10 Entry Sheet'!$A$16:$K$194,6,FALSE)) ->  | E19: =IF(($B19=" ")," ",VLOOKUP($B19,'C10 Entry Sheet'!$A$16:$K$194,9,FALSE)) ->  | F19: =IF(($B19=" ")," ",VLOOKUP($B19,'C10 Entry Sheet'!$A$16:$K$194,7,FALSE)) ->  | G19: =IF(($B19=" ")," ",VLOOKUP($B19,'C10 Entry Sheet'!$A$16:$K$194,14,FALSE)) ->  | H19: =IF(($B19=" ")," ",VLOOKUP($B19,'C10 Entry Sheet'!$A$16:$K$194,8,FALSE)) ->  | I19: =IF(($B19=" ")," ",VLOOKUP($B19,'C10 Entry Sheet'!$A$16:$K$194,13,FALSE)) ->  | J19: =IF(($B19=" ")," ",VLOOKUP($B19,'C10 Entry Sheet'!$A$16:$K$194,17,FALSE)) ->  | K19: =IF(($B19=" ")," ",VLOOKUP($B19,'C10 Entry Sheet'!$A$16:$K$194,19,FALSE)) ->  | L19: =IF(($B19=" ")," ",VLOOKUP($B19,'C10 Entry Sheet'!$A$16:$K$194,20,FALSE)) -> 
A20: 3 | B20: =IF(ISBLANK('C10 Entry Sheet'!A18)," ",CELL("contents",'C10 Entry Sheet'!A18)) ->  | C20: =IF(($B20=" ")," ",VLOOKUP($B20,'C10 Entry Sheet'!$A$16:$K$194,5,FALSE)) ->  | D20: =IF(($B20=" ")," ",VLOOKUP($B20,'C10 Entry Sheet'!$A$16:$K$194,6,FALSE)) ->  | E20: =IF(($B20=" ")," ",VLOOKUP($B20,'C10 Entry Sheet'!$A$16:$K$194,9,FALSE)) ->  | F20: =IF(($B20=" ")," ",VLOOKUP($B20,'C10 Entry Sheet'!$A$16:$K$194,7,FALSE)) ->  | G20: =IF(($B20=" ")," ",VLOOKUP($B20,'C10 Entry Sheet'!$A$16:$K$194,14,FALSE)) ->  | H20: =IF(($B20=" ")," ",VLOOKUP($B20,'C10 Entry Sheet'!$A$16:$K$194,8,FALSE)) ->  | I20: =IF(($B20=" ")," ",VLOOKUP($B20,'C10 Entry Sheet'!$A$16:$K$194,13,FALSE)) ->  | J20: =IF(($B20=" ")," ",VLOOKUP($B20,'C10 Entry Sheet'!$A$16:$K$194,17,FALSE)) ->  | K20: =IF(($B20=" ")," ",VLOOKUP($B20,'C10 Entry Sheet'!$A$16:$K$194,19,FALSE)) ->  | L20: =IF(($B20=" ")," ",VLOOKUP($B20,'C10 Entry Sheet'!$A$16:$K$194,20,FALSE)) -> 
A21: 4 | B21: =IF(ISBLANK('C10 Entry Sheet'!A19)," ",CELL("contents",'C10 Entry Sheet'!A19)) ->  | C21: =IF(($B21=" ")," ",VLOOKUP($B21,'C10 Entry Sheet'!$A$16:$K$194,5,FALSE)) ->  | D21: =IF(($B21=" ")," ",VLOOKUP($B21,'C10 Entry Sheet'!$A$16:$K$194,6,FALSE)) ->  | E21: =IF(($B21=" ")," ",VLOOKUP($B21,'C10 Entry Sheet'!$A$16:$K$194,9,FALSE)) ->  | F21: =IF(($B21=" ")," ",VLOOKUP($B21,'C10 Entry Sheet'!$A$16:$K$194,7,FALSE)) ->  | G21: =IF(($B21=" ")," ",VLOOKUP($B21,'C10 Entry Sheet'!$A$16:$K$194,14,FALSE)) ->  | H21: =IF(($B21=" ")," ",VLOOKUP($B21,'C10 Entry Sheet'!$A$16:$K$194,8,FALSE)) ->  | I21: =IF(($B21=" ")," ",VLOOKUP($B21,'C10 Entry Sheet'!$A$16:$K$194,13,FALSE)) ->  | J21: =IF(($B21=" ")," ",VLOOKUP($B21,'C10 Entry Sheet'!$A$16:$K$194,17,FALSE)) ->  | K21: =IF(($B21=" ")," ",VLOOKUP($B21,'C10 Entry Sheet'!$A$16:$K$194,19,FALSE)) ->  | L21: =IF(($B21=" ")," ",VLOOKUP($B21,'C10 Entry Sheet'!$A$16:$K$194,20,FALSE)) -> 
A22: 5 | B22: =IF(ISBLANK('C10 Entry Sheet'!A20)," ",CELL("contents",'C10 Entry Sheet'!A20)) ->  | C22: =IF(($B22=" ")," ",VLOOKUP($B22,'C10 Entry Sheet'!$A$16:$K$194,5,FALSE)) ->  | D22: =IF(($B22=" ")," ",VLOOKUP($B22,'C10 Entry Sheet'!$A$16:$K$194,6,FALSE)) ->  | E22: =IF(($B22=" ")," ",VLOOKUP($B22,'C10 Entry Sheet'!$A$16:$K$194,9,FALSE)) ->  | F22: =IF(($B22=" ")," ",VLOOKUP($B22,'C10 Entry Sheet'!$A$16:$K$194,7,FALSE)) ->  | G22: =IF(($B22=" ")," ",VLOOKUP($B22,'C10 Entry Sheet'!$A$16:$K$194,14,FALSE)) ->  | H22: =IF(($B22=" ")," ",VLOOKUP($B22,'C10 Entry Sheet'!$A$16:$K$194,8,FALSE)) ->  | I22: =IF(($B22=" ")," ",VLOOKUP($B22,'C10 Entry Sheet'!$A$16:$K$194,13,FALSE)) ->  | J22: =IF(($B22=" ")," ",VLOOKUP($B22,'C10 Entry Sheet'!$A$16:$K$194,17,FALSE)) ->  | K22: =IF(($B22=" ")," ",VLOOKUP($B22,'C10 Entry Sheet'!$A$16:$K$194,19,FALSE)) ->  | L22: =IF(($B22=" ")," ",VLOOKUP($B22,'C10 Entry Sheet'!$A$16:$K$194,20,FALSE)) -> 
A23: 6 | B23: =IF(ISBLANK('C10 Entry Sheet'!A21)," ",CELL("contents",'C10 Entry Sheet'!A21)) ->  | C23: =IF(($B23=" ")," ",VLOOKUP($B23,'C10 Entry Sheet'!$A$16:$K$194,5,FALSE)) ->  | D23: =IF(($B23=" ")," ",VLOOKUP($B23,'C10 Entry Sheet'!$A$16:$K$194,6,FALSE)) ->  | E23: =IF(($B23=" ")," ",VLOOKUP($B23,'C10 Entry Sheet'!$A$16:$K$194,9,FALSE)) ->  | F23: =IF(($B23=" ")," ",VLOOKUP($B23,'C10 Entry Sheet'!$A$16:$K$194,7,FALSE)) ->  | G23: =IF(($B23=" ")," ",VLOOKUP($B23,'C10 Entry Sheet'!$A$16:$K$194,14,FALSE)) ->  | H23: =IF(($B23=" ")," ",VLOOKUP($B23,'C10 Entry Sheet'!$A$16:$K$194,8,FALSE)) ->  | I23: =IF(($B23=" ")," ",VLOOKUP($B23,'C10 Entry Sheet'!$A$16:$K$194,13,FALSE)) ->  | J23: =IF(($B23=" ")," ",VLOOKUP($B23,'C10 Entry Sheet'!$A$16:$K$194,17,FALSE)) ->  | K23: =IF(($B23=" ")," ",VLOOKUP($B23,'C10 Entry Sheet'!$A$16:$K$194,19,FALSE)) ->  | L23: =IF(($B23=" ")," ",VLOOKUP($B23,'C10 Entry Sheet'!$A$16:$K$194,20,FALSE)) -> 
A24: 7 | B24: =IF(ISBLANK('C10 Entry Sheet'!A22)," ",CELL("contents",'C10 Entry Sheet'!A22)) ->  | C24: =IF(($B24=" ")," ",VLOOKUP($B24,'C10 Entry Sheet'!$A$16:$K$194,5,FALSE)) ->  | D24: =IF(($B24=" ")," ",VLOOKUP($B24,'C10 Entry Sheet'!$A$16:$K$194,6,FALSE)) ->  | E24: =IF(($B24=" ")," ",VLOOKUP($B24,'C10 Entry Sheet'!$A$16:$K$194,9,FALSE)) ->  | F24: =IF(($B24=" ")," ",VLOOKUP($B24,'C10 Entry Sheet'!$A$16:$K$194,7,FALSE)) ->  | G24: =IF(($B24=" ")," ",VLOOKUP($B24,'C10 Entry Sheet'!$A$16:$K$194,14,FALSE)) ->  | H24: =IF(($B24=" ")," ",VLOOKUP($B24,'C10 Entry Sheet'!$A$16:$K$194,8,FALSE)) ->  | I24: =IF(($B24=" ")," ",VLOOKUP($B24,'C10 Entry Sheet'!$A$16:$K$194,13,FALSE)) ->  | J24: =IF(($B24=" ")," ",VLOOKUP($B24,'C10 Entry Sheet'!$A$16:$K$194,17,FALSE)) ->  | K24: =IF(($B24=" ")," ",VLOOKUP($B24,'C10 Entry Sheet'!$A$16:$K$194,19,FALSE)) ->  | L24: =IF(($B24=" ")," ",VLOOKUP($B24,'C10 Entry Sheet'!$A$16:$K$194,20,FALSE)) -> 
A25: 8 | B25: =IF(ISBLANK('C10 Entry Sheet'!A23)," ",CELL("contents",'C10 Entry Sheet'!A23)) ->  | C25: =IF(($B25=" ")," ",VLOOKUP($B25,'C10 Entry Sheet'!$A$16:$K$194,5,FALSE)) ->  | D25: =IF(($B25=" ")," ",VLOOKUP($B25,'C10 Entry Sheet'!$A$16:$K$194,6,FALSE)) ->  | E25: =IF(($B25=" ")," ",VLOOKUP($B25,'C10 Entry Sheet'!$A$16:$K$194,9,FALSE)) ->  | F25: =IF(($B25=" ")," ",VLOOKUP($B25,'C10 Entry Sheet'!$A$16:$K$194,7,FALSE)) ->  | G25: =IF(($B25=" ")," ",VLOOKUP($B25,'C10 Entry Sheet'!$A$16:$K$194,14,FALSE)) ->  | H25: =IF(($B25=" ")," ",VLOOKUP($B25,'C10 Entry Sheet'!$A$16:$K$194,8,FALSE)) ->  | I25: =IF(($B25=" ")," ",VLOOKUP($B25,'C10 Entry Sheet'!$A$16:$K$194,13,FALSE)) ->  | J25: =IF(($B25=" ")," ",VLOOKUP($B25,'C10 Entry Sheet'!$A$16:$K$194,17,FALSE)) ->  | K25: =IF(($B25=" ")," ",VLOOKUP($B25,'C10 Entry Sheet'!$A$16:$K$194,19,FALSE)) ->  | L25: =IF(($B25=" ")," ",VLOOKUP($B25,'C10 Entry Sheet'!$A$16:$K$194,20,FALSE)) -> 
A26: 9 | B26: =IF(ISBLANK('C10 Entry Sheet'!A24)," ",CELL("contents",'C10 Entry Sheet'!A24)) ->  | C26: =IF(($B26=" ")," ",VLOOKUP($B26,'C10 Entry Sheet'!$A$16:$K$194,5,FALSE)) ->  | D26: =IF(($B26=" ")," ",VLOOKUP($B26,'C10 Entry Sheet'!$A$16:$K$194,6,FALSE)) ->  | E26: =IF(($B26=" ")," ",VLOOKUP($B26,'C10 Entry Sheet'!$A$16:$K$194,9,FALSE)) ->  | F26: =IF(($B26=" ")," ",VLOOKUP($B26,'C10 Entry Sheet'!$A$16:$K$194,7,FALSE)) ->  | G26: =IF(($B26=" ")," ",VLOOKUP($B26,'C10 Entry Sheet'!$A$16:$K$194,14,FALSE)) ->  | H26: =IF(($B26=" ")," ",VLOOKUP($B26,'C10 Entry Sheet'!$A$16:$K$194,8,FALSE)) ->  | I26: =IF(($B26=" ")," ",VLOOKUP($B26,'C10 Entry Sheet'!$A$16:$K$194,13,FALSE)) ->  | J26: =IF(($B26=" ")," ",VLOOKUP($B26,'C10 Entry Sheet'!$A$16:$K$194,17,FALSE)) ->  | K26: =IF(($B26=" ")," ",VLOOKUP($B26,'C10 Entry Sheet'!$A$16:$K$194,19,FALSE)) ->  | L26: =IF(($B26=" ")," ",VLOOKUP($B26,'C10 Entry Sheet'!$A$16:$K$194,20,FALSE)) -> 
A27: 10 | B27: =IF(ISBLANK('C10 Entry Sheet'!A25)," ",CELL("contents",'C10 Entry Sheet'!A25)) ->  | C27: =IF(($B27=" ")," ",VLOOKUP($B27,'C10 Entry Sheet'!$A$16:$K$194,5,FALSE)) ->  | D27: =IF(($B27=" ")," ",VLOOKUP($B27,'C10 Entry Sheet'!$A$16:$K$194,6,FALSE)) ->  | E27: =IF(($B27=" ")," ",VLOOKUP($B27,'C10 Entry Sheet'!$A$16:$K$194,9,FALSE)) ->  | F27: =IF(($B27=" ")," ",VLOOKUP($B27,'C10 Entry Sheet'!$A$16:$K$194,7,FALSE)) ->  | G27: =IF(($B27=" ")," ",VLOOKUP($B27,'C10 Entry Sheet'!$A$16:$K$194,14,FALSE)) ->  | H27: =IF(($B27=" ")," ",VLOOKUP($B27,'C10 Entry Sheet'!$A$16:$K$194,8,FALSE)) ->  | I27: =IF(($B27=" ")," ",VLOOKUP($B27,'C10 Entry Sheet'!$A$16:$K$194,13,FALSE)) ->  | J27: =IF(($B27=" ")," ",VLOOKUP($B27,'C10 Entry Sheet'!$A$16:$K$194,17,FALSE)) ->  | K27: =IF(($B27=" ")," ",VLOOKUP($B27,'C10 Entry Sheet'!$A$16:$K$194,19,FALSE)) ->  | L27: =IF(($B27=" ")," ",VLOOKUP($B27,'C10 Entry Sheet'!$A$16:$K$194,20,FALSE)) -> 
A28: 11 | B28: =IF(ISBLANK('C10 Entry Sheet'!A26)," ",CELL("contents",'C10 Entry Sheet'!A26)) ->  | C28: =IF(($B28=" ")," ",VLOOKUP($B28,'C10 Entry Sheet'!$A$16:$K$194,5,FALSE)) ->  | D28: =IF(($B28=" ")," ",VLOOKUP($B28,'C10 Entry Sheet'!$A$16:$K$194,6,FALSE)) ->  | E28: =IF(($B28=" ")," ",VLOOKUP($B28,'C10 Entry Sheet'!$A$16:$K$194,9,FALSE)) ->  | F28: =IF(($B28=" ")," ",VLOOKUP($B28,'C10 Entry Sheet'!$A$16:$K$194,7,FALSE)) ->  | G28: =IF(($B28=" ")," ",VLOOKUP($B28,'C10 Entry Sheet'!$A$16:$K$194,14,FALSE)) ->  | H28: =IF(($B28=" ")," ",VLOOKUP($B28,'C10 Entry Sheet'!$A$16:$K$194,8,FALSE)) ->  | I28: =IF(($B28=" ")," ",VLOOKUP($B28,'C10 Entry Sheet'!$A$16:$K$194,13,FALSE)) ->  | J28: =IF(($B28=" ")," ",VLOOKUP($B28,'C10 Entry Sheet'!$A$16:$K$194,17,FALSE)) ->  | K28: =IF(($B28=" ")," ",VLOOKUP($B28,'C10 Entry Sheet'!$A$16:$K$194,19,FALSE)) ->  | L28: =IF(($B28=" ")," ",VLOOKUP($B28,'C10 Entry Sheet'!$A$16:$K$194,20,FALSE)) -> 
A29: 12 | B29: =IF(ISBLANK('C10 Entry Sheet'!A27)," ",CELL("contents",'C10 Entry Sheet'!A27)) ->  | C29: =IF(($B29=" ")," ",VLOOKUP($B29,'C10 Entry Sheet'!$A$16:$K$194,5,FALSE)) ->  | D29: =IF(($B29=" ")," ",VLOOKUP($B29,'C10 Entry Sheet'!$A$16:$K$194,6,FALSE)) ->  | E29: =IF(($B29=" ")," ",VLOOKUP($B29,'C10 Entry Sheet'!$A$16:$K$194,9,FALSE)) ->  | F29: =IF(($B29=" ")," ",VLOOKUP($B29,'C10 Entry Sheet'!$A$16:$K$194,7,FALSE)) ->  | G29: =IF(($B29=" ")," ",VLOOKUP($B29,'C10 Entry Sheet'!$A$16:$K$194,14,FALSE)) ->  | H29: =IF(($B29=" ")," ",VLOOKUP($B29,'C10 Entry Sheet'!$A$16:$K$194,8,FALSE)) ->  | I29: =IF(($B29=" ")," ",VLOOKUP($B29,'C10 Entry Sheet'!$A$16:$K$194,13,FALSE)) ->  | J29: =IF(($B29=" ")," ",VLOOKUP($B29,'C10 Entry Sheet'!$A$16:$K$194,17,FALSE)) ->  | K29: =IF(($B29=" ")," ",VLOOKUP($B29,'C10 Entry Sheet'!$A$16:$K$194,19,FALSE)) ->  | L29: =IF(($B29=" ")," ",VLOOKUP($B29,'C10 Entry Sheet'!$A$16:$K$194,20,FALSE)) -> 
A30: 13 | B30: =IF(ISBLANK('C10 Entry Sheet'!A28)," ",CELL("contents",'C10 Entry Sheet'!A28)) ->  | C30: =IF(($B30=" ")," ",VLOOKUP($B30,'C10 Entry Sheet'!$A$16:$K$194,5,FALSE)) ->  | D30: =IF(($B30=" ")," ",VLOOKUP($B30,'C10 Entry Sheet'!$A$16:$K$194,6,FALSE)) ->  | E30: =IF(($B30=" ")," ",VLOOKUP($B30,'C10 Entry Sheet'!$A$16:$K$194,9,FALSE)) ->  | F30: =IF(($B30=" ")," ",VLOOKUP($B30,'C10 Entry Sheet'!$A$16:$K$194,7,FALSE)) ->  | G30: =IF(($B30=" ")," ",VLOOKUP($B30,'C10 Entry Sheet'!$A$16:$K$194,14,FALSE)) ->  | H30: =IF(($B30=" ")," ",VLOOKUP($B30,'C10 Entry Sheet'!$A$16:$K$194,8,FALSE)) ->  | I30: =IF(($B30=" ")," ",VLOOKUP($B30,'C10 Entry Sheet'!$A$16:$K$194,13,FALSE)) ->  | J30: =IF(($B30=" ")," ",VLOOKUP($B30,'C10 Entry Sheet'!$A$16:$K$194,17,FALSE)) ->  | K30: =IF(($B30=" ")," ",VLOOKUP($B30,'C10 Entry Sheet'!$A$16:$K$194,19,FALSE)) ->  | L30: =IF(($B30=" ")," ",VLOOKUP($B30,'C10 Entry Sheet'!$A$16:$K$194,20,FALSE)) -> 
A31: 14 | B31: =IF(ISBLANK('C10 Entry Sheet'!A29)," ",CELL("contents",'C10 Entry Sheet'!A29)) ->  | C31: =IF(($B31=" ")," ",VLOOKUP($B31,'C10 Entry Sheet'!$A$16:$K$194,5,FALSE)) ->  | D31: =IF(($B31=" ")," ",VLOOKUP($B31,'C10 Entry Sheet'!$A$16:$K$194,6,FALSE)) ->  | E31: =IF(($B31=" ")," ",VLOOKUP($B31,'C10 Entry Sheet'!$A$16:$K$194,9,FALSE)) ->  | F31: =IF(($B31=" ")," ",VLOOKUP($B31,'C10 Entry Sheet'!$A$16:$K$194,7,FALSE)) ->  | G31: =IF(($B31=" ")," ",VLOOKUP($B31,'C10 Entry Sheet'!$A$16:$K$194,14,FALSE)) ->  | H31: =IF(($B31=" ")," ",VLOOKUP($B31,'C10 Entry Sheet'!$A$16:$K$194,8,FALSE)) ->  | I31: =IF(($B31=" ")," ",VLOOKUP($B31,'C10 Entry Sheet'!$A$16:$K$194,13,FALSE)) ->  | J31: =IF(($B31=" ")," ",VLOOKUP($B31,'C10 Entry Sheet'!$A$16:$K$194,17,FALSE)) ->  | K31: =IF(($B31=" ")," ",VLOOKUP($B31,'C10 Entry Sheet'!$A$16:$K$194,19,FALSE)) ->  | L31: =IF(($B31=" ")," ",VLOOKUP($B31,'C10 Entry Sheet'!$A$16:$K$194,20,FALSE)) -> 
A32: 15 | B32: =IF(ISBLANK('C10 Entry Sheet'!A30)," ",CELL("contents",'C10 Entry Sheet'!A30)) ->  | C32: =IF(($B32=" ")," ",VLOOKUP($B32,'C10 Entry Sheet'!$A$16:$K$194,5,FALSE)) ->  | D32: =IF(($B32=" ")," ",VLOOKUP($B32,'C10 Entry Sheet'!$A$16:$K$194,6,FALSE)) ->  | E32: =IF(($B32=" ")," ",VLOOKUP($B32,'C10 Entry Sheet'!$A$16:$K$194,9,FALSE)) ->  | F32: =IF(($B32=" ")," ",VLOOKUP($B32,'C10 Entry Sheet'!$A$16:$K$194,7,FALSE)) ->  | G32: =IF(($B32=" ")," ",VLOOKUP($B32,'C10 Entry Sheet'!$A$16:$K$194,14,FALSE)) ->  | H32: =IF(($B32=" ")," ",VLOOKUP($B32,'C10 Entry Sheet'!$A$16:$K$194,8,FALSE)) ->  | I32: =IF(($B32=" ")," ",VLOOKUP($B32,'C10 Entry Sheet'!$A$16:$K$194,13,FALSE)) ->  | J32: =IF(($B32=" ")," ",VLOOKUP($B32,'C10 Entry Sheet'!$A$16:$K$194,17,FALSE)) ->  | K32: =IF(($B32=" ")," ",VLOOKUP($B32,'C10 Entry Sheet'!$A$16:$K$194,19,FALSE)) ->  | L32: =IF(($B32=" ")," ",VLOOKUP($B32,'C10 Entry Sheet'!$A$16:$K$194,20,FALSE)) -> 
A33: 16 | B33: =IF(ISBLANK('C10 Entry Sheet'!A31)," ",CELL("contents",'C10 Entry Sheet'!A31)) ->  | C33: =IF(($B33=" ")," ",VLOOKUP($B33,'C10 Entry Sheet'!$A$16:$K$194,5,FALSE)) ->  | D33: =IF(($B33=" ")," ",VLOOKUP($B33,'C10 Entry Sheet'!$A$16:$K$194,6,FALSE)) ->  | E33: =IF(($B33=" ")," ",VLOOKUP($B33,'C10 Entry Sheet'!$A$16:$K$194,9,FALSE)) ->  | F33: =IF(($B33=" ")," ",VLOOKUP($B33,'C10 Entry Sheet'!$A$16:$K$194,7,FALSE)) ->  | G33: =IF(($B33=" ")," ",VLOOKUP($B33,'C10 Entry Sheet'!$A$16:$K$194,14,FALSE)) ->  | H33: =IF(($B33=" ")," ",VLOOKUP($B33,'C10 Entry Sheet'!$A$16:$K$194,8,FALSE)) ->  | I33: =IF(($B33=" ")," ",VLOOKUP($B33,'C10 Entry Sheet'!$A$16:$K$194,13,FALSE)) ->  | J33: =IF(($B33=" ")," ",VLOOKUP($B33,'C10 Entry Sheet'!$A$16:$K$194,17,FALSE)) ->  | K33: =IF(($B33=" ")," ",VLOOKUP($B33,'C10 Entry Sheet'!$A$16:$K$194,19,FALSE)) ->  | L33: =IF(($B33=" ")," ",VLOOKUP($B33,'C10 Entry Sheet'!$A$16:$K$194,20,FALSE)) -> 
A34: 17 | B34: =IF(ISBLANK('C10 Entry Sheet'!A32)," ",CELL("contents",'C10 Entry Sheet'!A32)) ->  | C34: =IF(($B34=" ")," ",VLOOKUP($B34,'C10 Entry Sheet'!$A$16:$K$194,5,FALSE)) ->  | D34: =IF(($B34=" ")," ",VLOOKUP($B34,'C10 Entry Sheet'!$A$16:$K$194,6,FALSE)) ->  | E34: =IF(($B34=" ")," ",VLOOKUP($B34,'C10 Entry Sheet'!$A$16:$K$194,9,FALSE)) ->  | F34: =IF(($B34=" ")," ",VLOOKUP($B34,'C10 Entry Sheet'!$A$16:$K$194,7,FALSE)) ->  | G34: =IF(($B34=" ")," ",VLOOKUP($B34,'C10 Entry Sheet'!$A$16:$K$194,14,FALSE)) ->  | H34: =IF(($B34=" ")," ",VLOOKUP($B34,'C10 Entry Sheet'!$A$16:$K$194,8,FALSE)) ->  | I34: =IF(($B34=" ")," ",VLOOKUP($B34,'C10 Entry Sheet'!$A$16:$K$194,13,FALSE)) ->  | J34: =IF(($B34=" ")," ",VLOOKUP($B34,'C10 Entry Sheet'!$A$16:$K$194,17,FALSE)) ->  | K34: =IF(($B34=" ")," ",VLOOKUP($B34,'C10 Entry Sheet'!$A$16:$K$194,19,FALSE)) ->  | L34: =IF(($B34=" ")," ",VLOOKUP($B34,'C10 Entry Sheet'!$A$16:$K$194,20,FALSE)) -> 
A35: 18 | B35: =IF(ISBLANK('C10 Entry Sheet'!A33)," ",CELL("contents",'C10 Entry Sheet'!A33)) ->  | C35: =IF(($B35=" ")," ",VLOOKUP($B35,'C10 Entry Sheet'!$A$16:$K$194,5,FALSE)) ->  | D35: =IF(($B35=" ")," ",VLOOKUP($B35,'C10 Entry Sheet'!$A$16:$K$194,6,FALSE)) ->  | E35: =IF(($B35=" ")," ",VLOOKUP($B35,'C10 Entry Sheet'!$A$16:$K$194,9,FALSE)) ->  | F35: =IF(($B35=" ")," ",VLOOKUP($B35,'C10 Entry Sheet'!$A$16:$K$194,7,FALSE)) ->  | G35: =IF(($B35=" ")," ",VLOOKUP($B35,'C10 Entry Sheet'!$A$16:$K$194,14,FALSE)) ->  | H35: =IF(($B35=" ")," ",VLOOKUP($B35,'C10 Entry Sheet'!$A$16:$K$194,8,FALSE)) ->  | I35: =IF(($B35=" ")," ",VLOOKUP($B35,'C10 Entry Sheet'!$A$16:$K$194,13,FALSE)) ->  | J35: =IF(($B35=" ")," ",VLOOKUP($B35,'C10 Entry Sheet'!$A$16:$K$194,17,FALSE)) ->  | K35: =IF(($B35=" ")," ",VLOOKUP($B35,'C10 Entry Sheet'!$A$16:$K$194,19,FALSE)) ->  | L35: =IF(($B35=" ")," ",VLOOKUP($B35,'C10 Entry Sheet'!$A$16:$K$194,20,FALSE)) -> 
A36: 19 | B36: =IF(ISBLANK('C10 Entry Sheet'!A34)," ",CELL("contents",'C10 Entry Sheet'!A34)) ->  | C36: =IF(($B36=" ")," ",VLOOKUP($B36,'C10 Entry Sheet'!$A$16:$K$194,5,FALSE)) ->  | D36: =IF(($B36=" ")," ",VLOOKUP($B36,'C10 Entry Sheet'!$A$16:$K$194,6,FALSE)) ->  | E36: =IF(($B36=" ")," ",VLOOKUP($B36,'C10 Entry Sheet'!$A$16:$K$194,9,FALSE)) ->  | F36: =IF(($B36=" ")," ",VLOOKUP($B36,'C10 Entry Sheet'!$A$16:$K$194,7,FALSE)) ->  | G36: =IF(($B36=" ")," ",VLOOKUP($B36,'C10 Entry Sheet'!$A$16:$K$194,14,FALSE)) ->  | H36: =IF(($B36=" ")," ",VLOOKUP($B36,'C10 Entry Sheet'!$A$16:$K$194,8,FALSE)) ->  | I36: =IF(($B36=" ")," ",VLOOKUP($B36,'C10 Entry Sheet'!$A$16:$K$194,13,FALSE)) ->  | J36: =IF(($B36=" ")," ",VLOOKUP($B36,'C10 Entry Sheet'!$A$16:$K$194,17,FALSE)) ->  | K36: =IF(($B36=" ")," ",VLOOKUP($B36,'C10 Entry Sheet'!$A$16:$K$194,19,FALSE)) ->  | L36: =IF(($B36=" ")," ",VLOOKUP($B36,'C10 Entry Sheet'!$A$16:$K$194,20,FALSE)) -> 
A37: =SUM(A36+1) -> 20 | B37: =IF(ISBLANK('C10 Entry Sheet'!A35)," ",CELL("contents",'C10 Entry Sheet'!A35)) ->  | C37: =IF(($B37=" ")," ",VLOOKUP($B37,'C10 Entry Sheet'!$A$16:$K$194,5,FALSE)) ->  | D37: =IF(($B37=" ")," ",VLOOKUP($B37,'C10 Entry Sheet'!$A$16:$K$194,6,FALSE)) ->  | E37: =IF(($B37=" ")," ",VLOOKUP($B37,'C10 Entry Sheet'!$A$16:$K$194,9,FALSE)) ->  | F37: =IF(($B37=" ")," ",VLOOKUP($B37,'C10 Entry Sheet'!$A$16:$K$194,7,FALSE)) ->  | G37: =IF(($B37=" ")," ",VLOOKUP($B37,'C10 Entry Sheet'!$A$16:$K$194,14,FALSE)) ->  | H37: =IF(($B37=" ")," ",VLOOKUP($B37,'C10 Entry Sheet'!$A$16:$K$194,8,FALSE)) ->  | I37: =IF(($B37=" ")," ",VLOOKUP($B37,'C10 Entry Sheet'!$A$16:$K$194,13,FALSE)) ->  | J37: =IF(($B37=" ")," ",VLOOKUP($B37,'C10 Entry Sheet'!$A$16:$K$194,17,FALSE)) ->  | K37: =IF(($B37=" ")," ",VLOOKUP($B37,'C10 Entry Sheet'!$A$16:$K$194,19,FALSE)) ->  | L37: =IF(($B37=" ")," ",VLOOKUP($B37,'C10 Entry Sheet'!$A$16:$K$194,20,FALSE)) -> 
A38: =SUM(A37+1) -> 21 | B38: =IF(ISBLANK('C10 Entry Sheet'!A36)," ",CELL("contents",'C10 Entry Sheet'!A36)) ->  | C38: =IF(($B38=" ")," ",VLOOKUP($B38,'C10 Entry Sheet'!$A$16:$K$194,5,FALSE)) ->  | D38: =IF(($B38=" ")," ",VLOOKUP($B38,'C10 Entry Sheet'!$A$16:$K$194,6,FALSE)) ->  | E38: =IF(($B38=" ")," ",VLOOKUP($B38,'C10 Entry Sheet'!$A$16:$K$194,9,FALSE)) ->  | F38: =IF(($B38=" ")," ",VLOOKUP($B38,'C10 Entry Sheet'!$A$16:$K$194,7,FALSE)) ->  | G38: =IF(($B38=" ")," ",VLOOKUP($B38,'C10 Entry Sheet'!$A$16:$K$194,14,FALSE)) ->  | H38: =IF(($B38=" ")," ",VLOOKUP($B38,'C10 Entry Sheet'!$A$16:$K$194,8,FALSE)) ->  | I38: =IF(($B38=" ")," ",VLOOKUP($B38,'C10 Entry Sheet'!$A$16:$K$194,13,FALSE)) ->  | J38: =IF(($B38=" ")," ",VLOOKUP($B38,'C10 Entry Sheet'!$A$16:$K$194,17,FALSE)) ->  | K38: =IF(($B38=" ")," ",VLOOKUP($B38,'C10 Entry Sheet'!$A$16:$K$194,19,FALSE)) ->  | L38: =IF(($B38=" ")," ",VLOOKUP($B38,'C10 Entry Sheet'!$A$16:$K$194,20,FALSE)) -> 
A39: =SUM(A38+1) -> 22 | B39: =IF(ISBLANK('C10 Entry Sheet'!A50)," ",CELL("contents",'C10 Entry Sheet'!A50)) ->  | C39: =IF(($B39=" ")," ",VLOOKUP($B39,'C10 Entry Sheet'!$A$16:$K$194,5,FALSE)) ->  | D39: =IF(($B39=" ")," ",VLOOKUP($B39,'C10 Entry Sheet'!$A$16:$K$194,6,FALSE)) ->  | E39: =IF(($B39=" ")," ",VLOOKUP($B39,'C10 Entry Sheet'!$A$16:$K$194,9,FALSE)) ->  | F39: =IF(($B39=" ")," ",VLOOKUP($B39,'C10 Entry Sheet'!$A$16:$K$194,7,FALSE)) ->  | G39: =IF(($B39=" ")," ",VLOOKUP($B39,'C10 Entry Sheet'!$A$16:$K$194,14,FALSE)) ->  | H39: =IF(($B39=" ")," ",VLOOKUP($B39,'C10 Entry Sheet'!$A$16:$K$194,8,FALSE)) ->  | I39: =IF(($B39=" ")," ",VLOOKUP($B39,'C10 Entry Sheet'!$A$16:$K$194,13,FALSE)) ->  | J39: =IF(($B39=" ")," ",VLOOKUP($B39,'C10 Entry Sheet'!$A$16:$K$194,17,FALSE)) ->  | K39: =IF(($B39=" ")," ",VLOOKUP($B39,'C10 Entry Sheet'!$A$16:$K$194,19,FALSE)) ->  | L39: =IF(($B39=" ")," ",VLOOKUP($B39,'C10 Entry Sheet'!$A$16:$K$194,20,FALSE)) -> 
H40: TOTAL CONTRIBUTIONS DUE | J40: =SUM(J18:J39) ->  | K40: =SUM(K18:K39) ->  | L40: =SUM(L18:L39) -> 

Sheet 2-Page C10 Rpt (hidden)
C1: Commonwealth of The Bahamas, The National Insurance Act, 1972 | L1: FORM C.10
C2: Computerized Employer Monthly Contribution Statement
B4: Employer: | C4: =CELL("contents",'C10 Entry Sheet'!C5) -> 12345 | D4: =CELL("contents",'C10 Entry Sheet'!G5) -> My Company Name Here
D5: =CELL("contents",'C10 Entry Sheet'!F6) -> Address : | I5: =CONCATENATE("Phone:"," ",CELL("contents",'C10 Entry Sheet'!G10)) -> Phone: 333-3333
D6: =CELL("contents",'C10 Entry Sheet'!G6) -> My Company Address Here | I6: =CONCATENATE("Fax:"," ",CELL("contents",'C10 Entry Sheet'!G12)) -> Fax: 322-2222
D7: =CELL("contents",'C10 Entry Sheet'!G7) -> My PO Box Here | I7: =CONCATENATE("Email:"," ",CELL("contents",'C10 Entry Sheet'!G13)) -> Email: myemailaddress@coralwave.com
D8: =CONCATENATE("Attn:"," ",CELL("contents",'C10 Entry Sheet'!G9)) -> Attn: Contact Person Name Here
B9: Month: | C9: =CELL("contents",'C10 Entry Sheet'!C6) -> July
B11: CERTIFICATION: I/We ceritify that the information given below is true and correct.
B13: _____________________________ | D13: ___________________________________ | H13: __________________________ | K13: ________________________
B14: Name | D14: Position | H14: Signature | K14: Date
A16: PART 'A' RETURN OF CONTRIBUTIONS DUE THIS MONTH
A17: No. | B17: Employee's N.I.# | C17: Employee's Last Name | D17: Employee's First Name | E17: No. of Weeks | F17: Cont. Type | G17: Insurable Earnings | H17: Weekly/ Monthly | I17: Ret. Ind. | J17: Employee's Contributions | K17: Employer's Contributions | L17: Total Contributions
A18: 1 | B18: =IF(ISBLANK('C10 Entry Sheet'!A16)," ",CELL("contents",'C10 Entry Sheet'!A16)) -> 11867485 | C18: =IF(($B18=" ")," ",VLOOKUP($B18,'C10 Entry Sheet'!$A$16:$K$194,5,FALSE)) -> W | D18: =IF(($B18=" ")," ",VLOOKUP($B18,'C10 Entry Sheet'!$A$16:$K$194,6,FALSE)) -> 5 | E18: =IF(($B18=" ")," ",VLOOKUP($B18,'C10 Entry Sheet'!$A$16:$K$194,9,FALSE)) -> 188.33 | F18: =IF(($B18=" ")," ",VLOOKUP($B18,'C10 Entry Sheet'!$A$16:$K$194,7,FALSE)) -> 0 | G18: =IF(($B18=" ")," ",VLOOKUP($B18,'C10 Entry Sheet'!$A$16:$K$194,14,FALSE)) ->  | H18: =IF(($B18=" ")," ",VLOOKUP($B18,'C10 Entry Sheet'!$A$16:$K$194,8,FALSE)) -> 4050 | I18: =IF(($B18=" ")," ",VLOOKUP($B18,'C10 Entry Sheet'!$A$16:$K$194,13,FALSE)) ->  | J18: =IF(($B18=" ")," ",VLOOKUP($B18,'C10 Entry Sheet'!$A$16:$K$194,17,FALSE)) ->  | K18: =IF(($B18=" ")," ",VLOOKUP($B18,'C10 Entry Sheet'!$A$16:$K$194,19,FALSE)) ->  | L18: =IF(($B18=" ")," ",VLOOKUP($B18,'C10 Entry Sheet'!$A$16:$K$194,20,FALSE)) -> 
A19: =SUM(A18+1) -> 2 | B19: =IF(ISBLANK('C10 Entry Sheet'!A17)," ",CELL("contents",'C10 Entry Sheet'!A17)) ->  | C19: =IF(($B19=" ")," ",VLOOKUP($B19,'C10 Entry Sheet'!$A$16:$K$194,5,FALSE)) ->  | D19: =IF(($B19=" ")," ",VLOOKUP($B19,'C10 Entry Sheet'!$A$16:$K$194,6,FALSE)) ->  | E19: =IF(($B19=" ")," ",VLOOKUP($B19,'C10 Entry Sheet'!$A$16:$K$194,9,FALSE)) ->  | F19: =IF(($B19=" ")," ",VLOOKUP($B19,'C10 Entry Sheet'!$A$16:$K$194,7,FALSE)) ->  | G19: =IF(($B19=" ")," ",VLOOKUP($B19,'C10 Entry Sheet'!$A$16:$K$194,14,FALSE)) ->  | H19: =IF(($B19=" ")," ",VLOOKUP($B19,'C10 Entry Sheet'!$A$16:$K$194,8,FALSE)) ->  | I19: =IF(($B19=" ")," ",VLOOKUP($B19,'C10 Entry Sheet'!$A$16:$K$194,13,FALSE)) ->  | J19: =IF(($B19=" ")," ",VLOOKUP($B19,'C10 Entry Sheet'!$A$16:$K$194,17,FALSE)) ->  | K19: =IF(($B19=" ")," ",VLOOKUP($B19,'C10 Entry Sheet'!$A$16:$K$194,19,FALSE)) ->  | L19: =IF(($B19=" ")," ",VLOOKUP($B19,'C10 Entry Sheet'!$A$16:$K$194,20,FALSE)) -> 
A20: 3 | B20: =IF(ISBLANK('C10 Entry Sheet'!A18)," ",CELL("contents",'C10 Entry Sheet'!A18)) ->  | C20: =IF(($B20=" ")," ",VLOOKUP($B20,'C10 Entry Sheet'!$A$16:$K$194,5,FALSE)) ->  | D20: =IF(($B20=" ")," ",VLOOKUP($B20,'C10 Entry Sheet'!$A$16:$K$194,6,FALSE)) ->  | E20: =IF(($B20=" ")," ",VLOOKUP($B20,'C10 Entry Sheet'!$A$16:$K$194,9,FALSE)) ->  | F20: =IF(($B20=" ")," ",VLOOKUP($B20,'C10 Entry Sheet'!$A$16:$K$194,7,FALSE)) ->  | G20: =IF(($B20=" ")," ",VLOOKUP($B20,'C10 Entry Sheet'!$A$16:$K$194,14,FALSE)) ->  | H20: =IF(($B20=" ")," ",VLOOKUP($B20,'C10 Entry Sheet'!$A$16:$K$194,8,FALSE)) ->  | I20: =IF(($B20=" ")," ",VLOOKUP($B20,'C10 Entry Sheet'!$A$16:$K$194,13,FALSE)) ->  | J20: =IF(($B20=" ")," ",VLOOKUP($B20,'C10 Entry Sheet'!$A$16:$K$194,17,FALSE)) ->  | K20: =IF(($B20=" ")," ",VLOOKUP($B20,'C10 Entry Sheet'!$A$16:$K$194,19,FALSE)) ->  | L20: =IF(($B20=" ")," ",VLOOKUP($B20,'C10 Entry Sheet'!$A$16:$K$194,20,FALSE)) -> 
A21: =SUM(A20+1) -> 4 | B21: =IF(ISBLANK('C10 Entry Sheet'!A19)," ",CELL("contents",'C10 Entry Sheet'!A19)) ->  | C21: =IF(($B21=" ")," ",VLOOKUP($B21,'C10 Entry Sheet'!$A$16:$K$194,5,FALSE)) ->  | D21: =IF(($B21=" ")," ",VLOOKUP($B21,'C10 Entry Sheet'!$A$16:$K$194,6,FALSE)) ->  | E21: =IF(($B21=" ")," ",VLOOKUP($B21,'C10 Entry Sheet'!$A$16:$K$194,9,FALSE)) ->  | F21: =IF(($B21=" ")," ",VLOOKUP($B21,'C10 Entry Sheet'!$A$16:$K$194,7,FALSE)) ->  | G21: =IF(($B21=" ")," ",VLOOKUP($B21,'C10 Entry Sheet'!$A$16:$K$194,14,FALSE)) ->  | H21: =IF(($B21=" ")," ",VLOOKUP($B21,'C10 Entry Sheet'!$A$16:$K$194,8,FALSE)) ->  | I21: =IF(($B21=" ")," ",VLOOKUP($B21,'C10 Entry Sheet'!$A$16:$K$194,13,FALSE)) ->  | J21: =IF(($B21=" ")," ",VLOOKUP($B21,'C10 Entry Sheet'!$A$16:$K$194,17,FALSE)) ->  | K21: =IF(($B21=" ")," ",VLOOKUP($B21,'C10 Entry Sheet'!$A$16:$K$194,19,FALSE)) ->  | L21: =IF(($B21=" ")," ",VLOOKUP($B21,'C10 Entry Sheet'!$A$16:$K$194,20,FALSE)) -> 
A22: 5 | B22: =IF(ISBLANK('C10 Entry Sheet'!A20)," ",CELL("contents",'C10 Entry Sheet'!A20)) ->  | C22: =IF(($B22=" ")," ",VLOOKUP($B22,'C10 Entry Sheet'!$A$16:$K$194,5,FALSE)) ->  | D22: =IF(($B22=" ")," ",VLOOKUP($B22,'C10 Entry Sheet'!$A$16:$K$194,6,FALSE)) ->  | E22: =IF(($B22=" ")," ",VLOOKUP($B22,'C10 Entry Sheet'!$A$16:$K$194,9,FALSE)) ->  | F22: =IF(($B22=" ")," ",VLOOKUP($B22,'C10 Entry Sheet'!$A$16:$K$194,7,FALSE)) ->  | G22: =IF(($B22=" ")," ",VLOOKUP($B22,'C10 Entry Sheet'!$A$16:$K$194,14,FALSE)) ->  | H22: =IF(($B22=" ")," ",VLOOKUP($B22,'C10 Entry Sheet'!$A$16:$K$194,8,FALSE)) ->  | I22: =IF(($B22=" ")," ",VLOOKUP($B22,'C10 Entry Sheet'!$A$16:$K$194,13,FALSE)) ->  | J22: =IF(($B22=" ")," ",VLOOKUP($B22,'C10 Entry Sheet'!$A$16:$K$194,17,FALSE)) ->  | K22: =IF(($B22=" ")," ",VLOOKUP($B22,'C10 Entry Sheet'!$A$16:$K$194,19,FALSE)) ->  | L22: =IF(($B22=" ")," ",VLOOKUP($B22,'C10 Entry Sheet'!$A$16:$K$194,20,FALSE)) -> 
A23: 6 | B23: =IF(ISBLANK('C10 Entry Sheet'!A21)," ",CELL("contents",'C10 Entry Sheet'!A21)) ->  | C23: =IF(($B23=" ")," ",VLOOKUP($B23,'C10 Entry Sheet'!$A$16:$K$194,5,FALSE)) ->  | D23: =IF(($B23=" ")," ",VLOOKUP($B23,'C10 Entry Sheet'!$A$16:$K$194,6,FALSE)) ->  | E23: =IF(($B23=" ")," ",VLOOKUP($B23,'C10 Entry Sheet'!$A$16:$K$194,9,FALSE)) ->  | F23: =IF(($B23=" ")," ",VLOOKUP($B23,'C10 Entry Sheet'!$A$16:$K$194,7,FALSE)) ->  | G23: =IF(($B23=" ")," ",VLOOKUP($B23,'C10 Entry Sheet'!$A$16:$K$194,14,FALSE)) ->  | H23: =IF(($B23=" ")," ",VLOOKUP($B23,'C10 Entry Sheet'!$A$16:$K$194,8,FALSE)) ->  | I23: =IF(($B23=" ")," ",VLOOKUP($B23,'C10 Entry Sheet'!$A$16:$K$194,13,FALSE)) ->  | J23: =IF(($B23=" ")," ",VLOOKUP($B23,'C10 Entry Sheet'!$A$16:$K$194,17,FALSE)) ->  | K23: =IF(($B23=" ")," ",VLOOKUP($B23,'C10 Entry Sheet'!$A$16:$K$194,19,FALSE)) ->  | L23: =IF(($B23=" ")," ",VLOOKUP($B23,'C10 Entry Sheet'!$A$16:$K$194,20,FALSE)) -> 
A24: 7 | B24: =IF(ISBLANK('C10 Entry Sheet'!A22)," ",CELL("contents",'C10 Entry Sheet'!A22)) ->  | C24: =IF(($B24=" ")," ",VLOOKUP($B24,'C10 Entry Sheet'!$A$16:$K$194,5,FALSE)) ->  | D24: =IF(($B24=" ")," ",VLOOKUP($B24,'C10 Entry Sheet'!$A$16:$K$194,6,FALSE)) ->  | E24: =IF(($B24=" ")," ",VLOOKUP($B24,'C10 Entry Sheet'!$A$16:$K$194,9,FALSE)) ->  | F24: =IF(($B24=" ")," ",VLOOKUP($B24,'C10 Entry Sheet'!$A$16:$K$194,7,FALSE)) ->  | G24: =IF(($B24=" ")," ",VLOOKUP($B24,'C10 Entry Sheet'!$A$16:$K$194,14,FALSE)) ->  | H24: =IF(($B24=" ")," ",VLOOKUP($B24,'C10 Entry Sheet'!$A$16:$K$194,8,FALSE)) ->  | I24: =IF(($B24=" ")," ",VLOOKUP($B24,'C10 Entry Sheet'!$A$16:$K$194,13,FALSE)) ->  | J24: =IF(($B24=" ")," ",VLOOKUP($B24,'C10 Entry Sheet'!$A$16:$K$194,17,FALSE)) ->  | K24: =IF(($B24=" ")," ",VLOOKUP($B24,'C10 Entry Sheet'!$A$16:$K$194,19,FALSE)) ->  | L24: =IF(($B24=" ")," ",VLOOKUP($B24,'C10 Entry Sheet'!$A$16:$K$194,20,FALSE)) -> 
A25: 8 | B25: =IF(ISBLANK('C10 Entry Sheet'!A23)," ",CELL("contents",'C10 Entry Sheet'!A23)) ->  | C25: =IF(($B25=" ")," ",VLOOKUP($B25,'C10 Entry Sheet'!$A$16:$K$194,5,FALSE)) ->  | D25: =IF(($B25=" ")," ",VLOOKUP($B25,'C10 Entry Sheet'!$A$16:$K$194,6,FALSE)) ->  | E25: =IF(($B25=" ")," ",VLOOKUP($B25,'C10 Entry Sheet'!$A$16:$K$194,9,FALSE)) ->  | F25: =IF(($B25=" ")," ",VLOOKUP($B25,'C10 Entry Sheet'!$A$16:$K$194,7,FALSE)) ->  | G25: =IF(($B25=" ")," ",VLOOKUP($B25,'C10 Entry Sheet'!$A$16:$K$194,14,FALSE)) ->  | H25: =IF(($B25=" ")," ",VLOOKUP($B25,'C10 Entry Sheet'!$A$16:$K$194,8,FALSE)) ->  | I25: =IF(($B25=" ")," ",VLOOKUP($B25,'C10 Entry Sheet'!$A$16:$K$194,13,FALSE)) ->  | J25: =IF(($B25=" ")," ",VLOOKUP($B25,'C10 Entry Sheet'!$A$16:$K$194,17,FALSE)) ->  | K25: =IF(($B25=" ")," ",VLOOKUP($B25,'C10 Entry Sheet'!$A$16:$K$194,19,FALSE)) ->  | L25: =IF(($B25=" ")," ",VLOOKUP($B25,'C10 Entry Sheet'!$A$16:$K$194,20,FALSE)) -> 
A26: 9 | B26: =IF(ISBLANK('C10 Entry Sheet'!A24)," ",CELL("contents",'C10 Entry Sheet'!A24)) ->  | C26: =IF(($B26=" ")," ",VLOOKUP($B26,'C10 Entry Sheet'!$A$16:$K$194,5,FALSE)) ->  | D26: =IF(($B26=" ")," ",VLOOKUP($B26,'C10 Entry Sheet'!$A$16:$K$194,6,FALSE)) ->  | E26: =IF(($B26=" ")," ",VLOOKUP($B26,'C10 Entry Sheet'!$A$16:$K$194,9,FALSE)) ->  | F26: =IF(($B26=" ")," ",VLOOKUP($B26,'C10 Entry Sheet'!$A$16:$K$194,7,FALSE)) ->  | G26: =IF(($B26=" ")," ",VLOOKUP($B26,'C10 Entry Sheet'!$A$16:$K$194,14,FALSE)) ->  | H26: =IF(($B26=" ")," ",VLOOKUP($B26,'C10 Entry Sheet'!$A$16:$K$194,8,FALSE)) ->  | I26: =IF(($B26=" ")," ",VLOOKUP($B26,'C10 Entry Sheet'!$A$16:$K$194,13,FALSE)) ->  | J26: =IF(($B26=" ")," ",VLOOKUP($B26,'C10 Entry Sheet'!$A$16:$K$194,17,FALSE)) ->  | K26: =IF(($B26=" ")," ",VLOOKUP($B26,'C10 Entry Sheet'!$A$16:$K$194,19,FALSE)) ->  | L26: =IF(($B26=" ")," ",VLOOKUP($B26,'C10 Entry Sheet'!$A$16:$K$194,20,FALSE)) -> 
A27: 10 | B27: =IF(ISBLANK('C10 Entry Sheet'!A25)," ",CELL("contents",'C10 Entry Sheet'!A25)) ->  | C27: =IF(($B27=" ")," ",VLOOKUP($B27,'C10 Entry Sheet'!$A$16:$K$194,5,FALSE)) ->  | D27: =IF(($B27=" ")," ",VLOOKUP($B27,'C10 Entry Sheet'!$A$16:$K$194,6,FALSE)) ->  | E27: =IF(($B27=" ")," ",VLOOKUP($B27,'C10 Entry Sheet'!$A$16:$K$194,9,FALSE)) ->  | F27: =IF(($B27=" ")," ",VLOOKUP($B27,'C10 Entry Sheet'!$A$16:$K$194,7,FALSE)) ->  | G27: =IF(($B27=" ")," ",VLOOKUP($B27,'C10 Entry Sheet'!$A$16:$K$194,14,FALSE)) ->  | H27: =IF(($B27=" ")," ",VLOOKUP($B27,'C10 Entry Sheet'!$A$16:$K$194,8,FALSE)) ->  | I27: =IF(($B27=" ")," ",VLOOKUP($B27,'C10 Entry Sheet'!$A$16:$K$194,13,FALSE)) ->  | J27: =IF(($B27=" ")," ",VLOOKUP($B27,'C10 Entry Sheet'!$A$16:$K$194,17,FALSE)) ->  | K27: =IF(($B27=" ")," ",VLOOKUP($B27,'C10 Entry Sheet'!$A$16:$K$194,19,FALSE)) ->  | L27: =IF(($B27=" ")," ",VLOOKUP($B27,'C10 Entry Sheet'!$A$16:$K$194,20,FALSE)) -> 
A28: 11 | B28: =IF(ISBLANK('C10 Entry Sheet'!A26)," ",CELL("contents",'C10 Entry Sheet'!A26)) ->  | C28: =IF(($B28=" ")," ",VLOOKUP($B28,'C10 Entry Sheet'!$A$16:$K$194,5,FALSE)) ->  | D28: =IF(($B28=" ")," ",VLOOKUP($B28,'C10 Entry Sheet'!$A$16:$K$194,6,FALSE)) ->  | E28: =IF(($B28=" ")," ",VLOOKUP($B28,'C10 Entry Sheet'!$A$16:$K$194,9,FALSE)) ->  | F28: =IF(($B28=" ")," ",VLOOKUP($B28,'C10 Entry Sheet'!$A$16:$K$194,7,FALSE)) ->  | G28: =IF(($B28=" ")," ",VLOOKUP($B28,'C10 Entry Sheet'!$A$16:$K$194,14,FALSE)) ->  | H28: =IF(($B28=" ")," ",VLOOKUP($B28,'C10 Entry Sheet'!$A$16:$K$194,8,FALSE)) ->  | I28: =IF(($B28=" ")," ",VLOOKUP($B28,'C10 Entry Sheet'!$A$16:$K$194,13,FALSE)) ->  | J28: =IF(($B28=" ")," ",VLOOKUP($B28,'C10 Entry Sheet'!$A$16:$K$194,17,FALSE)) ->  | K28: =IF(($B28=" ")," ",VLOOKUP($B28,'C10 Entry Sheet'!$A$16:$K$194,19,FALSE)) ->  | L28: =IF(($B28=" ")," ",VLOOKUP($B28,'C10 Entry Sheet'!$A$16:$K$194,20,FALSE)) -> 
A29: 12 | B29: =IF(ISBLANK('C10 Entry Sheet'!A27)," ",CELL("contents",'C10 Entry Sheet'!A27)) ->  | C29: =IF(($B29=" ")," ",VLOOKUP($B29,'C10 Entry Sheet'!$A$16:$K$194,5,FALSE)) ->  | D29: =IF(($B29=" ")," ",VLOOKUP($B29,'C10 Entry Sheet'!$A$16:$K$194,6,FALSE)) ->  | E29: =IF(($B29=" ")," ",VLOOKUP($B29,'C10 Entry Sheet'!$A$16:$K$194,9,FALSE)) ->  | F29: =IF(($B29=" ")," ",VLOOKUP($B29,'C10 Entry Sheet'!$A$16:$K$194,7,FALSE)) ->  | G29: =IF(($B29=" ")," ",VLOOKUP($B29,'C10 Entry Sheet'!$A$16:$K$194,14,FALSE)) ->  | H29: =IF(($B29=" ")," ",VLOOKUP($B29,'C10 Entry Sheet'!$A$16:$K$194,8,FALSE)) ->  | I29: =IF(($B29=" ")," ",VLOOKUP($B29,'C10 Entry Sheet'!$A$16:$K$194,13,FALSE)) ->  | J29: =IF(($B29=" ")," ",VLOOKUP($B29,'C10 Entry Sheet'!$A$16:$K$194,17,FALSE)) ->  | K29: =IF(($B29=" ")," ",VLOOKUP($B29,'C10 Entry Sheet'!$A$16:$K$194,19,FALSE)) ->  | L29: =IF(($B29=" ")," ",VLOOKUP($B29,'C10 Entry Sheet'!$A$16:$K$194,20,FALSE)) -> 
A30: 13 | B30: =IF(ISBLANK('C10 Entry Sheet'!A28)," ",CELL("contents",'C10 Entry Sheet'!A28)) ->  | C30: =IF(($B30=" ")," ",VLOOKUP($B30,'C10 Entry Sheet'!$A$16:$K$194,5,FALSE)) ->  | D30: =IF(($B30=" ")," ",VLOOKUP($B30,'C10 Entry Sheet'!$A$16:$K$194,6,FALSE)) ->  | E30: =IF(($B30=" ")," ",VLOOKUP($B30,'C10 Entry Sheet'!$A$16:$K$194,9,FALSE)) ->  | F30: =IF(($B30=" ")," ",VLOOKUP($B30,'C10 Entry Sheet'!$A$16:$K$194,7,FALSE)) ->  | G30: =IF(($B30=" ")," ",VLOOKUP($B30,'C10 Entry Sheet'!$A$16:$K$194,14,FALSE)) ->  | H30: =IF(($B30=" ")," ",VLOOKUP($B30,'C10 Entry Sheet'!$A$16:$K$194,8,FALSE)) ->  | I30: =IF(($B30=" ")," ",VLOOKUP($B30,'C10 Entry Sheet'!$A$16:$K$194,13,FALSE)) ->  | J30: =IF(($B30=" ")," ",VLOOKUP($B30,'C10 Entry Sheet'!$A$16:$K$194,17,FALSE)) ->  | K30: =IF(($B30=" ")," ",VLOOKUP($B30,'C10 Entry Sheet'!$A$16:$K$194,19,FALSE)) ->  | L30: =IF(($B30=" ")," ",VLOOKUP($B30,'C10 Entry Sheet'!$A$16:$K$194,20,FALSE)) -> 
A31: 14 | B31: =IF(ISBLANK('C10 Entry Sheet'!A29)," ",CELL("contents",'C10 Entry Sheet'!A29)) ->  | C31: =IF(($B31=" ")," ",VLOOKUP($B31,'C10 Entry Sheet'!$A$16:$K$194,5,FALSE)) ->  | D31: =IF(($B31=" ")," ",VLOOKUP($B31,'C10 Entry Sheet'!$A$16:$K$194,6,FALSE)) ->  | E31: =IF(($B31=" ")," ",VLOOKUP($B31,'C10 Entry Sheet'!$A$16:$K$194,9,FALSE)) ->  | F31: =IF(($B31=" ")," ",VLOOKUP($B31,'C10 Entry Sheet'!$A$16:$K$194,7,FALSE)) ->  | G31: =IF(($B31=" ")," ",VLOOKUP($B31,'C10 Entry Sheet'!$A$16:$K$194,14,FALSE)) ->  | H31: =IF(($B31=" ")," ",VLOOKUP($B31,'C10 Entry Sheet'!$A$16:$K$194,8,FALSE)) ->  | I31: =IF(($B31=" ")," ",VLOOKUP($B31,'C10 Entry Sheet'!$A$16:$K$194,13,FALSE)) ->  | J31: =IF(($B31=" ")," ",VLOOKUP($B31,'C10 Entry Sheet'!$A$16:$K$194,17,FALSE)) ->  | K31: =IF(($B31=" ")," ",VLOOKUP($B31,'C10 Entry Sheet'!$A$16:$K$194,19,FALSE)) ->  | L31: =IF(($B31=" ")," ",VLOOKUP($B31,'C10 Entry Sheet'!$A$16:$K$194,20,FALSE)) -> 
A32: 15 | B32: =IF(ISBLANK('C10 Entry Sheet'!A30)," ",CELL("contents",'C10 Entry Sheet'!A30)) ->  | C32: =IF(($B32=" ")," ",VLOOKUP($B32,'C10 Entry Sheet'!$A$16:$K$194,5,FALSE)) ->  | D32: =IF(($B32=" ")," ",VLOOKUP($B32,'C10 Entry Sheet'!$A$16:$K$194,6,FALSE)) ->  | E32: =IF(($B32=" ")," ",VLOOKUP($B32,'C10 Entry Sheet'!$A$16:$K$194,9,FALSE)) ->  | F32: =IF(($B32=" ")," ",VLOOKUP($B32,'C10 Entry Sheet'!$A$16:$K$194,7,FALSE)) ->  | G32: =IF(($B32=" ")," ",VLOOKUP($B32,'C10 Entry Sheet'!$A$16:$K$194,14,FALSE)) ->  | H32: =IF(($B32=" ")," ",VLOOKUP($B32,'C10 Entry Sheet'!$A$16:$K$194,8,FALSE)) ->  | I32: =IF(($B32=" ")," ",VLOOKUP($B32,'C10 Entry Sheet'!$A$16:$K$194,13,FALSE)) ->  | J32: =IF(($B32=" ")," ",VLOOKUP($B32,'C10 Entry Sheet'!$A$16:$K$194,17,FALSE)) ->  | K32: =IF(($B32=" ")," ",VLOOKUP($B32,'C10 Entry Sheet'!$A$16:$K$194,19,FALSE)) ->  | L32: =IF(($B32=" ")," ",VLOOKUP($B32,'C10 Entry Sheet'!$A$16:$K$194,20,FALSE)) -> 
A33: 16 | B33: =IF(ISBLANK('C10 Entry Sheet'!A31)," ",CELL("contents",'C10 Entry Sheet'!A31)) ->  | C33: =IF(($B33=" ")," ",VLOOKUP($B33,'C10 Entry Sheet'!$A$16:$K$194,5,FALSE)) ->  | D33: =IF(($B33=" ")," ",VLOOKUP($B33,'C10 Entry Sheet'!$A$16:$K$194,6,FALSE)) ->  | E33: =IF(($B33=" ")," ",VLOOKUP($B33,'C10 Entry Sheet'!$A$16:$K$194,9,FALSE)) ->  | F33: =IF(($B33=" ")," ",VLOOKUP($B33,'C10 Entry Sheet'!$A$16:$K$194,7,FALSE)) ->  | G33: =IF(($B33=" ")," ",VLOOKUP($B33,'C10 Entry Sheet'!$A$16:$K$194,14,FALSE)) ->  | H33: =IF(($B33=" ")," ",VLOOKUP($B33,'C10 Entry Sheet'!$A$16:$K$194,8,FALSE)) ->  | I33: =IF(($B33=" ")," ",VLOOKUP($B33,'C10 Entry Sheet'!$A$16:$K$194,13,FALSE)) ->  | J33: =IF(($B33=" ")," ",VLOOKUP($B33,'C10 Entry Sheet'!$A$16:$K$194,17,FALSE)) ->  | K33: =IF(($B33=" ")," ",VLOOKUP($B33,'C10 Entry Sheet'!$A$16:$K$194,19,FALSE)) ->  | L33: =IF(($B33=" ")," ",VLOOKUP($B33,'C10 Entry Sheet'!$A$16:$K$194,20,FALSE)) -> 
A34: 17 | B34: =IF(ISBLANK('C10 Entry Sheet'!A32)," ",CELL("contents",'C10 Entry Sheet'!A32)) ->  | C34: =IF(($B34=" ")," ",VLOOKUP($B34,'C10 Entry Sheet'!$A$16:$K$194,5,FALSE)) ->  | D34: =IF(($B34=" ")," ",VLOOKUP($B34,'C10 Entry Sheet'!$A$16:$K$194,6,FALSE)) ->  | E34: =IF(($B34=" ")," ",VLOOKUP($B34,'C10 Entry Sheet'!$A$16:$K$194,9,FALSE)) ->  | F34: =IF(($B34=" ")," ",VLOOKUP($B34,'C10 Entry Sheet'!$A$16:$K$194,7,FALSE)) ->  | G34: =IF(($B34=" ")," ",VLOOKUP($B34,'C10 Entry Sheet'!$A$16:$K$194,14,FALSE)) ->  | H34: =IF(($B34=" ")," ",VLOOKUP($B34,'C10 Entry Sheet'!$A$16:$K$194,8,FALSE)) ->  | I34: =IF(($B34=" ")," ",VLOOKUP($B34,'C10 Entry Sheet'!$A$16:$K$194,13,FALSE)) ->  | J34: =IF(($B34=" ")," ",VLOOKUP($B34,'C10 Entry Sheet'!$A$16:$K$194,17,FALSE)) ->  | K34: =IF(($B34=" ")," ",VLOOKUP($B34,'C10 Entry Sheet'!$A$16:$K$194,19,FALSE)) ->  | L34: =IF(($B34=" ")," ",VLOOKUP($B34,'C10 Entry Sheet'!$A$16:$K$194,20,FALSE)) -> 
A35: 18 | B35: =IF(ISBLANK('C10 Entry Sheet'!A33)," ",CELL("contents",'C10 Entry Sheet'!A33)) ->  | C35: =IF(($B35=" ")," ",VLOOKUP($B35,'C10 Entry Sheet'!$A$16:$K$194,5,FALSE)) ->  | D35: =IF(($B35=" ")," ",VLOOKUP($B35,'C10 Entry Sheet'!$A$16:$K$194,6,FALSE)) ->  | E35: =IF(($B35=" ")," ",VLOOKUP($B35,'C10 Entry Sheet'!$A$16:$K$194,9,FALSE)) ->  | F35: =IF(($B35=" ")," ",VLOOKUP($B35,'C10 Entry Sheet'!$A$16:$K$194,7,FALSE)) ->  | G35: =IF(($B35=" ")," ",VLOOKUP($B35,'C10 Entry Sheet'!$A$16:$K$194,14,FALSE)) ->  | H35: =IF(($B35=" ")," ",VLOOKUP($B35,'C10 Entry Sheet'!$A$16:$K$194,8,FALSE)) ->  | I35: =IF(($B35=" ")," ",VLOOKUP($B35,'C10 Entry Sheet'!$A$16:$K$194,13,FALSE)) ->  | J35: =IF(($B35=" ")," ",VLOOKUP($B35,'C10 Entry Sheet'!$A$16:$K$194,17,FALSE)) ->  | K35: =IF(($B35=" ")," ",VLOOKUP($B35,'C10 Entry Sheet'!$A$16:$K$194,19,FALSE)) ->  | L35: =IF(($B35=" ")," ",VLOOKUP($B35,'C10 Entry Sheet'!$A$16:$K$194,20,FALSE)) -> 
A36: 19 | B36: =IF(ISBLANK('C10 Entry Sheet'!A34)," ",CELL("contents",'C10 Entry Sheet'!A34)) ->  | C36: =IF(($B36=" ")," ",VLOOKUP($B36,'C10 Entry Sheet'!$A$16:$K$194,5,FALSE)) ->  | D36: =IF(($B36=" ")," ",VLOOKUP($B36,'C10 Entry Sheet'!$A$16:$K$194,6,FALSE)) ->  | E36: =IF(($B36=" ")," ",VLOOKUP($B36,'C10 Entry Sheet'!$A$16:$K$194,9,FALSE)) ->  | F36: =IF(($B36=" ")," ",VLOOKUP($B36,'C10 Entry Sheet'!$A$16:$K$194,7,FALSE)) ->  | G36: =IF(($B36=" ")," ",VLOOKUP($B36,'C10 Entry Sheet'!$A$16:$K$194,14,FALSE)) ->  | H36: =IF(($B36=" ")," ",VLOOKUP($B36,'C10 Entry Sheet'!$A$16:$K$194,8,FALSE)) ->  | I36: =IF(($B36=" ")," ",VLOOKUP($B36,'C10 Entry Sheet'!$A$16:$K$194,13,FALSE)) ->  | J36: =IF(($B36=" ")," ",VLOOKUP($B36,'C10 Entry Sheet'!$A$16:$K$194,17,FALSE)) ->  | K36: =IF(($B36=" ")," ",VLOOKUP($B36,'C10 Entry Sheet'!$A$16:$K$194,19,FALSE)) ->  | L36: =IF(($B36=" ")," ",VLOOKUP($B36,'C10 Entry Sheet'!$A$16:$K$194,20,FALSE)) -> 
A37: 20 | B37: =IF(ISBLANK('C10 Entry Sheet'!A35)," ",CELL("contents",'C10 Entry Sheet'!A35)) ->  | C37: =IF(($B37=" ")," ",VLOOKUP($B37,'C10 Entry Sheet'!$A$16:$K$194,5,FALSE)) ->  | D37: =IF(($B37=" ")," ",VLOOKUP($B37,'C10 Entry Sheet'!$A$16:$K$194,6,FALSE)) ->  | E37: =IF(($B37=" ")," ",VLOOKUP($B37,'C10 Entry Sheet'!$A$16:$K$194,9,FALSE)) ->  | F37: =IF(($B37=" ")," ",VLOOKUP($B37,'C10 Entry Sheet'!$A$16:$K$194,7,FALSE)) ->  | G37: =IF(($B37=" ")," ",VLOOKUP($B37,'C10 Entry Sheet'!$A$16:$K$194,14,FALSE)) ->  | H37: =IF(($B37=" ")," ",VLOOKUP($B37,'C10 Entry Sheet'!$A$16:$K$194,8,FALSE)) ->  | I37: =IF(($B37=" ")," ",VLOOKUP($B37,'C10 Entry Sheet'!$A$16:$K$194,13,FALSE)) ->  | J37: =IF(($B37=" ")," ",VLOOKUP($B37,'C10 Entry Sheet'!$A$16:$K$194,17,FALSE)) ->  | K37: =IF(($B37=" ")," ",VLOOKUP($B37,'C10 Entry Sheet'!$A$16:$K$194,19,FALSE)) ->  | L37: =IF(($B37=" ")," ",VLOOKUP($B37,'C10 Entry Sheet'!$A$16:$K$194,20,FALSE)) -> 
A38: 21 | B38: =IF(ISBLANK('C10 Entry Sheet'!A36)," ",CELL("contents",'C10 Entry Sheet'!A36)) ->  | C38: =IF(($B38=" ")," ",VLOOKUP($B38,'C10 Entry Sheet'!$A$16:$K$194,5,FALSE)) ->  | D38: =IF(($B38=" ")," ",VLOOKUP($B38,'C10 Entry Sheet'!$A$16:$K$194,6,FALSE)) ->  | E38: =IF(($B38=" ")," ",VLOOKUP($B38,'C10 Entry Sheet'!$A$16:$K$194,9,FALSE)) ->  | F38: =IF(($B38=" ")," ",VLOOKUP($B38,'C10 Entry Sheet'!$A$16:$K$194,7,FALSE)) ->  | G38: =IF(($B38=" ")," ",VLOOKUP($B38,'C10 Entry Sheet'!$A$16:$K$194,14,FALSE)) ->  | H38: =IF(($B38=" ")," ",VLOOKUP($B38,'C10 Entry Sheet'!$A$16:$K$194,8,FALSE)) ->  | I38: =IF(($B38=" ")," ",VLOOKUP($B38,'C10 Entry Sheet'!$A$16:$K$194,13,FALSE)) ->  | J38: =IF(($B38=" ")," ",VLOOKUP($B38,'C10 Entry Sheet'!$A$16:$K$194,17,FALSE)) ->  | K38: =IF(($B38=" ")," ",VLOOKUP($B38,'C10 Entry Sheet'!$A$16:$K$194,19,FALSE)) ->  | L38: =IF(($B38=" ")," ",VLOOKUP($B38,'C10 Entry Sheet'!$A$16:$K$194,20,FALSE)) -> 
A39: 22 | B39: =IF(ISBLANK('C10 Entry Sheet'!A37)," ",CELL("contents",'C10 Entry Sheet'!A37)) ->  | C39: =IF(($B39=" ")," ",VLOOKUP($B39,'C10 Entry Sheet'!$A$16:$K$194,5,FALSE)) ->  | D39: =IF(($B39=" ")," ",VLOOKUP($B39,'C10 Entry Sheet'!$A$16:$K$194,6,FALSE)) ->  | E39: =IF(($B39=" ")," ",VLOOKUP($B39,'C10 Entry Sheet'!$A$16:$K$194,9,FALSE)) ->  | F39: =IF(($B39=" ")," ",VLOOKUP($B39,'C10 Entry Sheet'!$A$16:$K$194,7,FALSE)) ->  | G39: =IF(($B39=" ")," ",VLOOKUP($B39,'C10 Entry Sheet'!$A$16:$K$194,14,FALSE)) ->  | H39: =IF(($B39=" ")," ",VLOOKUP($B39,'C10 Entry Sheet'!$A$16:$K$194,8,FALSE)) ->  | I39: =IF(($B39=" ")," ",VLOOKUP($B39,'C10 Entry Sheet'!$A$16:$K$194,13,FALSE)) ->  | J39: =IF(($B39=" ")," ",VLOOKUP($B39,'C10 Entry Sheet'!$A$16:$K$194,17,FALSE)) ->  | K39: =IF(($B39=" ")," ",VLOOKUP($B39,'C10 Entry Sheet'!$A$16:$K$194,19,FALSE)) ->  | L39: =IF(($B39=" ")," ",VLOOKUP($B39,'C10 Entry Sheet'!$A$16:$K$194,20,FALSE)) -> 
A40: =SUM(A39+1) -> 23 | B40: =IF(ISBLANK('C10 Entry Sheet'!A38)," ",CELL("contents",'C10 Entry Sheet'!A38)) ->  | C40: =IF(($B40=" ")," ",VLOOKUP($B40,'C10 Entry Sheet'!$A$16:$K$194,5,FALSE)) ->  | D40: =IF(($B40=" ")," ",VLOOKUP($B40,'C10 Entry Sheet'!$A$16:$K$194,6,FALSE)) ->  | E40: =IF(($B40=" ")," ",VLOOKUP($B40,'C10 Entry Sheet'!$A$16:$K$194,9,FALSE)) ->  | F40: =IF(($B40=" ")," ",VLOOKUP($B40,'C10 Entry Sheet'!$A$16:$K$194,7,FALSE)) ->  | G40: =IF(($B40=" ")," ",VLOOKUP($B40,'C10 Entry Sheet'!$A$16:$K$194,14,FALSE)) ->  | H40: =IF(($B40=" ")," ",VLOOKUP($B40,'C10 Entry Sheet'!$A$16:$K$194,8,FALSE)) ->  | I40: =IF(($B40=" ")," ",VLOOKUP($B40,'C10 Entry Sheet'!$A$16:$K$194,13,FALSE)) ->  | J40: =IF(($B40=" ")," ",VLOOKUP($B40,'C10 Entry Sheet'!$A$16:$K$194,17,FALSE)) ->  | K40: =IF(($B40=" ")," ",VLOOKUP($B40,'C10 Entry Sheet'!$A$16:$K$194,19,FALSE)) ->  | L40: =IF(($B40=" ")," ",VLOOKUP($B40,'C10 Entry Sheet'!$A$16:$K$194,20,FALSE)) -> 
A41: 24 | B41: =IF(ISBLANK('C10 Entry Sheet'!A39)," ",CELL("contents",'C10 Entry Sheet'!A39)) ->  | C41: =IF(($B41=" ")," ",VLOOKUP($B41,'C10 Entry Sheet'!$A$16:$K$194,5,FALSE)) ->  | D41: =IF(($B41=" ")," ",VLOOKUP($B41,'C10 Entry Sheet'!$A$16:$K$194,6,FALSE)) ->  | E41: =IF(($B41=" ")," ",VLOOKUP($B41,'C10 Entry Sheet'!$A$16:$K$194,9,FALSE)) ->  | F41: =IF(($B41=" ")," ",VLOOKUP($B41,'C10 Entry Sheet'!$A$16:$K$194,7,FALSE)) ->  | G41: =IF(($B41=" ")," ",VLOOKUP($B41,'C10 Entry Sheet'!$A$16:$K$194,14,FALSE)) ->  | H41: =IF(($B41=" ")," ",VLOOKUP($B41,'C10 Entry Sheet'!$A$16:$K$194,8,FALSE)) ->  | I41: =IF(($B41=" ")," ",VLOOKUP($B41,'C10 Entry Sheet'!$A$16:$K$194,13,FALSE)) ->  | J41: =IF(($B41=" ")," ",VLOOKUP($B41,'C10 Entry Sheet'!$A$16:$K$194,17,FALSE)) ->  | K41: =IF(($B41=" ")," ",VLOOKUP($B41,'C10 Entry Sheet'!$A$16:$K$194,19,FALSE)) ->  | L41: =IF(($B41=" ")," ",VLOOKUP($B41,'C10 Entry Sheet'!$A$16:$K$194,20,FALSE)) -> 
A42: 25 | B42: =IF(ISBLANK('C10 Entry Sheet'!A40)," ",CELL("contents",'C10 Entry Sheet'!A40)) ->  | C42: =IF(($B42=" ")," ",VLOOKUP($B42,'C10 Entry Sheet'!$A$16:$K$194,5,FALSE)) ->  | D42: =IF(($B42=" ")," ",VLOOKUP($B42,'C10 Entry Sheet'!$A$16:$K$194,6,FALSE)) ->  | E42: =IF(($B42=" ")," ",VLOOKUP($B42,'C10 Entry Sheet'!$A$16:$K$194,9,FALSE)) ->  | F42: =IF(($B42=" ")," ",VLOOKUP($B42,'C10 Entry Sheet'!$A$16:$K$194,7,FALSE)) ->  | G42: =IF(($B42=" ")," ",VLOOKUP($B42,'C10 Entry Sheet'!$A$16:$K$194,14,FALSE)) ->  | H42: =IF(($B42=" ")," ",VLOOKUP($B42,'C10 Entry Sheet'!$A$16:$K$194,8,FALSE)) ->  | I42: =IF(($B42=" ")," ",VLOOKUP($B42,'C10 Entry Sheet'!$A$16:$K$194,13,FALSE)) ->  | J42: =IF(($B42=" ")," ",VLOOKUP($B42,'C10 Entry Sheet'!$A$16:$K$194,17,FALSE)) ->  | K42: =IF(($B42=" ")," ",VLOOKUP($B42,'C10 Entry Sheet'!$A$16:$K$194,19,FALSE)) ->  | L42: =IF(($B42=" ")," ",VLOOKUP($B42,'C10 Entry Sheet'!$A$16:$K$194,20,FALSE)) -> 
A43: 26 | B43: =IF(ISBLANK('C10 Entry Sheet'!A41)," ",CELL("contents",'C10 Entry Sheet'!A41)) ->  | C43: =IF(($B43=" ")," ",VLOOKUP($B43,'C10 Entry Sheet'!$A$16:$K$194,5,FALSE)) ->  | D43: =IF(($B43=" ")," ",VLOOKUP($B43,'C10 Entry Sheet'!$A$16:$K$194,6,FALSE)) ->  | E43: =IF(($B43=" ")," ",VLOOKUP($B43,'C10 Entry Sheet'!$A$16:$K$194,9,FALSE)) ->  | F43: =IF(($B43=" ")," ",VLOOKUP($B43,'C10 Entry Sheet'!$A$16:$K$194,7,FALSE)) ->  | G43: =IF(($B43=" ")," ",VLOOKUP($B43,'C10 Entry Sheet'!$A$16:$K$194,14,FALSE)) ->  | H43: =IF(($B43=" ")," ",VLOOKUP($B43,'C10 Entry Sheet'!$A$16:$K$194,8,FALSE)) ->  | I43: =IF(($B43=" ")," ",VLOOKUP($B43,'C10 Entry Sheet'!$A$16:$K$194,13,FALSE)) ->  | J43: =IF(($B43=" ")," ",VLOOKUP($B43,'C10 Entry Sheet'!$A$16:$K$194,17,FALSE)) ->  | K43: =IF(($B43=" ")," ",VLOOKUP($B43,'C10 Entry Sheet'!$A$16:$K$194,19,FALSE)) ->  | L43: =IF(($B43=" ")," ",VLOOKUP($B43,'C10 Entry Sheet'!$A$16:$K$194,20,FALSE)) -> 
A44: 27 | B44: =IF(ISBLANK('C10 Entry Sheet'!A42)," ",CELL("contents",'C10 Entry Sheet'!A42)) ->  | C44: =IF(($B44=" ")," ",VLOOKUP($B44,'C10 Entry Sheet'!$A$16:$K$194,5,FALSE)) ->  | D44: =IF(($B44=" ")," ",VLOOKUP($B44,'C10 Entry Sheet'!$A$16:$K$194,6,FALSE)) ->  | E44: =IF(($B44=" ")," ",VLOOKUP($B44,'C10 Entry Sheet'!$A$16:$K$194,9,FALSE)) ->  | F44: =IF(($B44=" ")," ",VLOOKUP($B44,'C10 Entry Sheet'!$A$16:$K$194,7,FALSE)) ->  | G44: =IF(($B44=" ")," ",VLOOKUP($B44,'C10 Entry Sheet'!$A$16:$K$194,14,FALSE)) ->  | H44: =IF(($B44=" ")," ",VLOOKUP($B44,'C10 Entry Sheet'!$A$16:$K$194,8,FALSE)) ->  | I44: =IF(($B44=" ")," ",VLOOKUP($B44,'C10 Entry Sheet'!$A$16:$K$194,13,FALSE)) ->  | J44: =IF(($B44=" ")," ",VLOOKUP($B44,'C10 Entry Sheet'!$A$16:$K$194,17,FALSE)) ->  | K44: =IF(($B44=" ")," ",VLOOKUP($B44,'C10 Entry Sheet'!$A$16:$K$194,19,FALSE)) ->  | L44: =IF(($B44=" ")," ",VLOOKUP($B44,'C10 Entry Sheet'!$A$16:$K$194,20,FALSE)) -> 
A45: 28 | B45: =IF(ISBLANK('C10 Entry Sheet'!A43)," ",CELL("contents",'C10 Entry Sheet'!A43)) ->  | C45: =IF(($B45=" ")," ",VLOOKUP($B45,'C10 Entry Sheet'!$A$16:$K$194,5,FALSE)) ->  | D45: =IF(($B45=" ")," ",VLOOKUP($B45,'C10 Entry Sheet'!$A$16:$K$194,6,FALSE)) ->  | E45: =IF(($B45=" ")," ",VLOOKUP($B45,'C10 Entry Sheet'!$A$16:$K$194,9,FALSE)) ->  | F45: =IF(($B45=" ")," ",VLOOKUP($B45,'C10 Entry Sheet'!$A$16:$K$194,7,FALSE)) ->  | G45: =IF(($B45=" ")," ",VLOOKUP($B45,'C10 Entry Sheet'!$A$16:$K$194,14,FALSE)) ->  | H45: =IF(($B45=" ")," ",VLOOKUP($B45,'C10 Entry Sheet'!$A$16:$K$194,8,FALSE)) ->  | I45: =IF(($B45=" ")," ",VLOOKUP($B45,'C10 Entry Sheet'!$A$16:$K$194,13,FALSE)) ->  | J45: =IF(($B45=" ")," ",VLOOKUP($B45,'C10 Entry Sheet'!$A$16:$K$194,17,FALSE)) ->  | K45: =IF(($B45=" ")," ",VLOOKUP($B45,'C10 Entry Sheet'!$A$16:$K$194,19,FALSE)) ->  | L45: =IF(($B45=" ")," ",VLOOKUP($B45,'C10 Entry Sheet'!$A$16:$K$194,20,FALSE)) -> 
A46: 29 | B46: =IF(ISBLANK('C10 Entry Sheet'!A44)," ",CELL("contents",'C10 Entry Sheet'!A44)) ->  | C46: =IF(($B46=" ")," ",VLOOKUP($B46,'C10 Entry Sheet'!$A$16:$K$194,5,FALSE)) ->  | D46: =IF(($B46=" ")," ",VLOOKUP($B46,'C10 Entry Sheet'!$A$16:$K$194,6,FALSE)) ->  | E46: =IF(($B46=" ")," ",VLOOKUP($B46,'C10 Entry Sheet'!$A$16:$K$194,9,FALSE)) ->  | F46: =IF(($B46=" ")," ",VLOOKUP($B46,'C10 Entry Sheet'!$A$16:$K$194,7,FALSE)) ->  | G46: =IF(($B46=" ")," ",VLOOKUP($B46,'C10 Entry Sheet'!$A$16:$K$194,14,FALSE)) ->  | H46: =IF(($B46=" ")," ",VLOOKUP($B46,'C10 Entry Sheet'!$A$16:$K$194,8,FALSE)) ->  | I46: =IF(($B46=" ")," ",VLOOKUP($B46,'C10 Entry Sheet'!$A$16:$K$194,13,FALSE)) ->  | J46: =IF(($B46=" ")," ",VLOOKUP($B46,'C10 Entry Sheet'!$A$16:$K$194,17,FALSE)) ->  | K46: =IF(($B46=" ")," ",VLOOKUP($B46,'C10 Entry Sheet'!$A$16:$K$194,19,FALSE)) ->  | L46: =IF(($B46=" ")," ",VLOOKUP($B46,'C10 Entry Sheet'!$A$16:$K$194,20,FALSE)) -> 
A47: 30 | B47: =IF(ISBLANK('C10 Entry Sheet'!A45)," ",CELL("contents",'C10 Entry Sheet'!A45)) ->  | C47: =IF(($B47=" ")," ",VLOOKUP($B47,'C10 Entry Sheet'!$A$16:$K$194,5,FALSE)) ->  | D47: =IF(($B47=" ")," ",VLOOKUP($B47,'C10 Entry Sheet'!$A$16:$K$194,6,FALSE)) ->  | E47: =IF(($B47=" ")," ",VLOOKUP($B47,'C10 Entry Sheet'!$A$16:$K$194,9,FALSE)) ->  | F47: =IF(($B47=" ")," ",VLOOKUP($B47,'C10 Entry Sheet'!$A$16:$K$194,7,FALSE)) ->  | G47: =IF(($B47=" ")," ",VLOOKUP($B47,'C10 Entry Sheet'!$A$16:$K$194,14,FALSE)) ->  | H47: =IF(($B47=" ")," ",VLOOKUP($B47,'C10 Entry Sheet'!$A$16:$K$194,8,FALSE)) ->  | I47: =IF(($B47=" ")," ",VLOOKUP($B47,'C10 Entry Sheet'!$A$16:$K$194,13,FALSE)) ->  | J47: =IF(($B47=" ")," ",VLOOKUP($B47,'C10 Entry Sheet'!$A$16:$K$194,17,FALSE)) ->  | K47: =IF(($B47=" ")," ",VLOOKUP($B47,'C10 Entry Sheet'!$A$16:$K$194,19,FALSE)) ->  | L47: =IF(($B47=" ")," ",VLOOKUP($B47,'C10 Entry Sheet'!$A$16:$K$194,20,FALSE)) -> 
A48: 31 | B48: =IF(ISBLANK('C10 Entry Sheet'!A46)," ",CELL("contents",'C10 Entry Sheet'!A46)) ->  | C48: =IF(($B48=" ")," ",VLOOKUP($B48,'C10 Entry Sheet'!$A$16:$K$194,5,FALSE)) ->  | D48: =IF(($B48=" ")," ",VLOOKUP($B48,'C10 Entry Sheet'!$A$16:$K$194,6,FALSE)) ->  | E48: =IF(($B48=" ")," ",VLOOKUP($B48,'C10 Entry Sheet'!$A$16:$K$194,9,FALSE)) ->  | F48: =IF(($B48=" ")," ",VLOOKUP($B48,'C10 Entry Sheet'!$A$16:$K$194,7,FALSE)) ->  | G48: =IF(($B48=" ")," ",VLOOKUP($B48,'C10 Entry Sheet'!$A$16:$K$194,14,FALSE)) ->  | H48: =IF(($B48=" ")," ",VLOOKUP($B48,'C10 Entry Sheet'!$A$16:$K$194,8,FALSE)) ->  | I48: =IF(($B48=" ")," ",VLOOKUP($B48,'C10 Entry Sheet'!$A$16:$K$194,13,FALSE)) ->  | J48: =IF(($B48=" ")," ",VLOOKUP($B48,'C10 Entry Sheet'!$A$16:$K$194,17,FALSE)) ->  | K48: =IF(($B48=" ")," ",VLOOKUP($B48,'C10 Entry Sheet'!$A$16:$K$194,19,FALSE)) ->  | L48: =IF(($B48=" ")," ",VLOOKUP($B48,'C10 Entry Sheet'!$A$16:$K$194,20,FALSE)) -> 
A49: 32 | B49: =IF(ISBLANK('C10 Entry Sheet'!A47)," ",CELL("contents",'C10 Entry Sheet'!A47)) ->  | C49: =IF(($B49=" ")," ",VLOOKUP($B49,'C10 Entry Sheet'!$A$16:$K$194,5,FALSE)) ->  | D49: =IF(($B49=" ")," ",VLOOKUP($B49,'C10 Entry Sheet'!$A$16:$K$194,6,FALSE)) ->  | E49: =IF(($B49=" ")," ",VLOOKUP($B49,'C10 Entry Sheet'!$A$16:$K$194,9,FALSE)) ->  | F49: =IF(($B49=" ")," ",VLOOKUP($B49,'C10 Entry Sheet'!$A$16:$K$194,7,FALSE)) ->  | G49: =IF(($B49=" ")," ",VLOOKUP($B49,'C10 Entry Sheet'!$A$16:$K$194,14,FALSE)) ->  | H49: =IF(($B49=" ")," ",VLOOKUP($B49,'C10 Entry Sheet'!$A$16:$K$194,8,FALSE)) ->  | I49: =IF(($B49=" ")," ",VLOOKUP($B49,'C10 Entry Sheet'!$A$16:$K$194,13,FALSE)) ->  | J49: =IF(($B49=" ")," ",VLOOKUP($B49,'C10 Entry Sheet'!$A$16:$K$194,17,FALSE)) ->  | K49: =IF(($B49=" ")," ",VLOOKUP($B49,'C10 Entry Sheet'!$A$16:$K$194,19,FALSE)) ->  | L49: =IF(($B49=" ")," ",VLOOKUP($B49,'C10 Entry Sheet'!$A$16:$K$194,20,FALSE)) -> 
A50: 33 | B50: =IF(ISBLANK('C10 Entry Sheet'!A48)," ",CELL("contents",'C10 Entry Sheet'!A48)) ->  | C50: =IF(($B50=" ")," ",VLOOKUP($B50,'C10 Entry Sheet'!$A$16:$K$194,5,FALSE)) ->  | D50: =IF(($B50=" ")," ",VLOOKUP($B50,'C10 Entry Sheet'!$A$16:$K$194,6,FALSE)) ->  | E50: =IF(($B50=" ")," ",VLOOKUP($B50,'C10 Entry Sheet'!$A$16:$K$194,9,FALSE)) ->  | F50: =IF(($B50=" ")," ",VLOOKUP($B50,'C10 Entry Sheet'!$A$16:$K$194,7,FALSE)) ->  | G50: =IF(($B50=" ")," ",VLOOKUP($B50,'C10 Entry Sheet'!$A$16:$K$194,14,FALSE)) ->  | H50: =IF(($B50=" ")," ",VLOOKUP($B50,'C10 Entry Sheet'!$A$16:$K$194,8,FALSE)) ->  | I50: =IF(($B50=" ")," ",VLOOKUP($B50,'C10 Entry Sheet'!$A$16:$K$194,13,FALSE)) ->  | J50: =IF(($B50=" ")," ",VLOOKUP($B50,'C10 Entry Sheet'!$A$16:$K$194,17,FALSE)) ->  | K50: =IF(($B50=" ")," ",VLOOKUP($B50,'C10 Entry Sheet'!$A$16:$K$194,19,FALSE)) ->  | L50: =IF(($B50=" ")," ",VLOOKUP($B50,'C10 Entry Sheet'!$A$16:$K$194,20,FALSE)) -> 
A51: =SUM(A50+1) -> 34 | B51: =IF(ISBLANK('C10 Entry Sheet'!A49)," ",CELL("contents",'C10 Entry Sheet'!A49)) ->  | C51: =IF(($B51=" ")," ",VLOOKUP($B51,'C10 Entry Sheet'!$A$16:$K$194,5,FALSE)) ->  | D51: =IF(($B51=" ")," ",VLOOKUP($B51,'C10 Entry Sheet'!$A$16:$K$194,6,FALSE)) ->  | E51: =IF(($B51=" ")," ",VLOOKUP($B51,'C10 Entry Sheet'!$A$16:$K$194,9,FALSE)) ->  | F51: =IF(($B51=" ")," ",VLOOKUP($B51,'C10 Entry Sheet'!$A$16:$K$194,7,FALSE)) ->  | G51: =IF(($B51=" ")," ",VLOOKUP($B51,'C10 Entry Sheet'!$A$16:$K$194,14,FALSE)) ->  | H51: =IF(($B51=" ")," ",VLOOKUP($B51,'C10 Entry Sheet'!$A$16:$K$194,8,FALSE)) ->  | I51: =IF(($B51=" ")," ",VLOOKUP($B51,'C10 Entry Sheet'!$A$16:$K$194,13,FALSE)) ->  | J51: =IF(($B51=" ")," ",VLOOKUP($B51,'C10 Entry Sheet'!$A$16:$K$194,17,FALSE)) ->  | K51: =IF(($B51=" ")," ",VLOOKUP($B51,'C10 Entry Sheet'!$A$16:$K$194,19,FALSE)) ->  | L51: =IF(($B51=" ")," ",VLOOKUP($B51,'C10 Entry Sheet'!$A$16:$K$194,20,FALSE)) -> 
A52: 35 | B52: =IF(ISBLANK('C10 Entry Sheet'!A50)," ",CELL("contents",'C10 Entry Sheet'!A50)) ->  | C52: =IF(($B52=" ")," ",VLOOKUP($B52,'C10 Entry Sheet'!$A$16:$K$194,5,FALSE)) ->  | D52: =IF(($B52=" ")," ",VLOOKUP($B52,'C10 Entry Sheet'!$A$16:$K$194,6,FALSE)) ->  | E52: =IF(($B52=" ")," ",VLOOKUP($B52,'C10 Entry Sheet'!$A$16:$K$194,9,FALSE)) ->  | F52: =IF(($B52=" ")," ",VLOOKUP($B52,'C10 Entry Sheet'!$A$16:$K$194,7,FALSE)) ->  | G52: =IF(($B52=" ")," ",VLOOKUP($B52,'C10 Entry Sheet'!$A$16:$K$194,14,FALSE)) ->  | H52: =IF(($B52=" ")," ",VLOOKUP($B52,'C10 Entry Sheet'!$A$16:$K$194,8,FALSE)) ->  | I52: =IF(($B52=" ")," ",VLOOKUP($B52,'C10 Entry Sheet'!$A$16:$K$194,13,FALSE)) ->  | J52: =IF(($B52=" ")," ",VLOOKUP($B52,'C10 Entry Sheet'!$A$16:$K$194,17,FALSE)) ->  | K52: =IF(($B52=" ")," ",VLOOKUP($B52,'C10 Entry Sheet'!$A$16:$K$194,19,FALSE)) ->  | L52: =IF(($B52=" ")," ",VLOOKUP($B52,'C10 Entry Sheet'!$A$16:$K$194,20,FALSE)) -> 
A53: 36 | B53: =IF(ISBLANK('C10 Entry Sheet'!A51)," ",CELL("contents",'C10 Entry Sheet'!A51)) ->  | C53: =IF(($B53=" ")," ",VLOOKUP($B53,'C10 Entry Sheet'!$A$16:$K$194,5,FALSE)) ->  | D53: =IF(($B53=" ")," ",VLOOKUP($B53,'C10 Entry Sheet'!$A$16:$K$194,6,FALSE)) ->  | E53: =IF(($B53=" ")," ",VLOOKUP($B53,'C10 Entry Sheet'!$A$16:$K$194,9,FALSE)) ->  | F53: =IF(($B53=" ")," ",VLOOKUP($B53,'C10 Entry Sheet'!$A$16:$K$194,7,FALSE)) ->  | G53: =IF(($B53=" ")," ",VLOOKUP($B53,'C10 Entry Sheet'!$A$16:$K$194,14,FALSE)) ->  | H53: =IF(($B53=" ")," ",VLOOKUP($B53,'C10 Entry Sheet'!$A$16:$K$194,8,FALSE)) ->  | I53: =IF(($B53=" ")," ",VLOOKUP($B53,'C10 Entry Sheet'!$A$16:$K$194,13,FALSE)) ->  | J53: =IF(($B53=" ")," ",VLOOKUP($B53,'C10 Entry Sheet'!$A$16:$K$194,17,FALSE)) ->  | K53: =IF(($B53=" ")," ",VLOOKUP($B53,'C10 Entry Sheet'!$A$16:$K$194,19,FALSE)) ->  | L53: =IF(($B53=" ")," ",VLOOKUP($B53,'C10 Entry Sheet'!$A$16:$K$194,20,FALSE)) -> 
A54: 37 | B54: =IF(ISBLANK('C10 Entry Sheet'!A52)," ",CELL("contents",'C10 Entry Sheet'!A52)) ->  | C54: =IF(($B54=" ")," ",VLOOKUP($B54,'C10 Entry Sheet'!$A$16:$K$194,5,FALSE)) ->  | D54: =IF(($B54=" ")," ",VLOOKUP($B54,'C10 Entry Sheet'!$A$16:$K$194,6,FALSE)) ->  | E54: =IF(($B54=" ")," ",VLOOKUP($B54,'C10 Entry Sheet'!$A$16:$K$194,9,FALSE)) ->  | F54: =IF(($B54=" ")," ",VLOOKUP($B54,'C10 Entry Sheet'!$A$16:$K$194,7,FALSE)) ->  | G54: =IF(($B54=" ")," ",VLOOKUP($B54,'C10 Entry Sheet'!$A$16:$K$194,14,FALSE)) ->  | H54: =IF(($B54=" ")," ",VLOOKUP($B54,'C10 Entry Sheet'!$A$16:$K$194,8,FALSE)) ->  | I54: =IF(($B54=" ")," ",VLOOKUP($B54,'C10 Entry Sheet'!$A$16:$K$194,13,FALSE)) ->  | J54: =IF(($B54=" ")," ",VLOOKUP($B54,'C10 Entry Sheet'!$A$16:$K$194,17,FALSE)) ->  | K54: =IF(($B54=" ")," ",VLOOKUP($B54,'C10 Entry Sheet'!$A$16:$K$194,19,FALSE)) ->  | L54: =IF(($B54=" ")," ",VLOOKUP($B54,'C10 Entry Sheet'!$A$16:$K$194,20,FALSE)) -> 
A55: 38 | B55: =IF(ISBLANK('C10 Entry Sheet'!A53)," ",CELL("contents",'C10 Entry Sheet'!A53)) ->  | C55: =IF(($B55=" ")," ",VLOOKUP($B55,'C10 Entry Sheet'!$A$16:$K$194,5,FALSE)) ->  | D55: =IF(($B55=" ")," ",VLOOKUP($B55,'C10 Entry Sheet'!$A$16:$K$194,6,FALSE)) ->  | E55: =IF(($B55=" ")," ",VLOOKUP($B55,'C10 Entry Sheet'!$A$16:$K$194,9,FALSE)) ->  | F55: =IF(($B55=" ")," ",VLOOKUP($B55,'C10 Entry Sheet'!$A$16:$K$194,7,FALSE)) ->  | G55: =IF(($B55=" ")," ",VLOOKUP($B55,'C10 Entry Sheet'!$A$16:$K$194,14,FALSE)) ->  | H55: =IF(($B55=" ")," ",VLOOKUP($B55,'C10 Entry Sheet'!$A$16:$K$194,8,FALSE)) ->  | I55: =IF(($B55=" ")," ",VLOOKUP($B55,'C10 Entry Sheet'!$A$16:$K$194,13,FALSE)) ->  | J55: =IF(($B55=" ")," ",VLOOKUP($B55,'C10 Entry Sheet'!$A$16:$K$194,17,FALSE)) ->  | K55: =IF(($B55=" ")," ",VLOOKUP($B55,'C10 Entry Sheet'!$A$16:$K$194,19,FALSE)) ->  | L55: =IF(($B55=" ")," ",VLOOKUP($B55,'C10 Entry Sheet'!$A$16:$K$194,20,FALSE)) -> 
A56: 39 | B56: =IF(ISBLANK('C10 Entry Sheet'!A54)," ",CELL("contents",'C10 Entry Sheet'!A54)) ->  | C56: =IF(($B56=" ")," ",VLOOKUP($B56,'C10 Entry Sheet'!$A$16:$K$194,5,FALSE)) ->  | D56: =IF(($B56=" ")," ",VLOOKUP($B56,'C10 Entry Sheet'!$A$16:$K$194,6,FALSE)) ->  | E56: =IF(($B56=" ")," ",VLOOKUP($B56,'C10 Entry Sheet'!$A$16:$K$194,9,FALSE)) ->  | F56: =IF(($B56=" ")," ",VLOOKUP($B56,'C10 Entry Sheet'!$A$16:$K$194,7,FALSE)) ->  | G56: =IF(($B56=" ")," ",VLOOKUP($B56,'C10 Entry Sheet'!$A$16:$K$194,14,FALSE)) ->  | H56: =IF(($B56=" ")," ",VLOOKUP($B56,'C10 Entry Sheet'!$A$16:$K$194,8,FALSE)) ->  | I56: =IF(($B56=" ")," ",VLOOKUP($B56,'C10 Entry Sheet'!$A$16:$K$194,13,FALSE)) ->  | J56: =IF(($B56=" ")," ",VLOOKUP($B56,'C10 Entry Sheet'!$A$16:$K$194,17,FALSE)) ->  | K56: =IF(($B56=" ")," ",VLOOKUP($B56,'C10 Entry Sheet'!$A$16:$K$194,19,FALSE)) ->  | L56: =IF(($B56=" ")," ",VLOOKUP($B56,'C10 Entry Sheet'!$A$16:$K$194,20,FALSE)) -> 
A57: 40 | B57: =IF(ISBLANK('C10 Entry Sheet'!A55)," ",CELL("contents",'C10 Entry Sheet'!A55)) ->  | C57: =IF(($B57=" ")," ",VLOOKUP($B57,'C10 Entry Sheet'!$A$16:$K$194,5,FALSE)) ->  | D57: =IF(($B57=" ")," ",VLOOKUP($B57,'C10 Entry Sheet'!$A$16:$K$194,6,FALSE)) ->  | E57: =IF(($B57=" ")," ",VLOOKUP($B57,'C10 Entry Sheet'!$A$16:$K$194,9,FALSE)) ->  | F57: =IF(($B57=" ")," ",VLOOKUP($B57,'C10 Entry Sheet'!$A$16:$K$194,7,FALSE)) ->  | G57: =IF(($B57=" ")," ",VLOOKUP($B57,'C10 Entry Sheet'!$A$16:$K$194,14,FALSE)) ->  | H57: =IF(($B57=" ")," ",VLOOKUP($B57,'C10 Entry Sheet'!$A$16:$K$194,8,FALSE)) ->  | I57: =IF(($B57=" ")," ",VLOOKUP($B57,'C10 Entry Sheet'!$A$16:$K$194,13,FALSE)) ->  | J57: =IF(($B57=" ")," ",VLOOKUP($B57,'C10 Entry Sheet'!$A$16:$K$194,17,FALSE)) ->  | K57: =IF(($B57=" ")," ",VLOOKUP($B57,'C10 Entry Sheet'!$A$16:$K$194,19,FALSE)) ->  | L57: =IF(($B57=" ")," ",VLOOKUP($B57,'C10 Entry Sheet'!$A$16:$K$194,20,FALSE)) -> 
A58: 41 | B58: =IF(ISBLANK('C10 Entry Sheet'!A56)," ",CELL("contents",'C10 Entry Sheet'!A56)) ->  | C58: =IF(($B58=" ")," ",VLOOKUP($B58,'C10 Entry Sheet'!$A$16:$K$194,5,FALSE)) ->  | D58: =IF(($B58=" ")," ",VLOOKUP($B58,'C10 Entry Sheet'!$A$16:$K$194,6,FALSE)) ->  | E58: =IF(($B58=" ")," ",VLOOKUP($B58,'C10 Entry Sheet'!$A$16:$K$194,9,FALSE)) ->  | F58: =IF(($B58=" ")," ",VLOOKUP($B58,'C10 Entry Sheet'!$A$16:$K$194,7,FALSE)) ->  | G58: =IF(($B58=" ")," ",VLOOKUP($B58,'C10 Entry Sheet'!$A$16:$K$194,14,FALSE)) ->  | H58: =IF(($B58=" ")," ",VLOOKUP($B58,'C10 Entry Sheet'!$A$16:$K$194,8,FALSE)) ->  | I58: =IF(($B58=" ")," ",VLOOKUP($B58,'C10 Entry Sheet'!$A$16:$K$194,13,FALSE)) ->  | J58: =IF(($B58=" ")," ",VLOOKUP($B58,'C10 Entry Sheet'!$A$16:$K$194,17,FALSE)) ->  | K58: =IF(($B58=" ")," ",VLOOKUP($B58,'C10 Entry Sheet'!$A$16:$K$194,19,FALSE)) ->  | L58: =IF(($B58=" ")," ",VLOOKUP($B58,'C10 Entry Sheet'!$A$16:$K$194,20,FALSE)) -> 
A59: 42 | B59: =IF(ISBLANK('C10 Entry Sheet'!A57)," ",CELL("contents",'C10 Entry Sheet'!A57)) ->  | C59: =IF(($B59=" ")," ",VLOOKUP($B59,'C10 Entry Sheet'!$A$16:$K$194,5,FALSE)) ->  | D59: =IF(($B59=" ")," ",VLOOKUP($B59,'C10 Entry Sheet'!$A$16:$K$194,6,FALSE)) ->  | E59: =IF(($B59=" ")," ",VLOOKUP($B59,'C10 Entry Sheet'!$A$16:$K$194,9,FALSE)) ->  | F59: =IF(($B59=" ")," ",VLOOKUP($B59,'C10 Entry Sheet'!$A$16:$K$194,7,FALSE)) ->  | G59: =IF(($B59=" ")," ",VLOOKUP($B59,'C10 Entry Sheet'!$A$16:$K$194,14,FALSE)) ->  | H59: =IF(($B59=" ")," ",VLOOKUP($B59,'C10 Entry Sheet'!$A$16:$K$194,8,FALSE)) ->  | I59: =IF(($B59=" ")," ",VLOOKUP($B59,'C10 Entry Sheet'!$A$16:$K$194,13,FALSE)) ->  | J59: =IF(($B59=" ")," ",VLOOKUP($B59,'C10 Entry Sheet'!$A$16:$K$194,17,FALSE)) ->  | K59: =IF(($B59=" ")," ",VLOOKUP($B59,'C10 Entry Sheet'!$A$16:$K$194,19,FALSE)) ->  | L59: =IF(($B59=" ")," ",VLOOKUP($B59,'C10 Entry Sheet'!$A$16:$K$194,20,FALSE)) -> 
A60: 43 | B60: =IF(ISBLANK('C10 Entry Sheet'!A58)," ",CELL("contents",'C10 Entry Sheet'!A58)) ->  | C60: =IF(($B60=" ")," ",VLOOKUP($B60,'C10 Entry Sheet'!$A$16:$K$194,5,FALSE)) ->  | D60: =IF(($B60=" ")," ",VLOOKUP($B60,'C10 Entry Sheet'!$A$16:$K$194,6,FALSE)) ->  | E60: =IF(($B60=" ")," ",VLOOKUP($B60,'C10 Entry Sheet'!$A$16:$K$194,9,FALSE)) ->  | F60: =IF(($B60=" ")," ",VLOOKUP($B60,'C10 Entry Sheet'!$A$16:$K$194,7,FALSE)) ->  | G60: =IF(($B60=" ")," ",VLOOKUP($B60,'C10 Entry Sheet'!$A$16:$K$194,14,FALSE)) ->  | H60: =IF(($B60=" ")," ",VLOOKUP($B60,'C10 Entry Sheet'!$A$16:$K$194,8,FALSE)) ->  | I60: =IF(($B60=" ")," ",VLOOKUP($B60,'C10 Entry Sheet'!$A$16:$K$194,13,FALSE)) ->  | J60: =IF(($B60=" ")," ",VLOOKUP($B60,'C10 Entry Sheet'!$A$16:$K$194,17,FALSE)) ->  | K60: =IF(($B60=" ")," ",VLOOKUP($B60,'C10 Entry Sheet'!$A$16:$K$194,19,FALSE)) ->  | L60: =IF(($B60=" ")," ",VLOOKUP($B60,'C10 Entry Sheet'!$A$16:$K$194,20,FALSE)) -> 
A61: =SUM(A60+1) -> 44 | B61: =IF(ISBLANK('C10 Entry Sheet'!A59)," ",CELL("contents",'C10 Entry Sheet'!A59)) ->  | C61: =IF(($B61=" ")," ",VLOOKUP($B61,'C10 Entry Sheet'!$A$16:$K$194,5,FALSE)) ->  | D61: =IF(($B61=" ")," ",VLOOKUP($B61,'C10 Entry Sheet'!$A$16:$K$194,6,FALSE)) ->  | E61: =IF(($B61=" ")," ",VLOOKUP($B61,'C10 Entry Sheet'!$A$16:$K$194,9,FALSE)) ->  | F61: =IF(($B61=" ")," ",VLOOKUP($B61,'C10 Entry Sheet'!$A$16:$K$194,7,FALSE)) ->  | G61: =IF(($B61=" ")," ",VLOOKUP($B61,'C10 Entry Sheet'!$A$16:$K$194,14,FALSE)) ->  | H61: =IF(($B61=" ")," ",VLOOKUP($B61,'C10 Entry Sheet'!$A$16:$K$194,8,FALSE)) ->  | I61: =IF(($B61=" ")," ",VLOOKUP($B61,'C10 Entry Sheet'!$A$16:$K$194,13,FALSE)) ->  | J61: =IF(($B61=" ")," ",VLOOKUP($B61,'C10 Entry Sheet'!$A$16:$K$194,17,FALSE)) ->  | K61: =IF(($B61=" ")," ",VLOOKUP($B61,'C10 Entry Sheet'!$A$16:$K$194,19,FALSE)) ->  | L61: =IF(($B61=" ")," ",VLOOKUP($B61,'C10 Entry Sheet'!$A$16:$K$194,20,FALSE)) -> 
A62: 45 | B62: =IF(ISBLANK('C10 Entry Sheet'!A60)," ",CELL("contents",'C10 Entry Sheet'!A60)) ->  | C62: =IF(($B62=" ")," ",VLOOKUP($B62,'C10 Entry Sheet'!$A$16:$K$194,5,FALSE)) ->  | D62: =IF(($B62=" ")," ",VLOOKUP($B62,'C10 Entry Sheet'!$A$16:$K$194,6,FALSE)) ->  | E62: =IF(($B62=" ")," ",VLOOKUP($B62,'C10 Entry Sheet'!$A$16:$K$194,9,FALSE)) ->  | F62: =IF(($B62=" ")," ",VLOOKUP($B62,'C10 Entry Sheet'!$A$16:$K$194,7,FALSE)) ->  | G62: =IF(($B62=" ")," ",VLOOKUP($B62,'C10 Entry Sheet'!$A$16:$K$194,14,FALSE)) ->  | H62: =IF(($B62=" ")," ",VLOOKUP($B62,'C10 Entry Sheet'!$A$16:$K$194,8,FALSE)) ->  | I62: =IF(($B62=" ")," ",VLOOKUP($B62,'C10 Entry Sheet'!$A$16:$K$194,13,FALSE)) ->  | J62: =IF(($B62=" ")," ",VLOOKUP($B62,'C10 Entry Sheet'!$A$16:$K$194,17,FALSE)) ->  | K62: =IF(($B62=" ")," ",VLOOKUP($B62,'C10 Entry Sheet'!$A$16:$K$194,19,FALSE)) ->  | L62: =IF(($B62=" ")," ",VLOOKUP($B62,'C10 Entry Sheet'!$A$16:$K$194,20,FALSE)) -> 
A63: 46 | B63: =IF(ISBLANK('C10 Entry Sheet'!A61)," ",CELL("contents",'C10 Entry Sheet'!A61)) ->  | C63: =IF(($B63=" ")," ",VLOOKUP($B63,'C10 Entry Sheet'!$A$16:$K$194,5,FALSE)) ->  | D63: =IF(($B63=" ")," ",VLOOKUP($B63,'C10 Entry Sheet'!$A$16:$K$194,6,FALSE)) ->  | E63: =IF(($B63=" ")," ",VLOOKUP($B63,'C10 Entry Sheet'!$A$16:$K$194,9,FALSE)) ->  | F63: =IF(($B63=" ")," ",VLOOKUP($B63,'C10 Entry Sheet'!$A$16:$K$194,7,FALSE)) ->  | G63: =IF(($B63=" ")," ",VLOOKUP($B63,'C10 Entry Sheet'!$A$16:$K$194,14,FALSE)) ->  | H63: =IF(($B63=" ")," ",VLOOKUP($B63,'C10 Entry Sheet'!$A$16:$K$194,8,FALSE)) ->  | I63: =IF(($B63=" ")," ",VLOOKUP($B63,'C10 Entry Sheet'!$A$16:$K$194,13,FALSE)) ->  | J63: =IF(($B63=" ")," ",VLOOKUP($B63,'C10 Entry Sheet'!$A$16:$K$194,17,FALSE)) ->  | K63: =IF(($B63=" ")," ",VLOOKUP($B63,'C10 Entry Sheet'!$A$16:$K$194,19,FALSE)) ->  | L63: =IF(($B63=" ")," ",VLOOKUP($B63,'C10 Entry Sheet'!$A$16:$K$194,20,FALSE)) -> 
A64: 47 | B64: =IF(ISBLANK('C10 Entry Sheet'!A62)," ",CELL("contents",'C10 Entry Sheet'!A62)) ->  | C64: =IF(($B64=" ")," ",VLOOKUP($B64,'C10 Entry Sheet'!$A$16:$K$194,5,FALSE)) ->  | D64: =IF(($B64=" ")," ",VLOOKUP($B64,'C10 Entry Sheet'!$A$16:$K$194,6,FALSE)) ->  | E64: =IF(($B64=" ")," ",VLOOKUP($B64,'C10 Entry Sheet'!$A$16:$K$194,9,FALSE)) ->  | F64: =IF(($B64=" ")," ",VLOOKUP($B64,'C10 Entry Sheet'!$A$16:$K$194,7,FALSE)) ->  | G64: =IF(($B64=" ")," ",VLOOKUP($B64,'C10 Entry Sheet'!$A$16:$K$194,14,FALSE)) ->  | H64: =IF(($B64=" ")," ",VLOOKUP($B64,'C10 Entry Sheet'!$A$16:$K$194,8,FALSE)) ->  | I64: =IF(($B64=" ")," ",VLOOKUP($B64,'C10 Entry Sheet'!$A$16:$K$194,13,FALSE)) ->  | J64: =IF(($B64=" ")," ",VLOOKUP($B64,'C10 Entry Sheet'!$A$16:$K$194,17,FALSE)) ->  | K64: =IF(($B64=" ")," ",VLOOKUP($B64,'C10 Entry Sheet'!$A$16:$K$194,19,FALSE)) ->  | L64: =IF(($B64=" ")," ",VLOOKUP($B64,'C10 Entry Sheet'!$A$16:$K$194,20,FALSE)) -> 
A65: 48 | B65: =IF(ISBLANK('C10 Entry Sheet'!A63)," ",CELL("contents",'C10 Entry Sheet'!A63)) ->  | C65: =IF(($B65=" ")," ",VLOOKUP($B65,'C10 Entry Sheet'!$A$16:$K$194,5,FALSE)) ->  | D65: =IF(($B65=" ")," ",VLOOKUP($B65,'C10 Entry Sheet'!$A$16:$K$194,6,FALSE)) ->  | E65: =IF(($B65=" ")," ",VLOOKUP($B65,'C10 Entry Sheet'!$A$16:$K$194,9,FALSE)) ->  | F65: =IF(($B65=" ")," ",VLOOKUP($B65,'C10 Entry Sheet'!$A$16:$K$194,7,FALSE)) ->  | G65: =IF(($B65=" ")," ",VLOOKUP($B65,'C10 Entry Sheet'!$A$16:$K$194,14,FALSE)) ->  | H65: =IF(($B65=" ")," ",VLOOKUP($B65,'C10 Entry Sheet'!$A$16:$K$194,8,FALSE)) ->  | I65: =IF(($B65=" ")," ",VLOOKUP($B65,'C10 Entry Sheet'!$A$16:$K$194,13,FALSE)) ->  | J65: =IF(($B65=" ")," ",VLOOKUP($B65,'C10 Entry Sheet'!$A$16:$K$194,17,FALSE)) ->  | K65: =IF(($B65=" ")," ",VLOOKUP($B65,'C10 Entry Sheet'!$A$16:$K$194,19,FALSE)) ->  | L65: =IF(($B65=" ")," ",VLOOKUP($B65,'C10 Entry Sheet'!$A$16:$K$194,20,FALSE)) -> 
A66: 49 | B66: =IF(ISBLANK('C10 Entry Sheet'!A64)," ",CELL("contents",'C10 Entry Sheet'!A64)) ->  | C66: =IF(($B66=" ")," ",VLOOKUP($B66,'C10 Entry Sheet'!$A$16:$K$194,5,FALSE)) ->  | D66: =IF(($B66=" ")," ",VLOOKUP($B66,'C10 Entry Sheet'!$A$16:$K$194,6,FALSE)) ->  | E66: =IF(($B66=" ")," ",VLOOKUP($B66,'C10 Entry Sheet'!$A$16:$K$194,9,FALSE)) ->  | F66: =IF(($B66=" ")," ",VLOOKUP($B66,'C10 Entry Sheet'!$A$16:$K$194,7,FALSE)) ->  | G66: =IF(($B66=" ")," ",VLOOKUP($B66,'C10 Entry Sheet'!$A$16:$K$194,14,FALSE)) ->  | H66: =IF(($B66=" ")," ",VLOOKUP($B66,'C10 Entry Sheet'!$A$16:$K$194,8,FALSE)) ->  | I66: =IF(($B66=" ")," ",VLOOKUP($B66,'C10 Entry Sheet'!$A$16:$K$194,13,FALSE)) ->  | J66: =IF(($B66=" ")," ",VLOOKUP($B66,'C10 Entry Sheet'!$A$16:$K$194,17,FALSE)) ->  | K66: =IF(($B66=" ")," ",VLOOKUP($B66,'C10 Entry Sheet'!$A$16:$K$194,19,FALSE)) ->  | L66: =IF(($B66=" ")," ",VLOOKUP($B66,'C10 Entry Sheet'!$A$16:$K$194,20,FALSE)) -> 
A67: 50 | B67: =IF(ISBLANK('C10 Entry Sheet'!A65)," ",CELL("contents",'C10 Entry Sheet'!A65)) ->  | C67: =IF(($B67=" ")," ",VLOOKUP($B67,'C10 Entry Sheet'!$A$16:$K$194,5,FALSE)) ->  | D67: =IF(($B67=" ")," ",VLOOKUP($B67,'C10 Entry Sheet'!$A$16:$K$194,6,FALSE)) ->  | E67: =IF(($B67=" ")," ",VLOOKUP($B67,'C10 Entry Sheet'!$A$16:$K$194,9,FALSE)) ->  | F67: =IF(($B67=" ")," ",VLOOKUP($B67,'C10 Entry Sheet'!$A$16:$K$194,7,FALSE)) ->  | G67: =IF(($B67=" ")," ",VLOOKUP($B67,'C10 Entry Sheet'!$A$16:$K$194,14,FALSE)) ->  | H67: =IF(($B67=" ")," ",VLOOKUP($B67,'C10 Entry Sheet'!$A$16:$K$194,8,FALSE)) ->  | I67: =IF(($B67=" ")," ",VLOOKUP($B67,'C10 Entry Sheet'!$A$16:$K$194,13,FALSE)) ->  | J67: =IF(($B67=" ")," ",VLOOKUP($B67,'C10 Entry Sheet'!$A$16:$K$194,17,FALSE)) ->  | K67: =IF(($B67=" ")," ",VLOOKUP($B67,'C10 Entry Sheet'!$A$16:$K$194,19,FALSE)) ->  | L67: =IF(($B67=" ")," ",VLOOKUP($B67,'C10 Entry Sheet'!$A$16:$K$194,20,FALSE)) -> 
A68: 51 | B68: =IF(ISBLANK('C10 Entry Sheet'!A66)," ",CELL("contents",'C10 Entry Sheet'!A66)) ->  | C68: =IF(($B68=" ")," ",VLOOKUP($B68,'C10 Entry Sheet'!$A$16:$K$194,5,FALSE)) ->  | D68: =IF(($B68=" ")," ",VLOOKUP($B68,'C10 Entry Sheet'!$A$16:$K$194,6,FALSE)) ->  | E68: =IF(($B68=" ")," ",VLOOKUP($B68,'C10 Entry Sheet'!$A$16:$K$194,9,FALSE)) ->  | F68: =IF(($B68=" ")," ",VLOOKUP($B68,'C10 Entry Sheet'!$A$16:$K$194,7,FALSE)) ->  | G68: =IF(($B68=" ")," ",VLOOKUP($B68,'C10 Entry Sheet'!$A$16:$K$194,14,FALSE)) ->  | H68: =IF(($B68=" ")," ",VLOOKUP($B68,'C10 Entry Sheet'!$A$16:$K$194,8,FALSE)) ->  | I68: =IF(($B68=" ")," ",VLOOKUP($B68,'C10 Entry Sheet'!$A$16:$K$194,13,FALSE)) ->  | J68: =IF(($B68=" ")," ",VLOOKUP($B68,'C10 Entry Sheet'!$A$16:$K$194,17,FALSE)) ->  | K68: =IF(($B68=" ")," ",VLOOKUP($B68,'C10 Entry Sheet'!$A$16:$K$194,19,FALSE)) ->  | L68: =IF(($B68=" ")," ",VLOOKUP($B68,'C10 Entry Sheet'!$A$16:$K$194,20,FALSE)) -> 
A69: 52 | B69: =IF(ISBLANK('C10 Entry Sheet'!A67)," ",CELL("contents",'C10 Entry Sheet'!A67)) ->  | C69: =IF(($B69=" ")," ",VLOOKUP($B69,'C10 Entry Sheet'!$A$16:$K$194,5,FALSE)) ->  | D69: =IF(($B69=" ")," ",VLOOKUP($B69,'C10 Entry Sheet'!$A$16:$K$194,6,FALSE)) ->  | E69: =IF(($B69=" ")," ",VLOOKUP($B69,'C10 Entry Sheet'!$A$16:$K$194,9,FALSE)) ->  | F69: =IF(($B69=" ")," ",VLOOKUP($B69,'C10 Entry Sheet'!$A$16:$K$194,7,FALSE)) ->  | G69: =IF(($B69=" ")," ",VLOOKUP($B69,'C10 Entry Sheet'!$A$16:$K$194,14,FALSE)) ->  | H69: =IF(($B69=" ")," ",VLOOKUP($B69,'C10 Entry Sheet'!$A$16:$K$194,8,FALSE)) ->  | I69: =IF(($B69=" ")," ",VLOOKUP($B69,'C10 Entry Sheet'!$A$16:$K$194,13,FALSE)) ->  | J69: =IF(($B69=" ")," ",VLOOKUP($B69,'C10 Entry Sheet'!$A$16:$K$194,17,FALSE)) ->  | K69: =IF(($B69=" ")," ",VLOOKUP($B69,'C10 Entry Sheet'!$A$16:$K$194,19,FALSE)) ->  | L69: =IF(($B69=" ")," ",VLOOKUP($B69,'C10 Entry Sheet'!$A$16:$K$194,20,FALSE)) -> 
A70: 53 | B70: =IF(ISBLANK('C10 Entry Sheet'!A68)," ",CELL("contents",'C10 Entry Sheet'!A68)) ->  | C70: =IF(($B70=" ")," ",VLOOKUP($B70,'C10 Entry Sheet'!$A$16:$K$194,5,FALSE)) ->  | D70: =IF(($B70=" ")," ",VLOOKUP($B70,'C10 Entry Sheet'!$A$16:$K$194,6,FALSE)) ->  | E70: =IF(($B70=" ")," ",VLOOKUP($B70,'C10 Entry Sheet'!$A$16:$K$194,9,FALSE)) ->  | F70: =IF(($B70=" ")," ",VLOOKUP($B70,'C10 Entry Sheet'!$A$16:$K$194,7,FALSE)) ->  | G70: =IF(($B70=" ")," ",VLOOKUP($B70,'C10 Entry Sheet'!$A$16:$K$194,14,FALSE)) ->  | H70: =IF(($B70=" ")," ",VLOOKUP($B70,'C10 Entry Sheet'!$A$16:$K$194,8,FALSE)) ->  | I70: =IF(($B70=" ")," ",VLOOKUP($B70,'C10 Entry Sheet'!$A$16:$K$194,13,FALSE)) ->  | J70: =IF(($B70=" ")," ",VLOOKUP($B70,'C10 Entry Sheet'!$A$16:$K$194,17,FALSE)) ->  | K70: =IF(($B70=" ")," ",VLOOKUP($B70,'C10 Entry Sheet'!$A$16:$K$194,19,FALSE)) ->  | L70: =IF(($B70=" ")," ",VLOOKUP($B70,'C10 Entry Sheet'!$A$16:$K$194,20,FALSE)) -> 
A71: 54 | B71: =IF(ISBLANK('C10 Entry Sheet'!A69)," ",CELL("contents",'C10 Entry Sheet'!A69)) ->  | C71: =IF(($B71=" ")," ",VLOOKUP($B71,'C10 Entry Sheet'!$A$16:$K$194,5,FALSE)) ->  | D71: =IF(($B71=" ")," ",VLOOKUP($B71,'C10 Entry Sheet'!$A$16:$K$194,6,FALSE)) ->  | E71: =IF(($B71=" ")," ",VLOOKUP($B71,'C10 Entry Sheet'!$A$16:$K$194,9,FALSE)) ->  | F71: =IF(($B71=" ")," ",VLOOKUP($B71,'C10 Entry Sheet'!$A$16:$K$194,7,FALSE)) ->  | G71: =IF(($B71=" ")," ",VLOOKUP($B71,'C10 Entry Sheet'!$A$16:$K$194,14,FALSE)) ->  | H71: =IF(($B71=" ")," ",VLOOKUP($B71,'C10 Entry Sheet'!$A$16:$K$194,8,FALSE)) ->  | I71: =IF(($B71=" ")," ",VLOOKUP($B71,'C10 Entry Sheet'!$A$16:$K$194,13,FALSE)) ->  | J71: =IF(($B71=" ")," ",VLOOKUP($B71,'C10 Entry Sheet'!$A$16:$K$194,17,FALSE)) ->  | K71: =IF(($B71=" ")," ",VLOOKUP($B71,'C10 Entry Sheet'!$A$16:$K$194,19,FALSE)) ->  | L71: =IF(($B71=" ")," ",VLOOKUP($B71,'C10 Entry Sheet'!$A$16:$K$194,20,FALSE)) -> 
A72: 55 | B72: =IF(ISBLANK('C10 Entry Sheet'!A70)," ",CELL("contents",'C10 Entry Sheet'!A70)) ->  | C72: =IF(($B72=" ")," ",VLOOKUP($B72,'C10 Entry Sheet'!$A$16:$K$194,5,FALSE)) ->  | D72: =IF(($B72=" ")," ",VLOOKUP($B72,'C10 Entry Sheet'!$A$16:$K$194,6,FALSE)) ->  | E72: =IF(($B72=" ")," ",VLOOKUP($B72,'C10 Entry Sheet'!$A$16:$K$194,9,FALSE)) ->  | F72: =IF(($B72=" ")," ",VLOOKUP($B72,'C10 Entry Sheet'!$A$16:$K$194,7,FALSE)) ->  | G72: =IF(($B72=" ")," ",VLOOKUP($B72,'C10 Entry Sheet'!$A$16:$K$194,14,FALSE)) ->  | H72: =IF(($B72=" ")," ",VLOOKUP($B72,'C10 Entry Sheet'!$A$16:$K$194,8,FALSE)) ->  | I72: =IF(($B72=" ")," ",VLOOKUP($B72,'C10 Entry Sheet'!$A$16:$K$194,13,FALSE)) ->  | J72: =IF(($B72=" ")," ",VLOOKUP($B72,'C10 Entry Sheet'!$A$16:$K$194,17,FALSE)) ->  | K72: =IF(($B72=" ")," ",VLOOKUP($B72,'C10 Entry Sheet'!$A$16:$K$194,19,FALSE)) ->  | L72: =IF(($B72=" ")," ",VLOOKUP($B72,'C10 Entry Sheet'!$A$16:$K$194,20,FALSE)) -> 
A73: 56 | B73: =IF(ISBLANK('C10 Entry Sheet'!A71)," ",CELL("contents",'C10 Entry Sheet'!A71)) ->  | C73: =IF(($B73=" ")," ",VLOOKUP($B73,'C10 Entry Sheet'!$A$16:$K$194,5,FALSE)) ->  | D73: =IF(($B73=" ")," ",VLOOKUP($B73,'C10 Entry Sheet'!$A$16:$K$194,6,FALSE)) ->  | E73: =IF(($B73=" ")," ",VLOOKUP($B73,'C10 Entry Sheet'!$A$16:$K$194,9,FALSE)) ->  | F73: =IF(($B73=" ")," ",VLOOKUP($B73,'C10 Entry Sheet'!$A$16:$K$194,7,FALSE)) ->  | G73: =IF(($B73=" ")," ",VLOOKUP($B73,'C10 Entry Sheet'!$A$16:$K$194,14,FALSE)) ->  | H73: =IF(($B73=" ")," ",VLOOKUP($B73,'C10 Entry Sheet'!$A$16:$K$194,8,FALSE)) ->  | I73: =IF(($B73=" ")," ",VLOOKUP($B73,'C10 Entry Sheet'!$A$16:$K$194,13,FALSE)) ->  | J73: =IF(($B73=" ")," ",VLOOKUP($B73,'C10 Entry Sheet'!$A$16:$K$194,17,FALSE)) ->  | K73: =IF(($B73=" ")," ",VLOOKUP($B73,'C10 Entry Sheet'!$A$16:$K$194,19,FALSE)) ->  | L73: =IF(($B73=" ")," ",VLOOKUP($B73,'C10 Entry Sheet'!$A$16:$K$194,20,FALSE)) -> 
A74: 57 | B74: =IF(ISBLANK('C10 Entry Sheet'!A72)," ",CELL("contents",'C10 Entry Sheet'!A72)) ->  | C74: =IF(($B74=" ")," ",VLOOKUP($B74,'C10 Entry Sheet'!$A$16:$K$194,5,FALSE)) ->  | D74: =IF(($B74=" ")," ",VLOOKUP($B74,'C10 Entry Sheet'!$A$16:$K$194,6,FALSE)) ->  | E74: =IF(($B74=" ")," ",VLOOKUP($B74,'C10 Entry Sheet'!$A$16:$K$194,9,FALSE)) ->  | F74: =IF(($B74=" ")," ",VLOOKUP($B74,'C10 Entry Sheet'!$A$16:$K$194,7,FALSE)) ->  | G74: =IF(($B74=" ")," ",VLOOKUP($B74,'C10 Entry Sheet'!$A$16:$K$194,14,FALSE)) ->  | H74: =IF(($B74=" ")," ",VLOOKUP($B74,'C10 Entry Sheet'!$A$16:$K$194,8,FALSE)) ->  | I74: =IF(($B74=" ")," ",VLOOKUP($B74,'C10 Entry Sheet'!$A$16:$K$194,13,FALSE)) ->  | J74: =IF(($B74=" ")," ",VLOOKUP($B74,'C10 Entry Sheet'!$A$16:$K$194,17,FALSE)) ->  | K74: =IF(($B74=" ")," ",VLOOKUP($B74,'C10 Entry Sheet'!$A$16:$K$194,19,FALSE)) ->  | L74: =IF(($B74=" ")," ",VLOOKUP($B74,'C10 Entry Sheet'!$A$16:$K$194,20,FALSE)) -> 
A75: 58 | B75: =IF(ISBLANK('C10 Entry Sheet'!A73)," ",CELL("contents",'C10 Entry Sheet'!A73)) ->  | C75: =IF(($B75=" ")," ",VLOOKUP($B75,'C10 Entry Sheet'!$A$16:$K$194,5,FALSE)) ->  | D75: =IF(($B75=" ")," ",VLOOKUP($B75,'C10 Entry Sheet'!$A$16:$K$194,6,FALSE)) ->  | E75: =IF(($B75=" ")," ",VLOOKUP($B75,'C10 Entry Sheet'!$A$16:$K$194,9,FALSE)) ->  | F75: =IF(($B75=" ")," ",VLOOKUP($B75,'C10 Entry Sheet'!$A$16:$K$194,7,FALSE)) ->  | G75: =IF(($B75=" ")," ",VLOOKUP($B75,'C10 Entry Sheet'!$A$16:$K$194,14,FALSE)) ->  | H75: =IF(($B75=" ")," ",VLOOKUP($B75,'C10 Entry Sheet'!$A$16:$K$194,8,FALSE)) ->  | I75: =IF(($B75=" ")," ",VLOOKUP($B75,'C10 Entry Sheet'!$A$16:$K$194,13,FALSE)) ->  | J75: =IF(($B75=" ")," ",VLOOKUP($B75,'C10 Entry Sheet'!$A$16:$K$194,17,FALSE)) ->  | K75: =IF(($B75=" ")," ",VLOOKUP($B75,'C10 Entry Sheet'!$A$16:$K$194,19,FALSE)) ->  | L75: =IF(($B75=" ")," ",VLOOKUP($B75,'C10 Entry Sheet'!$A$16:$K$194,20,FALSE)) -> 
A76: 59 | B76: =IF(ISBLANK('C10 Entry Sheet'!A74)," ",CELL("contents",'C10 Entry Sheet'!A74)) ->  | C76: =IF(($B76=" ")," ",VLOOKUP($B76,'C10 Entry Sheet'!$A$16:$K$194,5,FALSE)) ->  | D76: =IF(($B76=" ")," ",VLOOKUP($B76,'C10 Entry Sheet'!$A$16:$K$194,6,FALSE)) ->  | E76: =IF(($B76=" ")," ",VLOOKUP($B76,'C10 Entry Sheet'!$A$16:$K$194,9,FALSE)) ->  | F76: =IF(($B76=" ")," ",VLOOKUP($B76,'C10 Entry Sheet'!$A$16:$K$194,7,FALSE)) ->  | G76: =IF(($B76=" ")," ",VLOOKUP($B76,'C10 Entry Sheet'!$A$16:$K$194,14,FALSE)) ->  | H76: =IF(($B76=" ")," ",VLOOKUP($B76,'C10 Entry Sheet'!$A$16:$K$194,8,FALSE)) ->  | I76: =IF(($B76=" ")," ",VLOOKUP($B76,'C10 Entry Sheet'!$A$16:$K$194,13,FALSE)) ->  | J76: =IF(($B76=" ")," ",VLOOKUP($B76,'C10 Entry Sheet'!$A$16:$K$194,17,FALSE)) ->  | K76: =IF(($B76=" ")," ",VLOOKUP($B76,'C10 Entry Sheet'!$A$16:$K$194,19,FALSE)) ->  | L76: =IF(($B76=" ")," ",VLOOKUP($B76,'C10 Entry Sheet'!$A$16:$K$194,20,FALSE)) -> 
A77: 60 | B77: =IF(ISBLANK('C10 Entry Sheet'!A75)," ",CELL("contents",'C10 Entry Sheet'!A75)) ->  | C77: =IF(($B77=" ")," ",VLOOKUP($B77,'C10 Entry Sheet'!$A$16:$K$194,5,FALSE)) ->  | D77: =IF(($B77=" ")," ",VLOOKUP($B77,'C10 Entry Sheet'!$A$16:$K$194,6,FALSE)) ->  | E77: =IF(($B77=" ")," ",VLOOKUP($B77,'C10 Entry Sheet'!$A$16:$K$194,9,FALSE)) ->  | F77: =IF(($B77=" ")," ",VLOOKUP($B77,'C10 Entry Sheet'!$A$16:$K$194,7,FALSE)) ->  | G77: =IF(($B77=" ")," ",VLOOKUP($B77,'C10 Entry Sheet'!$A$16:$K$194,14,FALSE)) ->  | H77: =IF(($B77=" ")," ",VLOOKUP($B77,'C10 Entry Sheet'!$A$16:$K$194,8,FALSE)) ->  | I77: =IF(($B77=" ")," ",VLOOKUP($B77,'C10 Entry Sheet'!$A$16:$K$194,13,FALSE)) ->  | J77: =IF(($B77=" ")," ",VLOOKUP($B77,'C10 Entry Sheet'!$A$16:$K$194,17,FALSE)) ->  | K77: =IF(($B77=" ")," ",VLOOKUP($B77,'C10 Entry Sheet'!$A$16:$K$194,19,FALSE)) ->  | L77: =IF(($B77=" ")," ",VLOOKUP($B77,'C10 Entry Sheet'!$A$16:$K$194,20,FALSE)) -> 
A78: 61 | B78: =IF(ISBLANK('C10 Entry Sheet'!A76)," ",CELL("contents",'C10 Entry Sheet'!A76)) ->  | C78: =IF(($B78=" ")," ",VLOOKUP($B78,'C10 Entry Sheet'!$A$16:$K$194,5,FALSE)) ->  | D78: =IF(($B78=" ")," ",VLOOKUP($B78,'C10 Entry Sheet'!$A$16:$K$194,6,FALSE)) ->  | E78: =IF(($B78=" ")," ",VLOOKUP($B78,'C10 Entry Sheet'!$A$16:$K$194,9,FALSE)) ->  | F78: =IF(($B78=" ")," ",VLOOKUP($B78,'C10 Entry Sheet'!$A$16:$K$194,7,FALSE)) ->  | G78: =IF(($B78=" ")," ",VLOOKUP($B78,'C10 Entry Sheet'!$A$16:$K$194,14,FALSE)) ->  | H78: =IF(($B78=" ")," ",VLOOKUP($B78,'C10 Entry Sheet'!$A$16:$K$194,8,FALSE)) ->  | I78: =IF(($B78=" ")," ",VLOOKUP($B78,'C10 Entry Sheet'!$A$16:$K$194,13,FALSE)) ->  | J78: =IF(($B78=" ")," ",VLOOKUP($B78,'C10 Entry Sheet'!$A$16:$K$194,17,FALSE)) ->  | K78: =IF(($B78=" ")," ",VLOOKUP($B78,'C10 Entry Sheet'!$A$16:$K$194,19,FALSE)) ->  | L78: =IF(($B78=" ")," ",VLOOKUP($B78,'C10 Entry Sheet'!$A$16:$K$194,20,FALSE)) -> 
A79: 62 | B79: =IF(ISBLANK('C10 Entry Sheet'!A77)," ",CELL("contents",'C10 Entry Sheet'!A77)) ->  | C79: =IF(($B79=" ")," ",VLOOKUP($B79,'C10 Entry Sheet'!$A$16:$K$194,5,FALSE)) ->  | D79: =IF(($B79=" ")," ",VLOOKUP($B79,'C10 Entry Sheet'!$A$16:$K$194,6,FALSE)) ->  | E79: =IF(($B79=" ")," ",VLOOKUP($B79,'C10 Entry Sheet'!$A$16:$K$194,9,FALSE)) ->  | F79: =IF(($B79=" ")," ",VLOOKUP($B79,'C10 Entry Sheet'!$A$16:$K$194,7,FALSE)) ->  | G79: =IF(($B79=" ")," ",VLOOKUP($B79,'C10 Entry Sheet'!$A$16:$K$194,14,FALSE)) ->  | H79: =IF(($B79=" ")," ",VLOOKUP($B79,'C10 Entry Sheet'!$A$16:$K$194,8,FALSE)) ->  | I79: =IF(($B79=" ")," ",VLOOKUP($B79,'C10 Entry Sheet'!$A$16:$K$194,13,FALSE)) ->  | J79: =IF(($B79=" ")," ",VLOOKUP($B79,'C10 Entry Sheet'!$A$16:$K$194,17,FALSE)) ->  | K79: =IF(($B79=" ")," ",VLOOKUP($B79,'C10 Entry Sheet'!$A$16:$K$194,19,FALSE)) ->  | L79: =IF(($B79=" ")," ",VLOOKUP($B79,'C10 Entry Sheet'!$A$16:$K$194,20,FALSE)) -> 
A80: 63 | B80: =IF(ISBLANK('C10 Entry Sheet'!A78)," ",CELL("contents",'C10 Entry Sheet'!A78)) ->  | C80: =IF(($B80=" ")," ",VLOOKUP($B80,'C10 Entry Sheet'!$A$16:$K$194,5,FALSE)) ->  | D80: =IF(($B80=" ")," ",VLOOKUP($B80,'C10 Entry Sheet'!$A$16:$K$194,6,FALSE)) ->  | E80: =IF(($B80=" ")," ",VLOOKUP($B80,'C10 Entry Sheet'!$A$16:$K$194,9,FALSE)) ->  | F80: =IF(($B80=" ")," ",VLOOKUP($B80,'C10 Entry Sheet'!$A$16:$K$194,7,FALSE)) ->  | G80: =IF(($B80=" ")," ",VLOOKUP($B80,'C10 Entry Sheet'!$A$16:$K$194,14,FALSE)) ->  | H80: =IF(($B80=" ")," ",VLOOKUP($B80,'C10 Entry Sheet'!$A$16:$K$194,8,FALSE)) ->  | I80: =IF(($B80=" ")," ",VLOOKUP($B80,'C10 Entry Sheet'!$A$16:$K$194,13,FALSE)) ->  | J80: =IF(($B80=" ")," ",VLOOKUP($B80,'C10 Entry Sheet'!$A$16:$K$194,17,FALSE)) ->  | K80: =IF(($B80=" ")," ",VLOOKUP($B80,'C10 Entry Sheet'!$A$16:$K$194,19,FALSE)) ->  | L80: =IF(($B80=" ")," ",VLOOKUP($B80,'C10 Entry Sheet'!$A$16:$K$194,20,FALSE)) -> 
A81: 64 | B81: =IF(ISBLANK('C10 Entry Sheet'!A79)," ",CELL("contents",'C10 Entry Sheet'!A79)) ->  | C81: =IF(($B81=" ")," ",VLOOKUP($B81,'C10 Entry Sheet'!$A$16:$K$194,5,FALSE)) ->  | D81: =IF(($B81=" ")," ",VLOOKUP($B81,'C10 Entry Sheet'!$A$16:$K$194,6,FALSE)) ->  | E81: =IF(($B81=" ")," ",VLOOKUP($B81,'C10 Entry Sheet'!$A$16:$K$194,9,FALSE)) ->  | F81: =IF(($B81=" ")," ",VLOOKUP($B81,'C10 Entry Sheet'!$A$16:$K$194,7,FALSE)) ->  | G81: =IF(($B81=" ")," ",VLOOKUP($B81,'C10 Entry Sheet'!$A$16:$K$194,14,FALSE)) ->  | H81: =IF(($B81=" ")," ",VLOOKUP($B81,'C10 Entry Sheet'!$A$16:$K$194,8,FALSE)) ->  | I81: =IF(($B81=" ")," ",VLOOKUP($B81,'C10 Entry Sheet'!$A$16:$K$194,13,FALSE)) ->  | J81: =IF(($B81=" ")," ",VLOOKUP($B81,'C10 Entry Sheet'!$A$16:$K$194,17,FALSE)) ->  | K81: =IF(($B81=" ")," ",VLOOKUP($B81,'C10 Entry Sheet'!$A$16:$K$194,19,FALSE)) ->  | L81: =IF(($B81=" ")," ",VLOOKUP($B81,'C10 Entry Sheet'!$A$16:$K$194,20,FALSE)) -> 
A82: 65 | B82: =IF(ISBLANK('C10 Entry Sheet'!A80)," ",CELL("contents",'C10 Entry Sheet'!A80)) ->  | C82: =IF(($B82=" ")," ",VLOOKUP($B82,'C10 Entry Sheet'!$A$16:$K$194,5,FALSE)) ->  | D82: =IF(($B82=" ")," ",VLOOKUP($B82,'C10 Entry Sheet'!$A$16:$K$194,6,FALSE)) ->  | E82: =IF(($B82=" ")," ",VLOOKUP($B82,'C10 Entry Sheet'!$A$16:$K$194,9,FALSE)) ->  | F82: =IF(($B82=" ")," ",VLOOKUP($B82,'C10 Entry Sheet'!$A$16:$K$194,7,FALSE)) ->  | G82: =IF(($B82=" ")," ",VLOOKUP($B82,'C10 Entry Sheet'!$A$16:$K$194,14,FALSE)) ->  | H82: =IF(($B82=" ")," ",VLOOKUP($B82,'C10 Entry Sheet'!$A$16:$K$194,8,FALSE)) ->  | I82: =IF(($B82=" ")," ",VLOOKUP($B82,'C10 Entry Sheet'!$A$16:$K$194,13,FALSE)) ->  | J82: =IF(($B82=" ")," ",VLOOKUP($B82,'C10 Entry Sheet'!$A$16:$K$194,17,FALSE)) ->  | K82: =IF(($B82=" ")," ",VLOOKUP($B82,'C10 Entry Sheet'!$A$16:$K$194,19,FALSE)) ->  | L82: =IF(($B82=" ")," ",VLOOKUP($B82,'C10 Entry Sheet'!$A$16:$K$194,20,FALSE)) -> 
A83: 66 | B83: =IF(ISBLANK('C10 Entry Sheet'!A81)," ",CELL("contents",'C10 Entry Sheet'!A81)) ->  | C83: =IF(($B83=" ")," ",VLOOKUP($B83,'C10 Entry Sheet'!$A$16:$K$194,5,FALSE)) ->  | D83: =IF(($B83=" ")," ",VLOOKUP($B83,'C10 Entry Sheet'!$A$16:$K$194,6,FALSE)) ->  | E83: =IF(($B83=" ")," ",VLOOKUP($B83,'C10 Entry Sheet'!$A$16:$K$194,9,FALSE)) ->  | F83: =IF(($B83=" ")," ",VLOOKUP($B83,'C10 Entry Sheet'!$A$16:$K$194,7,FALSE)) ->  | G83: =IF(($B83=" ")," ",VLOOKUP($B83,'C10 Entry Sheet'!$A$16:$K$194,14,FALSE)) ->  | H83: =IF(($B83=" ")," ",VLOOKUP($B83,'C10 Entry Sheet'!$A$16:$K$194,8,FALSE)) ->  | I83: =IF(($B83=" ")," ",VLOOKUP($B83,'C10 Entry Sheet'!$A$16:$K$194,13,FALSE)) ->  | J83: =IF(($B83=" ")," ",VLOOKUP($B83,'C10 Entry Sheet'!$A$16:$K$194,17,FALSE)) ->  | K83: =IF(($B83=" ")," ",VLOOKUP($B83,'C10 Entry Sheet'!$A$16:$K$194,19,FALSE)) ->  | L83: =IF(($B83=" ")," ",VLOOKUP($B83,'C10 Entry Sheet'!$A$16:$K$194,20,FALSE)) -> 
A84: 67 | B84: =IF(ISBLANK('C10 Entry Sheet'!A82)," ",CELL("contents",'C10 Entry Sheet'!A82)) ->  | C84: =IF(($B84=" ")," ",VLOOKUP($B84,'C10 Entry Sheet'!$A$16:$K$194,5,FALSE)) ->  | D84: =IF(($B84=" ")," ",VLOOKUP($B84,'C10 Entry Sheet'!$A$16:$K$194,6,FALSE)) ->  | E84: =IF(($B84=" ")," ",VLOOKUP($B84,'C10 Entry Sheet'!$A$16:$K$194,9,FALSE)) ->  | F84: =IF(($B84=" ")," ",VLOOKUP($B84,'C10 Entry Sheet'!$A$16:$K$194,7,FALSE)) ->  | G84: =IF(($B84=" ")," ",VLOOKUP($B84,'C10 Entry Sheet'!$A$16:$K$194,14,FALSE)) ->  | H84: =IF(($B84=" ")," ",VLOOKUP($B84,'C10 Entry Sheet'!$A$16:$K$194,8,FALSE)) ->  | I84: =IF(($B84=" ")," ",VLOOKUP($B84,'C10 Entry Sheet'!$A$16:$K$194,13,FALSE)) ->  | J84: =IF(($B84=" ")," ",VLOOKUP($B84,'C10 Entry Sheet'!$A$16:$K$194,17,FALSE)) ->  | K84: =IF(($B84=" ")," ",VLOOKUP($B84,'C10 Entry Sheet'!$A$16:$K$194,19,FALSE)) ->  | L84: =IF(($B84=" ")," ",VLOOKUP($B84,'C10 Entry Sheet'!$A$16:$K$194,20,FALSE)) -> 
A85: 68 | B85: =IF(ISBLANK('C10 Entry Sheet'!A83)," ",CELL("contents",'C10 Entry Sheet'!A83)) ->  | C85: =IF(($B85=" ")," ",VLOOKUP($B85,'C10 Entry Sheet'!$A$16:$K$194,5,FALSE)) ->  | D85: =IF(($B85=" ")," ",VLOOKUP($B85,'C10 Entry Sheet'!$A$16:$K$194,6,FALSE)) ->  | E85: =IF(($B85=" ")," ",VLOOKUP($B85,'C10 Entry Sheet'!$A$16:$K$194,9,FALSE)) ->  | F85: =IF(($B85=" ")," ",VLOOKUP($B85,'C10 Entry Sheet'!$A$16:$K$194,7,FALSE)) ->  | G85: =IF(($B85=" ")," ",VLOOKUP($B85,'C10 Entry Sheet'!$A$16:$K$194,14,FALSE)) ->  | H85: =IF(($B85=" ")," ",VLOOKUP($B85,'C10 Entry Sheet'!$A$16:$K$194,8,FALSE)) ->  | I85: =IF(($B85=" ")," ",VLOOKUP($B85,'C10 Entry Sheet'!$A$16:$K$194,13,FALSE)) ->  | J85: =IF(($B85=" ")," ",VLOOKUP($B85,'C10 Entry Sheet'!$A$16:$K$194,17,FALSE)) ->  | K85: =IF(($B85=" ")," ",VLOOKUP($B85,'C10 Entry Sheet'!$A$16:$K$194,19,FALSE)) ->  | L85: =IF(($B85=" ")," ",VLOOKUP($B85,'C10 Entry Sheet'!$A$16:$K$194,20,FALSE)) -> 
A86: 69 | B86: =IF(ISBLANK('C10 Entry Sheet'!A84)," ",CELL("contents",'C10 Entry Sheet'!A84)) ->  | C86: =IF(($B86=" ")," ",VLOOKUP($B86,'C10 Entry Sheet'!$A$16:$K$194,5,FALSE)) ->  | D86: =IF(($B86=" ")," ",VLOOKUP($B86,'C10 Entry Sheet'!$A$16:$K$194,6,FALSE)) ->  | E86: =IF(($B86=" ")," ",VLOOKUP($B86,'C10 Entry Sheet'!$A$16:$K$194,9,FALSE)) ->  | F86: =IF(($B86=" ")," ",VLOOKUP($B86,'C10 Entry Sheet'!$A$16:$K$194,7,FALSE)) ->  | G86: =IF(($B86=" ")," ",VLOOKUP($B86,'C10 Entry Sheet'!$A$16:$K$194,14,FALSE)) ->  | H86: =IF(($B86=" ")," ",VLOOKUP($B86,'C10 Entry Sheet'!$A$16:$K$194,8,FALSE)) ->  | I86: =IF(($B86=" ")," ",VLOOKUP($B86,'C10 Entry Sheet'!$A$16:$K$194,13,FALSE)) ->  | J86: =IF(($B86=" ")," ",VLOOKUP($B86,'C10 Entry Sheet'!$A$16:$K$194,17,FALSE)) ->  | K86: =IF(($B86=" ")," ",VLOOKUP($B86,'C10 Entry Sheet'!$A$16:$K$194,19,FALSE)) ->  | L86: =IF(($B86=" ")," ",VLOOKUP($B86,'C10 Entry Sheet'!$A$16:$K$194,20,FALSE)) -> 
A87: 70 | B87: =IF(ISBLANK('C10 Entry Sheet'!A85)," ",CELL("contents",'C10 Entry Sheet'!A85)) ->  | C87: =IF(($B87=" ")," ",VLOOKUP($B87,'C10 Entry Sheet'!$A$16:$K$194,5,FALSE)) ->  | D87: =IF(($B87=" ")," ",VLOOKUP($B87,'C10 Entry Sheet'!$A$16:$K$194,6,FALSE)) ->  | E87: =IF(($B87=" ")," ",VLOOKUP($B87,'C10 Entry Sheet'!$A$16:$K$194,9,FALSE)) ->  | F87: =IF(($B87=" ")," ",VLOOKUP($B87,'C10 Entry Sheet'!$A$16:$K$194,7,FALSE)) ->  | G87: =IF(($B87=" ")," ",VLOOKUP($B87,'C10 Entry Sheet'!$A$16:$K$194,14,FALSE)) ->  | H87: =IF(($B87=" ")," ",VLOOKUP($B87,'C10 Entry Sheet'!$A$16:$K$194,8,FALSE)) ->  | I87: =IF(($B87=" ")," ",VLOOKUP($B87,'C10 Entry Sheet'!$A$16:$K$194,13,FALSE)) ->  | J87: =IF(($B87=" ")," ",VLOOKUP($B87,'C10 Entry Sheet'!$A$16:$K$194,17,FALSE)) ->  | K87: =IF(($B87=" ")," ",VLOOKUP($B87,'C10 Entry Sheet'!$A$16:$K$194,19,FALSE)) ->  | L87: =IF(($B87=" ")," ",VLOOKUP($B87,'C10 Entry Sheet'!$A$16:$K$194,20,FALSE)) -> 
A88: 71 | B88: =IF(ISBLANK('C10 Entry Sheet'!A86)," ",CELL("contents",'C10 Entry Sheet'!A86)) ->  | C88: =IF(($B88=" ")," ",VLOOKUP($B88,'C10 Entry Sheet'!$A$16:$K$194,5,FALSE)) ->  | D88: =IF(($B88=" ")," ",VLOOKUP($B88,'C10 Entry Sheet'!$A$16:$K$194,6,FALSE)) ->  | E88: =IF(($B88=" ")," ",VLOOKUP($B88,'C10 Entry Sheet'!$A$16:$K$194,9,FALSE)) ->  | F88: =IF(($B88=" ")," ",VLOOKUP($B88,'C10 Entry Sheet'!$A$16:$K$194,7,FALSE)) ->  | G88: =IF(($B88=" ")," ",VLOOKUP($B88,'C10 Entry Sheet'!$A$16:$K$194,14,FALSE)) ->  | H88: =IF(($B88=" ")," ",VLOOKUP($B88,'C10 Entry Sheet'!$A$16:$K$194,8,FALSE)) ->  | I88: =IF(($B88=" ")," ",VLOOKUP($B88,'C10 Entry Sheet'!$A$16:$K$194,13,FALSE)) ->  | J88: =IF(($B88=" ")," ",VLOOKUP($B88,'C10 Entry Sheet'!$A$16:$K$194,17,FALSE)) ->  | K88: =IF(($B88=" ")," ",VLOOKUP($B88,'C10 Entry Sheet'!$A$16:$K$194,19,FALSE)) ->  | L88: =IF(($B88=" ")," ",VLOOKUP($B88,'C10 Entry Sheet'!$A$16:$K$194,20,FALSE)) -> 
H89: TOTAL CONTRIBUTIONS DUE | J89: =SUM(J18:J88) ->  | K89: =SUM(K18:K88) ->  | L89: =SUM(L18:L88) -> 

Sheet 3-Page C10 Rpt (hidden)
C1: Commonwealth of The Bahamas, The National Insurance Act, 1972 | L1: FORM C.10
C2: Computerized Employer Monthly Contribution Statement
B4: Employer: | C4: =CELL("contents",'C10 Entry Sheet'!C5) -> 12345 | D4: =CELL("contents",'C10 Entry Sheet'!G5) -> My Company Name Here
D5: =CELL("contents",'C10 Entry Sheet'!F6) -> Address : | I5: =CONCATENATE("Phone:"," ",CELL("contents",'C10 Entry Sheet'!G10)) -> Phone: 333-3333
D6: =CELL("contents",'C10 Entry Sheet'!G6) -> My Company Address Here | I6: =CONCATENATE("Fax:"," ",CELL("contents",'C10 Entry Sheet'!G12)) -> Fax: 322-2222
D7: =CELL("contents",'C10 Entry Sheet'!G7) -> My PO Box Here | I7: =CONCATENATE("Email:"," ",CELL("contents",'C10 Entry Sheet'!G13)) -> Email: myemailaddress@coralwave.com
D8: =CONCATENATE("Attn:"," ",CELL("contents",'C10 Entry Sheet'!G9)) -> Attn: Contact Person Name Here
B9: Month: | C9: =CELL("contents",'C10 Entry Sheet'!C6) -> July
B11: CERTIFICATION: I/We ceritify that the information given below is true and correct.
B13: _____________________________ | D13: ___________________________________ | H13: __________________________ | K13: ________________________
B14: Name | D14: Position | H14: Signature | K14: Date
A16: PART 'A' RETURN OF CONTRIBUTIONS DUE THIS MONTH
A17: No. | B17: Employee's N.I.# | C17: Employee's Last Name | D17: Employee's First Name | E17: No. of Weeks | F17: Cont. Type | G17: Insurable Earnings | H17: Weekly/ Monthly | I17: Ret. Ind. | J17: Employee's Contributions | K17: Employer's Contributions | L17: Total Contributions
A18: 1 | B18: =IF(ISBLANK('C10 Entry Sheet'!A16)," ",CELL("contents",'C10 Entry Sheet'!A16)) -> 11867485 | C18: =IF(($B18=" ")," ",VLOOKUP($B18,'C10 Entry Sheet'!$A$16:$K$194,5,FALSE)) -> W | D18: =IF(($B18=" ")," ",VLOOKUP($B18,'C10 Entry Sheet'!$A$16:$K$194,6,FALSE)) -> 5 | E18: =IF(($B18=" ")," ",VLOOKUP($B18,'C10 Entry Sheet'!$A$16:$K$194,9,FALSE)) -> 188.33 | F18: =IF(($B18=" ")," ",VLOOKUP($B18,'C10 Entry Sheet'!$A$16:$K$194,7,FALSE)) -> 0 | G18: =IF(($B18=" ")," ",VLOOKUP($B18,'C10 Entry Sheet'!$A$16:$K$194,14,FALSE)) ->  | H18: =IF(($B18=" ")," ",VLOOKUP($B18,'C10 Entry Sheet'!$A$16:$K$194,8,FALSE)) -> 4050 | I18: =IF(($B18=" ")," ",VLOOKUP($B18,'C10 Entry Sheet'!$A$16:$K$194,13,FALSE)) ->  | J18: =IF(($B18=" ")," ",VLOOKUP($B18,'C10 Entry Sheet'!$A$16:$K$194,17,FALSE)) ->  | K18: =IF(($B18=" ")," ",VLOOKUP($B18,'C10 Entry Sheet'!$A$16:$K$194,19,FALSE)) ->  | L18: =IF(($B18=" ")," ",VLOOKUP($B18,'C10 Entry Sheet'!$A$16:$K$194,20,FALSE)) -> 
A19: =SUM(A18+1) -> 2 | B19: =IF(ISBLANK('C10 Entry Sheet'!A17)," ",CELL("contents",'C10 Entry Sheet'!A17)) ->  | C19: =IF(($B19=" ")," ",VLOOKUP($B19,'C10 Entry Sheet'!$A$16:$K$194,5,FALSE)) ->  | D19: =IF(($B19=" ")," ",VLOOKUP($B19,'C10 Entry Sheet'!$A$16:$K$194,6,FALSE)) ->  | E19: =IF(($B19=" ")," ",VLOOKUP($B19,'C10 Entry Sheet'!$A$16:$K$194,9,FALSE)) ->  | F19: =IF(($B19=" ")," ",VLOOKUP($B19,'C10 Entry Sheet'!$A$16:$K$194,7,FALSE)) ->  | G19: =IF(($B19=" ")," ",VLOOKUP($B19,'C10 Entry Sheet'!$A$16:$K$194,14,FALSE)) ->  | H19: =IF(($B19=" ")," ",VLOOKUP($B19,'C10 Entry Sheet'!$A$16:$K$194,8,FALSE)) ->  | I19: =IF(($B19=" ")," ",VLOOKUP($B19,'C10 Entry Sheet'!$A$16:$K$194,13,FALSE)) ->  | J19: =IF(($B19=" ")," ",VLOOKUP($B19,'C10 Entry Sheet'!$A$16:$K$194,17,FALSE)) ->  | K19: =IF(($B19=" ")," ",VLOOKUP($B19,'C10 Entry Sheet'!$A$16:$K$194,19,FALSE)) ->  | L19: =IF(($B19=" ")," ",VLOOKUP($B19,'C10 Entry Sheet'!$A$16:$K$194,20,FALSE)) -> 
A20: 3 | B20: =IF(ISBLANK('C10 Entry Sheet'!A18)," ",CELL("contents",'C10 Entry Sheet'!A18)) ->  | C20: =IF(($B20=" ")," ",VLOOKUP($B20,'C10 Entry Sheet'!$A$16:$K$194,5,FALSE)) ->  | D20: =IF(($B20=" ")," ",VLOOKUP($B20,'C10 Entry Sheet'!$A$16:$K$194,6,FALSE)) ->  | E20: =IF(($B20=" ")," ",VLOOKUP($B20,'C10 Entry Sheet'!$A$16:$K$194,9,FALSE)) ->  | F20: =IF(($B20=" ")," ",VLOOKUP($B20,'C10 Entry Sheet'!$A$16:$K$194,7,FALSE)) ->  | G20: =IF(($B20=" ")," ",VLOOKUP($B20,'C10 Entry Sheet'!$A$16:$K$194,14,FALSE)) ->  | H20: =IF(($B20=" ")," ",VLOOKUP($B20,'C10 Entry Sheet'!$A$16:$K$194,8,FALSE)) ->  | I20: =IF(($B20=" ")," ",VLOOKUP($B20,'C10 Entry Sheet'!$A$16:$K$194,13,FALSE)) ->  | J20: =IF(($B20=" ")," ",VLOOKUP($B20,'C10 Entry Sheet'!$A$16:$K$194,17,FALSE)) ->  | K20: =IF(($B20=" ")," ",VLOOKUP($B20,'C10 Entry Sheet'!$A$16:$K$194,19,FALSE)) ->  | L20: =IF(($B20=" ")," ",VLOOKUP($B20,'C10 Entry Sheet'!$A$16:$K$194,20,FALSE)) -> 
A21: 4 | B21: =IF(ISBLANK('C10 Entry Sheet'!A19)," ",CELL("contents",'C10 Entry Sheet'!A19)) ->  | C21: =IF(($B21=" ")," ",VLOOKUP($B21,'C10 Entry Sheet'!$A$16:$K$194,5,FALSE)) ->  | D21: =IF(($B21=" ")," ",VLOOKUP($B21,'C10 Entry Sheet'!$A$16:$K$194,6,FALSE)) ->  | E21: =IF(($B21=" ")," ",VLOOKUP($B21,'C10 Entry Sheet'!$A$16:$K$194,9,FALSE)) ->  | F21: =IF(($B21=" ")," ",VLOOKUP($B21,'C10 Entry Sheet'!$A$16:$K$194,7,FALSE)) ->  | G21: =IF(($B21=" ")," ",VLOOKUP($B21,'C10 Entry Sheet'!$A$16:$K$194,14,FALSE)) ->  | H21: =IF(($B21=" ")," ",VLOOKUP($B21,'C10 Entry Sheet'!$A$16:$K$194,8,FALSE)) ->  | I21: =IF(($B21=" ")," ",VLOOKUP($B21,'C10 Entry Sheet'!$A$16:$K$194,13,FALSE)) ->  | J21: =IF(($B21=" ")," ",VLOOKUP($B21,'C10 Entry Sheet'!$A$16:$K$194,17,FALSE)) ->  | K21: =IF(($B21=" ")," ",VLOOKUP($B21,'C10 Entry Sheet'!$A$16:$K$194,19,FALSE)) ->  | L21: =IF(($B21=" ")," ",VLOOKUP($B21,'C10 Entry Sheet'!$A$16:$K$194,20,FALSE)) -> 
A22: 5 | B22: =IF(ISBLANK('C10 Entry Sheet'!A20)," ",CELL("contents",'C10 Entry Sheet'!A20)) ->  | C22: =IF(($B22=" ")," ",VLOOKUP($B22,'C10 Entry Sheet'!$A$16:$K$194,5,FALSE)) ->  | D22: =IF(($B22=" ")," ",VLOOKUP($B22,'C10 Entry Sheet'!$A$16:$K$194,6,FALSE)) ->  | E22: =IF(($B22=" ")," ",VLOOKUP($B22,'C10 Entry Sheet'!$A$16:$K$194,9,FALSE)) ->  | F22: =IF(($B22=" ")," ",VLOOKUP($B22,'C10 Entry Sheet'!$A$16:$K$194,7,FALSE)) ->  | G22: =IF(($B22=" ")," ",VLOOKUP($B22,'C10 Entry Sheet'!$A$16:$K$194,14,FALSE)) ->  | H22: =IF(($B22=" ")," ",VLOOKUP($B22,'C10 Entry Sheet'!$A$16:$K$194,8,FALSE)) ->  | I22: =IF(($B22=" ")," ",VLOOKUP($B22,'C10 Entry Sheet'!$A$16:$K$194,13,FALSE)) ->  | J22: =IF(($B22=" ")," ",VLOOKUP($B22,'C10 Entry Sheet'!$A$16:$K$194,17,FALSE)) ->  | K22: =IF(($B22=" ")," ",VLOOKUP($B22,'C10 Entry Sheet'!$A$16:$K$194,19,FALSE)) ->  | L22: =IF(($B22=" ")," ",VLOOKUP($B22,'C10 Entry Sheet'!$A$16:$K$194,20,FALSE)) -> 
A23: 6 | B23: =IF(ISBLANK('C10 Entry Sheet'!A21)," ",CELL("contents",'C10 Entry Sheet'!A21)) ->  | C23: =IF(($B23=" ")," ",VLOOKUP($B23,'C10 Entry Sheet'!$A$16:$K$194,5,FALSE)) ->  | D23: =IF(($B23=" ")," ",VLOOKUP($B23,'C10 Entry Sheet'!$A$16:$K$194,6,FALSE)) ->  | E23: =IF(($B23=" ")," ",VLOOKUP($B23,'C10 Entry Sheet'!$A$16:$K$194,9,FALSE)) ->  | F23: =IF(($B23=" ")," ",VLOOKUP($B23,'C10 Entry Sheet'!$A$16:$K$194,7,FALSE)) ->  | G23: =IF(($B23=" ")," ",VLOOKUP($B23,'C10 Entry Sheet'!$A$16:$K$194,14,FALSE)) ->  | H23: =IF(($B23=" ")," ",VLOOKUP($B23,'C10 Entry Sheet'!$A$16:$K$194,8,FALSE)) ->  | I23: =IF(($B23=" ")," ",VLOOKUP($B23,'C10 Entry Sheet'!$A$16:$K$194,13,FALSE)) ->  | J23: =IF(($B23=" ")," ",VLOOKUP($B23,'C10 Entry Sheet'!$A$16:$K$194,17,FALSE)) ->  | K23: =IF(($B23=" ")," ",VLOOKUP($B23,'C10 Entry Sheet'!$A$16:$K$194,19,FALSE)) ->  | L23: =IF(($B23=" ")," ",VLOOKUP($B23,'C10 Entry Sheet'!$A$16:$K$194,20,FALSE)) -> 
A24: 7 | B24: =IF(ISBLANK('C10 Entry Sheet'!A22)," ",CELL("contents",'C10 Entry Sheet'!A22)) ->  | C24: =IF(($B24=" ")," ",VLOOKUP($B24,'C10 Entry Sheet'!$A$16:$K$194,5,FALSE)) ->  | D24: =IF(($B24=" ")," ",VLOOKUP($B24,'C10 Entry Sheet'!$A$16:$K$194,6,FALSE)) ->  | E24: =IF(($B24=" ")," ",VLOOKUP($B24,'C10 Entry Sheet'!$A$16:$K$194,9,FALSE)) ->  | F24: =IF(($B24=" ")," ",VLOOKUP($B24,'C10 Entry Sheet'!$A$16:$K$194,7,FALSE)) ->  | G24: =IF(($B24=" ")," ",VLOOKUP($B24,'C10 Entry Sheet'!$A$16:$K$194,14,FALSE)) ->  | H24: =IF(($B24=" ")," ",VLOOKUP($B24,'C10 Entry Sheet'!$A$16:$K$194,8,FALSE)) ->  | I24: =IF(($B24=" ")," ",VLOOKUP($B24,'C10 Entry Sheet'!$A$16:$K$194,13,FALSE)) ->  | J24: =IF(($B24=" ")," ",VLOOKUP($B24,'C10 Entry Sheet'!$A$16:$K$194,17,FALSE)) ->  | K24: =IF(($B24=" ")," ",VLOOKUP($B24,'C10 Entry Sheet'!$A$16:$K$194,19,FALSE)) ->  | L24: =IF(($B24=" ")," ",VLOOKUP($B24,'C10 Entry Sheet'!$A$16:$K$194,20,FALSE)) -> 
A25: 8 | B25: =IF(ISBLANK('C10 Entry Sheet'!A23)," ",CELL("contents",'C10 Entry Sheet'!A23)) ->  | C25: =IF(($B25=" ")," ",VLOOKUP($B25,'C10 Entry Sheet'!$A$16:$K$194,5,FALSE)) ->  | D25: =IF(($B25=" ")," ",VLOOKUP($B25,'C10 Entry Sheet'!$A$16:$K$194,6,FALSE)) ->  | E25: =IF(($B25=" ")," ",VLOOKUP($B25,'C10 Entry Sheet'!$A$16:$K$194,9,FALSE)) ->  | F25: =IF(($B25=" ")," ",VLOOKUP($B25,'C10 Entry Sheet'!$A$16:$K$194,7,FALSE)) ->  | G25: =IF(($B25=" ")," ",VLOOKUP($B25,'C10 Entry Sheet'!$A$16:$K$194,14,FALSE)) ->  | H25: =IF(($B25=" ")," ",VLOOKUP($B25,'C10 Entry Sheet'!$A$16:$K$194,8,FALSE)) ->  | I25: =IF(($B25=" ")," ",VLOOKUP($B25,'C10 Entry Sheet'!$A$16:$K$194,13,FALSE)) ->  | J25: =IF(($B25=" ")," ",VLOOKUP($B25,'C10 Entry Sheet'!$A$16:$K$194,17,FALSE)) ->  | K25: =IF(($B25=" ")," ",VLOOKUP($B25,'C10 Entry Sheet'!$A$16:$K$194,19,FALSE)) ->  | L25: =IF(($B25=" ")," ",VLOOKUP($B25,'C10 Entry Sheet'!$A$16:$K$194,20,FALSE)) -> 
A26: 9 | B26: =IF(ISBLANK('C10 Entry Sheet'!A24)," ",CELL("contents",'C10 Entry Sheet'!A24)) ->  | C26: =IF(($B26=" ")," ",VLOOKUP($B26,'C10 Entry Sheet'!$A$16:$K$194,5,FALSE)) ->  | D26: =IF(($B26=" ")," ",VLOOKUP($B26,'C10 Entry Sheet'!$A$16:$K$194,6,FALSE)) ->  | E26: =IF(($B26=" ")," ",VLOOKUP($B26,'C10 Entry Sheet'!$A$16:$K$194,9,FALSE)) ->  | F26: =IF(($B26=" ")," ",VLOOKUP($B26,'C10 Entry Sheet'!$A$16:$K$194,7,FALSE)) ->  | G26: =IF(($B26=" ")," ",VLOOKUP($B26,'C10 Entry Sheet'!$A$16:$K$194,14,FALSE)) ->  | H26: =IF(($B26=" ")," ",VLOOKUP($B26,'C10 Entry Sheet'!$A$16:$K$194,8,FALSE)) ->  | I26: =IF(($B26=" ")," ",VLOOKUP($B26,'C10 Entry Sheet'!$A$16:$K$194,13,FALSE)) ->  | J26: =IF(($B26=" ")," ",VLOOKUP($B26,'C10 Entry Sheet'!$A$16:$K$194,17,FALSE)) ->  | K26: =IF(($B26=" ")," ",VLOOKUP($B26,'C10 Entry Sheet'!$A$16:$K$194,19,FALSE)) ->  | L26: =IF(($B26=" ")," ",VLOOKUP($B26,'C10 Entry Sheet'!$A$16:$K$194,20,FALSE)) -> 
A27: 10 | B27: =IF(ISBLANK('C10 Entry Sheet'!A25)," ",CELL("contents",'C10 Entry Sheet'!A25)) ->  | C27: =IF(($B27=" ")," ",VLOOKUP($B27,'C10 Entry Sheet'!$A$16:$K$194,5,FALSE)) ->  | D27: =IF(($B27=" ")," ",VLOOKUP($B27,'C10 Entry Sheet'!$A$16:$K$194,6,FALSE)) ->  | E27: =IF(($B27=" ")," ",VLOOKUP($B27,'C10 Entry Sheet'!$A$16:$K$194,9,FALSE)) ->  | F27: =IF(($B27=" ")," ",VLOOKUP($B27,'C10 Entry Sheet'!$A$16:$K$194,7,FALSE)) ->  | G27: =IF(($B27=" ")," ",VLOOKUP($B27,'C10 Entry Sheet'!$A$16:$K$194,14,FALSE)) ->  | H27: =IF(($B27=" ")," ",VLOOKUP($B27,'C10 Entry Sheet'!$A$16:$K$194,8,FALSE)) ->  | I27: =IF(($B27=" ")," ",VLOOKUP($B27,'C10 Entry Sheet'!$A$16:$K$194,13,FALSE)) ->  | J27: =IF(($B27=" ")," ",VLOOKUP($B27,'C10 Entry Sheet'!$A$16:$K$194,17,FALSE)) ->  | K27: =IF(($B27=" ")," ",VLOOKUP($B27,'C10 Entry Sheet'!$A$16:$K$194,19,FALSE)) ->  | L27: =IF(($B27=" ")," ",VLOOKUP($B27,'C10 Entry Sheet'!$A$16:$K$194,20,FALSE)) -> 
A28: 11 | B28: =IF(ISBLANK('C10 Entry Sheet'!A26)," ",CELL("contents",'C10 Entry Sheet'!A26)) ->  | C28: =IF(($B28=" ")," ",VLOOKUP($B28,'C10 Entry Sheet'!$A$16:$K$194,5,FALSE)) ->  | D28: =IF(($B28=" ")," ",VLOOKUP($B28,'C10 Entry Sheet'!$A$16:$K$194,6,FALSE)) ->  | E28: =IF(($B28=" ")," ",VLOOKUP($B28,'C10 Entry Sheet'!$A$16:$K$194,9,FALSE)) ->  | F28: =IF(($B28=" ")," ",VLOOKUP($B28,'C10 Entry Sheet'!$A$16:$K$194,7,FALSE)) ->  | G28: =IF(($B28=" ")," ",VLOOKUP($B28,'C10 Entry Sheet'!$A$16:$K$194,14,FALSE)) ->  | H28: =IF(($B28=" ")," ",VLOOKUP($B28,'C10 Entry Sheet'!$A$16:$K$194,8,FALSE)) ->  | I28: =IF(($B28=" ")," ",VLOOKUP($B28,'C10 Entry Sheet'!$A$16:$K$194,13,FALSE)) ->  | J28: =IF(($B28=" ")," ",VLOOKUP($B28,'C10 Entry Sheet'!$A$16:$K$194,17,FALSE)) ->  | K28: =IF(($B28=" ")," ",VLOOKUP($B28,'C10 Entry Sheet'!$A$16:$K$194,19,FALSE)) ->  | L28: =IF(($B28=" ")," ",VLOOKUP($B28,'C10 Entry Sheet'!$A$16:$K$194,20,FALSE)) -> 
A29: 12 | B29: =IF(ISBLANK('C10 Entry Sheet'!A27)," ",CELL("contents",'C10 Entry Sheet'!A27)) ->  | C29: =IF(($B29=" ")," ",VLOOKUP($B29,'C10 Entry Sheet'!$A$16:$K$194,5,FALSE)) ->  | D29: =IF(($B29=" ")," ",VLOOKUP($B29,'C10 Entry Sheet'!$A$16:$K$194,6,FALSE)) ->  | E29: =IF(($B29=" ")," ",VLOOKUP($B29,'C10 Entry Sheet'!$A$16:$K$194,9,FALSE)) ->  | F29: =IF(($B29=" ")," ",VLOOKUP($B29,'C10 Entry Sheet'!$A$16:$K$194,7,FALSE)) ->  | G29: =IF(($B29=" ")," ",VLOOKUP($B29,'C10 Entry Sheet'!$A$16:$K$194,14,FALSE)) ->  | H29: =IF(($B29=" ")," ",VLOOKUP($B29,'C10 Entry Sheet'!$A$16:$K$194,8,FALSE)) ->  | I29: =IF(($B29=" ")," ",VLOOKUP($B29,'C10 Entry Sheet'!$A$16:$K$194,13,FALSE)) ->  | J29: =IF(($B29=" ")," ",VLOOKUP($B29,'C10 Entry Sheet'!$A$16:$K$194,17,FALSE)) ->  | K29: =IF(($B29=" ")," ",VLOOKUP($B29,'C10 Entry Sheet'!$A$16:$K$194,19,FALSE)) ->  | L29: =IF(($B29=" ")," ",VLOOKUP($B29,'C10 Entry Sheet'!$A$16:$K$194,20,FALSE)) -> 
A30: 13 | B30: =IF(ISBLANK('C10 Entry Sheet'!A28)," ",CELL("contents",'C10 Entry Sheet'!A28)) ->  | C30: =IF(($B30=" ")," ",VLOOKUP($B30,'C10 Entry Sheet'!$A$16:$K$194,5,FALSE)) ->  | D30: =IF(($B30=" ")," ",VLOOKUP($B30,'C10 Entry Sheet'!$A$16:$K$194,6,FALSE)) ->  | E30: =IF(($B30=" ")," ",VLOOKUP($B30,'C10 Entry Sheet'!$A$16:$K$194,9,FALSE)) ->  | F30: =IF(($B30=" ")," ",VLOOKUP($B30,'C10 Entry Sheet'!$A$16:$K$194,7,FALSE)) ->  | G30: =IF(($B30=" ")," ",VLOOKUP($B30,'C10 Entry Sheet'!$A$16:$K$194,14,FALSE)) ->  | H30: =IF(($B30=" ")," ",VLOOKUP($B30,'C10 Entry Sheet'!$A$16:$K$194,8,FALSE)) ->  | I30: =IF(($B30=" ")," ",VLOOKUP($B30,'C10 Entry Sheet'!$A$16:$K$194,13,FALSE)) ->  | J30: =IF(($B30=" ")," ",VLOOKUP($B30,'C10 Entry Sheet'!$A$16:$K$194,17,FALSE)) ->  | K30: =IF(($B30=" ")," ",VLOOKUP($B30,'C10 Entry Sheet'!$A$16:$K$194,19,FALSE)) ->  | L30: =IF(($B30=" ")," ",VLOOKUP($B30,'C10 Entry Sheet'!$A$16:$K$194,20,FALSE)) -> 
A31: 14 | B31: =IF(ISBLANK('C10 Entry Sheet'!A29)," ",CELL("contents",'C10 Entry Sheet'!A29)) ->  | C31: =IF(($B31=" ")," ",VLOOKUP($B31,'C10 Entry Sheet'!$A$16:$K$194,5,FALSE)) ->  | D31: =IF(($B31=" ")," ",VLOOKUP($B31,'C10 Entry Sheet'!$A$16:$K$194,6,FALSE)) ->  | E31: =IF(($B31=" ")," ",VLOOKUP($B31,'C10 Entry Sheet'!$A$16:$K$194,9,FALSE)) ->  | F31: =IF(($B31=" ")," ",VLOOKUP($B31,'C10 Entry Sheet'!$A$16:$K$194,7,FALSE)) ->  | G31: =IF(($B31=" ")," ",VLOOKUP($B31,'C10 Entry Sheet'!$A$16:$K$194,14,FALSE)) ->  | H31: =IF(($B31=" ")," ",VLOOKUP($B31,'C10 Entry Sheet'!$A$16:$K$194,8,FALSE)) ->  | I31: =IF(($B31=" ")," ",VLOOKUP($B31,'C10 Entry Sheet'!$A$16:$K$194,13,FALSE)) ->  | J31: =IF(($B31=" ")," ",VLOOKUP($B31,'C10 Entry Sheet'!$A$16:$K$194,17,FALSE)) ->  | K31: =IF(($B31=" ")," ",VLOOKUP($B31,'C10 Entry Sheet'!$A$16:$K$194,19,FALSE)) ->  | L31: =IF(($B31=" ")," ",VLOOKUP($B31,'C10 Entry Sheet'!$A$16:$K$194,20,FALSE)) -> 
A32: 15 | B32: =IF(ISBLANK('C10 Entry Sheet'!A22)," ",CELL("contents",'C10 Entry Sheet'!A22)) ->  | C32: =IF(($B32=" ")," ",VLOOKUP($B32,'C10 Entry Sheet'!$A$16:$K$194,5,FALSE)) ->  | D32: =IF(($B32=" ")," ",VLOOKUP($B32,'C10 Entry Sheet'!$A$16:$K$194,6,FALSE)) ->  | E32: =IF(($B32=" ")," ",VLOOKUP($B32,'C10 Entry Sheet'!$A$16:$K$194,9,FALSE)) ->  | F32: =IF(($B32=" ")," ",VLOOKUP($B32,'C10 Entry Sheet'!$A$16:$K$194,7,FALSE)) ->  | G32: =IF(($B32=" ")," ",VLOOKUP($B32,'C10 Entry Sheet'!$A$16:$K$194,14,FALSE)) ->  | H32: =IF(($B32=" ")," ",VLOOKUP($B32,'C10 Entry Sheet'!$A$16:$K$194,8,FALSE)) ->  | I32: =IF(($B32=" ")," ",VLOOKUP($B32,'C10 Entry Sheet'!$A$16:$K$194,13,FALSE)) ->  | J32: =IF(($B32=" ")," ",VLOOKUP($B32,'C10 Entry Sheet'!$A$16:$K$194,17,FALSE)) ->  | K32: =IF(($B32=" ")," ",VLOOKUP($B32,'C10 Entry Sheet'!$A$16:$K$194,19,FALSE)) ->  | L32: =IF(($B32=" ")," ",VLOOKUP($B32,'C10 Entry Sheet'!$A$16:$K$194,20,FALSE)) -> 
A33: 16 | B33: =IF(ISBLANK('C10 Entry Sheet'!A23)," ",CELL("contents",'C10 Entry Sheet'!A23)) ->  | C33: =IF(($B33=" ")," ",VLOOKUP($B33,'C10 Entry Sheet'!$A$16:$K$194,5,FALSE)) ->  | D33: =IF(($B33=" ")," ",VLOOKUP($B33,'C10 Entry Sheet'!$A$16:$K$194,6,FALSE)) ->  | E33: =IF(($B33=" ")," ",VLOOKUP($B33,'C10 Entry Sheet'!$A$16:$K$194,9,FALSE)) ->  | F33: =IF(($B33=" ")," ",VLOOKUP($B33,'C10 Entry Sheet'!$A$16:$K$194,7,FALSE)) ->  | G33: =IF(($B33=" ")," ",VLOOKUP($B33,'C10 Entry Sheet'!$A$16:$K$194,14,FALSE)) ->  | H33: =IF(($B33=" ")," ",VLOOKUP($B33,'C10 Entry Sheet'!$A$16:$K$194,8,FALSE)) ->  | I33: =IF(($B33=" ")," ",VLOOKUP($B33,'C10 Entry Sheet'!$A$16:$K$194,13,FALSE)) ->  | J33: =IF(($B33=" ")," ",VLOOKUP($B33,'C10 Entry Sheet'!$A$16:$K$194,17,FALSE)) ->  | K33: =IF(($B33=" ")," ",VLOOKUP($B33,'C10 Entry Sheet'!$A$16:$K$194,19,FALSE)) ->  | L33: =IF(($B33=" ")," ",VLOOKUP($B33,'C10 Entry Sheet'!$A$16:$K$194,20,FALSE)) -> 
A34: 17 | B34: =IF(ISBLANK('C10 Entry Sheet'!A24)," ",CELL("contents",'C10 Entry Sheet'!A24)) ->  | C34: =IF(($B34=" ")," ",VLOOKUP($B34,'C10 Entry Sheet'!$A$16:$K$194,5,FALSE)) ->  | D34: =IF(($B34=" ")," ",VLOOKUP($B34,'C10 Entry Sheet'!$A$16:$K$194,6,FALSE)) ->  | E34: =IF(($B34=" ")," ",VLOOKUP($B34,'C10 Entry Sheet'!$A$16:$K$194,9,FALSE)) ->  | F34: =IF(($B34=" ")," ",VLOOKUP($B34,'C10 Entry Sheet'!$A$16:$K$194,7,FALSE)) ->  | G34: =IF(($B34=" ")," ",VLOOKUP($B34,'C10 Entry Sheet'!$A$16:$K$194,14,FALSE)) ->  | H34: =IF(($B34=" ")," ",VLOOKUP($B34,'C10 Entry Sheet'!$A$16:$K$194,8,FALSE)) ->  | I34: =IF(($B34=" ")," ",VLOOKUP($B34,'C10 Entry Sheet'!$A$16:$K$194,13,FALSE)) ->  | J34: =IF(($B34=" ")," ",VLOOKUP($B34,'C10 Entry Sheet'!$A$16:$K$194,17,FALSE)) ->  | K34: =IF(($B34=" ")," ",VLOOKUP($B34,'C10 Entry Sheet'!$A$16:$K$194,19,FALSE)) ->  | L34: =IF(($B34=" ")," ",VLOOKUP($B34,'C10 Entry Sheet'!$A$16:$K$194,20,FALSE)) -> 
A35: 18 | B35: =IF(ISBLANK('C10 Entry Sheet'!A25)," ",CELL("contents",'C10 Entry Sheet'!A25)) ->  | C35: =IF(($B35=" ")," ",VLOOKUP($B35,'C10 Entry Sheet'!$A$16:$K$194,5,FALSE)) ->  | D35: =IF(($B35=" ")," ",VLOOKUP($B35,'C10 Entry Sheet'!$A$16:$K$194,6,FALSE)) ->  | E35: =IF(($B35=" ")," ",VLOOKUP($B35,'C10 Entry Sheet'!$A$16:$K$194,9,FALSE)) ->  | F35: =IF(($B35=" ")," ",VLOOKUP($B35,'C10 Entry Sheet'!$A$16:$K$194,7,FALSE)) ->  | G35: =IF(($B35=" ")," ",VLOOKUP($B35,'C10 Entry Sheet'!$A$16:$K$194,14,FALSE)) ->  | H35: =IF(($B35=" ")," ",VLOOKUP($B35,'C10 Entry Sheet'!$A$16:$K$194,8,FALSE)) ->  | I35: =IF(($B35=" ")," ",VLOOKUP($B35,'C10 Entry Sheet'!$A$16:$K$194,13,FALSE)) ->  | J35: =IF(($B35=" ")," ",VLOOKUP($B35,'C10 Entry Sheet'!$A$16:$K$194,17,FALSE)) ->  | K35: =IF(($B35=" ")," ",VLOOKUP($B35,'C10 Entry Sheet'!$A$16:$K$194,19,FALSE)) ->  | L35: =IF(($B35=" ")," ",VLOOKUP($B35,'C10 Entry Sheet'!$A$16:$K$194,20,FALSE)) -> 
A36: 19 | B36: =IF(ISBLANK('C10 Entry Sheet'!A26)," ",CELL("contents",'C10 Entry Sheet'!A26)) ->  | C36: =IF(($B36=" ")," ",VLOOKUP($B36,'C10 Entry Sheet'!$A$16:$K$194,5,FALSE)) ->  | D36: =IF(($B36=" ")," ",VLOOKUP($B36,'C10 Entry Sheet'!$A$16:$K$194,6,FALSE)) ->  | E36: =IF(($B36=" ")," ",VLOOKUP($B36,'C10 Entry Sheet'!$A$16:$K$194,9,FALSE)) ->  | F36: =IF(($B36=" ")," ",VLOOKUP($B36,'C10 Entry Sheet'!$A$16:$K$194,7,FALSE)) ->  | G36: =IF(($B36=" ")," ",VLOOKUP($B36,'C10 Entry Sheet'!$A$16:$K$194,14,FALSE)) ->  | H36: =IF(($B36=" ")," ",VLOOKUP($B36,'C10 Entry Sheet'!$A$16:$K$194,8,FALSE)) ->  | I36: =IF(($B36=" ")," ",VLOOKUP($B36,'C10 Entry Sheet'!$A$16:$K$194,13,FALSE)) ->  | J36: =IF(($B36=" ")," ",VLOOKUP($B36,'C10 Entry Sheet'!$A$16:$K$194,17,FALSE)) ->  | K36: =IF(($B36=" ")," ",VLOOKUP($B36,'C10 Entry Sheet'!$A$16:$K$194,19,FALSE)) ->  | L36: =IF(($B36=" ")," ",VLOOKUP($B36,'C10 Entry Sheet'!$A$16:$K$194,20,FALSE)) -> 
A37: 20 | B37: =IF(ISBLANK('C10 Entry Sheet'!A27)," ",CELL("contents",'C10 Entry Sheet'!A27)) ->  | C37: =IF(($B37=" ")," ",VLOOKUP($B37,'C10 Entry Sheet'!$A$16:$K$194,5,FALSE)) ->  | D37: =IF(($B37=" ")," ",VLOOKUP($B37,'C10 Entry Sheet'!$A$16:$K$194,6,FALSE)) ->  | E37: =IF(($B37=" ")," ",VLOOKUP($B37,'C10 Entry Sheet'!$A$16:$K$194,9,FALSE)) ->  | F37: =IF(($B37=" ")," ",VLOOKUP($B37,'C10 Entry Sheet'!$A$16:$K$194,7,FALSE)) ->  | G37: =IF(($B37=" ")," ",VLOOKUP($B37,'C10 Entry Sheet'!$A$16:$K$194,14,FALSE)) ->  | H37: =IF(($B37=" ")," ",VLOOKUP($B37,'C10 Entry Sheet'!$A$16:$K$194,8,FALSE)) ->  | I37: =IF(($B37=" ")," ",VLOOKUP($B37,'C10 Entry Sheet'!$A$16:$K$194,13,FALSE)) ->  | J37: =IF(($B37=" ")," ",VLOOKUP($B37,'C10 Entry Sheet'!$A$16:$K$194,17,FALSE)) ->  | K37: =IF(($B37=" ")," ",VLOOKUP($B37,'C10 Entry Sheet'!$A$16:$K$194,19,FALSE)) ->  | L37: =IF(($B37=" ")," ",VLOOKUP($B37,'C10 Entry Sheet'!$A$16:$K$194,20,FALSE)) -> 
A38: 21 | B38: =IF(ISBLANK('C10 Entry Sheet'!A28)," ",CELL("contents",'C10 Entry Sheet'!A28)) ->  | C38: =IF(($B38=" ")," ",VLOOKUP($B38,'C10 Entry Sheet'!$A$16:$K$194,5,FALSE)) ->  | D38: =IF(($B38=" ")," ",VLOOKUP($B38,'C10 Entry Sheet'!$A$16:$K$194,6,FALSE)) ->  | E38: =IF(($B38=" ")," ",VLOOKUP($B38,'C10 Entry Sheet'!$A$16:$K$194,9,FALSE)) ->  | F38: =IF(($B38=" ")," ",VLOOKUP($B38,'C10 Entry Sheet'!$A$16:$K$194,7,FALSE)) ->  | G38: =IF(($B38=" ")," ",VLOOKUP($B38,'C10 Entry Sheet'!$A$16:$K$194,14,FALSE)) ->  | H38: =IF(($B38=" ")," ",VLOOKUP($B38,'C10 Entry Sheet'!$A$16:$K$194,8,FALSE)) ->  | I38: =IF(($B38=" ")," ",VLOOKUP($B38,'C10 Entry Sheet'!$A$16:$K$194,13,FALSE)) ->  | J38: =IF(($B38=" ")," ",VLOOKUP($B38,'C10 Entry Sheet'!$A$16:$K$194,17,FALSE)) ->  | K38: =IF(($B38=" ")," ",VLOOKUP($B38,'C10 Entry Sheet'!$A$16:$K$194,19,FALSE)) ->  | L38: =IF(($B38=" ")," ",VLOOKUP($B38,'C10 Entry Sheet'!$A$16:$K$194,20,FALSE)) -> 
A39: 22 | B39: =IF(ISBLANK('C10 Entry Sheet'!A29)," ",CELL("contents",'C10 Entry Sheet'!A29)) ->  | C39: =IF(($B39=" ")," ",VLOOKUP($B39,'C10 Entry Sheet'!$A$16:$K$194,5,FALSE)) ->  | D39: =IF(($B39=" ")," ",VLOOKUP($B39,'C10 Entry Sheet'!$A$16:$K$194,6,FALSE)) ->  | E39: =IF(($B39=" ")," ",VLOOKUP($B39,'C10 Entry Sheet'!$A$16:$K$194,9,FALSE)) ->  | F39: =IF(($B39=" ")," ",VLOOKUP($B39,'C10 Entry Sheet'!$A$16:$K$194,7,FALSE)) ->  | G39: =IF(($B39=" ")," ",VLOOKUP($B39,'C10 Entry Sheet'!$A$16:$K$194,14,FALSE)) ->  | H39: =IF(($B39=" ")," ",VLOOKUP($B39,'C10 Entry Sheet'!$A$16:$K$194,8,FALSE)) ->  | I39: =IF(($B39=" ")," ",VLOOKUP($B39,'C10 Entry Sheet'!$A$16:$K$194,13,FALSE)) ->  | J39: =IF(($B39=" ")," ",VLOOKUP($B39,'C10 Entry Sheet'!$A$16:$K$194,17,FALSE)) ->  | K39: =IF(($B39=" ")," ",VLOOKUP($B39,'C10 Entry Sheet'!$A$16:$K$194,19,FALSE)) ->  | L39: =IF(($B39=" ")," ",VLOOKUP($B39,'C10 Entry Sheet'!$A$16:$K$194,20,FALSE)) -> 
A40: 23 | B40: =IF(ISBLANK('C10 Entry Sheet'!A30)," ",CELL("contents",'C10 Entry Sheet'!A30)) ->  | C40: =IF(($B40=" ")," ",VLOOKUP($B40,'C10 Entry Sheet'!$A$16:$K$194,5,FALSE)) ->  | D40: =IF(($B40=" ")," ",VLOOKUP($B40,'C10 Entry Sheet'!$A$16:$K$194,6,FALSE)) ->  | E40: =IF(($B40=" ")," ",VLOOKUP($B40,'C10 Entry Sheet'!$A$16:$K$194,9,FALSE)) ->  | F40: =IF(($B40=" ")," ",VLOOKUP($B40,'C10 Entry Sheet'!$A$16:$K$194,7,FALSE)) ->  | G40: =IF(($B40=" ")," ",VLOOKUP($B40,'C10 Entry Sheet'!$A$16:$K$194,14,FALSE)) ->  | H40: =IF(($B40=" ")," ",VLOOKUP($B40,'C10 Entry Sheet'!$A$16:$K$194,8,FALSE)) ->  | I40: =IF(($B40=" ")," ",VLOOKUP($B40,'C10 Entry Sheet'!$A$16:$K$194,13,FALSE)) ->  | J40: =IF(($B40=" ")," ",VLOOKUP($B40,'C10 Entry Sheet'!$A$16:$K$194,17,FALSE)) ->  | K40: =IF(($B40=" ")," ",VLOOKUP($B40,'C10 Entry Sheet'!$A$16:$K$194,19,FALSE)) ->  | L40: =IF(($B40=" ")," ",VLOOKUP($B40,'C10 Entry Sheet'!$A$16:$K$194,20,FALSE)) -> 
A41: 24 | B41: =IF(ISBLANK('C10 Entry Sheet'!A31)," ",CELL("contents",'C10 Entry Sheet'!A31)) ->  | C41: =IF(($B41=" ")," ",VLOOKUP($B41,'C10 Entry Sheet'!$A$16:$K$194,5,FALSE)) ->  | D41: =IF(($B41=" ")," ",VLOOKUP($B41,'C10 Entry Sheet'!$A$16:$K$194,6,FALSE)) ->  | E41: =IF(($B41=" ")," ",VLOOKUP($B41,'C10 Entry Sheet'!$A$16:$K$194,9,FALSE)) ->  | F41: =IF(($B41=" ")," ",VLOOKUP($B41,'C10 Entry Sheet'!$A$16:$K$194,7,FALSE)) ->  | G41: =IF(($B41=" ")," ",VLOOKUP($B41,'C10 Entry Sheet'!$A$16:$K$194,14,FALSE)) ->  | H41: =IF(($B41=" ")," ",VLOOKUP($B41,'C10 Entry Sheet'!$A$16:$K$194,8,FALSE)) ->  | I41: =IF(($B41=" ")," ",VLOOKUP($B41,'C10 Entry Sheet'!$A$16:$K$194,13,FALSE)) ->  | J41: =IF(($B41=" ")," ",VLOOKUP($B41,'C10 Entry Sheet'!$A$16:$K$194,17,FALSE)) ->  | K41: =IF(($B41=" ")," ",VLOOKUP($B41,'C10 Entry Sheet'!$A$16:$K$194,19,FALSE)) ->  | L41: =IF(($B41=" ")," ",VLOOKUP($B41,'C10 Entry Sheet'!$A$16:$K$194,20,FALSE)) -> 
A42: 25 | B42: =IF(ISBLANK('C10 Entry Sheet'!A32)," ",CELL("contents",'C10 Entry Sheet'!A32)) ->  | C42: =IF(($B42=" ")," ",VLOOKUP($B42,'C10 Entry Sheet'!$A$16:$K$194,5,FALSE)) ->  | D42: =IF(($B42=" ")," ",VLOOKUP($B42,'C10 Entry Sheet'!$A$16:$K$194,6,FALSE)) ->  | E42: =IF(($B42=" ")," ",VLOOKUP($B42,'C10 Entry Sheet'!$A$16:$K$194,9,FALSE)) ->  | F42: =IF(($B42=" ")," ",VLOOKUP($B42,'C10 Entry Sheet'!$A$16:$K$194,7,FALSE)) ->  | G42: =IF(($B42=" ")," ",VLOOKUP($B42,'C10 Entry Sheet'!$A$16:$K$194,14,FALSE)) ->  | H42: =IF(($B42=" ")," ",VLOOKUP($B42,'C10 Entry Sheet'!$A$16:$K$194,8,FALSE)) ->  | I42: =IF(($B42=" ")," ",VLOOKUP($B42,'C10 Entry Sheet'!$A$16:$K$194,13,FALSE)) ->  | J42: =IF(($B42=" ")," ",VLOOKUP($B42,'C10 Entry Sheet'!$A$16:$K$194,17,FALSE)) ->  | K42: =IF(($B42=" ")," ",VLOOKUP($B42,'C10 Entry Sheet'!$A$16:$K$194,19,FALSE)) ->  | L42: =IF(($B42=" ")," ",VLOOKUP($B42,'C10 Entry Sheet'!$A$16:$K$194,20,FALSE)) -> 
A43: 26 | B43: =IF(ISBLANK('C10 Entry Sheet'!A33)," ",CELL("contents",'C10 Entry Sheet'!A33)) ->  | C43: =IF(($B43=" ")," ",VLOOKUP($B43,'C10 Entry Sheet'!$A$16:$K$194,5,FALSE)) ->  | D43: =IF(($B43=" ")," ",VLOOKUP($B43,'C10 Entry Sheet'!$A$16:$K$194,6,FALSE)) ->  | E43: =IF(($B43=" ")," ",VLOOKUP($B43,'C10 Entry Sheet'!$A$16:$K$194,9,FALSE)) ->  | F43: =IF(($B43=" ")," ",VLOOKUP($B43,'C10 Entry Sheet'!$A$16:$K$194,7,FALSE)) ->  | G43: =IF(($B43=" ")," ",VLOOKUP($B43,'C10 Entry Sheet'!$A$16:$K$194,14,FALSE)) ->  | H43: =IF(($B43=" ")," ",VLOOKUP($B43,'C10 Entry Sheet'!$A$16:$K$194,8,FALSE)) ->  | I43: =IF(($B43=" ")," ",VLOOKUP($B43,'C10 Entry Sheet'!$A$16:$K$194,13,FALSE)) ->  | J43: =IF(($B43=" ")," ",VLOOKUP($B43,'C10 Entry Sheet'!$A$16:$K$194,17,FALSE)) ->  | K43: =IF(($B43=" ")," ",VLOOKUP($B43,'C10 Entry Sheet'!$A$16:$K$194,19,FALSE)) ->  | L43: =IF(($B43=" ")," ",VLOOKUP($B43,'C10 Entry Sheet'!$A$16:$K$194,20,FALSE)) -> 
A44: 27 | B44: =IF(ISBLANK('C10 Entry Sheet'!A34)," ",CELL("contents",'C10 Entry Sheet'!A34)) ->  | C44: =IF(($B44=" ")," ",VLOOKUP($B44,'C10 Entry Sheet'!$A$16:$K$194,5,FALSE)) ->  | D44: =IF(($B44=" ")," ",VLOOKUP($B44,'C10 Entry Sheet'!$A$16:$K$194,6,FALSE)) ->  | E44: =IF(($B44=" ")," ",VLOOKUP($B44,'C10 Entry Sheet'!$A$16:$K$194,9,FALSE)) ->  | F44: =IF(($B44=" ")," ",VLOOKUP($B44,'C10 Entry Sheet'!$A$16:$K$194,7,FALSE)) ->  | G44: =IF(($B44=" ")," ",VLOOKUP($B44,'C10 Entry Sheet'!$A$16:$K$194,14,FALSE)) ->  | H44: =IF(($B44=" ")," ",VLOOKUP($B44,'C10 Entry Sheet'!$A$16:$K$194,8,FALSE)) ->  | I44: =IF(($B44=" ")," ",VLOOKUP($B44,'C10 Entry Sheet'!$A$16:$K$194,13,FALSE)) ->  | J44: =IF(($B44=" ")," ",VLOOKUP($B44,'C10 Entry Sheet'!$A$16:$K$194,17,FALSE)) ->  | K44: =IF(($B44=" ")," ",VLOOKUP($B44,'C10 Entry Sheet'!$A$16:$K$194,19,FALSE)) ->  | L44: =IF(($B44=" ")," ",VLOOKUP($B44,'C10 Entry Sheet'!$A$16:$K$194,20,FALSE)) -> 
A45: 28 | B45: =IF(ISBLANK('C10 Entry Sheet'!A35)," ",CELL("contents",'C10 Entry Sheet'!A35)) ->  | C45: =IF(($B45=" ")," ",VLOOKUP($B45,'C10 Entry Sheet'!$A$16:$K$194,5,FALSE)) ->  | D45: =IF(($B45=" ")," ",VLOOKUP($B45,'C10 Entry Sheet'!$A$16:$K$194,6,FALSE)) ->  | E45: =IF(($B45=" ")," ",VLOOKUP($B45,'C10 Entry Sheet'!$A$16:$K$194,9,FALSE)) ->  | F45: =IF(($B45=" ")," ",VLOOKUP($B45,'C10 Entry Sheet'!$A$16:$K$194,7,FALSE)) ->  | G45: =IF(($B45=" ")," ",VLOOKUP($B45,'C10 Entry Sheet'!$A$16:$K$194,14,FALSE)) ->  | H45: =IF(($B45=" ")," ",VLOOKUP($B45,'C10 Entry Sheet'!$A$16:$K$194,8,FALSE)) ->  | I45: =IF(($B45=" ")," ",VLOOKUP($B45,'C10 Entry Sheet'!$A$16:$K$194,13,FALSE)) ->  | J45: =IF(($B45=" ")," ",VLOOKUP($B45,'C10 Entry Sheet'!$A$16:$K$194,17,FALSE)) ->  | K45: =IF(($B45=" ")," ",VLOOKUP($B45,'C10 Entry Sheet'!$A$16:$K$194,19,FALSE)) ->  | L45: =IF(($B45=" ")," ",VLOOKUP($B45,'C10 Entry Sheet'!$A$16:$K$194,20,FALSE)) -> 
A46: 29 | B46: =IF(ISBLANK('C10 Entry Sheet'!A36)," ",CELL("contents",'C10 Entry Sheet'!A36)) ->  | C46: =IF(($B46=" ")," ",VLOOKUP($B46,'C10 Entry Sheet'!$A$16:$K$194,5,FALSE)) ->  | D46: =IF(($B46=" ")," ",VLOOKUP($B46,'C10 Entry Sheet'!$A$16:$K$194,6,FALSE)) ->  | E46: =IF(($B46=" ")," ",VLOOKUP($B46,'C10 Entry Sheet'!$A$16:$K$194,9,FALSE)) ->  | F46: =IF(($B46=" ")," ",VLOOKUP($B46,'C10 Entry Sheet'!$A$16:$K$194,7,FALSE)) ->  | G46: =IF(($B46=" ")," ",VLOOKUP($B46,'C10 Entry Sheet'!$A$16:$K$194,14,FALSE)) ->  | H46: =IF(($B46=" ")," ",VLOOKUP($B46,'C10 Entry Sheet'!$A$16:$K$194,8,FALSE)) ->  | I46: =IF(($B46=" ")," ",VLOOKUP($B46,'C10 Entry Sheet'!$A$16:$K$194,13,FALSE)) ->  | J46: =IF(($B46=" ")," ",VLOOKUP($B46,'C10 Entry Sheet'!$A$16:$K$194,17,FALSE)) ->  | K46: =IF(($B46=" ")," ",VLOOKUP($B46,'C10 Entry Sheet'!$A$16:$K$194,19,FALSE)) ->  | L46: =IF(($B46=" ")," ",VLOOKUP($B46,'C10 Entry Sheet'!$A$16:$K$194,20,FALSE)) -> 
A47: 30 | B47: =IF(ISBLANK('C10 Entry Sheet'!A37)," ",CELL("contents",'C10 Entry Sheet'!A37)) ->  | C47: =IF(($B47=" ")," ",VLOOKUP($B47,'C10 Entry Sheet'!$A$16:$K$194,5,FALSE)) ->  | D47: =IF(($B47=" ")," ",VLOOKUP($B47,'C10 Entry Sheet'!$A$16:$K$194,6,FALSE)) ->  | E47: =IF(($B47=" ")," ",VLOOKUP($B47,'C10 Entry Sheet'!$A$16:$K$194,9,FALSE)) ->  | F47: =IF(($B47=" ")," ",VLOOKUP($B47,'C10 Entry Sheet'!$A$16:$K$194,7,FALSE)) ->  | G47: =IF(($B47=" ")," ",VLOOKUP($B47,'C10 Entry Sheet'!$A$16:$K$194,14,FALSE)) ->  | H47: =IF(($B47=" ")," ",VLOOKUP($B47,'C10 Entry Sheet'!$A$16:$K$194,8,FALSE)) ->  | I47: =IF(($B47=" ")," ",VLOOKUP($B47,'C10 Entry Sheet'!$A$16:$K$194,13,FALSE)) ->  | J47: =IF(($B47=" ")," ",VLOOKUP($B47,'C10 Entry Sheet'!$A$16:$K$194,17,FALSE)) ->  | K47: =IF(($B47=" ")," ",VLOOKUP($B47,'C10 Entry Sheet'!$A$16:$K$194,19,FALSE)) ->  | L47: =IF(($B47=" ")," ",VLOOKUP($B47,'C10 Entry Sheet'!$A$16:$K$194,20,FALSE)) -> 
A48: 31 | B48: =IF(ISBLANK('C10 Entry Sheet'!A38)," ",CELL("contents",'C10 Entry Sheet'!A38)) ->  | C48: =IF(($B48=" ")," ",VLOOKUP($B48,'C10 Entry Sheet'!$A$16:$K$194,5,FALSE)) ->  | D48: =IF(($B48=" ")," ",VLOOKUP($B48,'C10 Entry Sheet'!$A$16:$K$194,6,FALSE)) ->  | E48: =IF(($B48=" ")," ",VLOOKUP($B48,'C10 Entry Sheet'!$A$16:$K$194,9,FALSE)) ->  | F48: =IF(($B48=" ")," ",VLOOKUP($B48,'C10 Entry Sheet'!$A$16:$K$194,7,FALSE)) ->  | G48: =IF(($B48=" ")," ",VLOOKUP($B48,'C10 Entry Sheet'!$A$16:$K$194,14,FALSE)) ->  | H48: =IF(($B48=" ")," ",VLOOKUP($B48,'C10 Entry Sheet'!$A$16:$K$194,8,FALSE)) ->  | I48: =IF(($B48=" ")," ",VLOOKUP($B48,'C10 Entry Sheet'!$A$16:$K$194,13,FALSE)) ->  | J48: =IF(($B48=" ")," ",VLOOKUP($B48,'C10 Entry Sheet'!$A$16:$K$194,17,FALSE)) ->  | K48: =IF(($B48=" ")," ",VLOOKUP($B48,'C10 Entry Sheet'!$A$16:$K$194,19,FALSE)) ->  | L48: =IF(($B48=" ")," ",VLOOKUP($B48,'C10 Entry Sheet'!$A$16:$K$194,20,FALSE)) -> 
A49: 32 | B49: =IF(ISBLANK('C10 Entry Sheet'!A39)," ",CELL("contents",'C10 Entry Sheet'!A39)) ->  | C49: =IF(($B49=" ")," ",VLOOKUP($B49,'C10 Entry Sheet'!$A$16:$K$194,5,FALSE)) ->  | D49: =IF(($B49=" ")," ",VLOOKUP($B49,'C10 Entry Sheet'!$A$16:$K$194,6,FALSE)) ->  | E49: =IF(($B49=" ")," ",VLOOKUP($B49,'C10 Entry Sheet'!$A$16:$K$194,9,FALSE)) ->  | F49: =IF(($B49=" ")," ",VLOOKUP($B49,'C10 Entry Sheet'!$A$16:$K$194,7,FALSE)) ->  | G49: =IF(($B49=" ")," ",VLOOKUP($B49,'C10 Entry Sheet'!$A$16:$K$194,14,FALSE)) ->  | H49: =IF(($B49=" ")," ",VLOOKUP($B49,'C10 Entry Sheet'!$A$16:$K$194,8,FALSE)) ->  | I49: =IF(($B49=" ")," ",VLOOKUP($B49,'C10 Entry Sheet'!$A$16:$K$194,13,FALSE)) ->  | J49: =IF(($B49=" ")," ",VLOOKUP($B49,'C10 Entry Sheet'!$A$16:$K$194,17,FALSE)) ->  | K49: =IF(($B49=" ")," ",VLOOKUP($B49,'C10 Entry Sheet'!$A$16:$K$194,19,FALSE)) ->  | L49: =IF(($B49=" ")," ",VLOOKUP($B49,'C10 Entry Sheet'!$A$16:$K$194,20,FALSE)) -> 
A50: 33 | B50: =IF(ISBLANK('C10 Entry Sheet'!A40)," ",CELL("contents",'C10 Entry Sheet'!A40)) ->  | C50: =IF(($B50=" ")," ",VLOOKUP($B50,'C10 Entry Sheet'!$A$16:$K$194,5,FALSE)) ->  | D50: =IF(($B50=" ")," ",VLOOKUP($B50,'C10 Entry Sheet'!$A$16:$K$194,6,FALSE)) ->  | E50: =IF(($B50=" ")," ",VLOOKUP($B50,'C10 Entry Sheet'!$A$16:$K$194,9,FALSE)) ->  | F50: =IF(($B50=" ")," ",VLOOKUP($B50,'C10 Entry Sheet'!$A$16:$K$194,7,FALSE)) ->  | G50: =IF(($B50=" ")," ",VLOOKUP($B50,'C10 Entry Sheet'!$A$16:$K$194,14,FALSE)) ->  | H50: =IF(($B50=" ")," ",VLOOKUP($B50,'C10 Entry Sheet'!$A$16:$K$194,8,FALSE)) ->  | I50: =IF(($B50=" ")," ",VLOOKUP($B50,'C10 Entry Sheet'!$A$16:$K$194,13,FALSE)) ->  | J50: =IF(($B50=" ")," ",VLOOKUP($B50,'C10 Entry Sheet'!$A$16:$K$194,17,FALSE)) ->  | K50: =IF(($B50=" ")," ",VLOOKUP($B50,'C10 Entry Sheet'!$A$16:$K$194,19,FALSE)) ->  | L50: =IF(($B50=" ")," ",VLOOKUP($B50,'C10 Entry Sheet'!$A$16:$K$194,20,FALSE)) -> 
A51: =SUM(A50+1) -> 34 | B51: =IF(ISBLANK('C10 Entry Sheet'!A41)," ",CELL("contents",'C10 Entry Sheet'!A41)) ->  | C51: =IF(($B51=" ")," ",VLOOKUP($B51,'C10 Entry Sheet'!$A$16:$K$194,5,FALSE)) ->  | D51: =IF(($B51=" ")," ",VLOOKUP($B51,'C10 Entry Sheet'!$A$16:$K$194,6,FALSE)) ->  | E51: =IF(($B51=" ")," ",VLOOKUP($B51,'C10 Entry Sheet'!$A$16:$K$194,9,FALSE)) ->  | F51: =IF(($B51=" ")," ",VLOOKUP($B51,'C10 Entry Sheet'!$A$16:$K$194,7,FALSE)) ->  | G51: =IF(($B51=" ")," ",VLOOKUP($B51,'C10 Entry Sheet'!$A$16:$K$194,14,FALSE)) ->  | H51: =IF(($B51=" ")," ",VLOOKUP($B51,'C10 Entry Sheet'!$A$16:$K$194,8,FALSE)) ->  | I51: =IF(($B51=" ")," ",VLOOKUP($B51,'C10 Entry Sheet'!$A$16:$K$194,13,FALSE)) ->  | J51: =IF(($B51=" ")," ",VLOOKUP($B51,'C10 Entry Sheet'!$A$16:$K$194,17,FALSE)) ->  | K51: =IF(($B51=" ")," ",VLOOKUP($B51,'C10 Entry Sheet'!$A$16:$K$194,19,FALSE)) ->  | L51: =IF(($B51=" ")," ",VLOOKUP($B51,'C10 Entry Sheet'!$A$16:$K$194,20,FALSE)) -> 
A52: 35 | B52: =IF(ISBLANK('C10 Entry Sheet'!A42)," ",CELL("contents",'C10 Entry Sheet'!A42)) ->  | C52: =IF(($B52=" ")," ",VLOOKUP($B52,'C10 Entry Sheet'!$A$16:$K$194,5,FALSE)) ->  | D52: =IF(($B52=" ")," ",VLOOKUP($B52,'C10 Entry Sheet'!$A$16:$K$194,6,FALSE)) ->  | E52: =IF(($B52=" ")," ",VLOOKUP($B52,'C10 Entry Sheet'!$A$16:$K$194,9,FALSE)) ->  | F52: =IF(($B52=" ")," ",VLOOKUP($B52,'C10 Entry Sheet'!$A$16:$K$194,7,FALSE)) ->  | G52: =IF(($B52=" ")," ",VLOOKUP($B52,'C10 Entry Sheet'!$A$16:$K$194,14,FALSE)) ->  | H52: =IF(($B52=" ")," ",VLOOKUP($B52,'C10 Entry Sheet'!$A$16:$K$194,8,FALSE)) ->  | I52: =IF(($B52=" ")," ",VLOOKUP($B52,'C10 Entry Sheet'!$A$16:$K$194,13,FALSE)) ->  | J52: =IF(($B52=" ")," ",VLOOKUP($B52,'C10 Entry Sheet'!$A$16:$K$194,17,FALSE)) ->  | K52: =IF(($B52=" ")," ",VLOOKUP($B52,'C10 Entry Sheet'!$A$16:$K$194,19,FALSE)) ->  | L52: =IF(($B52=" ")," ",VLOOKUP($B52,'C10 Entry Sheet'!$A$16:$K$194,20,FALSE)) -> 
A53: 36 | B53: =IF(ISBLANK('C10 Entry Sheet'!A43)," ",CELL("contents",'C10 Entry Sheet'!A43)) ->  | C53: =IF(($B53=" ")," ",VLOOKUP($B53,'C10 Entry Sheet'!$A$16:$K$194,5,FALSE)) ->  | D53: =IF(($B53=" ")," ",VLOOKUP($B53,'C10 Entry Sheet'!$A$16:$K$194,6,FALSE)) ->  | E53: =IF(($B53=" ")," ",VLOOKUP($B53,'C10 Entry Sheet'!$A$16:$K$194,9,FALSE)) ->  | F53: =IF(($B53=" ")," ",VLOOKUP($B53,'C10 Entry Sheet'!$A$16:$K$194,7,FALSE)) ->  | G53: =IF(($B53=" ")," ",VLOOKUP($B53,'C10 Entry Sheet'!$A$16:$K$194,14,FALSE)) ->  | H53: =IF(($B53=" ")," ",VLOOKUP($B53,'C10 Entry Sheet'!$A$16:$K$194,8,FALSE)) ->  | I53: =IF(($B53=" ")," ",VLOOKUP($B53,'C10 Entry Sheet'!$A$16:$K$194,13,FALSE)) ->  | J53: =IF(($B53=" ")," ",VLOOKUP($B53,'C10 Entry Sheet'!$A$16:$K$194,17,FALSE)) ->  | K53: =IF(($B53=" ")," ",VLOOKUP($B53,'C10 Entry Sheet'!$A$16:$K$194,19,FALSE)) ->  | L53: =IF(($B53=" ")," ",VLOOKUP($B53,'C10 Entry Sheet'!$A$16:$K$194,20,FALSE)) -> 
A54: 37 | B54: =IF(ISBLANK('C10 Entry Sheet'!A44)," ",CELL("contents",'C10 Entry Sheet'!A44)) ->  | C54: =IF(($B54=" ")," ",VLOOKUP($B54,'C10 Entry Sheet'!$A$16:$K$194,5,FALSE)) ->  | D54: =IF(($B54=" ")," ",VLOOKUP($B54,'C10 Entry Sheet'!$A$16:$K$194,6,FALSE)) ->  | E54: =IF(($B54=" ")," ",VLOOKUP($B54,'C10 Entry Sheet'!$A$16:$K$194,9,FALSE)) ->  | F54: =IF(($B54=" ")," ",VLOOKUP($B54,'C10 Entry Sheet'!$A$16:$K$194,7,FALSE)) ->  | G54: =IF(($B54=" ")," ",VLOOKUP($B54,'C10 Entry Sheet'!$A$16:$K$194,14,FALSE)) ->  | H54: =IF(($B54=" ")," ",VLOOKUP($B54,'C10 Entry Sheet'!$A$16:$K$194,8,FALSE)) ->  | I54: =IF(($B54=" ")," ",VLOOKUP($B54,'C10 Entry Sheet'!$A$16:$K$194,13,FALSE)) ->  | J54: =IF(($B54=" ")," ",VLOOKUP($B54,'C10 Entry Sheet'!$A$16:$K$194,17,FALSE)) ->  | K54: =IF(($B54=" ")," ",VLOOKUP($B54,'C10 Entry Sheet'!$A$16:$K$194,19,FALSE)) ->  | L54: =IF(($B54=" ")," ",VLOOKUP($B54,'C10 Entry Sheet'!$A$16:$K$194,20,FALSE)) -> 
A55: 38 | B55: =IF(ISBLANK('C10 Entry Sheet'!A45)," ",CELL("contents",'C10 Entry Sheet'!A45)) ->  | C55: =IF(($B55=" ")," ",VLOOKUP($B55,'C10 Entry Sheet'!$A$16:$K$194,5,FALSE)) ->  | D55: =IF(($B55=" ")," ",VLOOKUP($B55,'C10 Entry Sheet'!$A$16:$K$194,6,FALSE)) ->  | E55: =IF(($B55=" ")," ",VLOOKUP($B55,'C10 Entry Sheet'!$A$16:$K$194,9,FALSE)) ->  | F55: =IF(($B55=" ")," ",VLOOKUP($B55,'C10 Entry Sheet'!$A$16:$K$194,7,FALSE)) ->  | G55: =IF(($B55=" ")," ",VLOOKUP($B55,'C10 Entry Sheet'!$A$16:$K$194,14,FALSE)) ->  | H55: =IF(($B55=" ")," ",VLOOKUP($B55,'C10 Entry Sheet'!$A$16:$K$194,8,FALSE)) ->  | I55: =IF(($B55=" ")," ",VLOOKUP($B55,'C10 Entry Sheet'!$A$16:$K$194,13,FALSE)) ->  | J55: =IF(($B55=" ")," ",VLOOKUP($B55,'C10 Entry Sheet'!$A$16:$K$194,17,FALSE)) ->  | K55: =IF(($B55=" ")," ",VLOOKUP($B55,'C10 Entry Sheet'!$A$16:$K$194,19,FALSE)) ->  | L55: =IF(($B55=" ")," ",VLOOKUP($B55,'C10 Entry Sheet'!$A$16:$K$194,20,FALSE)) -> 
A56: 39 | B56: =IF(ISBLANK('C10 Entry Sheet'!A46)," ",CELL("contents",'C10 Entry Sheet'!A46)) ->  | C56: =IF(($B56=" ")," ",VLOOKUP($B56,'C10 Entry Sheet'!$A$16:$K$194,5,FALSE)) ->  | D56: =IF(($B56=" ")," ",VLOOKUP($B56,'C10 Entry Sheet'!$A$16:$K$194,6,FALSE)) ->  | E56: =IF(($B56=" ")," ",VLOOKUP($B56,'C10 Entry Sheet'!$A$16:$K$194,9,FALSE)) ->  | F56: =IF(($B56=" ")," ",VLOOKUP($B56,'C10 Entry Sheet'!$A$16:$K$194,7,FALSE)) ->  | G56: =IF(($B56=" ")," ",VLOOKUP($B56,'C10 Entry Sheet'!$A$16:$K$194,14,FALSE)) ->  | H56: =IF(($B56=" ")," ",VLOOKUP($B56,'C10 Entry Sheet'!$A$16:$K$194,8,FALSE)) ->  | I56: =IF(($B56=" ")," ",VLOOKUP($B56,'C10 Entry Sheet'!$A$16:$K$194,13,FALSE)) ->  | J56: =IF(($B56=" ")," ",VLOOKUP($B56,'C10 Entry Sheet'!$A$16:$K$194,17,FALSE)) ->  | K56: =IF(($B56=" ")," ",VLOOKUP($B56,'C10 Entry Sheet'!$A$16:$K$194,19,FALSE)) ->  | L56: =IF(($B56=" ")," ",VLOOKUP($B56,'C10 Entry Sheet'!$A$16:$K$194,20,FALSE)) -> 
A57: 40 | B57: =IF(ISBLANK('C10 Entry Sheet'!A47)," ",CELL("contents",'C10 Entry Sheet'!A47)) ->  | C57: =IF(($B57=" ")," ",VLOOKUP($B57,'C10 Entry Sheet'!$A$16:$K$194,5,FALSE)) ->  | D57: =IF(($B57=" ")," ",VLOOKUP($B57,'C10 Entry Sheet'!$A$16:$K$194,6,FALSE)) ->  | E57: =IF(($B57=" ")," ",VLOOKUP($B57,'C10 Entry Sheet'!$A$16:$K$194,9,FALSE)) ->  | F57: =IF(($B57=" ")," ",VLOOKUP($B57,'C10 Entry Sheet'!$A$16:$K$194,7,FALSE)) ->  | G57: =IF(($B57=" ")," ",VLOOKUP($B57,'C10 Entry Sheet'!$A$16:$K$194,14,FALSE)) ->  | H57: =IF(($B57=" ")," ",VLOOKUP($B57,'C10 Entry Sheet'!$A$16:$K$194,8,FALSE)) ->  | I57: =IF(($B57=" ")," ",VLOOKUP($B57,'C10 Entry Sheet'!$A$16:$K$194,13,FALSE)) ->  | J57: =IF(($B57=" ")," ",VLOOKUP($B57,'C10 Entry Sheet'!$A$16:$K$194,17,FALSE)) ->  | K57: =IF(($B57=" ")," ",VLOOKUP($B57,'C10 Entry Sheet'!$A$16:$K$194,19,FALSE)) ->  | L57: =IF(($B57=" ")," ",VLOOKUP($B57,'C10 Entry Sheet'!$A$16:$K$194,20,FALSE)) -> 
A58: 41 | B58: =IF(ISBLANK('C10 Entry Sheet'!A48)," ",CELL("contents",'C10 Entry Sheet'!A48)) ->  | C58: =IF(($B58=" ")," ",VLOOKUP($B58,'C10 Entry Sheet'!$A$16:$K$194,5,FALSE)) ->  | D58: =IF(($B58=" ")," ",VLOOKUP($B58,'C10 Entry Sheet'!$A$16:$K$194,6,FALSE)) ->  | E58: =IF(($B58=" ")," ",VLOOKUP($B58,'C10 Entry Sheet'!$A$16:$K$194,9,FALSE)) ->  | F58: =IF(($B58=" ")," ",VLOOKUP($B58,'C10 Entry Sheet'!$A$16:$K$194,7,FALSE)) ->  | G58: =IF(($B58=" ")," ",VLOOKUP($B58,'C10 Entry Sheet'!$A$16:$K$194,14,FALSE)) ->  | H58: =IF(($B58=" ")," ",VLOOKUP($B58,'C10 Entry Sheet'!$A$16:$K$194,8,FALSE)) ->  | I58: =IF(($B58=" ")," ",VLOOKUP($B58,'C10 Entry Sheet'!$A$16:$K$194,13,FALSE)) ->  | J58: =IF(($B58=" ")," ",VLOOKUP($B58,'C10 Entry Sheet'!$A$16:$K$194,17,FALSE)) ->  | K58: =IF(($B58=" ")," ",VLOOKUP($B58,'C10 Entry Sheet'!$A$16:$K$194,19,FALSE)) ->  | L58: =IF(($B58=" ")," ",VLOOKUP($B58,'C10 Entry Sheet'!$A$16:$K$194,20,FALSE)) -> 
A59: 42 | B59: =IF(ISBLANK('C10 Entry Sheet'!A49)," ",CELL("contents",'C10 Entry Sheet'!A49)) ->  | C59: =IF(($B59=" ")," ",VLOOKUP($B59,'C10 Entry Sheet'!$A$16:$K$194,5,FALSE)) ->  | D59: =IF(($B59=" ")," ",VLOOKUP($B59,'C10 Entry Sheet'!$A$16:$K$194,6,FALSE)) ->  | E59: =IF(($B59=" ")," ",VLOOKUP($B59,'C10 Entry Sheet'!$A$16:$K$194,9,FALSE)) ->  | F59: =IF(($B59=" ")," ",VLOOKUP($B59,'C10 Entry Sheet'!$A$16:$K$194,7,FALSE)) ->  | G59: =IF(($B59=" ")," ",VLOOKUP($B59,'C10 Entry Sheet'!$A$16:$K$194,14,FALSE)) ->  | H59: =IF(($B59=" ")," ",VLOOKUP($B59,'C10 Entry Sheet'!$A$16:$K$194,8,FALSE)) ->  | I59: =IF(($B59=" ")," ",VLOOKUP($B59,'C10 Entry Sheet'!$A$16:$K$194,13,FALSE)) ->  | J59: =IF(($B59=" ")," ",VLOOKUP($B59,'C10 Entry Sheet'!$A$16:$K$194,17,FALSE)) ->  | K59: =IF(($B59=" ")," ",VLOOKUP($B59,'C10 Entry Sheet'!$A$16:$K$194,19,FALSE)) ->  | L59: =IF(($B59=" ")," ",VLOOKUP($B59,'C10 Entry Sheet'!$A$16:$K$194,20,FALSE)) -> 
A60: 43 | B60: =IF(ISBLANK('C10 Entry Sheet'!A50)," ",CELL("contents",'C10 Entry Sheet'!A50)) ->  | C60: =IF(($B60=" ")," ",VLOOKUP($B60,'C10 Entry Sheet'!$A$16:$K$194,5,FALSE)) ->  | D60: =IF(($B60=" ")," ",VLOOKUP($B60,'C10 Entry Sheet'!$A$16:$K$194,6,FALSE)) ->  | E60: =IF(($B60=" ")," ",VLOOKUP($B60,'C10 Entry Sheet'!$A$16:$K$194,9,FALSE)) ->  | F60: =IF(($B60=" ")," ",VLOOKUP($B60,'C10 Entry Sheet'!$A$16:$K$194,7,FALSE)) ->  | G60: =IF(($B60=" ")," ",VLOOKUP($B60,'C10 Entry Sheet'!$A$16:$K$194,14,FALSE)) ->  | H60: =IF(($B60=" ")," ",VLOOKUP($B60,'C10 Entry Sheet'!$A$16:$K$194,8,FALSE)) ->  | I60: =IF(($B60=" ")," ",VLOOKUP($B60,'C10 Entry Sheet'!$A$16:$K$194,13,FALSE)) ->  | J60: =IF(($B60=" ")," ",VLOOKUP($B60,'C10 Entry Sheet'!$A$16:$K$194,17,FALSE)) ->  | K60: =IF(($B60=" ")," ",VLOOKUP($B60,'C10 Entry Sheet'!$A$16:$K$194,19,FALSE)) ->  | L60: =IF(($B60=" ")," ",VLOOKUP($B60,'C10 Entry Sheet'!$A$16:$K$194,20,FALSE)) -> 
A61: 44 | B61: =IF(ISBLANK('C10 Entry Sheet'!A51)," ",CELL("contents",'C10 Entry Sheet'!A51)) ->  | C61: =IF(($B61=" ")," ",VLOOKUP($B61,'C10 Entry Sheet'!$A$16:$K$194,5,FALSE)) ->  | D61: =IF(($B61=" ")," ",VLOOKUP($B61,'C10 Entry Sheet'!$A$16:$K$194,6,FALSE)) ->  | E61: =IF(($B61=" ")," ",VLOOKUP($B61,'C10 Entry Sheet'!$A$16:$K$194,9,FALSE)) ->  | F61: =IF(($B61=" ")," ",VLOOKUP($B61,'C10 Entry Sheet'!$A$16:$K$194,7,FALSE)) ->  | G61: =IF(($B61=" ")," ",VLOOKUP($B61,'C10 Entry Sheet'!$A$16:$K$194,14,FALSE)) ->  | H61: =IF(($B61=" ")," ",VLOOKUP($B61,'C10 Entry Sheet'!$A$16:$K$194,8,FALSE)) ->  | I61: =IF(($B61=" ")," ",VLOOKUP($B61,'C10 Entry Sheet'!$A$16:$K$194,13,FALSE)) ->  | J61: =IF(($B61=" ")," ",VLOOKUP($B61,'C10 Entry Sheet'!$A$16:$K$194,17,FALSE)) ->  | K61: =IF(($B61=" ")," ",VLOOKUP($B61,'C10 Entry Sheet'!$A$16:$K$194,19,FALSE)) ->  | L61: =IF(($B61=" ")," ",VLOOKUP($B61,'C10 Entry Sheet'!$A$16:$K$194,20,FALSE)) -> 
A62: 45 | B62: =IF(ISBLANK('C10 Entry Sheet'!A52)," ",CELL("contents",'C10 Entry Sheet'!A52)) ->  | C62: =IF(($B62=" ")," ",VLOOKUP($B62,'C10 Entry Sheet'!$A$16:$K$194,5,FALSE)) ->  | D62: =IF(($B62=" ")," ",VLOOKUP($B62,'C10 Entry Sheet'!$A$16:$K$194,6,FALSE)) ->  | E62: =IF(($B62=" ")," ",VLOOKUP($B62,'C10 Entry Sheet'!$A$16:$K$194,9,FALSE)) ->  | F62: =IF(($B62=" ")," ",VLOOKUP($B62,'C10 Entry Sheet'!$A$16:$K$194,7,FALSE)) ->  | G62: =IF(($B62=" ")," ",VLOOKUP($B62,'C10 Entry Sheet'!$A$16:$K$194,14,FALSE)) ->  | H62: =IF(($B62=" ")," ",VLOOKUP($B62,'C10 Entry Sheet'!$A$16:$K$194,8,FALSE)) ->  | I62: =IF(($B62=" ")," ",VLOOKUP($B62,'C10 Entry Sheet'!$A$16:$K$194,13,FALSE)) ->  | J62: =IF(($B62=" ")," ",VLOOKUP($B62,'C10 Entry Sheet'!$A$16:$K$194,17,FALSE)) ->  | K62: =IF(($B62=" ")," ",VLOOKUP($B62,'C10 Entry Sheet'!$A$16:$K$194,19,FALSE)) ->  | L62: =IF(($B62=" ")," ",VLOOKUP($B62,'C10 Entry Sheet'!$A$16:$K$194,20,FALSE)) -> 
A63: 46 | B63: =IF(ISBLANK('C10 Entry Sheet'!A53)," ",CELL("contents",'C10 Entry Sheet'!A53)) ->  | C63: =IF(($B63=" ")," ",VLOOKUP($B63,'C10 Entry Sheet'!$A$16:$K$194,5,FALSE)) ->  | D63: =IF(($B63=" ")," ",VLOOKUP($B63,'C10 Entry Sheet'!$A$16:$K$194,6,FALSE)) ->  | E63: =IF(($B63=" ")," ",VLOOKUP($B63,'C10 Entry Sheet'!$A$16:$K$194,9,FALSE)) ->  | F63: =IF(($B63=" ")," ",VLOOKUP($B63,'C10 Entry Sheet'!$A$16:$K$194,7,FALSE)) ->  | G63: =IF(($B63=" ")," ",VLOOKUP($B63,'C10 Entry Sheet'!$A$16:$K$194,14,FALSE)) ->  | H63: =IF(($B63=" ")," ",VLOOKUP($B63,'C10 Entry Sheet'!$A$16:$K$194,8,FALSE)) ->  | I63: =IF(($B63=" ")," ",VLOOKUP($B63,'C10 Entry Sheet'!$A$16:$K$194,13,FALSE)) ->  | J63: =IF(($B63=" ")," ",VLOOKUP($B63,'C10 Entry Sheet'!$A$16:$K$194,17,FALSE)) ->  | K63: =IF(($B63=" ")," ",VLOOKUP($B63,'C10 Entry Sheet'!$A$16:$K$194,19,FALSE)) ->  | L63: =IF(($B63=" ")," ",VLOOKUP($B63,'C10 Entry Sheet'!$A$16:$K$194,20,FALSE)) -> 
A64: 47 | B64: =IF(ISBLANK('C10 Entry Sheet'!A54)," ",CELL("contents",'C10 Entry Sheet'!A54)) ->  | C64: =IF(($B64=" ")," ",VLOOKUP($B64,'C10 Entry Sheet'!$A$16:$K$194,5,FALSE)) ->  | D64: =IF(($B64=" ")," ",VLOOKUP($B64,'C10 Entry Sheet'!$A$16:$K$194,6,FALSE)) ->  | E64: =IF(($B64=" ")," ",VLOOKUP($B64,'C10 Entry Sheet'!$A$16:$K$194,9,FALSE)) ->  | F64: =IF(($B64=" ")," ",VLOOKUP($B64,'C10 Entry Sheet'!$A$16:$K$194,7,FALSE)) ->  | G64: =IF(($B64=" ")," ",VLOOKUP($B64,'C10 Entry Sheet'!$A$16:$K$194,14,FALSE)) ->  | H64: =IF(($B64=" ")," ",VLOOKUP($B64,'C10 Entry Sheet'!$A$16:$K$194,8,FALSE)) ->  | I64: =IF(($B64=" ")," ",VLOOKUP($B64,'C10 Entry Sheet'!$A$16:$K$194,13,FALSE)) ->  | J64: =IF(($B64=" ")," ",VLOOKUP($B64,'C10 Entry Sheet'!$A$16:$K$194,17,FALSE)) ->  | K64: =IF(($B64=" ")," ",VLOOKUP($B64,'C10 Entry Sheet'!$A$16:$K$194,19,FALSE)) ->  | L64: =IF(($B64=" ")," ",VLOOKUP($B64,'C10 Entry Sheet'!$A$16:$K$194,20,FALSE)) -> 
A65: 48 | B65: =IF(ISBLANK('C10 Entry Sheet'!A55)," ",CELL("contents",'C10 Entry Sheet'!A55)) ->  | C65: =IF(($B65=" ")," ",VLOOKUP($B65,'C10 Entry Sheet'!$A$16:$K$194,5,FALSE)) ->  | D65: =IF(($B65=" ")," ",VLOOKUP($B65,'C10 Entry Sheet'!$A$16:$K$194,6,FALSE)) ->  | E65: =IF(($B65=" ")," ",VLOOKUP($B65,'C10 Entry Sheet'!$A$16:$K$194,9,FALSE)) ->  | F65: =IF(($B65=" ")," ",VLOOKUP($B65,'C10 Entry Sheet'!$A$16:$K$194,7,FALSE)) ->  | G65: =IF(($B65=" ")," ",VLOOKUP($B65,'C10 Entry Sheet'!$A$16:$K$194,14,FALSE)) ->  | H65: =IF(($B65=" ")," ",VLOOKUP($B65,'C10 Entry Sheet'!$A$16:$K$194,8,FALSE)) ->  | I65: =IF(($B65=" ")," ",VLOOKUP($B65,'C10 Entry Sheet'!$A$16:$K$194,13,FALSE)) ->  | J65: =IF(($B65=" ")," ",VLOOKUP($B65,'C10 Entry Sheet'!$A$16:$K$194,17,FALSE)) ->  | K65: =IF(($B65=" ")," ",VLOOKUP($B65,'C10 Entry Sheet'!$A$16:$K$194,19,FALSE)) ->  | L65: =IF(($B65=" ")," ",VLOOKUP($B65,'C10 Entry Sheet'!$A$16:$K$194,20,FALSE)) -> 
A66: 49 | B66: =IF(ISBLANK('C10 Entry Sheet'!A56)," ",CELL("contents",'C10 Entry Sheet'!A56)) ->  | C66: =IF(($B66=" ")," ",VLOOKUP($B66,'C10 Entry Sheet'!$A$16:$K$194,5,FALSE)) ->  | D66: =IF(($B66=" ")," ",VLOOKUP($B66,'C10 Entry Sheet'!$A$16:$K$194,6,FALSE)) ->  | E66: =IF(($B66=" ")," ",VLOOKUP($B66,'C10 Entry Sheet'!$A$16:$K$194,9,FALSE)) ->  | F66: =IF(($B66=" ")," ",VLOOKUP($B66,'C10 Entry Sheet'!$A$16:$K$194,7,FALSE)) ->  | G66: =IF(($B66=" ")," ",VLOOKUP($B66,'C10 Entry Sheet'!$A$16:$K$194,14,FALSE)) ->  | H66: =IF(($B66=" ")," ",VLOOKUP($B66,'C10 Entry Sheet'!$A$16:$K$194,8,FALSE)) ->  | I66: =IF(($B66=" ")," ",VLOOKUP($B66,'C10 Entry Sheet'!$A$16:$K$194,13,FALSE)) ->  | J66: =IF(($B66=" ")," ",VLOOKUP($B66,'C10 Entry Sheet'!$A$16:$K$194,17,FALSE)) ->  | K66: =IF(($B66=" ")," ",VLOOKUP($B66,'C10 Entry Sheet'!$A$16:$K$194,19,FALSE)) ->  | L66: =IF(($B66=" ")," ",VLOOKUP($B66,'C10 Entry Sheet'!$A$16:$K$194,20,FALSE)) -> 
A67: 50 | B67: =IF(ISBLANK('C10 Entry Sheet'!A57)," ",CELL("contents",'C10 Entry Sheet'!A57)) ->  | C67: =IF(($B67=" ")," ",VLOOKUP($B67,'C10 Entry Sheet'!$A$16:$K$194,5,FALSE)) ->  | D67: =IF(($B67=" ")," ",VLOOKUP($B67,'C10 Entry Sheet'!$A$16:$K$194,6,FALSE)) ->  | E67: =IF(($B67=" ")," ",VLOOKUP($B67,'C10 Entry Sheet'!$A$16:$K$194,9,FALSE)) ->  | F67: =IF(($B67=" ")," ",VLOOKUP($B67,'C10 Entry Sheet'!$A$16:$K$194,7,FALSE)) ->  | G67: =IF(($B67=" ")," ",VLOOKUP($B67,'C10 Entry Sheet'!$A$16:$K$194,14,FALSE)) ->  | H67: =IF(($B67=" ")," ",VLOOKUP($B67,'C10 Entry Sheet'!$A$16:$K$194,8,FALSE)) ->  | I67: =IF(($B67=" ")," ",VLOOKUP($B67,'C10 Entry Sheet'!$A$16:$K$194,13,FALSE)) ->  | J67: =IF(($B67=" ")," ",VLOOKUP($B67,'C10 Entry Sheet'!$A$16:$K$194,17,FALSE)) ->  | K67: =IF(($B67=" ")," ",VLOOKUP($B67,'C10 Entry Sheet'!$A$16:$K$194,19,FALSE)) ->  | L67: =IF(($B67=" ")," ",VLOOKUP($B67,'C10 Entry Sheet'!$A$16:$K$194,20,FALSE)) -> 
A68: 51 | B68: =IF(ISBLANK('C10 Entry Sheet'!A58)," ",CELL("contents",'C10 Entry Sheet'!A58)) ->  | C68: =IF(($B68=" ")," ",VLOOKUP($B68,'C10 Entry Sheet'!$A$16:$K$194,5,FALSE)) ->  | D68: =IF(($B68=" ")," ",VLOOKUP($B68,'C10 Entry Sheet'!$A$16:$K$194,6,FALSE)) ->  | E68: =IF(($B68=" ")," ",VLOOKUP($B68,'C10 Entry Sheet'!$A$16:$K$194,9,FALSE)) ->  | F68: =IF(($B68=" ")," ",VLOOKUP($B68,'C10 Entry Sheet'!$A$16:$K$194,7,FALSE)) ->  | G68: =IF(($B68=" ")," ",VLOOKUP($B68,'C10 Entry Sheet'!$A$16:$K$194,14,FALSE)) ->  | H68: =IF(($B68=" ")," ",VLOOKUP($B68,'C10 Entry Sheet'!$A$16:$K$194,8,FALSE)) ->  | I68: =IF(($B68=" ")," ",VLOOKUP($B68,'C10 Entry Sheet'!$A$16:$K$194,13,FALSE)) ->  | J68: =IF(($B68=" ")," ",VLOOKUP($B68,'C10 Entry Sheet'!$A$16:$K$194,17,FALSE)) ->  | K68: =IF(($B68=" ")," ",VLOOKUP($B68,'C10 Entry Sheet'!$A$16:$K$194,19,FALSE)) ->  | L68: =IF(($B68=" ")," ",VLOOKUP($B68,'C10 Entry Sheet'!$A$16:$K$194,20,FALSE)) -> 
A69: 52 | B69: =IF(ISBLANK('C10 Entry Sheet'!A59)," ",CELL("contents",'C10 Entry Sheet'!A59)) ->  | C69: =IF(($B69=" ")," ",VLOOKUP($B69,'C10 Entry Sheet'!$A$16:$K$194,5,FALSE)) ->  | D69: =IF(($B69=" ")," ",VLOOKUP($B69,'C10 Entry Sheet'!$A$16:$K$194,6,FALSE)) ->  | E69: =IF(($B69=" ")," ",VLOOKUP($B69,'C10 Entry Sheet'!$A$16:$K$194,9,FALSE)) ->  | F69: =IF(($B69=" ")," ",VLOOKUP($B69,'C10 Entry Sheet'!$A$16:$K$194,7,FALSE)) ->  | G69: =IF(($B69=" ")," ",VLOOKUP($B69,'C10 Entry Sheet'!$A$16:$K$194,14,FALSE)) ->  | H69: =IF(($B69=" ")," ",VLOOKUP($B69,'C10 Entry Sheet'!$A$16:$K$194,8,FALSE)) ->  | I69: =IF(($B69=" ")," ",VLOOKUP($B69,'C10 Entry Sheet'!$A$16:$K$194,13,FALSE)) ->  | J69: =IF(($B69=" ")," ",VLOOKUP($B69,'C10 Entry Sheet'!$A$16:$K$194,17,FALSE)) ->  | K69: =IF(($B69=" ")," ",VLOOKUP($B69,'C10 Entry Sheet'!$A$16:$K$194,19,FALSE)) ->  | L69: =IF(($B69=" ")," ",VLOOKUP($B69,'C10 Entry Sheet'!$A$16:$K$194,20,FALSE)) -> 
A70: 53 | B70: =IF(ISBLANK('C10 Entry Sheet'!A60)," ",CELL("contents",'C10 Entry Sheet'!A60)) ->  | C70: =IF(($B70=" ")," ",VLOOKUP($B70,'C10 Entry Sheet'!$A$16:$K$194,5,FALSE)) ->  | D70: =IF(($B70=" ")," ",VLOOKUP($B70,'C10 Entry Sheet'!$A$16:$K$194,6,FALSE)) ->  | E70: =IF(($B70=" ")," ",VLOOKUP($B70,'C10 Entry Sheet'!$A$16:$K$194,9,FALSE)) ->  | F70: =IF(($B70=" ")," ",VLOOKUP($B70,'C10 Entry Sheet'!$A$16:$K$194,7,FALSE)) ->  | G70: =IF(($B70=" ")," ",VLOOKUP($B70,'C10 Entry Sheet'!$A$16:$K$194,14,FALSE)) ->  | H70: =IF(($B70=" ")," ",VLOOKUP($B70,'C10 Entry Sheet'!$A$16:$K$194,8,FALSE)) ->  | I70: =IF(($B70=" ")," ",VLOOKUP($B70,'C10 Entry Sheet'!$A$16:$K$194,13,FALSE)) ->  | J70: =IF(($B70=" ")," ",VLOOKUP($B70,'C10 Entry Sheet'!$A$16:$K$194,17,FALSE)) ->  | K70: =IF(($B70=" ")," ",VLOOKUP($B70,'C10 Entry Sheet'!$A$16:$K$194,19,FALSE)) ->  | L70: =IF(($B70=" ")," ",VLOOKUP($B70,'C10 Entry Sheet'!$A$16:$K$194,20,FALSE)) -> 
A71: 54 | B71: =IF(ISBLANK('C10 Entry Sheet'!A61)," ",CELL("contents",'C10 Entry Sheet'!A61)) ->  | C71: =IF(($B71=" ")," ",VLOOKUP($B71,'C10 Entry Sheet'!$A$16:$K$194,5,FALSE)) ->  | D71: =IF(($B71=" ")," ",VLOOKUP($B71,'C10 Entry Sheet'!$A$16:$K$194,6,FALSE)) ->  | E71: =IF(($B71=" ")," ",VLOOKUP($B71,'C10 Entry Sheet'!$A$16:$K$194,9,FALSE)) ->  | F71: =IF(($B71=" ")," ",VLOOKUP($B71,'C10 Entry Sheet'!$A$16:$K$194,7,FALSE)) ->  | G71: =IF(($B71=" ")," ",VLOOKUP($B71,'C10 Entry Sheet'!$A$16:$K$194,14,FALSE)) ->  | H71: =IF(($B71=" ")," ",VLOOKUP($B71,'C10 Entry Sheet'!$A$16:$K$194,8,FALSE)) ->  | I71: =IF(($B71=" ")," ",VLOOKUP($B71,'C10 Entry Sheet'!$A$16:$K$194,13,FALSE)) ->  | J71: =IF(($B71=" ")," ",VLOOKUP($B71,'C10 Entry Sheet'!$A$16:$K$194,17,FALSE)) ->  | K71: =IF(($B71=" ")," ",VLOOKUP($B71,'C10 Entry Sheet'!$A$16:$K$194,19,FALSE)) ->  | L71: =IF(($B71=" ")," ",VLOOKUP($B71,'C10 Entry Sheet'!$A$16:$K$194,20,FALSE)) -> 
A72: 55 | B72: =IF(ISBLANK('C10 Entry Sheet'!A62)," ",CELL("contents",'C10 Entry Sheet'!A62)) ->  | C72: =IF(($B72=" ")," ",VLOOKUP($B72,'C10 Entry Sheet'!$A$16:$K$194,5,FALSE)) ->  | D72: =IF(($B72=" ")," ",VLOOKUP($B72,'C10 Entry Sheet'!$A$16:$K$194,6,FALSE)) ->  | E72: =IF(($B72=" ")," ",VLOOKUP($B72,'C10 Entry Sheet'!$A$16:$K$194,9,FALSE)) ->  | F72: =IF(($B72=" ")," ",VLOOKUP($B72,'C10 Entry Sheet'!$A$16:$K$194,7,FALSE)) ->  | G72: =IF(($B72=" ")," ",VLOOKUP($B72,'C10 Entry Sheet'!$A$16:$K$194,14,FALSE)) ->  | H72: =IF(($B72=" ")," ",VLOOKUP($B72,'C10 Entry Sheet'!$A$16:$K$194,8,FALSE)) ->  | I72: =IF(($B72=" ")," ",VLOOKUP($B72,'C10 Entry Sheet'!$A$16:$K$194,13,FALSE)) ->  | J72: =IF(($B72=" ")," ",VLOOKUP($B72,'C10 Entry Sheet'!$A$16:$K$194,17,FALSE)) ->  | K72: =IF(($B72=" ")," ",VLOOKUP($B72,'C10 Entry Sheet'!$A$16:$K$194,19,FALSE)) ->  | L72: =IF(($B72=" ")," ",VLOOKUP($B72,'C10 Entry Sheet'!$A$16:$K$194,20,FALSE)) -> 
A73: 56 | B73: =IF(ISBLANK('C10 Entry Sheet'!A63)," ",CELL("contents",'C10 Entry Sheet'!A63)) ->  | C73: =IF(($B73=" ")," ",VLOOKUP($B73,'C10 Entry Sheet'!$A$16:$K$194,5,FALSE)) ->  | D73: =IF(($B73=" ")," ",VLOOKUP($B73,'C10 Entry Sheet'!$A$16:$K$194,6,FALSE)) ->  | E73: =IF(($B73=" ")," ",VLOOKUP($B73,'C10 Entry Sheet'!$A$16:$K$194,9,FALSE)) ->  | F73: =IF(($B73=" ")," ",VLOOKUP($B73,'C10 Entry Sheet'!$A$16:$K$194,7,FALSE)) ->  | G73: =IF(($B73=" ")," ",VLOOKUP($B73,'C10 Entry Sheet'!$A$16:$K$194,14,FALSE)) ->  | H73: =IF(($B73=" ")," ",VLOOKUP($B73,'C10 Entry Sheet'!$A$16:$K$194,8,FALSE)) ->  | I73: =IF(($B73=" ")," ",VLOOKUP($B73,'C10 Entry Sheet'!$A$16:$K$194,13,FALSE)) ->  | J73: =IF(($B73=" ")," ",VLOOKUP($B73,'C10 Entry Sheet'!$A$16:$K$194,17,FALSE)) ->  | K73: =IF(($B73=" ")," ",VLOOKUP($B73,'C10 Entry Sheet'!$A$16:$K$194,19,FALSE)) ->  | L73: =IF(($B73=" ")," ",VLOOKUP($B73,'C10 Entry Sheet'!$A$16:$K$194,20,FALSE)) -> 
A74: 57 | B74: =IF(ISBLANK('C10 Entry Sheet'!A64)," ",CELL("contents",'C10 Entry Sheet'!A64)) ->  | C74: =IF(($B74=" ")," ",VLOOKUP($B74,'C10 Entry Sheet'!$A$16:$K$194,5,FALSE)) ->  | D74: =IF(($B74=" ")," ",VLOOKUP($B74,'C10 Entry Sheet'!$A$16:$K$194,6,FALSE)) ->  | E74: =IF(($B74=" ")," ",VLOOKUP($B74,'C10 Entry Sheet'!$A$16:$K$194,9,FALSE)) ->  | F74: =IF(($B74=" ")," ",VLOOKUP($B74,'C10 Entry Sheet'!$A$16:$K$194,7,FALSE)) ->  | G74: =IF(($B74=" ")," ",VLOOKUP($B74,'C10 Entry Sheet'!$A$16:$K$194,14,FALSE)) ->  | H74: =IF(($B74=" ")," ",VLOOKUP($B74,'C10 Entry Sheet'!$A$16:$K$194,8,FALSE)) ->  | I74: =IF(($B74=" ")," ",VLOOKUP($B74,'C10 Entry Sheet'!$A$16:$K$194,13,FALSE)) ->  | J74: =IF(($B74=" ")," ",VLOOKUP($B74,'C10 Entry Sheet'!$A$16:$K$194,17,FALSE)) ->  | K74: =IF(($B74=" ")," ",VLOOKUP($B74,'C10 Entry Sheet'!$A$16:$K$194,19,FALSE)) ->  | L74: =IF(($B74=" ")," ",VLOOKUP($B74,'C10 Entry Sheet'!$A$16:$K$194,20,FALSE)) -> 
A75: 58 | B75: =IF(ISBLANK('C10 Entry Sheet'!A65)," ",CELL("contents",'C10 Entry Sheet'!A65)) ->  | C75: =IF(($B75=" ")," ",VLOOKUP($B75,'C10 Entry Sheet'!$A$16:$K$194,5,FALSE)) ->  | D75: =IF(($B75=" ")," ",VLOOKUP($B75,'C10 Entry Sheet'!$A$16:$K$194,6,FALSE)) ->  | E75: =IF(($B75=" ")," ",VLOOKUP($B75,'C10 Entry Sheet'!$A$16:$K$194,9,FALSE)) ->  | F75: =IF(($B75=" ")," ",VLOOKUP($B75,'C10 Entry Sheet'!$A$16:$K$194,7,FALSE)) ->  | G75: =IF(($B75=" ")," ",VLOOKUP($B75,'C10 Entry Sheet'!$A$16:$K$194,14,FALSE)) ->  | H75: =IF(($B75=" ")," ",VLOOKUP($B75,'C10 Entry Sheet'!$A$16:$K$194,8,FALSE)) ->  | I75: =IF(($B75=" ")," ",VLOOKUP($B75,'C10 Entry Sheet'!$A$16:$K$194,13,FALSE)) ->  | J75: =IF(($B75=" ")," ",VLOOKUP($B75,'C10 Entry Sheet'!$A$16:$K$194,17,FALSE)) ->  | K75: =IF(($B75=" ")," ",VLOOKUP($B75,'C10 Entry Sheet'!$A$16:$K$194,19,FALSE)) ->  | L75: =IF(($B75=" ")," ",VLOOKUP($B75,'C10 Entry Sheet'!$A$16:$K$194,20,FALSE)) -> 
A76: 59 | B76: =IF(ISBLANK('C10 Entry Sheet'!A66)," ",CELL("contents",'C10 Entry Sheet'!A66)) ->  | C76: =IF(($B76=" ")," ",VLOOKUP($B76,'C10 Entry Sheet'!$A$16:$K$194,5,FALSE)) ->  | D76: =IF(($B76=" ")," ",VLOOKUP($B76,'C10 Entry Sheet'!$A$16:$K$194,6,FALSE)) ->  | E76: =IF(($B76=" ")," ",VLOOKUP($B76,'C10 Entry Sheet'!$A$16:$K$194,9,FALSE)) ->  | F76: =IF(($B76=" ")," ",VLOOKUP($B76,'C10 Entry Sheet'!$A$16:$K$194,7,FALSE)) ->  | G76: =IF(($B76=" ")," ",VLOOKUP($B76,'C10 Entry Sheet'!$A$16:$K$194,14,FALSE)) ->  | H76: =IF(($B76=" ")," ",VLOOKUP($B76,'C10 Entry Sheet'!$A$16:$K$194,8,FALSE)) ->  | I76: =IF(($B76=" ")," ",VLOOKUP($B76,'C10 Entry Sheet'!$A$16:$K$194,13,FALSE)) ->  | J76: =IF(($B76=" ")," ",VLOOKUP($B76,'C10 Entry Sheet'!$A$16:$K$194,17,FALSE)) ->  | K76: =IF(($B76=" ")," ",VLOOKUP($B76,'C10 Entry Sheet'!$A$16:$K$194,19,FALSE)) ->  | L76: =IF(($B76=" ")," ",VLOOKUP($B76,'C10 Entry Sheet'!$A$16:$K$194,20,FALSE)) -> 
A77: 60 | B77: =IF(ISBLANK('C10 Entry Sheet'!A67)," ",CELL("contents",'C10 Entry Sheet'!A67)) ->  | C77: =IF(($B77=" ")," ",VLOOKUP($B77,'C10 Entry Sheet'!$A$16:$K$194,5,FALSE)) ->  | D77: =IF(($B77=" ")," ",VLOOKUP($B77,'C10 Entry Sheet'!$A$16:$K$194,6,FALSE)) ->  | E77: =IF(($B77=" ")," ",VLOOKUP($B77,'C10 Entry Sheet'!$A$16:$K$194,9,FALSE)) ->  | F77: =IF(($B77=" ")," ",VLOOKUP($B77,'C10 Entry Sheet'!$A$16:$K$194,7,FALSE)) ->  | G77: =IF(($B77=" ")," ",VLOOKUP($B77,'C10 Entry Sheet'!$A$16:$K$194,14,FALSE)) ->  | H77: =IF(($B77=" ")," ",VLOOKUP($B77,'C10 Entry Sheet'!$A$16:$K$194,8,FALSE)) ->  | I77: =IF(($B77=" ")," ",VLOOKUP($B77,'C10 Entry Sheet'!$A$16:$K$194,13,FALSE)) ->  | J77: =IF(($B77=" ")," ",VLOOKUP($B77,'C10 Entry Sheet'!$A$16:$K$194,17,FALSE)) ->  | K77: =IF(($B77=" ")," ",VLOOKUP($B77,'C10 Entry Sheet'!$A$16:$K$194,19,FALSE)) ->  | L77: =IF(($B77=" ")," ",VLOOKUP($B77,'C10 Entry Sheet'!$A$16:$K$194,20,FALSE)) -> 
